Workbook

Sheet Front
B2: Scottish Government - Centre for Housing Market Analysis Housing Need and Demand Assessment Tool (2020)
Q5: Version 4.0
B12: PURPOSE
B13: > To estimate how many new housing units are needed, locally, in Scotland over the next 20 years
B14: > The number of future households and those in existing housing need represent total future housing need
B15: > Estimates are broken down by houisng tenure; owner occupied, private rent, Mid-Market Rent and social rent
B16: > Demographic, economic and housing affordability scenarios are run to produce a range of estimates for alternative futures
B18: HOW TO USE
B19: > Select area required on 'Map' worksheet
B20: > Choose the 'Start Year' on this sheet
B21: > Press 'Set Areas'
B22: > The 'Scenario All' sheet shows results for the whole area. Sheets 'S1', S2' etc. show results for you Housing Market Areas within the larger area
B23: > Estimates can be produced, top down, using 'Scenario All' which splits results across sub-areas or bottom-up for each sub-area which sums to 'Scenario All'
B25: STRUCTURE
B26: > Green shading, line colours etc. indicates the default Tool settings whilst orange indicates the user's settings. The default is fixed and does not change.
B27: > LIGHT GREEN tabs are where you can make changes
B28: > RED tabs show your results
B29: > PURPLE tabs show the input data that have been pre-programmed into the Tool
B30: > Any changes made the Tool in future will be recorded below.
B31: Remember to save a copy of the Tool each time you run it

Sheet Record of Changes
B2: Scottish Government - Centre for Housing Market Analysis Housing Need and Demand Assessment Tool
N4: Version 4.0
B5: Record of Change
B7: > 30 Nov 2020 - V4.0 - Fix applied to 'Use Own Projection' and 'HoTOC' check boxes.
B9: > 29 Dec 2020 - V4.0 - Fix applied to National Parks household estimates.
B11: > 26 March 2021 - V4.0 - Fix applied to income estimates for National Park and Falkirk sub-areas.
B13: > 23 July 2021 - V4.0 - Fix applied to 'Use Own' house, rent and income scenarios.
B15: > 16 Feb 2023 - V4.0 - Fix applied to 'Scenario' sheet for own scenario house price % trend and rent price % trend for 2041 and 2042.

Sheet Instructions for Updating Tool (hidden)

Sheet Lower Quart House Price Formula (hidden)
A1: Income Distributionn Formula Explained.
A3: The Tool ask users to decided what the future income distribtuion might look like in their local area.
A4: The formuala for this is explained below.
A7: The formula is:
A10: There are two parts to the formula, the blue and red part.
A12: Blue:
A14: · The blue section calculates income growth in the Xth percentile of the income distribution according to the value of the growth in median income scenario, e.g. if ‘No real terms growth – inflation target’ is selected, then incomes across the distribution will increase by 2%. For example, the 10th percentile income would increase by 2%.
A15: · The blue section is unaffected by income inequality, in other words this is the growth in income at the Xth percentile before accounting for any income inequality adjustments.
A17: Red:
A19: · The red section is where an adjustment is made to incomes across the distribution to account for changes to income inequality.
A20: · The value of the adjustment for income inequality is linked to the value of median income, with a percentage of median income either added or subtracted to the value of Xth percentile income calculated in the blue section.
A21: · This is calculated in the second set of large brackets (RHS of the red part of the formula). For example, if the greater income inequality option is chosen, 1% of median income is subtracted from the value of the blue part of the formula for income at the 10th percentile. At the 25th percentile, 0.63% of median income is subtracted from the value of the blue part of the formula for income at the 25th percentile.
A23: Worked Example
A25: · Income at the 10th percentile in 2017 is £11,440, the ‘Growth in Median Income Scenario’ is set at 2% (no real terms growth – inflation target), and greater income inequality is chosen. Median income is £30,680 in 2017.
A31: · The way the formula works means that the percentage increase in income at the 10th and 90th percentile won’t necessarily be +/-1%. This is because the increase/decrease to income in the red section of the formula is applied symmetrically to each side of the income distribution from the median e.g. the value for the red section of the formula is -£306.8 for the 10th percentile and +£306.8 for the 90th percentile. This is shown in the chart below:
B33: 2017 | C33: 2018 (No Change to Income Inequality) | D33: Percentage Increase (on 2017) | E33: 2018 (Greater Income Inequality) | F33: Percentage Increase (on 2017)
A34: 10th Percentile | B34: 11440 | C34: 11668.8 | D34: 0.02 | E34: £11,668.8 - £306.8 = £11,362 | F34: -0.007
A35: 90th Percentile | B35: 72280 | C35: 73725.6 | D35: 0.02 | E35: £73,725.6 + £306.8 = £74,032.4 | F35: 0.024

Sheet S1
A1: =Data!D1 -> 2-Aberdeen City Council-Aberdeen City Council HMA | K1: =Map!S13 -> 2020
A3: STEP 1. Household Projections | X3: 4
A4: Choose NRS household projection variant. | X4: 4 | Y4: 4
X5: 1
X6: 1
X7: 1
X8: 1
X9: 1
X10: 1
C11: =D11-1 -> 2019 | D11: =D16 -> 2020 | E11: =D11+1 -> 2021 | F11: 2022 | G11: 2023 | H11: 2024 | I11: 2025 | J11: 2026 | K11: 2027 | L11: 2028 | M11: 2029 | N11: 2030
A12: Enter Projections Here | C12: 0 | D12: 0 | E12: 0 | F12: 0 | G12: 0 | H12: 0 | I12: 0 | J12: 0 | K12: 0 | L12: 0 | M12: 0 | N12: 0
D13: =N11+1 -> 2031 | E13: =D13+1 -> 2032 | F13: 2033 | G13: 2034 | H13: 2035 | I13: 2036 | J13: 2037 | K13: 2038 | L13: 2039 | M13: 2040 | N13: 2041
D14: 0 | E14: 0 | F14: 0 | G14: 0 | H14: 0 | I14: 0 | J14: 0 | K14: 0 | L14: 0 | M14: 0 | N14: 0
A16: 1a. Household growth Adjustment | D16: =C283 -> 2020 | E16: =D16+1 -> 2021 | F16: 2022 | G16: 2023 | H16: 2024 | I16: 2025 | J16: 2026 | K16: 2027 | L16: 2028 | M16: 2029 | N16: 2030
D17: 0 | E17: 0 | F17: 0 | G17: 0 | H17: 0 | I17: 0 | J17: 0 | K17: 0 | L17: 0 | M17: 0 | N17: 0
D18: =N16+1 -> 2031 | E18: =D18+1 -> 2032 | F18: 2033 | G18: 2034 | H18: 2035 | I18: 2036 | J18: 2037 | K18: 2038 | L18: 2039 | M18: 2040 | N18: 2041
D19: 0 | E19: 0 | F19: 0 | G19: 0 | H19: 0 | I19: 0 | J19: 0 | K19: 0 | L19: 0 | M19: 0 | N19: 0
A21: STEP 2. Existing Need
A22: Either
A25: Total From HoTOC method | D25: =IF(B295=TRUE,SUM(C295:W295),"-") -> 480
A26: Or own exisiting need figures
A29: Existing Need | B29: 0
A31: 2a. Years to clear exisiting need
A34: Existing "Cleared" In? Enter Years | B34: 5
A41: STEP 3. Income, Growth and Distribution
A43: Growth in median income scenario
X44: 3
A45: Change in income distribution
A48: Select part of income distribution interested in
B49: Example A | C49: 75 | D49: %ile
B50: Example B | C50: 25 | D50: %ile
B51: Example Year | C51: 2038
X52: 2
X53: 3
X54: 2
A57: STEP 4. Prices and Afforability | X57: 1
X58: 3
X59: 2
X60: 3
B61: Percentile | C61: 0.25
B64: Income Ratio | C64: 3.9 | X64: 1
A114: STEP 5. Split Need into Tenure
B115: Proportion of market who buy | C115: 0.6
B116: Upper income-to-rent threshold | C116: 0.25
A117: Lower income-to-rent treshohld | C117: 0.35
A118: Rent Growth Assumption
X122: 2
X123: 3
X127: 1
A269: User 1
A270: User 2
A271: User 3
A272: 2018 Principal
A273: 2018 Low Migration
A274: 2018 High Migration
A278: Scottish Government Small Area Income Estimates
A279: Own Income data
A282: (A) Total Households & Annual Change
A283: Year | B283: =Map!S13-1 -> 2019 | C283: =B283+1 -> 2020 | D283: 2021 | E283: 2022 | F283: 2023 | G283: 2024 | H283: 2025 | I283: 2026 | J283: 2027 | K283: 2028 | L283: 2029 | M283: 2030 | N283: 2031 | O283: 2032 | P283: 2033 | Q283: 2034 | R283: 2035 | S283: 2036 | T283: 2037 | U283: 2038 | V283: 2039 | W283: 2040 | X283: Ref
A284: =CONCATENATE(CHOOSE(Y4,A269,A270,A271,A272,A273,A274)) -> 2018 Principal | C284: =HLOOKUP($A$1,Data!$C$1:$AJ$184,C283-($B$283-$X$285)+24*($Y$4-1),FALSE) -> 108543 | D284: =HLOOKUP($A$1,Data!$C$1:$AJ$184,D283-($B$283-$X$285)+24*($Y$4-1),FALSE) -> 108896 | E284: =HLOOKUP($A$1,Data!$C$1:$AJ$184,E283-($B$283-$X$285)+24*($Y$4-1),FALSE) -> 109300 | F284: =HLOOKUP($A$1,Data!$C$1:$AJ$184,F283-($B$283-$X$285)+24*($Y$4-1),FALSE) -> 109568 | G284: =HLOOKUP($A$1,Data!$C$1:$AJ$184,G283-($B$283-$X$285)+24*($Y$4-1),FALSE) -> 109831 | H284: =HLOOKUP($A$1,Data!$C$1:$AJ$184,H283-($B$283-$X$285)+24*($Y$4-1),FALSE) -> 110075 | I284: =HLOOKUP($A$1,Data!$C$1:$AJ$184,I283-($B$283-$X$285)+24*($Y$4-1),FALSE) -> 110355 | J284: =HLOOKUP($A$1,Data!$C$1:$AJ$184,J283-($B$283-$X$285)+24*($Y$4-1),FALSE) -> 110629 | K284: =HLOOKUP($A$1,Data!$C$1:$AJ$184,K283-($B$283-$X$285)+24*($Y$4-1),FALSE) -> 110884 | L284: =HLOOKUP($A$1,Data!$C$1:$AJ$184,L283-($B$283-$X$285)+24*($Y$4-1),FALSE) -> 111201 | M284: =HLOOKUP($A$1,Data!$C$1:$AJ$184,M283-($B$283-$X$285)+24*($Y$4-1),FALSE) -> 111536 | N284: =HLOOKUP($A$1,Data!$C$1:$AJ$184,N283-($B$283-$X$285)+24*($Y$4-1),FALSE) -> 111946 | O284: =HLOOKUP($A$1,Data!$C$1:$AJ$184,O283-($B$283-$X$285)+24*($Y$4-1),FALSE) -> 112321 | P284: =HLOOKUP($A$1,Data!$C$1:$AJ$184,P283-($B$283-$X$285)+24*($Y$4-1),FALSE) -> 112729 | Q284: =HLOOKUP($A$1,Data!$C$1:$AJ$184,Q283-($B$283-$X$285)+24*($Y$4-1),FALSE) -> 113134 | R284: =HLOOKUP($A$1,Data!$C$1:$AJ$184,R283-($B$283-$X$285)+24*($Y$4-1),FALSE) -> 113546 | S284: =HLOOKUP($A$1,Data!$C$1:$AJ$184,S283-($B$283-$X$285)+24*($Y$4-1),FALSE) -> 113938 | T284: =HLOOKUP($A$1,Data!$C$1:$AJ$184,T283-($B$283-$X$285)+24*($Y$4-1),FALSE) -> 114285 | U284: =HLOOKUP($A$1,Data!$C$1:$AJ$184,U283-($B$283-$X$285)+24*($Y$4-1),FALSE) -> 114648 | V284: =HLOOKUP($A$1,Data!$C$1:$AJ$184,V283-($B$283-$X$285)+24*($Y$4-1),FALSE) -> 114910 | W284: =HLOOKUP($A$1,Data!$C$1:$AJ$184,W283-($B$283-$X$285)+24*($Y$4-1),FALSE) -> 115223
A285: =CONCATENATE(CHOOSE(X4,A269,A270,A271,A272,A273,A274)) -> 2018 Principal | C285: =IF($B$291=TRUE,D12,HLOOKUP($A$1,Data!$C$1:$AJ$184,C283-($B$283-$X$285)+24*($X$4-1),FALSE)) -> 108543 | D285: =IF($B$291=TRUE,E12,HLOOKUP($A$1,Data!$C$1:$AJ$184,D283-($B$283-$X$285)+24*($X$4-1),FALSE)) -> 108896 | E285: =IF($B$291=TRUE,F12,HLOOKUP($A$1,Data!$C$1:$AJ$184,E283-($B$283-$X$285)+24*($X$4-1),FALSE)) -> 109300 | F285: =IF($B$291=TRUE,G12,HLOOKUP($A$1,Data!$C$1:$AJ$184,F283-($B$283-$X$285)+24*($X$4-1),FALSE)) -> 109568 | G285: =IF($B$291=TRUE,H12,HLOOKUP($A$1,Data!$C$1:$AJ$184,G283-($B$283-$X$285)+24*($X$4-1),FALSE)) -> 109831 | H285: =IF($B$291=TRUE,I12,HLOOKUP($A$1,Data!$C$1:$AJ$184,H283-($B$283-$X$285)+24*($X$4-1),FALSE)) -> 110075 | I285: =IF($B$291=TRUE,J12,HLOOKUP($A$1,Data!$C$1:$AJ$184,I283-($B$283-$X$285)+24*($X$4-1),FALSE)) -> 110355 | J285: =IF($B$291=TRUE,K12,HLOOKUP($A$1,Data!$C$1:$AJ$184,J283-($B$283-$X$285)+24*($X$4-1),FALSE)) -> 110629 | K285: =IF($B$291=TRUE,L12,HLOOKUP($A$1,Data!$C$1:$AJ$184,K283-($B$283-$X$285)+24*($X$4-1),FALSE)) -> 110884 | L285: =IF($B$291=TRUE,M12,HLOOKUP($A$1,Data!$C$1:$AJ$184,L283-($B$283-$X$285)+24*($X$4-1),FALSE)) -> 111201 | M285: =IF($B$291=TRUE,N12,HLOOKUP($A$1,Data!$C$1:$AJ$184,M283-($B$283-$X$285)+24*($X$4-1),FALSE)) -> 111536 | N285: =IF($B$291=TRUE,D14,HLOOKUP($A$1,Data!$C$1:$AJ$184,N283-($B$283-$X$285)+24*($X$4-1),FALSE)) -> 111946 | O285: =IF($B$291=TRUE,E14,HLOOKUP($A$1,Data!$C$1:$AJ$184,O283-($B$283-$X$285)+24*($X$4-1),FALSE)) -> 112321 | P285: =IF($B$291=TRUE,F14,HLOOKUP($A$1,Data!$C$1:$AJ$184,P283-($B$283-$X$285)+24*($X$4-1),FALSE)) -> 112729 | Q285: =IF($B$291=TRUE,G14,HLOOKUP($A$1,Data!$C$1:$AJ$184,Q283-($B$283-$X$285)+24*($X$4-1),FALSE)) -> 113134 | R285: =IF($B$291=TRUE,H14,HLOOKUP($A$1,Data!$C$1:$AJ$184,R283-($B$283-$X$285)+24*($X$4-1),FALSE)) -> 113546 | S285: =IF($B$291=TRUE,I14,HLOOKUP($A$1,Data!$C$1:$AJ$184,S283-($B$283-$X$285)+24*($X$4-1),FALSE)) -> 113938 | T285: =IF($B$291=TRUE,J14,HLOOKUP($A$1,Data!$C$1:$AJ$184,T283-($B$283-$X$285)+24*($X$4-1),FALSE)) -> 114285 | U285: =IF($B$291=TRUE,K14,HLOOKUP($A$1,Data!$C$1:$AJ$184,U283-($B$283-$X$285)+24*($X$4-1),FALSE)) -> 114648 | V285: =IF($B$291=TRUE,L14,HLOOKUP($A$1,Data!$C$1:$AJ$184,V283-($B$283-$X$285)+24*($X$4-1),FALSE)) -> 114910 | W285: =IF($B$291=TRUE,M14,HLOOKUP($A$1,Data!$C$1:$AJ$184,W283-($B$283-$X$285)+24*($X$4-1),FALSE)) -> 115223 | X285: 17
A286: 2018 Principle Change | C286: =D285-C285 -> 353 | D286: =E285-D285 -> 404 | E286: 268 | F286: 263 | G286: 244 | H286: 280 | I286: 274 | J286: 255 | K286: 317 | L286: 335 | M286: =N285-M285 -> 410 | N286: 375 | O286: 408 | P286: 405 | Q286: 412 | R286: 392 | S286: 347 | T286: 363 | U286: 262 | V286: 313 | W286: =V286 -> 313
A287: =A285 -> 2018 Principal | C287: =(C285)*(1+E17) -> 108543 | D287: =(C287+C286)*(1+F17) -> 108896 | E287: 109300 | F287: 109568 | G287: 109831 | H287: 110075 | I287: 110355 | J287: 110629 | K287: 110884 | L287: 111201 | M287: =(L287+L286)*(1+D19) -> 111536 | N287: 111946 | O287: 112321 | P287: 112729 | Q287: 113134 | R287: 113546 | S287: 113938 | T287: 114285 | U287: 114648 | V287: 114910 | W287: 115223
A288: =CONCATENATE(A284," Change") -> 2018 Principal Change | C288: =D284-C284 -> 353 | D288: =E284-D284 -> 404 | E288: 268 | F288: 263 | G288: 244 | H288: 280 | I288: 274 | J288: 255 | K288: 317 | L288: 335 | M288: 410 | N288: 375 | O288: 408 | P288: 405 | Q288: 412 | R288: 392 | S288: 347 | T288: 363 | U288: 262 | V288: 313 | W288: =V288 -> 313
A289: =CONCATENATE(A285," Change") -> 2018 Principal Change | C289: =D287-C287 -> 353 | D289: =E287-D287 -> 404 | E289: 268 | F289: =G287-F287 -> 263 | G289: 244 | H289: 280 | I289: 274 | J289: 255 | K289: 317 | L289: 335 | M289: 410 | N289: 375 | O289: 408 | P289: 405 | Q289: 412 | R289: 392 | S289: 347 | T289: 363 | U289: 262 | V289: 313 | W289: =V289 -> 313
B291: FALSE
A292: (B) Backlog Need | B292: FALSE | C292: =IF(AND(C283-$K$1+1<=$B$34,C283>=$K$1),$B$29/'S1'!$B$34,0) -> 0 | D292: =IF(AND(D283-$K$1+1<=$B$34,D283>=$K$1),$B$29/'S1'!$B$34,0) -> 0 | E292: =IF(AND(E283-$K$1+1<=$B$34,E283>=$K$1),$B$29/'S1'!$B$34,0) -> 0 | F292: =IF(AND(F283-$K$1+1<=$B$34,F283>=$K$1),$B$29/'S1'!$B$34,0) -> 0 | G292: =IF(AND(G283-$K$1+1<=$B$34,G283>=$K$1),$B$29/'S1'!$B$34,0) -> 0 | H292: =IF(AND(H283-$K$1+1<=$B$34,H283>=$K$1),$B$29/'S1'!$B$34,0) -> 0 | I292: =IF(AND(I283-$K$1+1<=$B$34,I283>=$K$1),$B$29/'S1'!$B$34,0) -> 0 | J292: =IF(AND(J283-$K$1+1<=$B$34,J283>=$K$1),$B$29/'S1'!$B$34,0) -> 0 | K292: =IF(AND(K283-$K$1+1<=$B$34,K283>=$K$1),$B$29/'S1'!$B$34,0) -> 0 | L292: =IF(AND(L283-$K$1+1<=$B$34,L283>=$K$1),$B$29/'S1'!$B$34,0) -> 0 | M292: =IF(AND(M283-$K$1+1<=$B$34,M283>=$K$1),$B$29/'S1'!$B$34,0) -> 0 | N292: =IF(AND(N283-$K$1+1<=$B$34,N283>=$K$1),$B$29/'S1'!$B$34,0) -> 0 | O292: =IF(AND(O283-$K$1+1<=$B$34,O283>=$K$1),$B$29/'S1'!$B$34,0) -> 0 | P292: =IF(AND(P283-$K$1+1<=$B$34,P283>=$K$1),$B$29/'S1'!$B$34,0) -> 0 | Q292: =IF(AND(Q283-$K$1+1<=$B$34,Q283>=$K$1),$B$29/'S1'!$B$34,0) -> 0 | R292: =IF(AND(R283-$K$1+1<=$B$34,R283>=$K$1),$B$29/'S1'!$B$34,0) -> 0 | S292: =IF(AND(S283-$K$1+1<=$B$34,S283>=$K$1),$B$29/'S1'!$B$34,0) -> 0 | T292: =IF(AND(T283-$K$1+1<=$B$34,T283>=$K$1),$B$29/'S1'!$B$34,0) -> 0 | U292: =IF(AND(U283-$K$1+1<=$B$34,U283>=$K$1),$B$29/'S1'!$B$34,0) -> 0 | V292: =IF(AND(V283-$K$1+1<=$B$34,V283>=$K$1),$B$29/'S1'!$B$34,0) -> 0 | W292: =IF(AND(W283-$K$1+1<=$B$34,W283>=$K$1),$B$29/'S1'!$B$34,0) -> 0
A293: Backlog Need (TA) | C293: =IF(AND(C283-$K$1+1<=$B$34,C283>=$K$1),HLOOKUP($A$1,Data!$C$1:$AK$202,'S1'!$X$293,FALSE)/'S1'!$B$34,0) -> 96 | D293: =IF(AND(D283-$K$1+1<=$B$34,D283>=$K$1),HLOOKUP($A$1,Data!$C$1:$AK$202,'S1'!$X$293,FALSE)/'S1'!$B$34,0) -> 96 | E293: =IF(AND(E283-$K$1+1<=$B$34,E283>=$K$1),HLOOKUP($A$1,Data!$C$1:$AK$202,'S1'!$X$293,FALSE)/'S1'!$B$34,0) -> 96 | F293: =IF(AND(F283-$K$1+1<=$B$34,F283>=$K$1),HLOOKUP($A$1,Data!$C$1:$AK$202,'S1'!$X$293,FALSE)/'S1'!$B$34,0) -> 96 | G293: =IF(AND(G283-$K$1+1<=$B$34,G283>=$K$1),HLOOKUP($A$1,Data!$C$1:$AK$202,'S1'!$X$293,FALSE)/'S1'!$B$34,0) -> 96 | H293: =IF(AND(H283-$K$1+1<=$B$34,H283>=$K$1),HLOOKUP($A$1,Data!$C$1:$AK$202,'S1'!$X$293,FALSE)/'S1'!$B$34,0) -> 0 | I293: =IF(AND(I283-$K$1+1<=$B$34,I283>=$K$1),HLOOKUP($A$1,Data!$C$1:$AK$202,'S1'!$X$293,FALSE)/'S1'!$B$34,0) -> 0 | J293: =IF(AND(J283-$K$1+1<=$B$34,J283>=$K$1),HLOOKUP($A$1,Data!$C$1:$AK$202,'S1'!$X$293,FALSE)/'S1'!$B$34,0) -> 0 | K293: =IF(AND(K283-$K$1+1<=$B$34,K283>=$K$1),HLOOKUP($A$1,Data!$C$1:$AK$202,'S1'!$X$293,FALSE)/'S1'!$B$34,0) -> 0 | L293: =IF(AND(L283-$K$1+1<=$B$34,L283>=$K$1),HLOOKUP($A$1,Data!$C$1:$AK$202,'S1'!$X$293,FALSE)/'S1'!$B$34,0) -> 0 | M293: =IF(AND(M283-$K$1+1<=$B$34,M283>=$K$1),HLOOKUP($A$1,Data!$C$1:$AK$202,'S1'!$X$293,FALSE)/'S1'!$B$34,0) -> 0 | N293: =IF(AND(N283-$K$1+1<=$B$34,N283>=$K$1),HLOOKUP($A$1,Data!$C$1:$AK$202,'S1'!$X$293,FALSE)/'S1'!$B$34,0) -> 0 | O293: =IF(AND(O283-$K$1+1<=$B$34,O283>=$K$1),HLOOKUP($A$1,Data!$C$1:$AK$202,'S1'!$X$293,FALSE)/'S1'!$B$34,0) -> 0 | P293: =IF(AND(P283-$K$1+1<=$B$34,P283>=$K$1),HLOOKUP($A$1,Data!$C$1:$AK$202,'S1'!$X$293,FALSE)/'S1'!$B$34,0) -> 0 | Q293: =IF(AND(Q283-$K$1+1<=$B$34,Q283>=$K$1),HLOOKUP($A$1,Data!$C$1:$AK$202,'S1'!$X$293,FALSE)/'S1'!$B$34,0) -> 0 | R293: =IF(AND(R283-$K$1+1<=$B$34,R283>=$K$1),HLOOKUP($A$1,Data!$C$1:$AK$202,'S1'!$X$293,FALSE)/'S1'!$B$34,0) -> 0 | S293: =IF(AND(S283-$K$1+1<=$B$34,S283>=$K$1),HLOOKUP($A$1,Data!$C$1:$AK$202,'S1'!$X$293,FALSE)/'S1'!$B$34,0) -> 0 | T293: =IF(AND(T283-$K$1+1<=$B$34,T283>=$K$1),HLOOKUP($A$1,Data!$C$1:$AK$202,'S1'!$X$293,FALSE)/'S1'!$B$34,0) -> 0 | U293: =IF(AND(U283-$K$1+1<=$B$34,U283>=$K$1),HLOOKUP($A$1,Data!$C$1:$AK$202,'S1'!$X$293,FALSE)/'S1'!$B$34,0) -> 0 | V293: =IF(AND(V283-$K$1+1<=$B$34,V283>=$K$1),HLOOKUP($A$1,Data!$C$1:$AK$202,'S1'!$X$293,FALSE)/'S1'!$B$34,0) -> 0 | W293: =IF(AND(W283-$K$1+1<=$B$34,W283>=$K$1),HLOOKUP($A$1,Data!$C$1:$AK$202,'S1'!$X$293,FALSE)/'S1'!$B$34,0) -> 0 | X293: 202
A294: Backlog Need (Traditional) | C294: =IF(AND(C283-$K$1+1<=$B$34,C283>=$K$1),HLOOKUP($A$1,Data!$C$1:$AK$201,'S1'!$X294,FALSE)/'S1'!$B$34,0) -> 0 | D294: =IF(AND(D283-$K$1+1<=$B$34,D283>=$K$1),HLOOKUP($A$1,Data!$C$1:$AK$201,'S1'!$X294,FALSE)/'S1'!$B$34,0) -> 0 | E294: =IF(AND(E283-$K$1+1<=$B$34,E283>=$K$1),HLOOKUP($A$1,Data!$C$1:$AK$201,'S1'!$X294,FALSE)/'S1'!$B$34,0) -> 0 | F294: =IF(AND(F283-$K$1+1<=$B$34,F283>=$K$1),HLOOKUP($A$1,Data!$C$1:$AK$201,'S1'!$X294,FALSE)/'S1'!$B$34,0) -> 0 | G294: =IF(AND(G283-$K$1+1<=$B$34,G283>=$K$1),HLOOKUP($A$1,Data!$C$1:$AK$201,'S1'!$X294,FALSE)/'S1'!$B$34,0) -> 0 | H294: =IF(AND(H283-$K$1+1<=$B$34,H283>=$K$1),HLOOKUP($A$1,Data!$C$1:$AK$201,'S1'!$X294,FALSE)/'S1'!$B$34,0) -> 0 | I294: =IF(AND(I283-$K$1+1<=$B$34,I283>=$K$1),HLOOKUP($A$1,Data!$C$1:$AK$201,'S1'!$X294,FALSE)/'S1'!$B$34,0) -> 0 | J294: =IF(AND(J283-$K$1+1<=$B$34,J283>=$K$1),HLOOKUP($A$1,Data!$C$1:$AK$201,'S1'!$X294,FALSE)/'S1'!$B$34,0) -> 0 | K294: =IF(AND(K283-$K$1+1<=$B$34,K283>=$K$1),HLOOKUP($A$1,Data!$C$1:$AK$201,'S1'!$X294,FALSE)/'S1'!$B$34,0) -> 0 | L294: =IF(AND(L283-$K$1+1<=$B$34,L283>=$K$1),HLOOKUP($A$1,Data!$C$1:$AK$201,'S1'!$X294,FALSE)/'S1'!$B$34,0) -> 0 | M294: =IF(AND(M283-$K$1+1<=$B$34,M283>=$K$1),HLOOKUP($A$1,Data!$C$1:$AK$201,'S1'!$X294,FALSE)/'S1'!$B$34,0) -> 0 | N294: =IF(AND(N283-$K$1+1<=$B$34,N283>=$K$1),HLOOKUP($A$1,Data!$C$1:$AK$201,'S1'!$X294,FALSE)/'S1'!$B$34,0) -> 0 | O294: =IF(AND(O283-$K$1+1<=$B$34,O283>=$K$1),HLOOKUP($A$1,Data!$C$1:$AK$201,'S1'!$X294,FALSE)/'S1'!$B$34,0) -> 0 | P294: =IF(AND(P283-$K$1+1<=$B$34,P283>=$K$1),HLOOKUP($A$1,Data!$C$1:$AK$201,'S1'!$X294,FALSE)/'S1'!$B$34,0) -> 0 | Q294: =IF(AND(Q283-$K$1+1<=$B$34,Q283>=$K$1),HLOOKUP($A$1,Data!$C$1:$AK$201,'S1'!$X294,FALSE)/'S1'!$B$34,0) -> 0 | R294: =IF(AND(R283-$K$1+1<=$B$34,R283>=$K$1),HLOOKUP($A$1,Data!$C$1:$AK$201,'S1'!$X294,FALSE)/'S1'!$B$34,0) -> 0 | S294: =IF(AND(S283-$K$1+1<=$B$34,S283>=$K$1),HLOOKUP($A$1,Data!$C$1:$AK$201,'S1'!$X294,FALSE)/'S1'!$B$34,0) -> 0 | T294: =IF(AND(T283-$K$1+1<=$B$34,T283>=$K$1),HLOOKUP($A$1,Data!$C$1:$AK$201,'S1'!$X294,FALSE)/'S1'!$B$34,0) -> 0 | U294: =IF(AND(U283-$K$1+1<=$B$34,U283>=$K$1),HLOOKUP($A$1,Data!$C$1:$AK$201,'S1'!$X294,FALSE)/'S1'!$B$34,0) -> 0 | V294: =IF(AND(V283-$K$1+1<=$B$34,V283>=$K$1),HLOOKUP($A$1,Data!$C$1:$AK$201,'S1'!$X294,FALSE)/'S1'!$B$34,0) -> 0 | W294: =IF(AND(W283-$K$1+1<=$B$34,W283>=$K$1),HLOOKUP($A$1,Data!$C$1:$AK$201,'S1'!$X294,FALSE)/'S1'!$B$34,0) -> 0 | X294: 199
A295: =CONCATENATE("Exisiting ",A285) -> Exisiting 2018 Principal | B295: TRUE | C295: =IF($B$295=TRUE,C293,IF($B$293=TRUE,C294,C292)) -> 96 | D295: 96 | E295: 96 | F295: 96 | G295: 96 | H295: 0 | I295: 0 | J295: 0 | K295: 0 | L295: 0 | M295: 0 | N295: 0 | O295: 0 | P295: 0 | Q295: 0 | R295: 0 | S295: 0 | T295: 0 | U295: 0 | V295: 0 | W295: 0
A298: (A+B) Total Need Principal | C298: =C283 -> 2020 | D298: =D283 -> 2021 | E298: 2022 | F298: 2023 | G298: 2024 | H298: 2025 | I298: 2026 | J298: 2027 | K298: 2028 | L298: 2029 | M298: 2030 | N298: 2031 | O298: 2032 | P298: 2033 | Q298: 2034 | R298: 2035 | S298: 2036 | T298: 2037 | U298: 2038 | V298: 2039 | W298: 2040
A299: =CONCATENATE("Exisiting ",A284) -> Exisiting 2018 Principal | C299: =IF(AND(C283-$K$1+1<=CoreAssumptions!$F$10,C283>=$K$1),HLOOKUP($A$1,Data!$C$1:$AK$202,'S1'!$X$293,FALSE)/CoreAssumptions!$F$10,0) -> 96 | D299: =IF(AND(D283-$K$1+1<=CoreAssumptions!$F$10,D283>=$K$1),HLOOKUP($A$1,Data!$C$1:$AK$202,'S1'!$X$293,FALSE)/CoreAssumptions!$F$10,0) -> 96 | E299: =IF(AND(E283-$K$1+1<=CoreAssumptions!$F$10,E283>=$K$1),HLOOKUP($A$1,Data!$C$1:$AK$202,'S1'!$X$293,FALSE)/CoreAssumptions!$F$10,0) -> 96 | F299: =IF(AND(F283-$K$1+1<=CoreAssumptions!$F$10,F283>=$K$1),HLOOKUP($A$1,Data!$C$1:$AK$202,'S1'!$X$293,FALSE)/CoreAssumptions!$F$10,0) -> 96 | G299: =IF(AND(G283-$K$1+1<=CoreAssumptions!$F$10,G283>=$K$1),HLOOKUP($A$1,Data!$C$1:$AK$202,'S1'!$X$293,FALSE)/CoreAssumptions!$F$10,0) -> 96 | H299: =IF(AND(H283-$K$1+1<=CoreAssumptions!$F$10,H283>=$K$1),HLOOKUP($A$1,Data!$C$1:$AK$202,'S1'!$X$293,FALSE)/CoreAssumptions!$F$10,0) -> 0 | I299: =IF(AND(I283-$K$1+1<=CoreAssumptions!$F$10,I283>=$K$1),HLOOKUP($A$1,Data!$C$1:$AK$202,'S1'!$X$293,FALSE)/CoreAssumptions!$F$10,0) -> 0 | J299: =IF(AND(J283-$K$1+1<=CoreAssumptions!$F$10,J283>=$K$1),HLOOKUP($A$1,Data!$C$1:$AK$202,'S1'!$X$293,FALSE)/CoreAssumptions!$F$10,0) -> 0 | K299: =IF(AND(K283-$K$1+1<=CoreAssumptions!$F$10,K283>=$K$1),HLOOKUP($A$1,Data!$C$1:$AK$202,'S1'!$X$293,FALSE)/CoreAssumptions!$F$10,0) -> 0 | L299: =IF(AND(L283-$K$1+1<=CoreAssumptions!$F$10,L283>=$K$1),HLOOKUP($A$1,Data!$C$1:$AK$202,'S1'!$X$293,FALSE)/CoreAssumptions!$F$10,0) -> 0 | M299: =IF(AND(M283-$K$1+1<=CoreAssumptions!$F$10,M283>=$K$1),HLOOKUP($A$1,Data!$C$1:$AK$202,'S1'!$X$293,FALSE)/CoreAssumptions!$F$10,0) -> 0 | N299: =IF(AND(N283-$K$1+1<=CoreAssumptions!$F$10,N283>=$K$1),HLOOKUP($A$1,Data!$C$1:$AK$202,'S1'!$X$293,FALSE)/CoreAssumptions!$F$10,0) -> 0 | O299: =IF(AND(O283-$K$1+1<=CoreAssumptions!$F$10,O283>=$K$1),HLOOKUP($A$1,Data!$C$1:$AK$202,'S1'!$X$293,FALSE)/CoreAssumptions!$F$10,0) -> 0 | P299: =IF(AND(P283-$K$1+1<=CoreAssumptions!$F$10,P283>=$K$1),HLOOKUP($A$1,Data!$C$1:$AK$202,'S1'!$X$293,FALSE)/CoreAssumptions!$F$10,0) -> 0 | Q299: =IF(AND(Q283-$K$1+1<=CoreAssumptions!$F$10,Q283>=$K$1),HLOOKUP($A$1,Data!$C$1:$AK$202,'S1'!$X$293,FALSE)/CoreAssumptions!$F$10,0) -> 0 | R299: =IF(AND(R283-$K$1+1<=CoreAssumptions!$F$10,R283>=$K$1),HLOOKUP($A$1,Data!$C$1:$AK$202,'S1'!$X$293,FALSE)/CoreAssumptions!$F$10,0) -> 0 | S299: =IF(AND(S283-$K$1+1<=CoreAssumptions!$F$10,S283>=$K$1),HLOOKUP($A$1,Data!$C$1:$AK$202,'S1'!$X$293,FALSE)/CoreAssumptions!$F$10,0) -> 0 | T299: =IF(AND(T283-$K$1+1<=CoreAssumptions!$F$10,T283>=$K$1),HLOOKUP($A$1,Data!$C$1:$AK$202,'S1'!$X$293,FALSE)/CoreAssumptions!$F$10,0) -> 0 | U299: =IF(AND(U283-$K$1+1<=CoreAssumptions!$F$10,U283>=$K$1),HLOOKUP($A$1,Data!$C$1:$AK$202,'S1'!$X$293,FALSE)/CoreAssumptions!$F$10,0) -> 0 | V299: =IF(AND(V283-$K$1+1<=CoreAssumptions!$F$10,V283>=$K$1),HLOOKUP($A$1,Data!$C$1:$AK$202,'S1'!$X$293,FALSE)/CoreAssumptions!$F$10,0) -> 0 | W299: =IF(AND(W283-$K$1+1<=CoreAssumptions!$F$10,W283>=$K$1),HLOOKUP($A$1,Data!$C$1:$AK$202,'S1'!$X$293,FALSE)/CoreAssumptions!$F$10,0) -> 0
A300: =CONCATENATE("Newly Arising ",A284) -> Newly Arising 2018 Principal | C300: =C288 -> 353 | D300: =D288 -> 404 | E300: 268 | F300: 263 | G300: 244 | H300: 280 | I300: 274 | J300: 255 | K300: 317 | L300: 335 | M300: 410 | N300: 375 | O300: 408 | P300: 405 | Q300: 412 | R300: 392 | S300: 347 | T300: 363 | U300: 262 | V300: 313 | W300: 313
A301: =CONCATENATE("Newly Arising ",A285) -> Newly Arising 2018 Principal | C301: =C289 -> 353 | D301: 404 | E301: 268 | F301: 263 | G301: 244 | H301: 280 | I301: 274 | J301: 255 | K301: 317 | L301: 335 | M301: 410 | N301: 375 | O301: 408 | P301: 405 | Q301: 412 | R301: 392 | S301: 347 | T301: 363 | U301: 262 | V301: 313 | W301: 313
A302: =CONCATENATE("Total ",A284) -> Total 2018 Principal | C302: =C299+C300 -> 449 | D302: =D299+D300 -> 500 | E302: 364 | F302: 359 | G302: 340 | H302: 280 | I302: 274 | J302: 255 | K302: 317 | L302: 335 | M302: 410 | N302: 375 | O302: 408 | P302: 405 | Q302: 412 | R302: 392 | S302: 347 | T302: 363 | U302: 262 | V302: 313 | W302: 313
A303: =CONCATENATE("Total ",A285) -> Total 2018 Principal | C303: =C301+C295 -> 449 | D303: =D301+D295 -> 500 | E303: 364 | F303: 359 | G303: 340 | H303: 280 | I303: 274 | J303: 255 | K303: 317 | L303: 335 | M303: 410 | N303: 375 | O303: 408 | P303: 405 | Q303: 412 | R303: 392 | S303: 347 | T303: 363 | U303: 262 | V303: 313 | W303: 313
A305: In Current Proportions | C305: =C298 -> 2020 | D305: =D298 -> 2021 | E305: 2022 | F305: 2023 | G305: 2024 | H305: 2025 | I305: 2026 | J305: 2027 | K305: 2028 | L305: 2029 | M305: 2030 | N305: 2031 | O305: 2032 | P305: 2033 | Q305: 2034 | R305: 2035 | S305: 2036 | T305: 2037 | U305: 2038 | V305: 2039 | W305: 2040
A306: Principal Private | C306: =-HLOOKUP($A$1,Data!$C$1:$AJ$388,'S1'!$X306,FALSE)*C302/100 -> -289.6499 | D306: =-HLOOKUP($A$1,Data!$C$1:$AJ$388,'S1'!$X306,FALSE)*D302/100 -> -322.55 | E306: =-HLOOKUP($A$1,Data!$C$1:$AJ$388,'S1'!$X306,FALSE)*E302/100 -> -234.8164 | F306: =-HLOOKUP($A$1,Data!$C$1:$AJ$388,'S1'!$X306,FALSE)*F302/100 -> -231.5909 | G306: =-HLOOKUP($A$1,Data!$C$1:$AJ$388,'S1'!$X306,FALSE)*G302/100 -> -219.334 | H306: =-HLOOKUP($A$1,Data!$C$1:$AJ$388,'S1'!$X306,FALSE)*H302/100 -> -180.628 | I306: =-HLOOKUP($A$1,Data!$C$1:$AJ$388,'S1'!$X306,FALSE)*I302/100 -> -176.7574 | J306: =-HLOOKUP($A$1,Data!$C$1:$AJ$388,'S1'!$X306,FALSE)*J302/100 -> -164.5005 | K306: =-HLOOKUP($A$1,Data!$C$1:$AJ$388,'S1'!$X306,FALSE)*K302/100 -> -204.4967 | L306: =-HLOOKUP($A$1,Data!$C$1:$AJ$388,'S1'!$X306,FALSE)*L302/100 -> -216.1085 | M306: =-HLOOKUP($A$1,Data!$C$1:$AJ$388,'S1'!$X306,FALSE)*M302/100 -> -264.491 | N306: =-HLOOKUP($A$1,Data!$C$1:$AJ$388,'S1'!$X306,FALSE)*N302/100 -> -241.9125 | O306: =-HLOOKUP($A$1,Data!$C$1:$AJ$388,'S1'!$X306,FALSE)*O302/100 -> -263.2008 | P306: =-HLOOKUP($A$1,Data!$C$1:$AJ$388,'S1'!$X306,FALSE)*P302/100 -> -261.2655 | Q306: =-HLOOKUP($A$1,Data!$C$1:$AJ$388,'S1'!$X306,FALSE)*Q302/100 -> -265.7812 | R306: =-HLOOKUP($A$1,Data!$C$1:$AJ$388,'S1'!$X306,FALSE)*R302/100 -> -252.8792 | S306: =-HLOOKUP($A$1,Data!$C$1:$AJ$388,'S1'!$X306,FALSE)*S302/100 -> -223.8497 | T306: =-HLOOKUP($A$1,Data!$C$1:$AJ$388,'S1'!$X306,FALSE)*T302/100 -> -234.1713 | U306: =-HLOOKUP($A$1,Data!$C$1:$AJ$388,'S1'!$X306,FALSE)*U302/100 -> -169.0162 | V306: =-HLOOKUP($A$1,Data!$C$1:$AJ$388,'S1'!$X306,FALSE)*V302/100 -> -201.9163 | W306: =-HLOOKUP($A$1,Data!$C$1:$AJ$388,'S1'!$X306,FALSE)*W302/100 -> -201.9163 | X306: 216
A307: Principal Social | C307: =-HLOOKUP($A$1,Data!$C$1:$AJ$388,'S1'!$X307,FALSE)*C302/100 -> -116.5155 | D307: =-HLOOKUP($A$1,Data!$C$1:$AJ$388,'S1'!$X307,FALSE)*D302/100 -> -129.75 | E307: =-HLOOKUP($A$1,Data!$C$1:$AJ$388,'S1'!$X307,FALSE)*E302/100 -> -94.458 | F307: =-HLOOKUP($A$1,Data!$C$1:$AJ$388,'S1'!$X307,FALSE)*F302/100 -> -93.1605 | G307: =-HLOOKUP($A$1,Data!$C$1:$AJ$388,'S1'!$X307,FALSE)*G302/100 -> -88.23 | H307: =-HLOOKUP($A$1,Data!$C$1:$AJ$388,'S1'!$X307,FALSE)*H302/100 -> -72.66 | I307: =-HLOOKUP($A$1,Data!$C$1:$AJ$388,'S1'!$X307,FALSE)*I302/100 -> -71.103 | J307: =-HLOOKUP($A$1,Data!$C$1:$AJ$388,'S1'!$X307,FALSE)*J302/100 -> -66.1725 | K307: =-HLOOKUP($A$1,Data!$C$1:$AJ$388,'S1'!$X307,FALSE)*K302/100 -> -82.2615 | L307: =-HLOOKUP($A$1,Data!$C$1:$AJ$388,'S1'!$X307,FALSE)*L302/100 -> -86.9325 | M307: =-HLOOKUP($A$1,Data!$C$1:$AJ$388,'S1'!$X307,FALSE)*M302/100 -> -106.395 | N307: =-HLOOKUP($A$1,Data!$C$1:$AJ$388,'S1'!$X307,FALSE)*N302/100 -> -97.3125 | O307: =-HLOOKUP($A$1,Data!$C$1:$AJ$388,'S1'!$X307,FALSE)*O302/100 -> -105.876 | P307: =-HLOOKUP($A$1,Data!$C$1:$AJ$388,'S1'!$X307,FALSE)*P302/100 -> -105.0975 | Q307: =-HLOOKUP($A$1,Data!$C$1:$AJ$388,'S1'!$X307,FALSE)*Q302/100 -> -106.914 | R307: =-HLOOKUP($A$1,Data!$C$1:$AJ$388,'S1'!$X307,FALSE)*R302/100 -> -101.724 | S307: =-HLOOKUP($A$1,Data!$C$1:$AJ$388,'S1'!$X307,FALSE)*S302/100 -> -90.0465 | T307: =-HLOOKUP($A$1,Data!$C$1:$AJ$388,'S1'!$X307,FALSE)*T302/100 -> -94.1985 | U307: =-HLOOKUP($A$1,Data!$C$1:$AJ$388,'S1'!$X307,FALSE)*U302/100 -> -67.989 | V307: =-HLOOKUP($A$1,Data!$C$1:$AJ$388,'S1'!$X307,FALSE)*V302/100 -> -81.2235 | W307: =-HLOOKUP($A$1,Data!$C$1:$AJ$388,'S1'!$X307,FALSE)*W302/100 -> -81.2235 | X307: 217
A308: Principal PRS | C308: =-HLOOKUP($A$1,Data!$C$1:$AJ$388,'S1'!$X308,FALSE)*C302/100 -> -42.8346 | D308: =-HLOOKUP($A$1,Data!$C$1:$AJ$388,'S1'!$X308,FALSE)*D302/100 -> -47.7 | E308: =-HLOOKUP($A$1,Data!$C$1:$AJ$388,'S1'!$X308,FALSE)*E302/100 -> -34.7256 | F308: =-HLOOKUP($A$1,Data!$C$1:$AJ$388,'S1'!$X308,FALSE)*F302/100 -> -34.2486 | G308: =-HLOOKUP($A$1,Data!$C$1:$AJ$388,'S1'!$X308,FALSE)*G302/100 -> -32.436 | H308: =-HLOOKUP($A$1,Data!$C$1:$AJ$388,'S1'!$X308,FALSE)*H302/100 -> -26.712 | I308: =-HLOOKUP($A$1,Data!$C$1:$AJ$388,'S1'!$X308,FALSE)*I302/100 -> -26.1396 | J308: =-HLOOKUP($A$1,Data!$C$1:$AJ$388,'S1'!$X308,FALSE)*J302/100 -> -24.327 | K308: =-HLOOKUP($A$1,Data!$C$1:$AJ$388,'S1'!$X308,FALSE)*K302/100 -> -30.2418 | L308: =-HLOOKUP($A$1,Data!$C$1:$AJ$388,'S1'!$X308,FALSE)*L302/100 -> -31.959 | M308: =-HLOOKUP($A$1,Data!$C$1:$AJ$388,'S1'!$X308,FALSE)*M302/100 -> -39.114 | N308: =-HLOOKUP($A$1,Data!$C$1:$AJ$388,'S1'!$X308,FALSE)*N302/100 -> -35.775 | O308: =-HLOOKUP($A$1,Data!$C$1:$AJ$388,'S1'!$X308,FALSE)*O302/100 -> -38.9232 | P308: =-HLOOKUP($A$1,Data!$C$1:$AJ$388,'S1'!$X308,FALSE)*P302/100 -> -38.637 | Q308: =-HLOOKUP($A$1,Data!$C$1:$AJ$388,'S1'!$X308,FALSE)*Q302/100 -> -39.3048 | R308: =-HLOOKUP($A$1,Data!$C$1:$AJ$388,'S1'!$X308,FALSE)*R302/100 -> -37.3968 | S308: =-HLOOKUP($A$1,Data!$C$1:$AJ$388,'S1'!$X308,FALSE)*S302/100 -> -33.1038 | T308: =-HLOOKUP($A$1,Data!$C$1:$AJ$388,'S1'!$X308,FALSE)*T302/100 -> -34.6302 | U308: =-HLOOKUP($A$1,Data!$C$1:$AJ$388,'S1'!$X308,FALSE)*U302/100 -> -24.9948 | V308: =-HLOOKUP($A$1,Data!$C$1:$AJ$388,'S1'!$X308,FALSE)*V302/100 -> -29.8602 | W308: =-HLOOKUP($A$1,Data!$C$1:$AJ$388,'S1'!$X308,FALSE)*W302/100 -> -29.8602 | X308: 218
A309: Scenario Private | C309: =HLOOKUP($A$1,Data!$C$1:$AJ$388,'S1'!$X309,FALSE)*C303/100 -> 289.6499 | D309: =HLOOKUP($A$1,Data!$C$1:$AJ$388,'S1'!$X309,FALSE)*D303/100 -> 322.55 | E309: =HLOOKUP($A$1,Data!$C$1:$AJ$388,'S1'!$X309,FALSE)*E303/100 -> 234.8164 | F309: =HLOOKUP($A$1,Data!$C$1:$AJ$388,'S1'!$X309,FALSE)*F303/100 -> 231.5909 | G309: =HLOOKUP($A$1,Data!$C$1:$AJ$388,'S1'!$X309,FALSE)*G303/100 -> 219.334 | H309: =HLOOKUP($A$1,Data!$C$1:$AJ$388,'S1'!$X309,FALSE)*H303/100 -> 180.628 | I309: =HLOOKUP($A$1,Data!$C$1:$AJ$388,'S1'!$X309,FALSE)*I303/100 -> 176.7574 | J309: =HLOOKUP($A$1,Data!$C$1:$AJ$388,'S1'!$X309,FALSE)*J303/100 -> 164.5005 | K309: =HLOOKUP($A$1,Data!$C$1:$AJ$388,'S1'!$X309,FALSE)*K303/100 -> 204.4967 | L309: =HLOOKUP($A$1,Data!$C$1:$AJ$388,'S1'!$X309,FALSE)*L303/100 -> 216.1085 | M309: =HLOOKUP($A$1,Data!$C$1:$AJ$388,'S1'!$X309,FALSE)*M303/100 -> 264.491 | N309: =HLOOKUP($A$1,Data!$C$1:$AJ$388,'S1'!$X309,FALSE)*N303/100 -> 241.9125 | O309: =HLOOKUP($A$1,Data!$C$1:$AJ$388,'S1'!$X309,FALSE)*O303/100 -> 263.2008 | P309: =HLOOKUP($A$1,Data!$C$1:$AJ$388,'S1'!$X309,FALSE)*P303/100 -> 261.2655 | Q309: =HLOOKUP($A$1,Data!$C$1:$AJ$388,'S1'!$X309,FALSE)*Q303/100 -> 265.7812 | R309: =HLOOKUP($A$1,Data!$C$1:$AJ$388,'S1'!$X309,FALSE)*R303/100 -> 252.8792 | S309: =HLOOKUP($A$1,Data!$C$1:$AJ$388,'S1'!$X309,FALSE)*S303/100 -> 223.8497 | T309: =HLOOKUP($A$1,Data!$C$1:$AJ$388,'S1'!$X309,FALSE)*T303/100 -> 234.1713 | U309: =HLOOKUP($A$1,Data!$C$1:$AJ$388,'S1'!$X309,FALSE)*U303/100 -> 169.0162 | V309: =HLOOKUP($A$1,Data!$C$1:$AJ$388,'S1'!$X309,FALSE)*V303/100 -> 201.9163 | W309: =HLOOKUP($A$1,Data!$C$1:$AJ$388,'S1'!$X309,FALSE)*W303/100 -> 201.9163 | X309: 216
A310: Scenario Social | C310: =HLOOKUP($A$1,Data!$C$1:$AJ$388,'S1'!$X310,FALSE)*C303/100 -> 116.5155 | D310: =HLOOKUP($A$1,Data!$C$1:$AJ$388,'S1'!$X310,FALSE)*D303/100 -> 129.75 | E310: =HLOOKUP($A$1,Data!$C$1:$AJ$388,'S1'!$X310,FALSE)*E303/100 -> 94.458 | F310: =HLOOKUP($A$1,Data!$C$1:$AJ$388,'S1'!$X310,FALSE)*F303/100 -> 93.1605 | G310: =HLOOKUP($A$1,Data!$C$1:$AJ$388,'S1'!$X310,FALSE)*G303/100 -> 88.23 | H310: =HLOOKUP($A$1,Data!$C$1:$AJ$388,'S1'!$X310,FALSE)*H303/100 -> 72.66 | I310: =HLOOKUP($A$1,Data!$C$1:$AJ$388,'S1'!$X310,FALSE)*I303/100 -> 71.103 | J310: =HLOOKUP($A$1,Data!$C$1:$AJ$388,'S1'!$X310,FALSE)*J303/100 -> 66.1725 | K310: =HLOOKUP($A$1,Data!$C$1:$AJ$388,'S1'!$X310,FALSE)*K303/100 -> 82.2615 | L310: =HLOOKUP($A$1,Data!$C$1:$AJ$388,'S1'!$X310,FALSE)*L303/100 -> 86.9325 | M310: =HLOOKUP($A$1,Data!$C$1:$AJ$388,'S1'!$X310,FALSE)*M303/100 -> 106.395 | N310: =HLOOKUP($A$1,Data!$C$1:$AJ$388,'S1'!$X310,FALSE)*N303/100 -> 97.3125 | O310: =HLOOKUP($A$1,Data!$C$1:$AJ$388,'S1'!$X310,FALSE)*O303/100 -> 105.876 | P310: =HLOOKUP($A$1,Data!$C$1:$AJ$388,'S1'!$X310,FALSE)*P303/100 -> 105.0975 | Q310: =HLOOKUP($A$1,Data!$C$1:$AJ$388,'S1'!$X310,FALSE)*Q303/100 -> 106.914 | R310: =HLOOKUP($A$1,Data!$C$1:$AJ$388,'S1'!$X310,FALSE)*R303/100 -> 101.724 | S310: =HLOOKUP($A$1,Data!$C$1:$AJ$388,'S1'!$X310,FALSE)*S303/100 -> 90.0465 | T310: =HLOOKUP($A$1,Data!$C$1:$AJ$388,'S1'!$X310,FALSE)*T303/100 -> 94.1985 | U310: =HLOOKUP($A$1,Data!$C$1:$AJ$388,'S1'!$X310,FALSE)*U303/100 -> 67.989 | V310: =HLOOKUP($A$1,Data!$C$1:$AJ$388,'S1'!$X310,FALSE)*V303/100 -> 81.2235 | W310: =HLOOKUP($A$1,Data!$C$1:$AJ$388,'S1'!$X310,FALSE)*W303/100 -> 81.2235 | X310: 217
A311: Scenario PRS | C311: =HLOOKUP($A$1,Data!$C$1:$AJ$388,'S1'!$X311,FALSE)*C303/100 -> 42.8346 | D311: =HLOOKUP($A$1,Data!$C$1:$AJ$388,'S1'!$X311,FALSE)*D303/100 -> 47.7 | E311: =HLOOKUP($A$1,Data!$C$1:$AJ$388,'S1'!$X311,FALSE)*E303/100 -> 34.7256 | F311: =HLOOKUP($A$1,Data!$C$1:$AJ$388,'S1'!$X311,FALSE)*F303/100 -> 34.2486 | G311: =HLOOKUP($A$1,Data!$C$1:$AJ$388,'S1'!$X311,FALSE)*G303/100 -> 32.436 | H311: =HLOOKUP($A$1,Data!$C$1:$AJ$388,'S1'!$X311,FALSE)*H303/100 -> 26.712 | I311: =HLOOKUP($A$1,Data!$C$1:$AJ$388,'S1'!$X311,FALSE)*I303/100 -> 26.1396 | J311: =HLOOKUP($A$1,Data!$C$1:$AJ$388,'S1'!$X311,FALSE)*J303/100 -> 24.327 | K311: =HLOOKUP($A$1,Data!$C$1:$AJ$388,'S1'!$X311,FALSE)*K303/100 -> 30.2418 | L311: =HLOOKUP($A$1,Data!$C$1:$AJ$388,'S1'!$X311,FALSE)*L303/100 -> 31.959 | M311: =HLOOKUP($A$1,Data!$C$1:$AJ$388,'S1'!$X311,FALSE)*M303/100 -> 39.114 | N311: =HLOOKUP($A$1,Data!$C$1:$AJ$388,'S1'!$X311,FALSE)*N303/100 -> 35.775 | O311: =HLOOKUP($A$1,Data!$C$1:$AJ$388,'S1'!$X311,FALSE)*O303/100 -> 38.9232 | P311: =HLOOKUP($A$1,Data!$C$1:$AJ$388,'S1'!$X311,FALSE)*P303/100 -> 38.637 | Q311: =HLOOKUP($A$1,Data!$C$1:$AJ$388,'S1'!$X311,FALSE)*Q303/100 -> 39.3048 | R311: =HLOOKUP($A$1,Data!$C$1:$AJ$388,'S1'!$X311,FALSE)*R303/100 -> 37.3968 | S311: =HLOOKUP($A$1,Data!$C$1:$AJ$388,'S1'!$X311,FALSE)*S303/100 -> 33.1038 | T311: =HLOOKUP($A$1,Data!$C$1:$AJ$388,'S1'!$X311,FALSE)*T303/100 -> 34.6302 | U311: =HLOOKUP($A$1,Data!$C$1:$AJ$388,'S1'!$X311,FALSE)*U303/100 -> 24.9948 | V311: =HLOOKUP($A$1,Data!$C$1:$AJ$388,'S1'!$X311,FALSE)*V303/100 -> 29.8602 | W311: =HLOOKUP($A$1,Data!$C$1:$AJ$388,'S1'!$X311,FALSE)*W303/100 -> 29.8602 | X311: 218
A313: House Prices Core | B313: =B283 -> 2019 | C313: =B313+1 -> 2020 | D313: 2021 | E313: 2022 | F313: 2023 | G313: 2024 | H313: 2025 | I313: 2026 | J313: 2027 | K313: 2028 | L313: 2029 | M313: 2030 | N313: 2031 | O313: 2032 | P313: 2033 | Q313: 2034 | R313: 2035 | S313: 2036 | T313: 2037 | U313: 2038 | V313: 2039 | W313: 2040
A314: Principal Scenario | B314: =HLOOKUP(B313,PriceScenarios!$C$2:$AG$15,4) -> 0.016 | C314: =HLOOKUP(C313,PriceScenarios!$C$2:$AG$15,4) -> 0.016 | D314: =HLOOKUP(D313,PriceScenarios!$C$2:$AG$15,4) -> 0.016 | E314: =HLOOKUP(E313,PriceScenarios!$C$2:$AG$15,4) -> 0.016 | F314: =HLOOKUP(F313,PriceScenarios!$C$2:$AG$15,4) -> 0.016 | G314: =HLOOKUP(G313,PriceScenarios!$C$2:$AG$15,4) -> 0.016 | H314: =HLOOKUP(H313,PriceScenarios!$C$2:$AG$15,4) -> 0.016 | I314: =HLOOKUP(I313,PriceScenarios!$C$2:$AG$15,4) -> 0.016 | J314: =HLOOKUP(J313,PriceScenarios!$C$2:$AG$15,4) -> 0.016 | K314: =HLOOKUP(K313,PriceScenarios!$C$2:$AG$15,4) -> 0.016 | L314: =HLOOKUP(L313,PriceScenarios!$C$2:$AG$15,4) -> 0.016 | M314: =HLOOKUP(M313,PriceScenarios!$C$2:$AG$15,4) -> 0.016 | N314: =HLOOKUP(N313,PriceScenarios!$C$2:$AG$15,4) -> 0.016 | O314: =HLOOKUP(O313,PriceScenarios!$C$2:$AG$15,4) -> 0.016 | P314: =HLOOKUP(P313,PriceScenarios!$C$2:$AG$15,4) -> 0.016 | Q314: =HLOOKUP(Q313,PriceScenarios!$C$2:$AG$15,4) -> 0.016 | R314: =HLOOKUP(R313,PriceScenarios!$C$2:$AG$15,4) -> 0.016 | S314: =HLOOKUP(S313,PriceScenarios!$C$2:$AG$15,4) -> 0.016 | T314: =HLOOKUP(T313,PriceScenarios!$C$2:$AG$15,4) -> 0.016 | U314: =HLOOKUP(U313,PriceScenarios!$C$2:$AG$15,4) -> 0.016 | V314: =HLOOKUP(V313,PriceScenarios!$C$2:$AG$15,4) -> 0.016 | W314: =HLOOKUP(W313,PriceScenarios!$C$2:$AG$15,4) -> 0.016
A315: Principal Mean | B315: =HLOOKUP($A$1,Data!$C$1:$AJ$207,'S1'!$X315,FALSE) -> 197263 | C315: =B315*(1+B314) -> 200419.208 | D315: =C315*(1+C314) -> 203625.9153 | E315: 206883.93 | F315: 210194.0729 | G315: 213557.178 | H315: 216974.0929 | I315: 220445.6784 | J315: 223972.8092 | K315: 227556.3742 | L315: 231197.2761 | M315: 234896.4326 | N315: 238654.7755 | O315: 242473.2519 | P315: 246352.8239 | Q315: 250294.4691 | R315: 254299.1806 | S315: 258367.9675 | T315: 262501.855 | U315: 266701.8847 | V315: 270969.1148 | W315: 275304.6206 | X315: 206
A316: Principal Median | B316: =HLOOKUP($A$1,Data!$C$1:$AJ$207,'S1'!$X316,FALSE) -> 165000 | C316: =B316*(1+B314) -> 167640 | D316: =C316*(1+C314) -> 170322.24 | E316: 173047.3958 | F316: 175816.1542 | G316: 178629.2126 | H316: 181487.28 | I316: 184391.0765 | J316: 187341.3337 | K316: 190338.7951 | L316: 193384.2158 | M316: 196478.3633 | N316: 199622.0171 | O316: 202815.9693 | P316: 206061.0249 | Q316: 209358.0013 | R316: 212707.7293 | S316: 216111.0529 | T316: 219568.8298 | U316: 223081.9311 | V316: 226651.242 | W316: 230277.6618 | X316: 207
A317: U | B317: =IF(B316<>0,LN(B316),0) -> 12.01370075 | C317: 12.0295741 | D317: 12.04544745 | E317: 12.0613208 | F317: 12.07719415 | G317: 12.0930675 | H317: 12.10894085 | I317: 12.1248142 | J317: 12.14068755 | K317: 12.1565609 | L317: 12.17243424 | M317: 12.18830759 | N317: 12.20418094 | O317: 12.22005429 | P317: 12.23592764 | Q317: 12.25180099 | R317: 12.26767434 | S317: 12.28354769 | T317: 12.29942104 | U317: 12.31529439 | V317: 12.33116774 | W317: 12.34704109
A318: Sigma2 | B318: =IF(B315<>0,2*LN(B315)-2*B317,0) -> 0.3571847797 | C318: 0.3571847797 | D318: 0.3571847797 | E318: 0.3571847797 | F318: 0.3571847797 | G318: 0.3571847797 | H318: 0.3571847797 | I318: 0.3571847797 | J318: 0.3571847797 | K318: 0.3571847797 | L318: 0.3571847797 | M318: 0.3571847797 | N318: 0.3571847797 | O318: 0.3571847797 | P318: 0.3571847797 | Q318: 0.3571847797 | R318: 0.3571847797 | S318: 0.3571847797 | T318: 0.3571847797 | U318: 0.3571847797 | V318: 0.3571847797 | W318: 0.3571847797
A321: =CONCATENATE("Principal ",$C$61*100,"%ile") -> Principal 25%ile | B321: =EXP(SQRT(B318)*NORMSINV(CoreAssumptions!$F$2)+B317) -> 110259.5458 | C321: =EXP(SQRT(C318)*NORMSINV(CoreAssumptions!$F$2)+C317) -> 112023.6985 | D321: =EXP(SQRT(D318)*NORMSINV(CoreAssumptions!$F$2)+D317) -> 113816.0777 | E321: =EXP(SQRT(E318)*NORMSINV(CoreAssumptions!$F$2)+E317) -> 115637.135 | F321: =EXP(SQRT(F318)*NORMSINV(CoreAssumptions!$F$2)+F317) -> 117487.3291 | G321: =EXP(SQRT(G318)*NORMSINV(CoreAssumptions!$F$2)+G317) -> 119367.1264 | H321: =EXP(SQRT(H318)*NORMSINV(CoreAssumptions!$F$2)+H317) -> 121277.0004 | I321: =EXP(SQRT(I318)*NORMSINV(CoreAssumptions!$F$2)+I317) -> 123217.4324 | J321: =EXP(SQRT(J318)*NORMSINV(CoreAssumptions!$F$2)+J317) -> 125188.9113 | K321: =EXP(SQRT(K318)*NORMSINV(CoreAssumptions!$F$2)+K317) -> 127191.9339 | L321: =EXP(SQRT(L318)*NORMSINV(CoreAssumptions!$F$2)+L317) -> 129227.0049 | M321: =EXP(SQRT(M318)*NORMSINV(CoreAssumptions!$F$2)+M317) -> 131294.6369 | N321: =EXP(SQRT(N318)*NORMSINV(CoreAssumptions!$F$2)+N317) -> 133395.3511 | O321: =EXP(SQRT(O318)*NORMSINV(CoreAssumptions!$F$2)+O317) -> 135529.6767 | P321: =EXP(SQRT(P318)*NORMSINV(CoreAssumptions!$F$2)+P317) -> 137698.1516 | Q321: =EXP(SQRT(Q318)*NORMSINV(CoreAssumptions!$F$2)+Q317) -> 139901.322 | R321: =EXP(SQRT(R318)*NORMSINV(CoreAssumptions!$F$2)+R317) -> 142139.7431 | S321: =EXP(SQRT(S318)*NORMSINV(CoreAssumptions!$F$2)+S317) -> 144413.979 | T321: =EXP(SQRT(T318)*NORMSINV(CoreAssumptions!$F$2)+T317) -> 146724.6027 | U321: =EXP(SQRT(U318)*NORMSINV(CoreAssumptions!$F$2)+U317) -> 149072.1963 | V321: =EXP(SQRT(V318)*NORMSINV(CoreAssumptions!$F$2)+V317) -> 151457.3515 | W321: =EXP(SQRT(W318)*NORMSINV(CoreAssumptions!$F$2)+W317) -> 153880.6691
A322: Income from Afford | B322: =IF(B321/CoreAssumptions!$F$3<=B402,B402,B321/CoreAssumptions!$F$3) -> 28271.67841 | C322: =IF(C321/CoreAssumptions!$F$3<=C402,C402,C321/CoreAssumptions!$F$3) -> 28724.02527 | D322: =IF(D321/CoreAssumptions!$F$3<=D402,D402,D321/CoreAssumptions!$F$3) -> 29183.60967 | E322: =IF(E321/CoreAssumptions!$F$3<=E402,E402,E321/CoreAssumptions!$F$3) -> 29650.54742 | F322: =IF(F321/CoreAssumptions!$F$3<=F402,F402,F321/CoreAssumptions!$F$3) -> 30124.95618 | G322: =IF(G321/CoreAssumptions!$F$3<=G402,G402,G321/CoreAssumptions!$F$3) -> 30606.95548 | H322: =IF(H321/CoreAssumptions!$F$3<=H402,H402,H321/CoreAssumptions!$F$3) -> 31096.66677 | I322: =IF(I321/CoreAssumptions!$F$3<=I402,I402,I321/CoreAssumptions!$F$3) -> 31594.21344 | J322: =IF(J321/CoreAssumptions!$F$3<=J402,J402,J321/CoreAssumptions!$F$3) -> 32099.72085 | K322: =IF(K321/CoreAssumptions!$F$3<=K402,K402,K321/CoreAssumptions!$F$3) -> 32613.31639 | L322: =IF(L321/CoreAssumptions!$F$3<=L402,L402,L321/CoreAssumptions!$F$3) -> 33135.12945 | M322: =IF(M321/CoreAssumptions!$F$3<=M402,M402,M321/CoreAssumptions!$F$3) -> 33665.29152 | N322: =IF(N321/CoreAssumptions!$F$3<=N402,N402,N321/CoreAssumptions!$F$3) -> 34203.93618 | O322: =IF(O321/CoreAssumptions!$F$3<=O402,O402,O321/CoreAssumptions!$F$3) -> 34751.19916 | P322: =IF(P321/CoreAssumptions!$F$3<=P402,P402,P321/CoreAssumptions!$F$3) -> 35307.21835 | Q322: =IF(Q321/CoreAssumptions!$F$3<=Q402,Q402,Q321/CoreAssumptions!$F$3) -> 35872.13384 | R322: =IF(R321/CoreAssumptions!$F$3<=R402,R402,R321/CoreAssumptions!$F$3) -> 36446.08799 | S322: =IF(S321/CoreAssumptions!$F$3<=S402,S402,S321/CoreAssumptions!$F$3) -> 37029.22539 | T322: =IF(T321/CoreAssumptions!$F$3<=T402,T402,T321/CoreAssumptions!$F$3) -> 37621.693 | U322: =IF(U321/CoreAssumptions!$F$3<=U402,U402,U321/CoreAssumptions!$F$3) -> 38223.64009 | V322: =IF(V321/CoreAssumptions!$F$3<=V402,V402,V321/CoreAssumptions!$F$3) -> 38835.21833 | W322: =IF(W321/CoreAssumptions!$F$3<=W402,W402,W321/CoreAssumptions!$F$3) -> 39456.58182
B323: =IF(B322>B402,VLOOKUP(B322,B$402:$AA$482,B$401+3),10) -> 48 | C323: =IF(C322>C402,VLOOKUP(C322,C$402:$AA$482,C$401+3),10) -> 47 | D323: =IF(D322>D402,VLOOKUP(D322,D$402:$AA$482,D$401+3),10) -> 47 | E323: =IF(E322>E402,VLOOKUP(E322,E$402:$AA$482,E$401+3),10) -> 47 | F323: =IF(F322>F402,VLOOKUP(F322,F$402:$AA$482,F$401+3),10) -> 47 | G323: =IF(G322>G402,VLOOKUP(G322,G$402:$AA$482,G$401+3),10) -> 47 | H323: =IF(H322>H402,VLOOKUP(H322,H$402:$AA$482,H$401+3),10) -> 46 | I323: =IF(I322>I402,VLOOKUP(I322,I$402:$AA$482,I$401+3),10) -> 46 | J323: =IF(J322>J402,VLOOKUP(J322,J$402:$AA$482,J$401+3),10) -> 45 | K323: =IF(K322>K402,VLOOKUP(K322,K$402:$AA$482,K$401+3),10) -> 45 | L323: =IF(L322>L402,VLOOKUP(L322,L$402:$AA$482,L$401+3),10) -> 44 | M323: =IF(M322>M402,VLOOKUP(M322,M$402:$AA$482,M$401+3),10) -> 44 | N323: =IF(N322>N402,VLOOKUP(N322,N$402:$AA$482,N$401+3),10) -> 43 | O323: =IF(O322>O402,VLOOKUP(O322,O$402:$AA$482,O$401+3),10) -> 43 | P323: =IF(P322>P402,VLOOKUP(P322,P$402:$AA$482,P$401+3),10) -> 43 | Q323: =IF(Q322>Q402,VLOOKUP(Q322,Q$402:$AA$482,Q$401+3),10) -> 42 | R323: =IF(R322>R402,VLOOKUP(R322,R$402:$AA$482,R$401+3),10) -> 42 | S323: =IF(S322>S402,VLOOKUP(S322,S$402:$AA$482,S$401+3),10) -> 40 | T323: =IF(T322>T402,VLOOKUP(T322,T$402:$AA$482,T$401+3),10) -> 40 | U323: =IF(U322>U402,VLOOKUP(U322,U$402:$AA$482,U$401+3),10) -> 39 | V323: =IF(V322>V402,VLOOKUP(V322,V$402:$AA$482,V$401+3),10) -> 39 | W323: =IF(W322>W402,VLOOKUP(W322,W$402:$AA$482,W$401+3),10) -> 39
A324: Principal Market | C324: =C300*(100-C323)/100 -> 187.09 | D324: =D300*(100-D323)/100 -> 214.12 | E324: 142.04 | F324: 139.39 | G324: 129.32 | H324: 151.2 | I324: 147.96 | J324: 140.25 | K324: 174.35 | L324: 187.6 | M324: 229.6 | N324: 213.75 | O324: 232.56 | P324: 230.85 | Q324: 238.96 | R324: 227.36 | S324: 208.2 | T324: 217.8 | U324: 159.82 | V324: 190.93 | W324: 190.93
A325: Princpal Subsidy | C325: =C299+(C300*(C323)/100) -> 261.91 | D325: =D299+(D300*(D323)/100) -> 285.88 | E325: 221.96 | F325: 219.61 | G325: 210.68 | H325: 128.8 | I325: 126.04 | J325: 114.75 | K325: 142.65 | L325: 147.4 | M325: 180.4 | N325: 161.25 | O325: 175.44 | P325: 174.15 | Q325: 173.04 | R325: 164.64 | S325: 138.8 | T325: 145.2 | U325: 102.18 | V325: 122.07 | W325: 122.07
A329: House Prices Scenario
A330: Scenario | B330: =VLOOKUP($X330,PriceScenarios!$B$3:$AF$21,B313-2015,FALSE) -> 0.016 | C330: =VLOOKUP($X330,PriceScenarios!$B$3:$AF$21,C313-2015,FALSE) -> 0.016 | D330: =VLOOKUP($X330,PriceScenarios!$B$3:$AF$21,D313-2015,FALSE) -> 0.016 | E330: =VLOOKUP($X330,PriceScenarios!$B$3:$AF$21,E313-2015,FALSE) -> 0.016 | F330: =VLOOKUP($X330,PriceScenarios!$B$3:$AF$21,F313-2015,FALSE) -> 0.016 | G330: =VLOOKUP($X330,PriceScenarios!$B$3:$AF$21,G313-2015,FALSE) -> 0.016 | H330: =VLOOKUP($X330,PriceScenarios!$B$3:$AF$21,H313-2015,FALSE) -> 0.016 | I330: =VLOOKUP($X330,PriceScenarios!$B$3:$AF$21,I313-2015,FALSE) -> 0.016 | J330: =VLOOKUP($X330,PriceScenarios!$B$3:$AF$21,J313-2015,FALSE) -> 0.016 | K330: =VLOOKUP($X330,PriceScenarios!$B$3:$AF$21,K313-2015,FALSE) -> 0.016 | L330: =VLOOKUP($X330,PriceScenarios!$B$3:$AF$21,L313-2015,FALSE) -> 0.016 | M330: =VLOOKUP($X330,PriceScenarios!$B$3:$AF$21,M313-2015,FALSE) -> 0.016 | N330: =VLOOKUP($X330,PriceScenarios!$B$3:$AF$21,N313-2015,FALSE) -> 0.016 | O330: =VLOOKUP($X330,PriceScenarios!$B$3:$AF$21,O313-2015,FALSE) -> 0.016 | P330: =VLOOKUP($X330,PriceScenarios!$B$3:$AF$21,P313-2015,FALSE) -> 0.016 | Q330: =VLOOKUP($X330,PriceScenarios!$B$3:$AF$21,Q313-2015,FALSE) -> 0.016 | R330: =VLOOKUP($X330,PriceScenarios!$B$3:$AF$21,R313-2015,FALSE) -> 0.016 | S330: =VLOOKUP($X330,PriceScenarios!$B$3:$AF$21,S313-2015,FALSE) -> 0.016 | T330: =VLOOKUP($X330,PriceScenarios!$B$3:$AF$21,T313-2015,FALSE) -> 0.016 | U330: =VLOOKUP($X330,PriceScenarios!$B$3:$AF$21,U313-2015,FALSE) -> 0.016 | V330: =VLOOKUP($X330,PriceScenarios!$B$3:$AF$21,V313-2015,FALSE) -> 0.016 | W330: =VLOOKUP($X330,PriceScenarios!$B$3:$AF$21,W313-2015,FALSE) -> 0.016 | X330: =CHOOSE(X58,PriceScenarios!$B$3,PriceScenarios!$B$4,PriceScenarios!$B$5,PriceScenarios!$B$6,PriceScenarios!$B$7,PriceScenarios!$B$8,PriceScenarios!$B$9,PriceScenarios!$B$10,PriceScenarios!$B$11,PriceScenarios!$B$12,PriceScenarios!$B$13,PriceScenarios!$B$14,PriceScenarios!$B$15,PriceScenarios!$B$16,PriceScenarios!$B$17,PriceScenarios!$B$18,PriceScenarios!$B$19,PriceScenarios!$B$20,PriceScenarios!$B$21) -> Trend Growth (CoreDefault)
A331: Scenario Mean | B331: =HLOOKUP($A$1,Data!$C$1:$AJ$207,'S1'!$X331,FALSE) -> 197263 | C331: =B331*(1+B330) -> 200419.208 | D331: =C331*(1+C330) -> 203625.9153 | E331: 206883.93 | F331: 210194.0729 | G331: 213557.178 | H331: 216974.0929 | I331: 220445.6784 | J331: 223972.8092 | K331: 227556.3742 | L331: 231197.2761 | M331: 234896.4326 | N331: 238654.7755 | O331: 242473.2519 | P331: 246352.8239 | Q331: 250294.4691 | R331: 254299.1806 | S331: 258367.9675 | T331: 262501.855 | U331: 266701.8847 | V331: =U331*(1+U330) -> 270969.1148 | W331: =V331*(1+V330) -> 275304.6206 | X331: 206
A332: Scenario Median | B332: =HLOOKUP($A$1,Data!$C$1:$AJ$207,'S1'!$X332,FALSE) -> 165000 | C332: =B332*(1+B330) -> 167640 | D332: =C332*(1+C330) -> 170322.24 | E332: 173047.3958 | F332: 175816.1542 | G332: 178629.2126 | H332: 181487.28 | I332: 184391.0765 | J332: 187341.3337 | K332: 190338.7951 | L332: 193384.2158 | M332: 196478.3633 | N332: 199622.0171 | O332: 202815.9693 | P332: 206061.0249 | Q332: 209358.0013 | R332: 212707.7293 | S332: 216111.0529 | T332: 219568.8298 | U332: 223081.9311 | V332: =U332*(1+U330) -> 226651.242 | W332: =V332*(1+V330) -> 230277.6618 | X332: 207
A333: U | B333: =IF(B332<>0,LN(B332),0) -> 12.01370075 | C333: 12.0295741 | D333: 12.04544745 | E333: 12.0613208 | F333: 12.07719415 | G333: 12.0930675 | H333: 12.10894085 | I333: 12.1248142 | J333: 12.14068755 | K333: 12.1565609 | L333: 12.17243424 | M333: 12.18830759 | N333: 12.20418094 | O333: 12.22005429 | P333: 12.23592764 | Q333: 12.25180099 | R333: 12.26767434 | S333: 12.28354769 | T333: 12.29942104 | U333: 12.31529439 | V333: =IF(V332<>0,LN(V332),0) -> 12.33116774 | W333: =IF(W332<>0,LN(W332),0) -> 12.34704109
A334: Sigma2 | B334: =IF(B331<>0,2*LN(B331)-2*B333,0) -> 0.3571847797 | C334: 0.3571847797 | D334: 0.3571847797 | E334: 0.3571847797 | F334: 0.3571847797 | G334: 0.3571847797 | H334: 0.3571847797 | I334: 0.3571847797 | J334: 0.3571847797 | K334: 0.3571847797 | L334: 0.3571847797 | M334: 0.3571847797 | N334: 0.3571847797 | O334: 0.3571847797 | P334: 0.3571847797 | Q334: 0.3571847797 | R334: 0.3571847797 | S334: 0.3571847797 | T334: 0.3571847797 | U334: 0.3571847797 | V334: =IF(V331<>0,2*LN(V331)-2*V333,0) -> 0.3571847797 | W334: =IF(W331<>0,2*LN(W331)-2*W333,0) -> 0.3571847797
A336: =CONCATENATE("Scenario ",$C$61*100,"%ile") -> Scenario 25%ile | B336: =EXP(SQRT(B334)*NORMSINV($C$61)+B333) -> 110259.5458 | C336: 112023.6985 | D336: 113816.0777 | E336: 115637.135 | F336: 117487.3291 | G336: 119367.1264 | H336: 121277.0004 | I336: 123217.4324 | J336: 125188.9113 | K336: 127191.9339 | L336: 129227.0049 | M336: 131294.6369 | N336: 133395.3511 | O336: 135529.6767 | P336: 137698.1516 | Q336: 139901.322 | R336: 142139.7431 | S336: 144413.979 | T336: 146724.6027 | U336: 149072.1963 | V336: =EXP(SQRT(V334)*NORMSINV($C$61)+V333) -> 151457.3515 | W336: =EXP(SQRT(W334)*NORMSINV($C$61)+W333) -> 153880.6691
A337: Income from Afford | B337: =IF(B336/$C$64<=B493,B493,B336/$C$64) -> 28271.67841 | C337: =IF(C336/$C$64<=C493,C493,C336/$C$64) -> 28724.02527 | D337: 29183.60967 | E337: 29650.54742 | F337: 30124.95618 | G337: 30606.95548 | H337: 31096.66677 | I337: 31594.21344 | J337: 32099.72085 | K337: 32613.31639 | L337: 33135.12945 | M337: 33665.29152 | N337: 34203.93618 | O337: 34751.19916 | P337: 35307.21835 | Q337: 35872.13384 | R337: 36446.08799 | S337: 37029.22539 | T337: 37621.693 | U337: 38223.64009 | V337: 38835.21833 | W337: 39456.58182
B338: =IF(B337>B493,VLOOKUP(B337,B493:$AA$573,B492+3),10) -> 48 | C338: =IF(C337>C493,VLOOKUP(C337,C493:$AA$573,C492+3),10) -> 47 | D338: =IF(D337>D493,VLOOKUP(D337,D493:$AA$573,D492+3),10) -> 47 | E338: =IF(E337>E493,VLOOKUP(E337,E493:$AA$573,E492+3),10) -> 47 | F338: =IF(F337>F493,VLOOKUP(F337,F493:$AA$573,F492+3),10) -> 47 | G338: =IF(G337>G493,VLOOKUP(G337,G493:$AA$573,G492+3),10) -> 47 | H338: =IF(H337>H493,VLOOKUP(H337,H493:$AA$573,H492+3),10) -> 46 | I338: =IF(I337>I493,VLOOKUP(I337,I493:$AA$573,I492+3),10) -> 46 | J338: =IF(J337>J493,VLOOKUP(J337,J493:$AA$573,J492+3),10) -> 45 | K338: =IF(K337>K493,VLOOKUP(K337,K493:$AA$573,K492+3),10) -> 45 | L338: =IF(L337>L493,VLOOKUP(L337,L493:$AA$573,L492+3),10) -> 44 | M338: =IF(M337>M493,VLOOKUP(M337,M493:$AA$573,M492+3),10) -> 44 | N338: =IF(N337>N493,VLOOKUP(N337,N493:$AA$573,N492+3),10) -> 43 | O338: =IF(O337>O493,VLOOKUP(O337,O493:$AA$573,O492+3),10) -> 43 | P338: =IF(P337>P493,VLOOKUP(P337,P493:$AA$573,P492+3),10) -> 43 | Q338: =IF(Q337>Q493,VLOOKUP(Q337,Q493:$AA$573,Q492+3),10) -> 42 | R338: =IF(R337>R493,VLOOKUP(R337,R493:$AA$573,R492+3),10) -> 42 | S338: =IF(S337>S493,VLOOKUP(S337,S493:$AA$573,S492+3),10) -> 40 | T338: =IF(T337>T493,VLOOKUP(T337,T493:$AA$573,T492+3),10) -> 40 | U338: =IF(U337>U493,VLOOKUP(U337,U493:$AA$573,U492+3),10) -> 39 | V338: =IF(V337>V493,VLOOKUP(V337,V493:$AA$573,V492+3),10) -> 39 | W338: =IF(W337>W493,VLOOKUP(W337,W493:$AA$573,W492+3),10) -> 39
A339: Scenario Market | C339: =IF(OR($B$295=TRUE,$B$292=FALSE),C301*(100-C338)/100,C303*(100-C338)/100) -> 187.09 | D339: =IF(OR($B$295=TRUE,$B$292=FALSE),D301*(100-D338)/100,D303*(100-D338)/100) -> 214.12 | E339: 142.04 | F339: 139.39 | G339: 129.32 | H339: 151.2 | I339: 147.96 | J339: 140.25 | K339: 174.35 | L339: 187.6 | M339: 229.6 | N339: 213.75 | O339: 232.56 | P339: 230.85 | Q339: 238.96 | R339: 227.36 | S339: 208.2 | T339: 217.8 | U339: 159.82 | V339: 190.93 | W339: 190.93
A340: Scenario Subsidy | C340: =IF(OR($B$292=FALSE,$B$295=TRUE),C295+(C301*(C338)/100),C303*(C338)/100) -> 261.91 | D340: =IF(OR($B$292=FALSE,$B$295=TRUE),D295+(D301*(D338)/100),D303*(D338)/100) -> 285.88 | E340: 221.96 | F340: 219.61 | G340: 210.68 | H340: 128.8 | I340: 126.04 | J340: 114.75 | K340: 142.65 | L340: 147.4 | M340: 180.4 | N340: 161.25 | O340: 175.44 | P340: 174.15 | Q340: 173.04 | R340: 164.64 | S340: 138.8 | T340: 145.2 | U340: 102.18 | V340: 122.07 | W340: 122.07
A343: Intermediate
A345: Rents Core
A346: Rises Principal | B346: =B314 -> 0.016 | C346: =C314 -> 0.016 | D346: 0.016 | E346: 0.016 | F346: 0.016 | G346: 0.016 | H346: 0.016 | I346: 0.016 | J346: 0.016 | K346: 0.016 | L346: 0.016 | M346: 0.016 | N346: 0.016 | O346: 0.016 | P346: 0.016 | Q346: 0.016 | R346: 0.016 | S346: 0.016 | T346: 0.016 | U346: 0.016 | V346: 0.016 | W346: 0.016
A348: Rent Median (Principal) | B348: =HLOOKUP($A$1,Data!$C$1:$AJ$211,'S1'!$X348,FALSE) -> 138.4615385 | C348: =B348*(1+B346) -> 140.6769231 | D348: =C348*(1+C346) -> 142.9277538 | E348: 145.2145979 | F348: 147.5380315 | G348: 149.89864 | H348: 152.2970182 | I348: 154.7337705 | J348: 157.2095108 | K348: 159.724863 | L348: 162.2804608 | M348: 164.8769482 | N348: 167.5149794 | O348: 170.195219 | P348: 172.9183425 | Q348: 175.685036 | R348: 178.4959966 | S348: 181.3519325 | T348: 184.2535635 | U348: 187.2016205 | V348: 190.1968464 | W348: 193.2399959 | X348: 210
A349: Rent 30th%ile (Principal) | B349: =HLOOKUP($A$1,Data!$C$1:$AJ$211,'S1'!$X349,FALSE) -> 122.3076923 | C349: =B349*(1+B346) -> 124.2646154 | D349: =C349*(1+C346) -> 126.2528492 | E349: 128.2728948 | F349: 130.3252611 | G349: 132.4104653 | H349: 134.5290328 | I349: 136.6814973 | J349: 138.8684012 | K349: 141.0902957 | L349: 143.3477404 | M349: 145.6413042 | N349: 147.9715651 | O349: 150.3391101 | P349: 152.7445359 | Q349: 155.1884485 | R349: 157.6714637 | S349: 160.1942071 | T349: 162.7573144 | U349: 165.3614314 | V349: 168.0072143 | W349: 170.6953298 | X349: 211
A350: Annual Rent Medain | B350: =B348*52 -> 7200 | C350: =C348*52 -> 7315.2 | D350: 7432.2432 | E350: 7551.159091 | F350: 7671.977637 | G350: 7794.729279 | H350: 7919.444947 | I350: 8046.156066 | J350: 8174.894564 | K350: 8305.692877 | L350: 8438.583963 | M350: 8573.601306 | N350: 8710.778927 | O350: 8850.15139 | P350: 8991.753812 | Q350: 9135.621873 | R350: 9281.791823 | S350: 9430.300492 | T350: 9581.1853 | U350: 9734.484265 | V350: 9890.236013 | W350: 10048.47979
A351: Annual Rent 30th | B351: =B349*52 -> 6360 | C351: 6461.76 | D351: 6565.14816 | E351: 6670.190531 | F351: 6776.913579 | G351: 6885.344196 | H351: 6995.509703 | I351: 7107.437859 | J351: 7221.156864 | K351: 7336.695374 | L351: 7454.0825 | M351: 7573.34782 | N351: 7694.521385 | O351: 7817.633728 | P351: 7942.715867 | Q351: 8069.799321 | R351: 8198.91611 | S351: 8330.098768 | T351: 8463.380348 | U351: 8598.794434 | V351: 8736.375145 | W351: 8876.157147
A353: Income above | B353: =B350/CoreAssumptions!$F$6 -> 28800 | C353: =C350/CoreAssumptions!$F$6 -> 29260.8 | D353: =D350/CoreAssumptions!$F$6 -> 29728.9728 | E353: =E350/CoreAssumptions!$F$6 -> 30204.63636 | F353: =F350/CoreAssumptions!$F$6 -> 30687.91055 | G353: =G350/CoreAssumptions!$F$6 -> 31178.91712 | H353: =H350/CoreAssumptions!$F$6 -> 31677.77979 | I353: =I350/CoreAssumptions!$F$6 -> 32184.62427 | J353: =J350/CoreAssumptions!$F$6 -> 32699.57825 | K353: =K350/CoreAssumptions!$F$6 -> 33222.77151 | L353: =L350/CoreAssumptions!$F$6 -> 33754.33585 | M353: =M350/CoreAssumptions!$F$6 -> 34294.40522 | N353: =N350/CoreAssumptions!$F$6 -> 34843.11571 | O353: =O350/CoreAssumptions!$F$6 -> 35400.60556 | P353: =P350/CoreAssumptions!$F$6 -> 35967.01525 | Q353: =Q350/CoreAssumptions!$F$6 -> 36542.48749 | R353: =R350/CoreAssumptions!$F$6 -> 37127.16729 | S353: =S350/CoreAssumptions!$F$6 -> 37721.20197 | T353: =T350/CoreAssumptions!$F$6 -> 38324.7412 | U353: =U350/CoreAssumptions!$F$6 -> 38937.93706 | V353: =V350/CoreAssumptions!$F$6 -> 39560.94405 | W353: =W350/CoreAssumptions!$F$6 -> 40193.91916
A354: Income below | B354: =B351/CoreAssumptions!$F$5 -> 18171.42857 | C354: =C351/CoreAssumptions!$F$5 -> 18462.17143 | D354: =D351/CoreAssumptions!$F$5 -> 18757.56617 | E354: =E351/CoreAssumptions!$F$5 -> 19057.68723 | F354: =F351/CoreAssumptions!$F$5 -> 19362.61023 | G354: =G351/CoreAssumptions!$F$5 -> 19672.41199 | H354: =H351/CoreAssumptions!$F$5 -> 19987.17058 | I354: =I351/CoreAssumptions!$F$5 -> 20306.96531 | J354: =J351/CoreAssumptions!$F$5 -> 20631.87676 | K354: =K351/CoreAssumptions!$F$5 -> 20961.98678 | L354: =L351/CoreAssumptions!$F$5 -> 21297.37857 | M354: =M351/CoreAssumptions!$F$5 -> 21638.13663 | N354: =N351/CoreAssumptions!$F$5 -> 21984.34682 | O354: =O351/CoreAssumptions!$F$5 -> 22336.09636 | P354: =P351/CoreAssumptions!$F$5 -> 22693.47391 | Q354: =Q351/CoreAssumptions!$F$5 -> 23056.56949 | R354: =R351/CoreAssumptions!$F$5 -> 23425.4746 | S354: =S351/CoreAssumptions!$F$5 -> 23800.28219 | T354: =T351/CoreAssumptions!$F$5 -> 24181.08671 | U354: =U351/CoreAssumptions!$F$5 -> 24567.9841 | V354: =V351/CoreAssumptions!$F$5 -> 24961.07184 | W354: =W351/CoreAssumptions!$F$5 -> 25360.44899
A355: Above percentile | B355: =IF(ISERROR(VLOOKUP(B353,B$493:$AA$573,B$492+3)),10,VLOOKUP(B353,B$493:$AA$573,B$492+3)) -> 49 | C355: =IF(ISERROR(VLOOKUP(C353,C$493:$AA$573,C$492+3)),10,VLOOKUP(C353,C$493:$AA$573,C$492+3)) -> 48 | D355: =IF(ISERROR(VLOOKUP(D353,D$493:$AA$573,D$492+3)),10,VLOOKUP(D353,D$493:$AA$573,D$492+3)) -> 48 | E355: =IF(ISERROR(VLOOKUP(E353,E$493:$AA$573,E$492+3)),10,VLOOKUP(E353,E$493:$AA$573,E$492+3)) -> 47 | F355: =IF(ISERROR(VLOOKUP(F353,F$493:$AA$573,F$492+3)),10,VLOOKUP(F353,F$493:$AA$573,F$492+3)) -> 47 | G355: =IF(ISERROR(VLOOKUP(G353,G$493:$AA$573,G$492+3)),10,VLOOKUP(G353,G$493:$AA$573,G$492+3)) -> 47 | H355: =IF(ISERROR(VLOOKUP(H353,H$493:$AA$573,H$492+3)),10,VLOOKUP(H353,H$493:$AA$573,H$492+3)) -> 47 | I355: =IF(ISERROR(VLOOKUP(I353,I$493:$AA$573,I$492+3)),10,VLOOKUP(I353,I$493:$AA$573,I$492+3)) -> 47 | J355: =IF(ISERROR(VLOOKUP(J353,J$493:$AA$573,J$492+3)),10,VLOOKUP(J353,J$493:$AA$573,J$492+3)) -> 46 | K355: =IF(ISERROR(VLOOKUP(K353,K$493:$AA$573,K$492+3)),10,VLOOKUP(K353,K$493:$AA$573,K$492+3)) -> 46 | L355: =IF(ISERROR(VLOOKUP(L353,L$493:$AA$573,L$492+3)),10,VLOOKUP(L353,L$493:$AA$573,L$492+3)) -> 45 | M355: =IF(ISERROR(VLOOKUP(M353,M$493:$AA$573,M$492+3)),10,VLOOKUP(M353,M$493:$AA$573,M$492+3)) -> 45 | N355: =IF(ISERROR(VLOOKUP(N353,N$493:$AA$573,N$492+3)),10,VLOOKUP(N353,N$493:$AA$573,N$492+3)) -> 44 | O355: =IF(ISERROR(VLOOKUP(O353,O$493:$AA$573,O$492+3)),10,VLOOKUP(O353,O$493:$AA$573,O$492+3)) -> 44 | P355: =IF(ISERROR(VLOOKUP(P353,P$493:$AA$573,P$492+3)),10,VLOOKUP(P353,P$493:$AA$573,P$492+3)) -> 43 | Q355: =IF(ISERROR(VLOOKUP(Q353,Q$493:$AA$573,Q$492+3)),10,VLOOKUP(Q353,Q$493:$AA$573,Q$492+3)) -> 43 | R355: =IF(ISERROR(VLOOKUP(R353,R$493:$AA$573,R$492+3)),10,VLOOKUP(R353,R$493:$AA$573,R$492+3)) -> 43 | S355: =IF(ISERROR(VLOOKUP(S353,S$493:$AA$573,S$492+3)),10,VLOOKUP(S353,S$493:$AA$573,S$492+3)) -> 42 | T355: =IF(ISERROR(VLOOKUP(T353,T$493:$AA$573,T$492+3)),10,VLOOKUP(T353,T$493:$AA$573,T$492+3)) -> 42 | U355: =IF(ISERROR(VLOOKUP(U353,U$493:$AA$573,U$492+3)),10,VLOOKUP(U353,U$493:$AA$573,U$492+3)) -> 40 | V355: =IF(ISERROR(VLOOKUP(V353,V$493:$AA$573,V$492+3)),10,VLOOKUP(V353,V$493:$AA$573,V$492+3)) -> 40 | W355: =IF(ISERROR(VLOOKUP(W353,W$493:$AA$573,W$492+3)),10,VLOOKUP(W353,W$493:$AA$573,W$492+3)) -> 40
A356: Below percentile | B356: =IF(ISERROR(VLOOKUP(B354,B$493:$AA$573,B$492+3)),10,VLOOKUP(B354,B$493:$AA$573,B$492+3)) -> 26 | C356: =IF(ISERROR(VLOOKUP(C354,C$493:$AA$573,C$492+3)),10,VLOOKUP(C354,C$493:$AA$573,C$492+3)) -> 26 | D356: =IF(ISERROR(VLOOKUP(D354,D$493:$AA$573,D$492+3)),10,VLOOKUP(D354,D$493:$AA$573,D$492+3)) -> 26 | E356: =IF(ISERROR(VLOOKUP(E354,E$493:$AA$573,E$492+3)),10,VLOOKUP(E354,E$493:$AA$573,E$492+3)) -> 26 | F356: =IF(ISERROR(VLOOKUP(F354,F$493:$AA$573,F$492+3)),10,VLOOKUP(F354,F$493:$AA$573,F$492+3)) -> 25 | G356: =IF(ISERROR(VLOOKUP(G354,G$493:$AA$573,G$492+3)),10,VLOOKUP(G354,G$493:$AA$573,G$492+3)) -> 25 | H356: =IF(ISERROR(VLOOKUP(H354,H$493:$AA$573,H$492+3)),10,VLOOKUP(H354,H$493:$AA$573,H$492+3)) -> 25 | I356: =IF(ISERROR(VLOOKUP(I354,I$493:$AA$573,I$492+3)),10,VLOOKUP(I354,I$493:$AA$573,I$492+3)) -> 23 | J356: =IF(ISERROR(VLOOKUP(J354,J$493:$AA$573,J$492+3)),10,VLOOKUP(J354,J$493:$AA$573,J$492+3)) -> 23 | K356: =IF(ISERROR(VLOOKUP(K354,K$493:$AA$573,K$492+3)),10,VLOOKUP(K354,K$493:$AA$573,K$492+3)) -> 23 | L356: =IF(ISERROR(VLOOKUP(L354,L$493:$AA$573,L$492+3)),10,VLOOKUP(L354,L$493:$AA$573,L$492+3)) -> 22 | M356: =IF(ISERROR(VLOOKUP(M354,M$493:$AA$573,M$492+3)),10,VLOOKUP(M354,M$493:$AA$573,M$492+3)) -> 22 | N356: =IF(ISERROR(VLOOKUP(N354,N$493:$AA$573,N$492+3)),10,VLOOKUP(N354,N$493:$AA$573,N$492+3)) -> 22 | O356: =IF(ISERROR(VLOOKUP(O354,O$493:$AA$573,O$492+3)),10,VLOOKUP(O354,O$493:$AA$573,O$492+3)) -> 22 | P356: =IF(ISERROR(VLOOKUP(P354,P$493:$AA$573,P$492+3)),10,VLOOKUP(P354,P$493:$AA$573,P$492+3)) -> 21 | Q356: =IF(ISERROR(VLOOKUP(Q354,Q$493:$AA$573,Q$492+3)),10,VLOOKUP(Q354,Q$493:$AA$573,Q$492+3)) -> 21 | R356: =IF(ISERROR(VLOOKUP(R354,R$493:$AA$573,R$492+3)),10,VLOOKUP(R354,R$493:$AA$573,R$492+3)) -> 21 | S356: =IF(ISERROR(VLOOKUP(S354,S$493:$AA$573,S$492+3)),10,VLOOKUP(S354,S$493:$AA$573,S$492+3)) -> 21 | T356: =IF(ISERROR(VLOOKUP(T354,T$493:$AA$573,T$492+3)),10,VLOOKUP(T354,T$493:$AA$573,T$492+3)) -> 20 | U356: =IF(ISERROR(VLOOKUP(U354,U$493:$AA$573,U$492+3)),10,VLOOKUP(U354,U$493:$AA$573,U$492+3)) -> 20 | V356: =IF(ISERROR(VLOOKUP(V354,V$493:$AA$573,V$492+3)),10,VLOOKUP(V354,V$493:$AA$573,V$492+3)) -> 20 | W356: =IF(ISERROR(VLOOKUP(W354,W$493:$AA$573,W$492+3)),10,VLOOKUP(W354,W$493:$AA$573,W$492+3)) -> 20
A359: Total need by tenure core
A360: Social Rent | C360: =C302-C361-C362-C363 -> 187.78 | D360: =D302-D361-D362-D363 -> 201.04 | E360: 165.68 | F360: 161.75 | G360: 157 | H360: 70 | I360: 63.02 | J360: 58.65 | K360: 72.91 | L360: 73.7 | M360: 90.2 | N360: 82.5 | O360: 89.76 | P360: 85.05 | Q360: 86.52 | R360: 82.32 | S360: 72.87 | T360: 72.6 | U360: 52.4 | V360: 62.6 | W360: 62.6
A361: BM Rent | C361: =(C355-C356)/100*C300 -> 77.66 | D361: =(D355-D356)/100*D300 -> 88.88 | E361: 56.28 | F361: 57.86 | G361: 53.68 | H361: 61.6 | I361: 65.76 | J361: 58.65 | K361: 72.91 | L361: 77.05 | M361: 94.3 | N361: 82.5 | O361: 89.76 | P361: 89.1 | Q361: 90.64 | R361: 86.24 | S361: 72.87 | T361: 79.86 | U361: 52.4 | V361: 62.6 | W361: 62.6
A362: PRS | C362: =(100-C355)/100*C300-C363 -> 71.306 | D362: =(100-D355)/100*D300-D363 -> 81.608 | E362: 56.816 | F362: 55.756 | G362: 51.728 | H362: 57.68 | I362: 56.444 | J362: 53.55 | K362: 66.57 | L362: 71.69 | M362: 87.74 | N362: 81.75 | O362: 88.944 | P362: 92.34 | Q362: 91.464 | R362: 87.024 | S362: 76.34 | T362: 79.86 | U362: 61.308 | V362: 73.242 | W362: 73.242
A363: Buyers | C363: =C324*CoreAssumptions!$F$8 -> 112.254 | D363: =D324*CoreAssumptions!$F$8 -> 128.472 | E363: =E324*CoreAssumptions!$F$8 -> 85.224 | F363: =F324*CoreAssumptions!$F$8 -> 83.634 | G363: =G324*CoreAssumptions!$F$8 -> 77.592 | H363: =H324*CoreAssumptions!$F$8 -> 90.72 | I363: =I324*CoreAssumptions!$F$8 -> 88.776 | J363: =J324*CoreAssumptions!$F$8 -> 84.15 | K363: =K324*CoreAssumptions!$F$8 -> 104.61 | L363: =L324*CoreAssumptions!$F$8 -> 112.56 | M363: =M324*CoreAssumptions!$F$8 -> 137.76 | N363: =N324*CoreAssumptions!$F$8 -> 128.25 | O363: =O324*CoreAssumptions!$F$8 -> 139.536 | P363: =P324*CoreAssumptions!$F$8 -> 138.51 | Q363: =Q324*CoreAssumptions!$F$8 -> 143.376 | R363: =R324*CoreAssumptions!$F$8 -> 136.416 | S363: =S324*CoreAssumptions!$F$8 -> 124.92 | T363: =T324*CoreAssumptions!$F$8 -> 130.68 | U363: =U324*CoreAssumptions!$F$8 -> 95.892 | V363: =V324*CoreAssumptions!$F$8 -> 114.558 | W363: =W324*CoreAssumptions!$F$8 -> 114.558
A365: Rents Scenario | B365: =B313 -> 2019 | C365: =B365+1 -> 2020 | D365: 2021 | E365: 2022 | F365: 2023 | G365: 2024 | H365: 2025 | I365: 2026 | J365: 2027 | K365: 2028 | L365: 2029 | M365: 2030 | N365: 2031 | O365: 2032 | P365: 2033 | Q365: 2034 | R365: 2035 | S365: 2036 | T365: 2037 | U365: 2038 | V365: 2039 | W365: 2040
A366: Rises Scenario | B366: =VLOOKUP($X366,PriceScenarios!$B$3:$AF$21,B365-2015,FALSE) -> 0.016 | C366: =VLOOKUP($X366,PriceScenarios!$B$3:$AF$21,C365-2015,FALSE) -> 0.016 | D366: =VLOOKUP($X366,PriceScenarios!$B$3:$AF$21,D365-2015,FALSE) -> 0.016 | E366: =VLOOKUP($X366,PriceScenarios!$B$3:$AF$21,E365-2015,FALSE) -> 0.016 | F366: =VLOOKUP($X366,PriceScenarios!$B$3:$AF$21,F365-2015,FALSE) -> 0.016 | G366: =VLOOKUP($X366,PriceScenarios!$B$3:$AF$21,G365-2015,FALSE) -> 0.016 | H366: =VLOOKUP($X366,PriceScenarios!$B$3:$AF$21,H365-2015,FALSE) -> 0.016 | I366: =VLOOKUP($X366,PriceScenarios!$B$3:$AF$21,I365-2015,FALSE) -> 0.016 | J366: =VLOOKUP($X366,PriceScenarios!$B$3:$AF$21,J365-2015,FALSE) -> 0.016 | K366: =VLOOKUP($X366,PriceScenarios!$B$3:$AF$21,K365-2015,FALSE) -> 0.016 | L366: =VLOOKUP($X366,PriceScenarios!$B$3:$AF$21,L365-2015,FALSE) -> 0.016 | M366: =VLOOKUP($X366,PriceScenarios!$B$3:$AF$21,M365-2015,FALSE) -> 0.016 | N366: =VLOOKUP($X366,PriceScenarios!$B$3:$AF$21,N365-2015,FALSE) -> 0.016 | O366: =VLOOKUP($X366,PriceScenarios!$B$3:$AF$21,O365-2015,FALSE) -> 0.016 | P366: =VLOOKUP($X366,PriceScenarios!$B$3:$AF$21,P365-2015,FALSE) -> 0.016 | Q366: =VLOOKUP($X366,PriceScenarios!$B$3:$AF$21,Q365-2015,FALSE) -> 0.016 | R366: =VLOOKUP($X366,PriceScenarios!$B$3:$AF$21,R365-2015,FALSE) -> 0.016 | S366: =VLOOKUP($X366,PriceScenarios!$B$3:$AF$21,S365-2015,FALSE) -> 0.016 | T366: =VLOOKUP($X366,PriceScenarios!$B$3:$AF$21,T365-2015,FALSE) -> 0.016 | U366: =VLOOKUP($X366,PriceScenarios!$B$3:$AF$21,U365-2015,FALSE) -> 0.016 | V366: =VLOOKUP($X366,PriceScenarios!$B$3:$AF$21,V365-2015,FALSE) -> 0.016 | W366: =VLOOKUP($X366,PriceScenarios!$B$3:$AF$21,W365-2015,FALSE) -> 0.016 | X366: =CHOOSE(X123,PriceScenarios!$B$3,PriceScenarios!$B$4,PriceScenarios!$B$5,PriceScenarios!$B$6,PriceScenarios!$B$7,PriceScenarios!$B$8,PriceScenarios!$B$9,PriceScenarios!$B$10,PriceScenarios!$B$11,PriceScenarios!$B$12,PriceScenarios!$B$13,PriceScenarios!$B$14,PriceScenarios!$B$15,PriceScenarios!$B$16,PriceScenarios!$B$17,PriceScenarios!$B$18,PriceScenarios!$B$19,PriceScenarios!$B$20,PriceScenarios!$B$21) -> Trend Growth (CoreDefault)
A368: Rent Median (Scenario) | B368: =HLOOKUP($A$1,Data!$C$1:$AJ$211,'S1'!$X368,FALSE) -> 138.4615385 | C368: =B368*(1+B366) -> 140.6769231 | D368: =C368*(1+C366) -> 142.9277538 | E368: 145.2145979 | F368: 147.5380315 | G368: 149.89864 | H368: 152.2970182 | I368: 154.7337705 | J368: 157.2095108 | K368: 159.724863 | L368: 162.2804608 | M368: 164.8769482 | N368: 167.5149794 | O368: 170.195219 | P368: 172.9183425 | Q368: 175.685036 | R368: 178.4959966 | S368: 181.3519325 | T368: 184.2535635 | U368: 187.2016205 | V368: =U368*(1+U366) -> 190.1968464 | W368: =V368*(1+V366) -> 193.2399959 | X368: 210
A369: Rent 30th (Scenario) | B369: =HLOOKUP($A$1,Data!$C$1:$AJ$211,'S1'!$X369,FALSE) -> 122.3076923 | C369: =B369*(1+B366) -> 124.2646154 | D369: =C369*(1+C366) -> 126.2528492 | E369: 128.2728948 | F369: 130.3252611 | G369: 132.4104653 | H369: 134.5290328 | I369: 136.6814973 | J369: 138.8684012 | K369: 141.0902957 | L369: 143.3477404 | M369: 145.6413042 | N369: 147.9715651 | O369: 150.3391101 | P369: 152.7445359 | Q369: 155.1884485 | R369: 157.6714637 | S369: 160.1942071 | T369: 162.7573144 | U369: 165.3614314 | V369: =U369*(1+U366) -> 168.0072143 | W369: =V369*(1+V366) -> 170.6953298 | X369: 211
A370: Annual Rent Medain | B370: =B368*52 -> 7200 | C370: =C368*52 -> 7315.2 | D370: 7432.2432 | E370: 7551.159091 | F370: 7671.977637 | G370: 7794.729279 | H370: 7919.444947 | I370: 8046.156066 | J370: 8174.894564 | K370: 8305.692877 | L370: 8438.583963 | M370: 8573.601306 | N370: 8710.778927 | O370: 8850.15139 | P370: 8991.753812 | Q370: 9135.621873 | R370: 9281.791823 | S370: 9430.300492 | T370: 9581.1853 | U370: 9734.484265 | V370: =V368*52 -> 9890.236013 | W370: =W368*52 -> 10048.47979
A371: Annual Rent 30th | B371: =B369*52 -> 6360 | C371: 6461.76 | D371: 6565.14816 | E371: 6670.190531 | F371: 6776.913579 | G371: 6885.344196 | H371: 6995.509703 | I371: 7107.437859 | J371: 7221.156864 | K371: 7336.695374 | L371: 7454.0825 | M371: 7573.34782 | N371: 7694.521385 | O371: 7817.633728 | P371: 7942.715867 | Q371: 8069.799321 | R371: 8198.91611 | S371: 8330.098768 | T371: 8463.380348 | U371: 8598.794434 | V371: =V369*52 -> 8736.375145 | W371: =W369*52 -> 8876.157147
A373: Income above | B373: =B370/$C$116 -> 28800 | C373: 29260.8 | D373: 29728.9728 | E373: 30204.63636 | F373: 30687.91055 | G373: 31178.91712 | H373: 31677.77979 | I373: 32184.62427 | J373: 32699.57825 | K373: 33222.77151 | L373: 33754.33585 | M373: 34294.40522 | N373: 34843.11571 | O373: 35400.60556 | P373: 35967.01525 | Q373: 36542.48749 | R373: 37127.16729 | S373: 37721.20197 | T373: 38324.7412 | U373: 38937.93706 | V373: =V370/$C$116 -> 39560.94405 | W373: =W370/$C$116 -> 40193.91916
A374: Income below | B374: =B371/$C$117 -> 18171.42857 | C374: 18462.17143 | D374: 18757.56617 | E374: 19057.68723 | F374: 19362.61023 | G374: 19672.41199 | H374: 19987.17058 | I374: 20306.96531 | J374: 20631.87676 | K374: 20961.98678 | L374: 21297.37857 | M374: 21638.13663 | N374: 21984.34682 | O374: 22336.09636 | P374: 22693.47391 | Q374: 23056.56949 | R374: 23425.4746 | S374: 23800.28219 | T374: 24181.08671 | U374: 24567.9841 | V374: =V371/$C$117 -> 24961.07184 | W374: =W371/$C$117 -> 25360.44899
A375: Above percentile | B375: =IF(ISERROR(VLOOKUP(B373,B$493:$AA$573,B$492+3)),10,VLOOKUP(B373,B$493:$AA$573,B$492+3)) -> 49 | C375: =IF(ISERROR(VLOOKUP(C373,C$493:$AA$573,C$492+3)),10,VLOOKUP(C373,C$493:$AA$573,C$492+3)) -> 48 | D375: =IF(ISERROR(VLOOKUP(D373,D$493:$AA$573,D$492+3)),10,VLOOKUP(D373,D$493:$AA$573,D$492+3)) -> 48 | E375: =IF(ISERROR(VLOOKUP(E373,E$493:$AA$573,E$492+3)),10,VLOOKUP(E373,E$493:$AA$573,E$492+3)) -> 47 | F375: =IF(ISERROR(VLOOKUP(F373,F$493:$AA$573,F$492+3)),10,VLOOKUP(F373,F$493:$AA$573,F$492+3)) -> 47 | G375: =IF(ISERROR(VLOOKUP(G373,G$493:$AA$573,G$492+3)),10,VLOOKUP(G373,G$493:$AA$573,G$492+3)) -> 47 | H375: =IF(ISERROR(VLOOKUP(H373,H$493:$AA$573,H$492+3)),10,VLOOKUP(H373,H$493:$AA$573,H$492+3)) -> 47 | I375: =IF(ISERROR(VLOOKUP(I373,I$493:$AA$573,I$492+3)),10,VLOOKUP(I373,I$493:$AA$573,I$492+3)) -> 47 | J375: =IF(ISERROR(VLOOKUP(J373,J$493:$AA$573,J$492+3)),10,VLOOKUP(J373,J$493:$AA$573,J$492+3)) -> 46 | K375: =IF(ISERROR(VLOOKUP(K373,K$493:$AA$573,K$492+3)),10,VLOOKUP(K373,K$493:$AA$573,K$492+3)) -> 46 | L375: =IF(ISERROR(VLOOKUP(L373,L$493:$AA$573,L$492+3)),10,VLOOKUP(L373,L$493:$AA$573,L$492+3)) -> 45 | M375: =IF(ISERROR(VLOOKUP(M373,M$493:$AA$573,M$492+3)),10,VLOOKUP(M373,M$493:$AA$573,M$492+3)) -> 45 | N375: =IF(ISERROR(VLOOKUP(N373,N$493:$AA$573,N$492+3)),10,VLOOKUP(N373,N$493:$AA$573,N$492+3)) -> 44 | O375: =IF(ISERROR(VLOOKUP(O373,O$493:$AA$573,O$492+3)),10,VLOOKUP(O373,O$493:$AA$573,O$492+3)) -> 44 | P375: =IF(ISERROR(VLOOKUP(P373,P$493:$AA$573,P$492+3)),10,VLOOKUP(P373,P$493:$AA$573,P$492+3)) -> 43 | Q375: =IF(ISERROR(VLOOKUP(Q373,Q$493:$AA$573,Q$492+3)),10,VLOOKUP(Q373,Q$493:$AA$573,Q$492+3)) -> 43 | R375: =IF(ISERROR(VLOOKUP(R373,R$493:$AA$573,R$492+3)),10,VLOOKUP(R373,R$493:$AA$573,R$492+3)) -> 43 | S375: =IF(ISERROR(VLOOKUP(S373,S$493:$AA$573,S$492+3)),10,VLOOKUP(S373,S$493:$AA$573,S$492+3)) -> 42 | T375: =IF(ISERROR(VLOOKUP(T373,T$493:$AA$573,T$492+3)),10,VLOOKUP(T373,T$493:$AA$573,T$492+3)) -> 42 | U375: =IF(ISERROR(VLOOKUP(U373,U$493:$AA$573,U$492+3)),10,VLOOKUP(U373,U$493:$AA$573,U$492+3)) -> 40 | V375: =IF(ISERROR(VLOOKUP(V373,V$493:$AA$573,V$492+3)),10,VLOOKUP(V373,V$493:$AA$573,V$492+3)) -> 40 | W375: =IF(ISERROR(VLOOKUP(W373,W$493:$AA$573,W$492+3)),10,VLOOKUP(W373,W$493:$AA$573,W$492+3)) -> 40
A376: Below percentile | B376: =IF(ISERROR(VLOOKUP(B374,B$493:$AA$573,B$492+3)),10,(VLOOKUP(B374,B$493:$AA$573,B$492+3))) -> 26 | C376: =IF(ISERROR(VLOOKUP(C374,C$493:$AA$573,C$492+3)),10,(VLOOKUP(C374,C$493:$AA$573,C$492+3))) -> 26 | D376: =IF(ISERROR(VLOOKUP(D374,D$493:$AA$573,D$492+3)),10,(VLOOKUP(D374,D$493:$AA$573,D$492+3))) -> 26 | E376: =IF(ISERROR(VLOOKUP(E374,E$493:$AA$573,E$492+3)),10,(VLOOKUP(E374,E$493:$AA$573,E$492+3))) -> 26 | F376: =IF(ISERROR(VLOOKUP(F374,F$493:$AA$573,F$492+3)),10,(VLOOKUP(F374,F$493:$AA$573,F$492+3))) -> 25 | G376: =IF(ISERROR(VLOOKUP(G374,G$493:$AA$573,G$492+3)),10,(VLOOKUP(G374,G$493:$AA$573,G$492+3))) -> 25 | H376: =IF(ISERROR(VLOOKUP(H374,H$493:$AA$573,H$492+3)),10,(VLOOKUP(H374,H$493:$AA$573,H$492+3))) -> 25 | I376: =IF(ISERROR(VLOOKUP(I374,I$493:$AA$573,I$492+3)),10,(VLOOKUP(I374,I$493:$AA$573,I$492+3))) -> 23 | J376: =IF(ISERROR(VLOOKUP(J374,J$493:$AA$573,J$492+3)),10,(VLOOKUP(J374,J$493:$AA$573,J$492+3))) -> 23 | K376: =IF(ISERROR(VLOOKUP(K374,K$493:$AA$573,K$492+3)),10,(VLOOKUP(K374,K$493:$AA$573,K$492+3))) -> 23 | L376: =IF(ISERROR(VLOOKUP(L374,L$493:$AA$573,L$492+3)),10,(VLOOKUP(L374,L$493:$AA$573,L$492+3))) -> 22 | M376: =IF(ISERROR(VLOOKUP(M374,M$493:$AA$573,M$492+3)),10,(VLOOKUP(M374,M$493:$AA$573,M$492+3))) -> 22 | N376: =IF(ISERROR(VLOOKUP(N374,N$493:$AA$573,N$492+3)),10,(VLOOKUP(N374,N$493:$AA$573,N$492+3))) -> 22 | O376: =IF(ISERROR(VLOOKUP(O374,O$493:$AA$573,O$492+3)),10,(VLOOKUP(O374,O$493:$AA$573,O$492+3))) -> 22 | P376: =IF(ISERROR(VLOOKUP(P374,P$493:$AA$573,P$492+3)),10,(VLOOKUP(P374,P$493:$AA$573,P$492+3))) -> 21 | Q376: =IF(ISERROR(VLOOKUP(Q374,Q$493:$AA$573,Q$492+3)),10,(VLOOKUP(Q374,Q$493:$AA$573,Q$492+3))) -> 21 | R376: =IF(ISERROR(VLOOKUP(R374,R$493:$AA$573,R$492+3)),10,(VLOOKUP(R374,R$493:$AA$573,R$492+3))) -> 21 | S376: =IF(ISERROR(VLOOKUP(S374,S$493:$AA$573,S$492+3)),10,(VLOOKUP(S374,S$493:$AA$573,S$492+3))) -> 21 | T376: =IF(ISERROR(VLOOKUP(T374,T$493:$AA$573,T$492+3)),10,(VLOOKUP(T374,T$493:$AA$573,T$492+3))) -> 20 | U376: =IF(ISERROR(VLOOKUP(U374,U$493:$AA$573,U$492+3)),10,(VLOOKUP(U374,U$493:$AA$573,U$492+3))) -> 20 | V376: =IF(ISERROR(VLOOKUP(V374,V$493:$AA$573,V$492+3)),10,(VLOOKUP(V374,V$493:$AA$573,V$492+3))) -> 20 | W376: =IF(ISERROR(VLOOKUP(W374,W$493:$AA$573,W$492+3)),10,(VLOOKUP(W374,W$493:$AA$573,W$492+3))) -> 20
A379: Total need by tenure scenario
A380: Social Rent | C380: =C303-C381-C382-C383 -> 187.78 | D380: 201.04 | E380: 165.68 | F380: 161.75 | G380: 157 | H380: 70 | I380: 63.02 | J380: 58.65 | K380: 72.91 | L380: 73.7 | M380: 90.2 | N380: 82.5 | O380: 89.76 | P380: 85.05 | Q380: 86.52 | R380: 82.32 | S380: 72.87 | T380: 72.6 | U380: 52.4 | V380: 62.6 | W380: 62.6
A381: BM Rent | C381: =IF($B$295=TRUE,(C375-C376)/100*C301,IF($B$292=TRUE,(C375-C376)/100*C303,(C375-C376)/100*C301)) -> 77.66 | D381: =IF($B$295=TRUE,(D375-D376)/100*D301,IF($B$292=TRUE,(D375-D376)/100*D303,(D375-D376)/100*D301)) -> 88.88 | E381: 56.28 | F381: 57.86 | G381: 53.68 | H381: 61.6 | I381: 65.76 | J381: 58.65 | K381: 72.91 | L381: 77.05 | M381: 94.3 | N381: 82.5 | O381: 89.76 | P381: 89.1 | Q381: 90.64 | R381: 86.24 | S381: 72.87 | T381: 79.86 | U381: 52.4 | V381: 62.6 | W381: 62.6
A382: PRS | C382: =IF($B$295=TRUE,(100-C375)/100*C301-C383,IF($B$292=TRUE,(100-C375)/100*C303-C383,(100-C375)/100*C301-C383)) -> 71.306 | D382: =IF($B$295=TRUE,(100-D375)/100*D301-D383,IF($B$292=TRUE,(100-D375)/100*D303-D383,(100-D375)/100*D301-D383)) -> 81.608 | E382: 56.816 | F382: 55.756 | G382: 51.728 | H382: 57.68 | I382: 56.444 | J382: 53.55 | K382: 66.57 | L382: 71.69 | M382: 87.74 | N382: 81.75 | O382: 88.944 | P382: 92.34 | Q382: 91.464 | R382: 87.024 | S382: 76.34 | T382: 79.86 | U382: 61.308 | V382: 73.242 | W382: 73.242
A383: Buyers | C383: =C339*$C$115 -> 112.254 | D383: =D339*$C$115 -> 128.472 | E383: 85.224 | F383: 83.634 | G383: 77.592 | H383: 90.72 | I383: 88.776 | J383: 84.15 | K383: 104.61 | L383: 112.56 | M383: 137.76 | N383: 128.25 | O383: 139.536 | P383: 138.51 | Q383: 143.376 | R383: 136.416 | S383: 124.92 | T383: 130.68 | U383: 95.892 | V383: 114.558 | W383: 114.558
A389: Income Change Scenario
A390: Principal | C390: =OFFSET(IncomeScenarios!F5,0,Map!$S$13-2012) -> 0.025 | D390: =OFFSET(IncomeScenarios!G5,0,Map!$S$13-2012) -> 0.025 | E390: =OFFSET(IncomeScenarios!H5,0,Map!$S$13-2012) -> 0.025 | F390: =OFFSET(IncomeScenarios!I5,0,Map!$S$13-2012) -> 0.025 | G390: =OFFSET(IncomeScenarios!J5,0,Map!$S$13-2012) -> 0.025 | H390: =OFFSET(IncomeScenarios!K5,0,Map!$S$13-2012) -> 0.025 | I390: =OFFSET(IncomeScenarios!L5,0,Map!$S$13-2012) -> 0.025 | J390: =OFFSET(IncomeScenarios!M5,0,Map!$S$13-2012) -> 0.025 | K390: =OFFSET(IncomeScenarios!N5,0,Map!$S$13-2012) -> 0.025 | L390: =OFFSET(IncomeScenarios!O5,0,Map!$S$13-2012) -> 0.025 | M390: =OFFSET(IncomeScenarios!P5,0,Map!$S$13-2012) -> 0.025 | N390: =OFFSET(IncomeScenarios!Q5,0,Map!$S$13-2012) -> 0.025 | O390: =OFFSET(IncomeScenarios!R5,0,Map!$S$13-2012) -> 0.025 | P390: =OFFSET(IncomeScenarios!S5,0,Map!$S$13-2012) -> 0.025 | Q390: =OFFSET(IncomeScenarios!T5,0,Map!$S$13-2012) -> 0.025 | R390: =OFFSET(IncomeScenarios!U5,0,Map!$S$13-2012) -> 0.025 | S390: =OFFSET(IncomeScenarios!V5,0,Map!$S$13-2012) -> 0.025 | T390: =OFFSET(IncomeScenarios!W5,0,Map!$S$13-2012) -> 0.025 | U390: =OFFSET(IncomeScenarios!X5,0,Map!$S$13-2012) -> 0.025 | V390: =OFFSET(IncomeScenarios!Y5,0,Map!$S$13-2012) -> 0.025 | W390: =OFFSET(IncomeScenarios!Z5,0,Map!$S$13-2012) -> 0.025
A391: Principle Distribution | C391: =OFFSET(IncomeScenarios!F28,0,Map!$S$13-2012) -> 0 | D391: =OFFSET(IncomeScenarios!G28,0,Map!$S$13-2012) -> 0 | E391: =OFFSET(IncomeScenarios!H28,0,Map!$S$13-2012) -> 0 | F391: =OFFSET(IncomeScenarios!I28,0,Map!$S$13-2012) -> 0 | G391: =OFFSET(IncomeScenarios!J28,0,Map!$S$13-2012) -> 0 | H391: =OFFSET(IncomeScenarios!K28,0,Map!$S$13-2012) -> 0 | I391: =OFFSET(IncomeScenarios!L28,0,Map!$S$13-2012) -> 0 | J391: =OFFSET(IncomeScenarios!M28,0,Map!$S$13-2012) -> 0 | K391: =OFFSET(IncomeScenarios!N28,0,Map!$S$13-2012) -> 0 | L391: =OFFSET(IncomeScenarios!O28,0,Map!$S$13-2012) -> 0 | M391: =OFFSET(IncomeScenarios!P28,0,Map!$S$13-2012) -> 0 | N391: =OFFSET(IncomeScenarios!Q28,0,Map!$S$13-2012) -> 0 | O391: =OFFSET(IncomeScenarios!R28,0,Map!$S$13-2012) -> 0 | P391: =OFFSET(IncomeScenarios!S28,0,Map!$S$13-2012) -> 0 | Q391: =OFFSET(IncomeScenarios!T28,0,Map!$S$13-2012) -> 0 | R391: =OFFSET(IncomeScenarios!U28,0,Map!$S$13-2012) -> 0 | S391: =OFFSET(IncomeScenarios!V28,0,Map!$S$13-2012) -> 0 | T391: =OFFSET(IncomeScenarios!W28,0,Map!$S$13-2012) -> 0 | U391: =OFFSET(IncomeScenarios!X28,0,Map!$S$13-2012) -> 0 | V391: =OFFSET(IncomeScenarios!Y28,0,Map!$S$13-2012) -> 0 | W391: =OFFSET(IncomeScenarios!Z28,0,Map!$S$13-2012) -> 0
A392: Scenario | C392: =OFFSET(IncomeScenarios!F2,$X$44,Map!$S$13-2012) -> 0.025 | D392: =OFFSET(IncomeScenarios!G2,$X$44,Map!$S$13-2012) -> 0.025 | E392: =OFFSET(IncomeScenarios!H2,$X$44,Map!$S$13-2012) -> 0.025 | F392: =OFFSET(IncomeScenarios!I2,$X$44,Map!$S$13-2012) -> 0.025 | G392: =OFFSET(IncomeScenarios!J2,$X$44,Map!$S$13-2012) -> 0.025 | H392: =OFFSET(IncomeScenarios!K2,$X$44,Map!$S$13-2012) -> 0.025 | I392: =OFFSET(IncomeScenarios!L2,$X$44,Map!$S$13-2012) -> 0.025 | J392: =OFFSET(IncomeScenarios!M2,$X$44,Map!$S$13-2012) -> 0.025 | K392: =OFFSET(IncomeScenarios!N2,$X$44,Map!$S$13-2012) -> 0.025 | L392: =OFFSET(IncomeScenarios!O2,$X$44,Map!$S$13-2012) -> 0.025 | M392: =OFFSET(IncomeScenarios!P2,$X$44,Map!$S$13-2012) -> 0.025 | N392: =OFFSET(IncomeScenarios!Q2,$X$44,Map!$S$13-2012) -> 0.025 | O392: =OFFSET(IncomeScenarios!R2,$X$44,Map!$S$13-2012) -> 0.025 | P392: =OFFSET(IncomeScenarios!S2,$X$44,Map!$S$13-2012) -> 0.025 | Q392: =OFFSET(IncomeScenarios!T2,$X$44,Map!$S$13-2012) -> 0.025 | R392: =OFFSET(IncomeScenarios!U2,$X$44,Map!$S$13-2012) -> 0.025 | S392: =OFFSET(IncomeScenarios!V2,$X$44,Map!$S$13-2012) -> 0.025 | T392: =OFFSET(IncomeScenarios!W2,$X$44,Map!$S$13-2012) -> 0.025 | U392: =OFFSET(IncomeScenarios!X2,$X$44,Map!$S$13-2012) -> 0.025 | V392: =OFFSET(IncomeScenarios!Y2,$X$44,Map!$S$13-2012) -> 0.025 | W392: =OFFSET(IncomeScenarios!Z2,$X$44,Map!$S$13-2012) -> 0.025
A393: Scenario Distribution | C393: =OFFSET(IncomeScenarios!F26,$X$54,Map!$S$13-2012) -> 0 | D393: =OFFSET(IncomeScenarios!G26,$X$54,Map!$S$13-2012) -> 0 | E393: =OFFSET(IncomeScenarios!H26,$X$54,Map!$S$13-2012) -> 0 | F393: =OFFSET(IncomeScenarios!I26,$X$54,Map!$S$13-2012) -> 0 | G393: =OFFSET(IncomeScenarios!J26,$X$54,Map!$S$13-2012) -> 0 | H393: =OFFSET(IncomeScenarios!K26,$X$54,Map!$S$13-2012) -> 0 | I393: =OFFSET(IncomeScenarios!L26,$X$54,Map!$S$13-2012) -> 0 | J393: =OFFSET(IncomeScenarios!M26,$X$54,Map!$S$13-2012) -> 0 | K393: =OFFSET(IncomeScenarios!N26,$X$54,Map!$S$13-2012) -> 0 | L393: =OFFSET(IncomeScenarios!O26,$X$54,Map!$S$13-2012) -> 0 | M393: =OFFSET(IncomeScenarios!P26,$X$54,Map!$S$13-2012) -> 0 | N393: =OFFSET(IncomeScenarios!Q26,$X$54,Map!$S$13-2012) -> 0 | O393: =OFFSET(IncomeScenarios!R26,$X$54,Map!$S$13-2012) -> 0 | P393: =OFFSET(IncomeScenarios!S26,$X$54,Map!$S$13-2012) -> 0 | Q393: =OFFSET(IncomeScenarios!T26,$X$54,Map!$S$13-2012) -> 0 | R393: =OFFSET(IncomeScenarios!U26,$X$54,Map!$S$13-2012) -> 0 | S393: =OFFSET(IncomeScenarios!V26,$X$54,Map!$S$13-2012) -> 0 | T393: =OFFSET(IncomeScenarios!W26,$X$54,Map!$S$13-2012) -> 0 | U393: =OFFSET(IncomeScenarios!X26,$X$54,Map!$S$13-2012) -> 0 | V393: =OFFSET(IncomeScenarios!Y26,$X$54,Map!$S$13-2012) -> 0 | W393: =OFFSET(IncomeScenarios!Z26,$X$54,Map!$S$13-2012) -> 0
A397: SG Income Estimates | B397: =B365 -> 2019 | C397: =B397+1 -> 2020 | D397: 2021 | E397: 2022 | F397: 2023 | G397: 2024 | H397: 2025 | I397: 2026 | J397: 2027 | K397: 2028 | L397: 2029 | M397: 2030 | N397: 2031 | O397: 2032 | P397: 2033 | Q397: 2034 | R397: 2035 | S397: 2036 | T397: 2037 | U397: 2038 | V397: 2039 | W397: 2040
A398: Principal Median | B398: =B442 -> 29120 | C398: =C442 -> 29848 | D398: 30594.2 | E398: 31359.055 | F398: 32143.03137 | G398: 32946.60716 | H398: 33770.27234 | I398: 34614.52915 | J398: 35479.89238 | K398: 36366.88968 | L398: 37276.06193 | M398: 38207.96348 | N398: 39163.16256 | O398: 40142.24163 | P398: 41145.79767 | Q398: 42174.44261 | R398: 43228.80367 | S398: 44309.52377 | T398: 45417.26186 | U398: 46552.69341 | V398: 47716.51074 | W398: 48909.42351
A399: =CONCATENATE("Principal ",C49,"%ile") -> Principal 75%ile | B399: =VLOOKUP($C$49,$A$402:$W$482,25-B401,FALSE) -> 47840 | C399: 49036 | D399: 50261.9 | E399: 51518.4475 | F399: 52806.40869 | G399: 54126.5689 | H399: 55479.73313 | I399: 56866.72646 | J399: 58288.39462 | K399: 59745.60448 | L399: 61239.24459 | M399: 62770.22571 | N399: 64339.48135 | O399: 65947.96839 | P399: 67596.6676 | Q399: 69286.58429 | R399: 71018.74889 | S399: 72794.21761 | T399: 74614.07306 | U399: 76479.42488 | V399: 78391.4105 | W399: 80351.19577
A400: =CONCATENATE("Principal",C50,"%ile") -> Principal25%ile | B400: =VLOOKUP($C$50,$A$402:$W$482,25-B401,FALSE) -> 17160 | C400: 17589 | D400: 18028.725 | E400: 18479.44312 | F400: 18941.4292 | G400: 19414.96493 | H400: 19900.33906 | I400: 20397.84753 | J400: 20907.79372 | K400: 21430.48856 | L400: 21966.25078 | M400: 22515.40705 | N400: 23078.29222 | O400: 23655.24953 | P400: 24246.63077 | Q400: 24852.79654 | R400: 25474.11645 | S400: 26110.96936 | T400: 26763.7436 | U400: 27432.83719 | V400: 28118.65812 | W400: 28821.62457
A401: 1 | B401: 23 | C401: =B401-1 -> 22 | D401: 21 | E401: 20 | F401: 19 | G401: 18 | H401: 17 | I401: 16 | J401: 15 | K401: 14 | L401: 13 | M401: 12 | N401: 11 | O401: 10 | P401: 9 | Q401: 8 | R401: 7 | S401: 6 | T401: 5 | U401: 4 | V401: 3 | W401: 2 | Y401: =2018 -> 2018 | Z401: =CONCATENATE("Principal ",C51) -> Principal 2038
A402: =Data!B308 -> 10 | B402: =HLOOKUP($A$1,Data!$C$1:$AJ$388,$X402,FALSE) -> 10920 | C402: =B402*(1+C$390+(-(50-$A402)*(C$391/40))) -> 11193 | D402: =C402*(1+D$390+(-(50-$A402)*(D$391/40))) -> 11472.825 | E402: 11759.64562 | F402: 12053.63677 | G402: 12354.97768 | H402: 12663.85213 | I402: 12980.44843 | J402: 13304.95964 | K402: 13637.58363 | L402: 13978.52322 | M402: 14327.9863 | N402: 14686.18596 | O402: 15053.34061 | P402: 15429.67413 | Q402: 15815.41598 | R402: 16210.80138 | S402: 16616.07141 | T402: =S402*(1+T$390+(-(50-$A402)*(T$391/40))) -> 17031.4732 | U402: 17457.26003 | V402: 17893.69153 | W402: 18341.03382 | X402: 226 | Y402: =C402 -> 11193 | Z402: =OFFSET(B402,0,$C$51-Map!$S$13+1) -> 17457.26003 | AA402: =A402 -> 10
A403: =Data!B309 -> 11 | B403: =HLOOKUP($A$1,Data!$C$1:$AJ$388,$X403,FALSE) -> 11440 | C403: =B403*(1+C$390+(-(50-$A403)*(C$391/40))) -> 11726 | D403: 12019.15 | E403: 12319.62875 | F403: 12627.61947 | G403: 12943.30996 | H403: 13266.8927 | I403: 13598.56502 | J403: 13938.52915 | K403: 14286.99238 | L403: 14644.16719 | M403: 15010.27137 | N403: 15385.52815 | O403: 15770.16635 | P403: 16164.42051 | Q403: 16568.53102 | R403: 16982.7443 | S403: 17407.31291 | T403: 17842.49573 | U403: 18288.55812 | V403: 18745.77208 | W403: 19214.41638 | X403: 227 | Y403: 11726 | Z403: =OFFSET(B403,0,$C$51-Map!$S$13+1) -> 18288.55812 | AA403: 11
A404: =Data!B310 -> 12 | B404: =HLOOKUP($A$1,Data!$C$1:$AJ$388,$X404,FALSE) -> 11960 | C404: 12259 | D404: 12565.475 | E404: 12879.61187 | F404: 13201.60217 | G404: 13531.64223 | H404: 13869.93328 | I404: 14216.68161 | J404: 14572.09865 | K404: 14936.40112 | L404: 15309.81115 | M404: 15692.55643 | N404: 16084.87034 | O404: 16486.9921 | P404: 16899.1669 | Q404: 17321.64607 | R404: 17754.68722 | S404: 18198.5544 | T404: 18653.51826 | U404: 19119.85622 | V404: 19597.85263 | W404: 20087.79894 | X404: 228 | Y404: 12259 | Z404: =OFFSET(B404,0,$C$51-Map!$S$13+1) -> 19119.85622 | AA404: 12
A405: =Data!B311 -> 13 | B405: =HLOOKUP($A$1,Data!$C$1:$AJ$388,$X405,FALSE) -> 12480 | C405: 12792 | D405: 13111.8 | E405: 13439.595 | F405: 13775.58487 | G405: 14119.9745 | H405: 14472.97386 | I405: 14834.79821 | J405: 15205.66816 | K405: 15585.80986 | L405: 15975.45511 | M405: 16374.84149 | N405: 16784.21253 | O405: 17203.81784 | P405: 17633.91329 | Q405: 18074.76112 | R405: 18526.63015 | S405: 18989.7959 | T405: 19464.5408 | U405: 19951.15432 | V405: 20449.93317 | W405: 20961.1815 | X405: 229 | Y405: 12792 | Z405: =OFFSET(B405,0,$C$51-Map!$S$13+1) -> 19951.15432 | AA405: 13
A406: =Data!B312 -> 14 | B406: =HLOOKUP($A$1,Data!$C$1:$AJ$388,$X406,FALSE) -> 13000 | C406: 13325 | D406: 13658.125 | E406: 13999.57812 | F406: 14349.56758 | G406: 14708.30677 | H406: 15076.01444 | I406: 15452.9148 | J406: 15839.23767 | K406: 16235.21861 | L406: 16641.09907 | M406: 17057.12655 | N406: 17483.55472 | O406: 17920.64358 | P406: 18368.65967 | Q406: 18827.87616 | R406: 19298.57307 | S406: 19781.0374 | T406: 20275.56333 | U406: 20782.45241 | V406: 21302.01372 | W406: 21834.56407 | X406: 230 | Y406: 13325 | Z406: =OFFSET(B406,0,$C$51-Map!$S$13+1) -> 20782.45241 | AA406: 14
A407: =Data!B313 -> 15 | B407: =HLOOKUP($A$1,Data!$C$1:$AJ$388,$X407,FALSE) -> 13000 | C407: 13325 | D407: 13658.125 | E407: 13999.57812 | F407: 14349.56758 | G407: 14708.30677 | H407: 15076.01444 | I407: 15452.9148 | J407: 15839.23767 | K407: 16235.21861 | L407: 16641.09907 | M407: 17057.12655 | N407: 17483.55472 | O407: 17920.64358 | P407: 18368.65967 | Q407: 18827.87616 | R407: 19298.57307 | S407: 19781.0374 | T407: 20275.56333 | U407: 20782.45241 | V407: 21302.01372 | W407: 21834.56407 | X407: 231 | Y407: 13325 | Z407: =OFFSET(B407,0,$C$51-Map!$S$13+1) -> 20782.45241 | AA407: 15
A408: =Data!B314 -> 16 | B408: =HLOOKUP($A$1,Data!$C$1:$AJ$388,$X408,FALSE) -> 13520 | C408: 13858 | D408: 14204.45 | E408: 14559.56125 | F408: 14923.55028 | G408: 15296.63904 | H408: 15679.05501 | I408: 16071.03139 | J408: 16472.80717 | K408: 16884.62735 | L408: 17306.74304 | M408: 17739.41161 | N408: 18182.8969 | O408: 18637.46933 | P408: 19103.40606 | Q408: 19580.99121 | R408: 20070.51599 | S408: 20572.27889 | T408: 21086.58586 | U408: 21613.75051 | V408: 22154.09427 | W408: 22707.94663 | X408: 232 | Y408: 13858 | Z408: =OFFSET(B408,0,$C$51-Map!$S$13+1) -> 21613.75051 | AA408: 16
A409: =Data!B315 -> 17 | B409: =HLOOKUP($A$1,Data!$C$1:$AJ$388,$X409,FALSE) -> 14040 | C409: 14391 | D409: 14750.775 | E409: 15119.54437 | F409: 15497.53298 | G409: 15884.97131 | H409: 16282.09559 | I409: 16689.14798 | J409: 17106.37668 | K409: 17534.0361 | L409: 17972.387 | M409: 18421.69668 | N409: 18882.23909 | O409: 19354.29507 | P409: 19838.15245 | Q409: 20334.10626 | R409: 20842.45891 | S409: 21363.52039 | T409: 21897.6084 | U409: 22445.04861 | V409: 23006.17482 | W409: 23581.32919 | X409: 233 | Y409: 14391 | Z409: =OFFSET(B409,0,$C$51-Map!$S$13+1) -> 22445.04861 | AA409: 17
A410: =Data!B316 -> 18 | B410: =HLOOKUP($A$1,Data!$C$1:$AJ$388,$X410,FALSE) -> 14560 | C410: 14924 | D410: 15297.1 | E410: 15679.5275 | F410: 16071.51569 | G410: 16473.30358 | H410: 16885.13617 | I410: 17307.26457 | J410: 17739.94619 | K410: 18183.44484 | L410: 18638.03096 | M410: 19103.98174 | N410: 19581.58128 | O410: 20071.12081 | P410: 20572.89883 | Q410: 21087.2213 | R410: 21614.40184 | S410: 22154.76188 | T410: 22708.63093 | U410: 23276.3467 | V410: 23858.25537 | W410: 24454.71175 | X410: 234 | Y410: 14924 | Z410: =OFFSET(B410,0,$C$51-Map!$S$13+1) -> 23276.3467 | AA410: 18
A411: =Data!B317 -> 19 | B411: =HLOOKUP($A$1,Data!$C$1:$AJ$388,$X411,FALSE) -> 15080 | C411: 15457 | D411: 15843.425 | E411: 16239.51062 | F411: 16645.49839 | G411: 17061.63585 | H411: 17488.17675 | I411: 17925.38117 | J411: 18373.51569 | K411: 18832.85359 | L411: 19303.67493 | M411: 19786.2668 | N411: 20280.92347 | O411: 20787.94656 | P411: 21307.64522 | Q411: 21840.33635 | R411: 22386.34476 | S411: 22946.00338 | T411: 23519.65346 | U411: 24107.6448 | V411: 24710.33592 | W411: 25328.09432 | X411: 235 | Y411: 15457 | Z411: =OFFSET(B411,0,$C$51-Map!$S$13+1) -> 24107.6448 | AA411: 19
A412: =Data!B318 -> 20 | B412: =HLOOKUP($A$1,Data!$C$1:$AJ$388,$X412,FALSE) -> 15080 | C412: 15457 | D412: 15843.425 | E412: 16239.51062 | F412: 16645.49839 | G412: 17061.63585 | H412: 17488.17675 | I412: 17925.38117 | J412: 18373.51569 | K412: 18832.85359 | L412: 19303.67493 | M412: 19786.2668 | N412: 20280.92347 | O412: 20787.94656 | P412: 21307.64522 | Q412: 21840.33635 | R412: 22386.34476 | S412: 22946.00338 | T412: 23519.65346 | U412: 24107.6448 | V412: 24710.33592 | W412: 25328.09432 | X412: 236 | Y412: 15457 | Z412: =OFFSET(B412,0,$C$51-Map!$S$13+1) -> 24107.6448 | AA412: 20
A413: =Data!B319 -> 21 | B413: =HLOOKUP($A$1,Data!$C$1:$AJ$388,$X413,FALSE) -> 15600 | C413: 15990 | D413: 16389.75 | E413: 16799.49375 | F413: 17219.48109 | G413: 17649.96812 | H413: 18091.21732 | I413: 18543.49776 | J413: 19007.0852 | K413: 19482.26233 | L413: 19969.31889 | M413: 20468.55186 | N413: 20980.26566 | O413: 21504.7723 | P413: 22042.39161 | Q413: 22593.4514 | R413: 23158.28768 | S413: 23737.24487 | T413: 24330.676 | U413: 24938.9429 | V413: 25562.41647 | W413: 26201.47688 | X413: 237 | Y413: 15990 | Z413: =OFFSET(B413,0,$C$51-Map!$S$13+1) -> 24938.9429 | AA413: 21
A414: =Data!B320 -> 22 | B414: =HLOOKUP($A$1,Data!$C$1:$AJ$388,$X414,FALSE) -> 16120 | C414: 16523 | D414: 16936.075 | E414: 17359.47687 | F414: 17793.4638 | G414: 18238.30039 | H414: 18694.2579 | I414: 19161.61435 | J414: 19640.65471 | K414: 20131.67108 | L414: 20634.96285 | M414: 21150.83692 | N414: 21679.60785 | O414: 22221.59804 | P414: 22777.13799 | Q414: 23346.56644 | R414: 23930.23061 | S414: 24528.48637 | T414: 25141.69853 | U414: 25770.24099 | V414: 26414.49702 | W414: 27074.85944 | X414: 238 | Y414: 16523 | Z414: =OFFSET(B414,0,$C$51-Map!$S$13+1) -> 25770.24099 | AA414: 22
A415: =Data!B321 -> 23 | B415: =HLOOKUP($A$1,Data!$C$1:$AJ$388,$X415,FALSE) -> 16640 | C415: 17056 | D415: 17482.4 | E415: 17919.46 | F415: 18367.4465 | G415: 18826.63266 | H415: 19297.29848 | I415: 19779.73094 | J415: 20274.22421 | K415: 20781.07982 | L415: 21300.60682 | M415: 21833.12199 | N415: 22378.95004 | O415: 22938.42379 | P415: 23511.88438 | Q415: 24099.68149 | R415: 24702.17353 | S415: 25319.72787 | T415: 25952.72106 | U415: 26601.53909 | V415: 27266.57757 | W415: 27948.24201 | X415: 239 | Y415: 17056 | Z415: =OFFSET(B415,0,$C$51-Map!$S$13+1) -> 26601.53909 | AA415: 23
A416: =Data!B322 -> 24 | B416: =HLOOKUP($A$1,Data!$C$1:$AJ$388,$X416,FALSE) -> 17160 | C416: 17589 | D416: 18028.725 | E416: 18479.44312 | F416: 18941.4292 | G416: 19414.96493 | H416: 19900.33906 | I416: 20397.84753 | J416: 20907.79372 | K416: 21430.48856 | L416: 21966.25078 | M416: 22515.40705 | N416: 23078.29222 | O416: 23655.24953 | P416: 24246.63077 | Q416: 24852.79654 | R416: 25474.11645 | S416: 26110.96936 | T416: 26763.7436 | U416: 27432.83719 | V416: 28118.65812 | W416: 28821.62457 | X416: 240 | Y416: 17589 | Z416: =OFFSET(B416,0,$C$51-Map!$S$13+1) -> 27432.83719 | AA416: 24
A417: =Data!B323 -> 25 | B417: =HLOOKUP($A$1,Data!$C$1:$AJ$388,$X417,FALSE) -> 17160 | C417: 17589 | D417: 18028.725 | E417: 18479.44312 | F417: 18941.4292 | G417: 19414.96493 | H417: 19900.33906 | I417: 20397.84753 | J417: 20907.79372 | K417: 21430.48856 | L417: 21966.25078 | M417: 22515.40705 | N417: 23078.29222 | O417: 23655.24953 | P417: 24246.63077 | Q417: 24852.79654 | R417: 25474.11645 | S417: 26110.96936 | T417: 26763.7436 | U417: 27432.83719 | V417: 28118.65812 | W417: 28821.62457 | X417: 241 | Y417: 17589 | Z417: =OFFSET(B417,0,$C$51-Map!$S$13+1) -> 27432.83719 | AA417: 25
A418: =Data!B324 -> 26 | B418: =HLOOKUP($A$1,Data!$C$1:$AJ$388,$X418,FALSE) -> 17680 | C418: 18122 | D418: 18575.05 | E418: 19039.42625 | F418: 19515.41191 | G418: 20003.2972 | H418: 20503.37963 | I418: 21015.96412 | J418: 21541.36323 | K418: 22079.89731 | L418: 22631.89474 | M418: 23197.69211 | N418: 23777.63441 | O418: 24372.07527 | P418: 24981.37715 | Q418: 25605.91158 | R418: =Q418*(1+R$390+(-(50-$A418)*(R$391/40))) -> 26246.05937 | S418: 26902.21086 | T418: 27574.76613 | U418: 28264.13528 | V418: 28970.73866 | W418: 29695.00713 | X418: 242 | Y418: 18122 | Z418: =OFFSET(B418,0,$C$51-Map!$S$13+1) -> 28264.13528 | AA418: 26
A419: =Data!B325 -> 27 | B419: =HLOOKUP($A$1,Data!$C$1:$AJ$388,$X419,FALSE) -> 18200 | C419: =B419*(1+C$390+(-(50-$A419)*(C$391/40))) -> 18655 | D419: 19121.375 | E419: 19599.40937 | F419: 20089.39461 | G419: 20591.62947 | H419: 21106.42021 | I419: 21634.08072 | J419: 22174.93273 | K419: 22729.30605 | L419: 23297.5387 | M419: 23879.97717 | N419: 24476.9766 | O419: 25088.90102 | P419: 25716.12354 | Q419: 26359.02663 | R419: 27018.0023 | S419: 27693.45235 | T419: 28385.78866 | U419: 29095.43338 | V419: 29822.81921 | W419: 30568.38969 | X419: 243 | Y419: 18655 | Z419: =OFFSET(B419,0,$C$51-Map!$S$13+1) -> 29095.43338 | AA419: 27
A420: =Data!B326 -> 28 | B420: =HLOOKUP($A$1,Data!$C$1:$AJ$388,$X420,FALSE) -> 18720 | C420: 19188 | D420: 19667.7 | E420: 20159.3925 | F420: 20663.37731 | G420: 21179.96175 | H420: 21709.46079 | I420: 22252.19731 | J420: 22808.50224 | K420: 23378.7148 | L420: 23963.18267 | M420: 24562.26223 | N420: 25176.31879 | O420: 25805.72676 | P420: 26450.86993 | Q420: 27112.14168 | R420: 27789.94522 | S420: 28484.69385 | T420: 29196.8112 | U420: 29926.73148 | V420: 30674.89976 | W420: 31441.77226 | X420: 244 | Y420: 19188 | Z420: =OFFSET(B420,0,$C$51-Map!$S$13+1) -> 29926.73148 | AA420: 28
A421: =Data!B327 -> 29 | B421: =HLOOKUP($A$1,Data!$C$1:$AJ$388,$X421,FALSE) -> 19240 | C421: 19721 | D421: 20214.025 | E421: 20719.37562 | F421: 21237.36002 | G421: 21768.29402 | H421: 22312.50137 | I421: 22870.3139 | J421: 23442.07175 | K421: 24028.12354 | L421: 24628.82663 | M421: 25244.5473 | N421: 25875.66098 | O421: 26522.5525 | P421: 27185.61632 | Q421: 27865.25672 | R421: 28561.88814 | S421: 29275.93535 | T421: 30007.83373 | U421: 30758.02957 | V421: 31526.98031 | W421: 32315.15482 | X421: 245 | Y421: 19721 | Z421: =OFFSET(B421,0,$C$51-Map!$S$13+1) -> 30758.02957 | AA421: 29
A422: =Data!B328 -> 30 | B422: =HLOOKUP($A$1,Data!$C$1:$AJ$388,$X422,FALSE) -> 19760 | C422: 20254 | D422: 20760.35 | E422: 21279.35875 | F422: 21811.34272 | G422: 22356.62629 | H422: 22915.54194 | I422: 23488.43049 | J422: 24075.64125 | K422: 24677.53229 | L422: 25294.47059 | M422: 25926.83236 | N422: 26575.00317 | O422: 27239.37825 | P422: 27920.3627 | Q422: 28618.37177 | R422: 29333.83106 | S422: 30067.17684 | T422: 30818.85626 | U422: 31589.32767 | V422: 32379.06086 | W422: 33188.53738 | X422: 246 | Y422: 20254 | Z422: =OFFSET(B422,0,$C$51-Map!$S$13+1) -> 31589.32767 | AA422: 30
A423: =Data!B329 -> 31 | B423: =HLOOKUP($A$1,Data!$C$1:$AJ$388,$X423,FALSE) -> 19760 | C423: 20254 | D423: 20760.35 | E423: 21279.35875 | F423: 21811.34272 | G423: 22356.62629 | H423: 22915.54194 | I423: 23488.43049 | J423: 24075.64125 | K423: 24677.53229 | L423: 25294.47059 | M423: 25926.83236 | N423: 26575.00317 | O423: 27239.37825 | P423: 27920.3627 | Q423: 28618.37177 | R423: 29333.83106 | S423: 30067.17684 | T423: 30818.85626 | U423: 31589.32767 | V423: 32379.06086 | W423: 33188.53738 | X423: 247 | Y423: 20254 | Z423: =OFFSET(B423,0,$C$51-Map!$S$13+1) -> 31589.32767 | AA423: 31
A424: =Data!B330 -> 32 | B424: =HLOOKUP($A$1,Data!$C$1:$AJ$388,$X424,FALSE) -> 20280 | C424: 20787 | D424: 21306.675 | E424: 21839.34187 | F424: 22385.32542 | G424: 22944.95856 | H424: 23518.58252 | I424: 24106.54708 | J424: 24709.21076 | K424: 25326.94103 | L424: 25960.11456 | M424: 26609.11742 | N424: 27274.34536 | O424: 27956.20399 | P424: 28655.10909 | Q424: 29371.48682 | R424: 30105.77399 | S424: 30858.41834 | T424: 31629.8788 | U424: 32420.62576 | V424: 33231.14141 | W424: 34061.91994 | X424: 248 | Y424: 20787 | Z424: =OFFSET(B424,0,$C$51-Map!$S$13+1) -> 32420.62576 | AA424: 32
A425: =Data!B331 -> 33 | B425: =HLOOKUP($A$1,Data!$C$1:$AJ$388,$X425,FALSE) -> 20800 | C425: 21320 | D425: 21853 | E425: 22399.325 | F425: 22959.30812 | G425: 23533.29083 | H425: 24121.6231 | I425: 24724.66368 | J425: 25342.78027 | K425: 25976.34977 | L425: 26625.75852 | M425: 27291.40248 | N425: 27973.68754 | O425: 28673.02973 | P425: 29389.85548 | Q425: 30124.60186 | R425: 30877.71691 | S425: 31649.65983 | T425: 32440.90133 | U425: 33251.92386 | V425: 34083.22196 | W425: 34935.30251 | X425: 249 | Y425: 21320 | Z425: =OFFSET(B425,0,$C$51-Map!$S$13+1) -> 33251.92386 | AA425: 33
A426: =Data!B332 -> 34 | B426: =HLOOKUP($A$1,Data!$C$1:$AJ$388,$X426,FALSE) -> 21320 | C426: 21853 | D426: 22399.325 | E426: 22959.30812 | F426: 23533.29083 | G426: 24121.6231 | H426: 24724.66368 | I426: 25342.78027 | J426: 25976.34977 | K426: 26625.75852 | L426: 27291.40248 | M426: 27973.68754 | N426: 28673.02973 | O426: 29389.85548 | P426: 30124.60186 | Q426: 30877.71691 | R426: 31649.65983 | S426: 32440.90133 | T426: 33251.92386 | U426: 34083.22196 | V426: 34935.30251 | W426: 35808.68507 | X426: 250 | Y426: 21853 | Z426: =OFFSET(B426,0,$C$51-Map!$S$13+1) -> 34083.22196 | AA426: 34
A427: =Data!B333 -> 35 | B427: =HLOOKUP($A$1,Data!$C$1:$AJ$388,$X427,FALSE) -> 21840 | C427: 22386 | D427: 22945.65 | E427: 23519.29125 | F427: 24107.27353 | G427: 24709.95537 | H427: 25327.70425 | I427: 25960.89686 | J427: 26609.91928 | K427: 27275.16726 | L427: 27957.04645 | M427: 28655.97261 | N427: 29372.37192 | O427: 30106.68122 | P427: 30859.34825 | Q427: 31630.83196 | R427: 32421.60276 | S427: 33232.14282 | T427: 34062.94639 | U427: 34914.52005 | V427: 35787.38306 | W427: 36682.06763 | X427: 251 | Y427: 22386 | Z427: =OFFSET(B427,0,$C$51-Map!$S$13+1) -> 34914.52005 | AA427: 35
A428: =Data!B334 -> 36 | B428: =HLOOKUP($A$1,Data!$C$1:$AJ$388,$X428,FALSE) -> 21840 | C428: 22386 | D428: 22945.65 | E428: 23519.29125 | F428: 24107.27353 | G428: 24709.95537 | H428: 25327.70425 | I428: 25960.89686 | J428: 26609.91928 | K428: 27275.16726 | L428: 27957.04645 | M428: 28655.97261 | N428: 29372.37192 | O428: 30106.68122 | P428: 30859.34825 | Q428: 31630.83196 | R428: 32421.60276 | S428: 33232.14282 | T428: 34062.94639 | U428: 34914.52005 | V428: 35787.38306 | W428: 36682.06763 | X428: 252 | Y428: 22386 | Z428: =OFFSET(B428,0,$C$51-Map!$S$13+1) -> 34914.52005 | AA428: 36
A429: =Data!B335 -> 37 | B429: =HLOOKUP($A$1,Data!$C$1:$AJ$388,$X429,FALSE) -> 22360 | C429: 22919 | D429: 23491.975 | E429: 24079.27437 | F429: 24681.25623 | G429: 25298.28764 | H429: 25930.74483 | I429: 26579.01345 | J429: 27243.48879 | K429: 27924.57601 | L429: 28622.69041 | M429: 29338.25767 | N429: 30071.71411 | O429: 30823.50696 | P429: 31594.09464 | Q429: 32383.947 | R429: 33193.54568 | S429: 34023.38432 | T429: 34873.96893 | U429: 35745.81815 | V429: 36639.4636 | W429: 37555.4502 | X429: 253 | Y429: 22919 | Z429: =OFFSET(B429,0,$C$51-Map!$S$13+1) -> 35745.81815 | AA429: 37
A430: =Data!B336 -> 38 | B430: =HLOOKUP($A$1,Data!$C$1:$AJ$388,$X430,FALSE) -> 22880 | C430: 23452 | D430: 24038.3 | E430: 24639.2575 | F430: 25255.23894 | G430: 25886.61991 | H430: 26533.78541 | I430: 27197.13004 | J430: 27877.0583 | K430: 28573.98475 | L430: 29288.33437 | M430: 30020.54273 | N430: 30771.0563 | O430: 31540.33271 | P430: 32328.84102 | Q430: 33137.06205 | R430: 33965.4886 | S430: 34814.62582 | T430: 35684.99146 | U430: 36577.11625 | V430: 37491.54415 | W430: 38428.83276 | X430: 254 | Y430: 23452 | Z430: =OFFSET(B430,0,$C$51-Map!$S$13+1) -> 36577.11625 | AA430: 38
A431: =Data!B337 -> 39 | B431: =HLOOKUP($A$1,Data!$C$1:$AJ$388,$X431,FALSE) -> 23400 | C431: 23985 | D431: 24584.625 | E431: 25199.24062 | F431: 25829.22164 | G431: 26474.95218 | H431: 27136.82599 | I431: 27815.24664 | J431: 28510.6278 | K431: 29223.3935 | L431: 29953.97833 | M431: 30702.82779 | N431: 31470.39849 | O431: 32257.15845 | P431: 33063.58741 | Q431: 33890.1771 | R431: 34737.43152 | S431: 35605.86731 | T431: 36496.01399 | U431: 37408.41434 | V431: 38343.6247 | W431: 39302.21532 | X431: 255 | Y431: 23985 | Z431: =OFFSET(B431,0,$C$51-Map!$S$13+1) -> 37408.41434 | AA431: 39
A432: =Data!B338 -> 40 | B432: =HLOOKUP($A$1,Data!$C$1:$AJ$388,$X432,FALSE) -> 23920 | C432: 24518 | D432: 25130.95 | E432: 25759.22375 | F432: 26403.20434 | G432: 27063.28445 | H432: 27739.86656 | I432: 28433.36323 | J432: 29144.19731 | K432: 29872.80224 | L432: 30619.6223 | M432: 31385.11285 | N432: 32169.74068 | O432: 32973.98419 | P432: 33798.3338 | Q432: 34643.29214 | R432: 35509.37445 | S432: 36397.10881 | T432: 37307.03653 | U432: 38239.71244 | V432: 39195.70525 | W432: 40175.59788 | X432: 256 | Y432: 24518 | Z432: =OFFSET(B432,0,$C$51-Map!$S$13+1) -> 38239.71244 | AA432: 40
A433: =Data!B339 -> 41 | B433: =HLOOKUP($A$1,Data!$C$1:$AJ$388,$X433,FALSE) -> 24440 | C433: 25051 | D433: 25677.275 | E433: 26319.20687 | F433: 26977.18705 | G433: 27651.61672 | H433: 28342.90714 | I433: 29051.47982 | J433: 29777.76682 | K433: 30522.21099 | L433: 31285.26626 | M433: 32067.39792 | N433: 32869.08286 | O433: 33690.80994 | P433: 34533.08018 | Q433: 35396.40719 | R433: 36281.31737 | S433: 37188.3503 | T433: 38118.05906 | U433: 39071.01054 | V433: 40047.7858 | W433: 41048.98045 | X433: 257 | Y433: 25051 | Z433: =OFFSET(B433,0,$C$51-Map!$S$13+1) -> 39071.01054 | AA433: 41
A434: =Data!B340 -> 42 | B434: =HLOOKUP($A$1,Data!$C$1:$AJ$388,$X434,FALSE) -> 24440 | C434: 25051 | D434: 25677.275 | E434: 26319.20687 | F434: 26977.18705 | G434: 27651.61672 | H434: 28342.90714 | I434: 29051.47982 | J434: 29777.76682 | K434: 30522.21099 | L434: 31285.26626 | M434: 32067.39792 | N434: 32869.08286 | O434: 33690.80994 | P434: 34533.08018 | Q434: 35396.40719 | R434: =Q434*(1+R$390+(-(50-$A434)*(R$391/40))) -> 36281.31737 | S434: 37188.3503 | T434: 38118.05906 | U434: 39071.01054 | V434: 40047.7858 | W434: 41048.98045 | X434: 258 | Y434: 25051 | Z434: =OFFSET(B434,0,$C$51-Map!$S$13+1) -> 39071.01054 | AA434: 42
A435: =Data!B341 -> 43 | B435: =HLOOKUP($A$1,Data!$C$1:$AJ$388,$X435,FALSE) -> 24960 | C435: =B435*(1+C$390+(-(50-$A435)*(C$391/40))) -> 25584 | D435: 26223.6 | E435: 26879.19 | F435: 27551.16975 | G435: 28239.94899 | H435: 28945.94772 | I435: 29669.59641 | J435: 30411.33632 | K435: 31171.61973 | L435: 31950.91022 | M435: 32749.68298 | N435: 33568.42505 | O435: 34407.63568 | P435: 35267.82657 | Q435: 36149.52224 | R435: 37053.26029 | S435: 37979.5918 | T435: 38929.08159 | U435: 39902.30863 | V435: 40899.86635 | W435: 41922.36301 | X435: 259 | Y435: 25584 | Z435: =OFFSET(B435,0,$C$51-Map!$S$13+1) -> 39902.30863 | AA435: 43
A436: =Data!B342 -> 44 | B436: =HLOOKUP($A$1,Data!$C$1:$AJ$388,$X436,FALSE) -> 25480 | C436: 26117 | D436: 26769.925 | E436: 27439.17312 | F436: 28125.15245 | G436: 28828.28126 | H436: 29548.9883 | I436: 30287.713 | J436: 31044.90583 | K436: 31821.02847 | L436: 32616.55419 | M436: 33431.96804 | N436: 34267.76724 | O436: 35124.46142 | P436: 36002.57296 | Q436: 36902.63728 | R436: 37825.20321 | S436: 38770.83329 | T436: 39740.10413 | U436: 40733.60673 | V436: 41751.9469 | W436: 42795.74557 | X436: 260 | Y436: 26117 | Z436: =OFFSET(B436,0,$C$51-Map!$S$13+1) -> 40733.60673 | AA436: 44
A437: =Data!B343 -> 45 | B437: =HLOOKUP($A$1,Data!$C$1:$AJ$388,$X437,FALSE) -> 26000 | C437: 26650 | D437: 27316.25 | E437: 27999.15625 | F437: 28699.13516 | G437: 29416.61354 | H437: 30152.02887 | I437: 30905.8296 | J437: 31678.47534 | K437: 32470.43722 | L437: 33282.19815 | M437: 34114.2531 | N437: 34967.10943 | O437: 35841.28717 | P437: 36737.31935 | Q437: 37655.75233 | R437: 38597.14614 | S437: 39562.07479 | T437: 40551.12666 | U437: 41564.90483 | V437: 42604.02745 | W437: 43669.12813 | X437: 261 | Y437: 26650 | Z437: =OFFSET(B437,0,$C$51-Map!$S$13+1) -> 41564.90483 | AA437: 45
A438: =Data!B344 -> 46 | B438: =HLOOKUP($A$1,Data!$C$1:$AJ$388,$X438,FALSE) -> 26520 | C438: 27183 | D438: 27862.575 | E438: 28559.13937 | F438: 29273.11786 | G438: 30004.94581 | H438: 30755.06945 | I438: 31523.94619 | J438: 32312.04484 | K438: 33119.84596 | L438: 33947.84211 | M438: 34796.53816 | N438: 35666.45162 | O438: 36558.11291 | P438: 37472.06573 | Q438: 38408.86738 | R438: 39369.08906 | S438: 40353.31629 | T438: 41362.14919 | U438: 42396.20292 | V438: 43456.108 | W438: 44542.5107 | X438: 262 | Y438: 27183 | Z438: =OFFSET(B438,0,$C$51-Map!$S$13+1) -> 42396.20292 | AA438: 46
A439: =Data!B345 -> 47 | B439: =HLOOKUP($A$1,Data!$C$1:$AJ$388,$X439,FALSE) -> 27040 | C439: 27716 | D439: 28408.9 | E439: 29119.1225 | F439: 29847.10056 | G439: 30593.27808 | H439: 31358.11003 | I439: 32142.06278 | J439: 32945.61435 | K439: 33769.25471 | L439: 34613.48608 | M439: 35478.82323 | N439: 36365.79381 | O439: 37274.93865 | P439: 38206.81212 | Q439: 39161.98242 | R439: 40141.03198 | S439: 41144.55778 | T439: 42173.17173 | U439: 43227.50102 | V439: 44308.18855 | W439: 45415.89326 | X439: 263 | Y439: 27716 | Z439: =OFFSET(B439,0,$C$51-Map!$S$13+1) -> 43227.50102 | AA439: 47
A440: =Data!B346 -> 48 | B440: =HLOOKUP($A$1,Data!$C$1:$AJ$388,$X440,FALSE) -> 28080 | C440: 28782 | D440: 29501.55 | E440: 30239.08875 | F440: 30995.06597 | G440: 31769.94262 | H440: 32564.19118 | I440: 33378.29596 | J440: 34212.75336 | K440: 35068.0722 | L440: 35944.774 | M440: 36843.39335 | N440: 37764.47818 | O440: 38708.59014 | P440: 39676.30489 | Q440: 40668.21252 | R440: 41684.91783 | S440: 42727.04077 | T440: 43795.21679 | U440: 44890.09721 | V440: 46012.34964 | W440: 47162.65838 | X440: 264 | Y440: 28782 | Z440: =OFFSET(B440,0,$C$51-Map!$S$13+1) -> 44890.09721 | AA440: 48
A441: =Data!B347 -> 49 | B441: =HLOOKUP($A$1,Data!$C$1:$AJ$388,$X441,FALSE) -> 28600 | C441: 29315 | D441: 30047.875 | E441: 30799.07187 | F441: 31569.04867 | G441: 32358.27489 | H441: 33167.23176 | I441: 33996.41255 | J441: 34846.32287 | K441: 35717.48094 | L441: 36610.41796 | M441: 37525.67841 | N441: 38463.82037 | O441: 39425.41588 | P441: 40411.05128 | Q441: 41421.32756 | R441: 42456.86075 | S441: 43518.28227 | T441: 44606.23933 | U441: 45721.39531 | V441: 46864.43019 | W441: 48036.04095 | X441: 265 | Y441: 29315 | Z441: =OFFSET(B441,0,$C$51-Map!$S$13+1) -> 45721.39531 | AA441: 49
A442: =Data!B348 -> 50 | B442: =HLOOKUP($A$1,Data!$C$1:$AJ$388,$X442,FALSE) -> 29120 | C442: 29848 | D442: 30594.2 | E442: 31359.055 | F442: 32143.03137 | G442: 32946.60716 | H442: 33770.27234 | I442: 34614.52915 | J442: 35479.89238 | K442: 36366.88968 | L442: 37276.06193 | M442: 38207.96348 | N442: 39163.16256 | O442: 40142.24163 | P442: 41145.79767 | Q442: 42174.44261 | R442: 43228.80367 | S442: 44309.52377 | T442: 45417.26186 | U442: 46552.69341 | V442: 47716.51074 | W442: 48909.42351 | X442: 266 | Y442: 29848 | Z442: =OFFSET(B442,0,$C$51-Map!$S$13+1) -> 46552.69341 | AA442: 50
A443: =Data!B349 -> 51 | B443: =HLOOKUP($A$1,Data!$C$1:$AJ$388,$X443,FALSE) -> 29640 | C443: 30381 | D443: 31140.525 | E443: 31919.03812 | F443: 32717.01408 | G443: 33534.93943 | H443: 34373.31292 | I443: 35232.64574 | J443: 36113.46188 | K443: 37016.29843 | L443: 37941.70589 | M443: 38890.24854 | N443: 39862.50475 | O443: 40859.06737 | P443: 41880.54405 | Q443: 42927.55766 | R443: 44000.7466 | S443: 45100.76526 | T443: 46228.28439 | U443: 47383.9915 | V443: 48568.59129 | W443: 49782.80607 | X443: 267 | Y443: 30381 | Z443: =OFFSET(B443,0,$C$51-Map!$S$13+1) -> 47383.9915 | AA443: 51
A444: =Data!B350 -> 52 | B444: =HLOOKUP($A$1,Data!$C$1:$AJ$388,$X444,FALSE) -> 30160 | C444: 30914 | D444: 31686.85 | E444: 32479.02125 | F444: 33290.99678 | G444: 34123.2717 | H444: 34976.35349 | I444: 35850.76233 | J444: 36747.03139 | K444: 37665.70717 | L444: 38607.34985 | M444: 39572.5336 | N444: 40561.84694 | O444: 41575.89311 | P444: 42615.29044 | Q444: 43680.6727 | R444: 44772.68952 | S444: 45892.00676 | T444: 47039.30693 | U444: 48215.2896 | V444: 49420.67184 | W444: 50656.18864 | X444: 268 | Y444: 30914 | Z444: =OFFSET(B444,0,$C$51-Map!$S$13+1) -> 48215.2896 | AA444: 52
A445: =Data!B351 -> 53 | B445: =HLOOKUP($A$1,Data!$C$1:$AJ$388,$X445,FALSE) -> 31200 | C445: 31980 | D445: 32779.5 | E445: 33598.9875 | F445: 34438.96219 | G445: 35299.93624 | H445: 36182.43465 | I445: 37086.99551 | J445: 38014.1704 | K445: 38964.52466 | L445: 39938.63778 | M445: 40937.10372 | N445: 41960.53132 | O445: 43009.5446 | P445: 44084.78321 | Q445: 45186.90279 | R445: 46316.57536 | S445: 47474.48975 | T445: 48661.35199 | U445: 49877.88579 | V445: 51124.83294 | W445: 52402.95376 | X445: 269 | Y445: 31980 | Z445: =OFFSET(B445,0,$C$51-Map!$S$13+1) -> 49877.88579 | AA445: 53
A446: =Data!B352 -> 54 | B446: =HLOOKUP($A$1,Data!$C$1:$AJ$388,$X446,FALSE) -> 31720 | C446: 32513 | D446: 33325.825 | E446: 34158.97062 | F446: 35012.94489 | G446: 35888.26851 | H446: 36785.47523 | I446: 37705.11211 | J446: 38647.73991 | K446: 39613.93341 | L446: 40604.28174 | M446: 41619.38879 | N446: 42659.87351 | O446: 43726.37034 | P446: 44819.5296 | Q446: 45940.01784 | R446: 47088.51829 | S446: 48265.73124 | T446: 49472.37453 | U446: 50709.18389 | V446: 51976.91349 | W446: 53276.33632 | X446: 270 | Y446: 32513 | Z446: =OFFSET(B446,0,$C$51-Map!$S$13+1) -> 50709.18389 | AA446: 54
A447: =Data!B353 -> 55 | B447: =HLOOKUP($A$1,Data!$C$1:$AJ$388,$X447,FALSE) -> 32240 | C447: 33046 | D447: 33872.15 | E447: 34718.95375 | F447: 35586.92759 | G447: 36476.60078 | H447: 37388.5158 | I447: 38323.2287 | J447: 39281.30942 | K447: 40263.34215 | L447: 41269.9257 | M447: 42301.67385 | N447: 43359.21569 | O447: 44443.19609 | P447: 45554.27599 | Q447: 46693.13289 | R447: 47860.46121 | S447: 49056.97274 | T447: 50283.39706 | U447: 51540.48199 | V447: 52828.99403 | W447: 54149.71889 | X447: 271 | Y447: 33046 | Z447: =OFFSET(B447,0,$C$51-Map!$S$13+1) -> 51540.48199 | AA447: 55
A448: =Data!B354 -> 56 | B448: =HLOOKUP($A$1,Data!$C$1:$AJ$388,$X448,FALSE) -> 32760 | C448: 33579 | D448: 34418.475 | E448: 35278.93687 | F448: 36160.9103 | G448: 37064.93305 | H448: 37991.55638 | I448: 38941.34529 | J448: 39914.87892 | K448: 40912.7509 | L448: 41935.56967 | M448: 42983.95891 | N448: 44058.55788 | O448: 45160.02183 | P448: 46289.02238 | Q448: 47446.24793 | R448: 48632.40413 | S448: 49848.21424 | T448: 51094.41959 | U448: 52371.78008 | V448: 53681.07458 | W448: 55023.10145 | X448: 272 | Y448: 33579 | Z448: =OFFSET(B448,0,$C$51-Map!$S$13+1) -> 52371.78008 | AA448: 56
A449: =Data!B355 -> 57 | B449: =HLOOKUP($A$1,Data!$C$1:$AJ$388,$X449,FALSE) -> 33280 | C449: 34112 | D449: 34964.8 | E449: 35838.92 | F449: 36734.893 | G449: 37653.26532 | H449: 38594.59696 | I449: 39559.46188 | J449: 40548.44843 | K449: 41562.15964 | L449: 42601.21363 | M449: 43666.24397 | N449: 44757.90007 | O449: 45876.84757 | P449: 47023.76876 | Q449: 48199.36298 | R449: 49404.34706 | S449: 50639.45573 | T449: 51905.44213 | U449: 53203.07818 | V449: 54533.15513 | W449: 55896.48401 | X449: 273 | Y449: 34112 | Z449: =OFFSET(B449,0,$C$51-Map!$S$13+1) -> 53203.07818 | AA449: 57
A450: =Data!B356 -> 58 | B450: =HLOOKUP($A$1,Data!$C$1:$AJ$388,$X450,FALSE) -> 34320 | C450: 35178 | D450: 36057.45 | E450: 36958.88625 | F450: 37882.85841 | G450: 38829.92987 | H450: 39800.67811 | I450: 40795.69507 | J450: 41815.58744 | K450: 42860.97713 | L450: 43932.50156 | M450: 45030.8141 | N450: 46156.58445 | O450: 47310.49906 | P450: 48493.26154 | Q450: 49705.59307 | R450: 50948.2329 | S450: =R450*(1+S$390+(-(50-$A450)*(S$391/40))) -> 52221.93872 | T450: 53527.48719 | U450: 54865.67437 | V450: 56237.31623 | W450: 57643.24914 | X450: 274 | Y450: 35178 | Z450: =OFFSET(B450,0,$C$51-Map!$S$13+1) -> 54865.67437 | AA450: 58
A451: =Data!B357 -> 59 | B451: =HLOOKUP($A$1,Data!$C$1:$AJ$388,$X451,FALSE) -> 34840 | C451: =B451*(1+C$390+(-(50-$A451)*(C$391/40))) -> 35711 | D451: 36603.775 | E451: 37518.86937 | F451: 38456.84111 | G451: 39418.26214 | H451: 40403.71869 | I451: 41413.81166 | J451: 42449.15695 | K451: 43510.38587 | L451: 44598.14552 | M451: 45713.09916 | N451: 46855.92664 | O451: 48027.3248 | P451: 49228.00792 | Q451: 50458.70812 | R451: 51720.17582 | S451: 53013.18022 | T451: 54338.50972 | U451: 55696.97247 | V451: 57089.39678 | W451: 58516.6317 | X451: 275 | Y451: 35711 | Z451: =OFFSET(B451,0,$C$51-Map!$S$13+1) -> 55696.97247 | AA451: 59
A452: =Data!B358 -> 60 | B452: =HLOOKUP($A$1,Data!$C$1:$AJ$388,$X452,FALSE) -> 35360 | C452: 36244 | D452: 37150.1 | E452: 38078.8525 | F452: 39030.82381 | G452: 40006.59441 | H452: 41006.75927 | I452: 42031.92825 | J452: 43082.72646 | K452: 44159.79462 | L452: 45263.78948 | M452: 46395.38422 | N452: 47555.26883 | O452: 48744.15055 | P452: 49962.75431 | Q452: 51211.82317 | R452: 52492.11875 | S452: 53804.42172 | T452: 55149.53226 | U452: 56528.27056 | V452: 57941.47733 | W452: 59390.01426 | X452: 276 | Y452: 36244 | Z452: =OFFSET(B452,0,$C$51-Map!$S$13+1) -> 56528.27056 | AA452: 60
A453: =Data!B359 -> 61 | B453: =HLOOKUP($A$1,Data!$C$1:$AJ$388,$X453,FALSE) -> 35880 | C453: 36777 | D453: 37696.425 | E453: 38638.83562 | F453: 39604.80652 | G453: 40594.92668 | H453: 41609.79985 | I453: 42650.04484 | J453: 43716.29596 | K453: 44809.20336 | L453: 45929.43345 | M453: 47077.66928 | N453: 48254.61101 | O453: 49460.97629 | P453: 50697.5007 | Q453: 51964.93821 | R453: 53264.06167 | S453: 54595.66321 | T453: 55960.55479 | U453: 57359.56866 | V453: 58793.55788 | W453: 60263.39682 | X453: 277 | Y453: 36777 | Z453: =OFFSET(B453,0,$C$51-Map!$S$13+1) -> 57359.56866 | AA453: 61
A454: =Data!B360 -> 62 | B454: =HLOOKUP($A$1,Data!$C$1:$AJ$388,$X454,FALSE) -> 36920 | C454: 37843 | D454: 38789.075 | E454: 39758.80187 | F454: 40752.77192 | G454: 41771.59122 | H454: 42815.881 | I454: 43886.27803 | J454: 44983.43498 | K454: 46108.02085 | L454: 47260.72137 | M454: 48442.23941 | N454: 49653.29539 | O454: 50894.62778 | P454: 52166.99347 | Q454: 53471.16831 | R454: 54807.94751 | S454: 56178.1462 | T454: 57582.59986 | U454: 59022.16485 | V454: 60497.71898 | W454: 62010.16195 | X454: 278 | Y454: 37843 | Z454: =OFFSET(B454,0,$C$51-Map!$S$13+1) -> 59022.16485 | AA454: 62
A455: =Data!B361 -> 63 | B455: =HLOOKUP($A$1,Data!$C$1:$AJ$388,$X455,FALSE) -> 37440 | C455: 38376 | D455: 39335.4 | E455: 40318.785 | F455: 41326.75462 | G455: 42359.92349 | H455: 43418.92158 | I455: 44504.39462 | J455: 45617.00448 | K455: 46757.42959 | L455: 47926.36533 | M455: 49124.52447 | N455: 50352.63758 | O455: 51611.45352 | P455: 52901.73986 | Q455: 54224.28335 | R455: 55579.89044 | S455: 56969.3877 | T455: 58393.62239 | U455: 59853.46295 | V455: 61349.79952 | W455: 62883.54451 | X455: 279 | Y455: 38376 | Z455: =OFFSET(B455,0,$C$51-Map!$S$13+1) -> 59853.46295 | AA455: 63
... 113 more rows

Sheet ScenarioAll
A1: =Data!C1 -> Selected | K1: =Map!S13 -> 2020
A3: STEP 1. Household Projections | X3: 4
A4: Choose NRS household projection variant. | X4: 4 | Y4: 4
X5: 1
X6: 1
X7: 1
X8: 1
X9: 1
X10: 1
C11: =D11-1 -> 2019 | D11: =D16 -> 2020 | E11: =D11+1 -> 2021 | F11: 2022 | G11: 2023 | H11: 2024 | I11: 2025 | J11: 2026 | K11: 2027 | L11: 2028 | M11: 2029 | N11: 2030
A12: Enter Projections Here | C12: 0 | D12: 0 | E12: 0 | F12: 0 | G12: 0 | H12: 0 | I12: 0 | J12: 0 | K12: 0 | L12: 0 | M12: 0 | N12: 0
D13: =N11+1 -> 2031 | E13: =D13+1 -> 2032 | F13: 2033 | G13: 2034 | H13: 2035 | I13: 2036 | J13: 2037 | K13: 2038 | L13: 2039 | M13: 2040 | N13: 2041
D14: 0 | E14: 0 | F14: 0 | G14: 0 | H14: 0 | I14: 0 | J14: 0 | K14: 0 | L14: 0 | M14: 0 | N14: 0
A16: 1a. Household growth Adjustment | D16: =C283 -> 2020 | E16: =D16+1 -> 2021 | F16: 2022 | G16: 2023 | H16: 2024 | I16: 2025 | J16: 2026 | K16: 2027 | L16: 2028 | M16: 2029 | N16: 2030
D17: 0 | E17: 0 | F17: 0 | G17: 0 | H17: 0 | I17: 0 | J17: 0 | K17: 0 | L17: 0 | M17: 0 | N17: 0
D18: =N16+1 -> 2031 | E18: =D18+1 -> 2032 | F18: 2033 | G18: 2034 | H18: 2035 | I18: 2036 | J18: 2037 | K18: 2038 | L18: 2039 | M18: 2040 | N18: 2041
D19: 0 | E19: 0 | F19: 0 | G19: 0 | H19: 0 | I19: 0 | J19: 0 | K19: 0 | L19: 0 | M19: 0 | N19: 0
A21: STEP 2. Existing Need
A22: Either
A25: Total From HoTOC method | D25: =IF(B295=TRUE,SUM(C295:W295),"-") -> 480
A26: Or own exisiting need figures
A29: Existing Need | B29: 0
A31: 2a. Years to clear exisiting need
A34: Existing "Cleared" In? Enter Years | B34: 5
A41: STEP 3. Income, Growth and Distribution
A43: Growth in median income scenario
X44: 3
A45: Change in income distribution
A48: Select part of income distribution interested in
B49: Example A | C49: 75 | D49: %ile
B50: Example B | C50: 25 | D50: %ile
B51: Example Year | C51: 2038
X52: 2
X53: 3
X54: 2
A57: STEP 4. Prices and Afforability | X57: 1
X58: 3
X59: 2
X60: 3
B61: Percentile | C61: 0.25
B64: Income Ratio | C64: 3.9 | X64: 1
A114: STEP 5. Split Need into Tenure
B115: Proportion of market who buy | C115: 0.6
B116: Upper income-to-rent threshold | C116: 0.25
A117: Lower income-to-rent treshohld | C117: 0.35
A118: Rent Growth Assumption
X122: 2
X123: 3
X127: 1
A269: User 1
A270: User 2
A271: User 3
A272: 2018 Principal
A273: 2018 Low Migration
A274: 2018 High Migration
A278: Scottish Government Small Area Income Estimates
A279: Own Income data
A282: (A) Total Households & Annual Change
A283: Year | B283: =Map!S13-1 -> 2019 | C283: =B283+1 -> 2020 | D283: 2021 | E283: 2022 | F283: 2023 | G283: 2024 | H283: 2025 | I283: 2026 | J283: 2027 | K283: 2028 | L283: 2029 | M283: 2030 | N283: 2031 | O283: 2032 | P283: 2033 | Q283: 2034 | R283: 2035 | S283: 2036 | T283: 2037 | U283: 2038 | V283: 2039 | W283: 2040 | X283: Ref
A284: =CONCATENATE(CHOOSE(Y4,A269,A270,A271,A272,A273,A274)) -> 2018 Principal | C284: =HLOOKUP($A$1,Data!$C$1:$AJ$184,C283-($B$283-$X$285)+24*($Y$4-1),FALSE) -> 108543 | D284: =HLOOKUP($A$1,Data!$C$1:$AJ$184,D283-($B$283-$X$285)+24*($Y$4-1),FALSE) -> 108896 | E284: =HLOOKUP($A$1,Data!$C$1:$AJ$184,E283-($B$283-$X$285)+24*($Y$4-1),FALSE) -> 109300 | F284: =HLOOKUP($A$1,Data!$C$1:$AJ$184,F283-($B$283-$X$285)+24*($Y$4-1),FALSE) -> 109568 | G284: =HLOOKUP($A$1,Data!$C$1:$AJ$184,G283-($B$283-$X$285)+24*($Y$4-1),FALSE) -> 109831 | H284: =HLOOKUP($A$1,Data!$C$1:$AJ$184,H283-($B$283-$X$285)+24*($Y$4-1),FALSE) -> 110075 | I284: =HLOOKUP($A$1,Data!$C$1:$AJ$184,I283-($B$283-$X$285)+24*($Y$4-1),FALSE) -> 110355 | J284: =HLOOKUP($A$1,Data!$C$1:$AJ$184,J283-($B$283-$X$285)+24*($Y$4-1),FALSE) -> 110629 | K284: =HLOOKUP($A$1,Data!$C$1:$AJ$184,K283-($B$283-$X$285)+24*($Y$4-1),FALSE) -> 110884 | L284: =HLOOKUP($A$1,Data!$C$1:$AJ$184,L283-($B$283-$X$285)+24*($Y$4-1),FALSE) -> 111201 | M284: =HLOOKUP($A$1,Data!$C$1:$AJ$184,M283-($B$283-$X$285)+24*($Y$4-1),FALSE) -> 111536 | N284: =HLOOKUP($A$1,Data!$C$1:$AJ$184,N283-($B$283-$X$285)+24*($Y$4-1),FALSE) -> 111946 | O284: =HLOOKUP($A$1,Data!$C$1:$AJ$184,O283-($B$283-$X$285)+24*($Y$4-1),FALSE) -> 112321 | P284: =HLOOKUP($A$1,Data!$C$1:$AJ$184,P283-($B$283-$X$285)+24*($Y$4-1),FALSE) -> 112729 | Q284: =HLOOKUP($A$1,Data!$C$1:$AJ$184,Q283-($B$283-$X$285)+24*($Y$4-1),FALSE) -> 113134 | R284: =HLOOKUP($A$1,Data!$C$1:$AJ$184,R283-($B$283-$X$285)+24*($Y$4-1),FALSE) -> 113546 | S284: =HLOOKUP($A$1,Data!$C$1:$AJ$184,S283-($B$283-$X$285)+24*($Y$4-1),FALSE) -> 113938 | T284: =HLOOKUP($A$1,Data!$C$1:$AJ$184,T283-($B$283-$X$285)+24*($Y$4-1),FALSE) -> 114285 | U284: =HLOOKUP($A$1,Data!$C$1:$AJ$184,U283-($B$283-$X$285)+24*($Y$4-1),FALSE) -> 114648 | V284: =HLOOKUP($A$1,Data!$C$1:$AJ$184,V283-($B$283-$X$285)+24*($Y$4-1),FALSE) -> 114910 | W284: =HLOOKUP($A$1,Data!$C$1:$AJ$184,W283-($B$283-$X$285)+24*($Y$4-1),FALSE) -> 115223
A285: =CONCATENATE(CHOOSE(X4,A269,A270,A271,A272,A273,A274)) -> 2018 Principal | C285: =IF($B$291=TRUE,D12,HLOOKUP($A$1,Data!$C$1:$AJ$184,C283-($B$283-$X$285)+24*($X$4-1),FALSE)) -> 108543 | D285: =IF($B$291=TRUE,E12,HLOOKUP($A$1,Data!$C$1:$AJ$184,D283-($B$283-$X$285)+24*($X$4-1),FALSE)) -> 108896 | E285: =IF($B$291=TRUE,F12,HLOOKUP($A$1,Data!$C$1:$AJ$184,E283-($B$283-$X$285)+24*($X$4-1),FALSE)) -> 109300 | F285: =IF($B$291=TRUE,G12,HLOOKUP($A$1,Data!$C$1:$AJ$184,F283-($B$283-$X$285)+24*($X$4-1),FALSE)) -> 109568 | G285: =IF($B$291=TRUE,H12,HLOOKUP($A$1,Data!$C$1:$AJ$184,G283-($B$283-$X$285)+24*($X$4-1),FALSE)) -> 109831 | H285: =IF($B$291=TRUE,I12,HLOOKUP($A$1,Data!$C$1:$AJ$184,H283-($B$283-$X$285)+24*($X$4-1),FALSE)) -> 110075 | I285: =IF($B$291=TRUE,J12,HLOOKUP($A$1,Data!$C$1:$AJ$184,I283-($B$283-$X$285)+24*($X$4-1),FALSE)) -> 110355 | J285: =IF($B$291=TRUE,K12,HLOOKUP($A$1,Data!$C$1:$AJ$184,J283-($B$283-$X$285)+24*($X$4-1),FALSE)) -> 110629 | K285: =IF($B$291=TRUE,L12,HLOOKUP($A$1,Data!$C$1:$AJ$184,K283-($B$283-$X$285)+24*($X$4-1),FALSE)) -> 110884 | L285: =IF($B$291=TRUE,M12,HLOOKUP($A$1,Data!$C$1:$AJ$184,L283-($B$283-$X$285)+24*($X$4-1),FALSE)) -> 111201 | M285: =IF($B$291=TRUE,N12,HLOOKUP($A$1,Data!$C$1:$AJ$184,M283-($B$283-$X$285)+24*($X$4-1),FALSE)) -> 111536 | N285: =IF($B$291=TRUE,D14,HLOOKUP($A$1,Data!$C$1:$AJ$184,N283-($B$283-$X$285)+24*($X$4-1),FALSE)) -> 111946 | O285: =IF($B$291=TRUE,E14,HLOOKUP($A$1,Data!$C$1:$AJ$184,O283-($B$283-$X$285)+24*($X$4-1),FALSE)) -> 112321 | P285: =IF($B$291=TRUE,F14,HLOOKUP($A$1,Data!$C$1:$AJ$184,P283-($B$283-$X$285)+24*($X$4-1),FALSE)) -> 112729 | Q285: =IF($B$291=TRUE,G14,HLOOKUP($A$1,Data!$C$1:$AJ$184,Q283-($B$283-$X$285)+24*($X$4-1),FALSE)) -> 113134 | R285: =IF($B$291=TRUE,H14,HLOOKUP($A$1,Data!$C$1:$AJ$184,R283-($B$283-$X$285)+24*($X$4-1),FALSE)) -> 113546 | S285: =IF($B$291=TRUE,I14,HLOOKUP($A$1,Data!$C$1:$AJ$184,S283-($B$283-$X$285)+24*($X$4-1),FALSE)) -> 113938 | T285: =IF($B$291=TRUE,J14,HLOOKUP($A$1,Data!$C$1:$AJ$184,T283-($B$283-$X$285)+24*($X$4-1),FALSE)) -> 114285 | U285: =IF($B$291=TRUE,K14,HLOOKUP($A$1,Data!$C$1:$AJ$184,U283-($B$283-$X$285)+24*($X$4-1),FALSE)) -> 114648 | V285: =IF($B$291=TRUE,L14,HLOOKUP($A$1,Data!$C$1:$AJ$184,V283-($B$283-$X$285)+24*($X$4-1),FALSE)) -> 114910 | W285: =IF($B$291=TRUE,M14,HLOOKUP($A$1,Data!$C$1:$AJ$184,W283-($B$283-$X$285)+24*($X$4-1),FALSE)) -> 115223 | X285: 17
A286: 2018 Principle Change | C286: =D285-C285 -> 353 | D286: =E285-D285 -> 404 | E286: 268 | F286: 263 | G286: 244 | H286: 280 | I286: 274 | J286: 255 | K286: 317 | L286: 335 | M286: =N285-M285 -> 410 | N286: 375 | O286: 408 | P286: 405 | Q286: 412 | R286: 392 | S286: 347 | T286: 363 | U286: 262 | V286: 313 | W286: =V286 -> 313
A287: =A285 -> 2018 Principal | C287: =(C285)*(1+E17) -> 108543 | D287: =(C287+C286)*(1+F17) -> 108896 | E287: 109300 | F287: 109568 | G287: 109831 | H287: 110075 | I287: 110355 | J287: 110629 | K287: 110884 | L287: 111201 | M287: =(L287+L286)*(1+D19) -> 111536 | N287: 111946 | O287: 112321 | P287: 112729 | Q287: 113134 | R287: 113546 | S287: 113938 | T287: 114285 | U287: 114648 | V287: 114910 | W287: 115223
A288: =CONCATENATE(A284," Change") -> 2018 Principal Change | C288: =D284-C284 -> 353 | D288: =E284-D284 -> 404 | E288: 268 | F288: 263 | G288: 244 | H288: 280 | I288: 274 | J288: 255 | K288: 317 | L288: 335 | M288: 410 | N288: 375 | O288: 408 | P288: 405 | Q288: 412 | R288: 392 | S288: 347 | T288: 363 | U288: 262 | V288: 313 | W288: =V288 -> 313
A289: =CONCATENATE(A285," Change") -> 2018 Principal Change | C289: =D287-C287 -> 353 | D289: =E287-D287 -> 404 | E289: 268 | F289: =G287-F287 -> 263 | G289: 244 | H289: 280 | I289: 274 | J289: 255 | K289: 317 | L289: 335 | M289: 410 | N289: 375 | O289: 408 | P289: 405 | Q289: 412 | R289: 392 | S289: 347 | T289: 363 | U289: 262 | V289: 313 | W289: =V289 -> 313
B291: FALSE
A292: (B) Backlog Need | B292: FALSE | C292: =IF(AND(C283-$K$1+1<=$B$34,C283>=$K$1),$B$29/ScenarioAll!$B$34,0) -> 0 | D292: =IF(AND(D283-$K$1+1<=$B$34,D283>=$K$1),$B$29/ScenarioAll!$B$34,0) -> 0 | E292: =IF(AND(E283-$K$1+1<=$B$34,E283>=$K$1),$B$29/ScenarioAll!$B$34,0) -> 0 | F292: =IF(AND(F283-$K$1+1<=$B$34,F283>=$K$1),$B$29/ScenarioAll!$B$34,0) -> 0 | G292: =IF(AND(G283-$K$1+1<=$B$34,G283>=$K$1),$B$29/ScenarioAll!$B$34,0) -> 0 | H292: =IF(AND(H283-$K$1+1<=$B$34,H283>=$K$1),$B$29/ScenarioAll!$B$34,0) -> 0 | I292: =IF(AND(I283-$K$1+1<=$B$34,I283>=$K$1),$B$29/ScenarioAll!$B$34,0) -> 0 | J292: =IF(AND(J283-$K$1+1<=$B$34,J283>=$K$1),$B$29/ScenarioAll!$B$34,0) -> 0 | K292: =IF(AND(K283-$K$1+1<=$B$34,K283>=$K$1),$B$29/ScenarioAll!$B$34,0) -> 0 | L292: =IF(AND(L283-$K$1+1<=$B$34,L283>=$K$1),$B$29/ScenarioAll!$B$34,0) -> 0 | M292: =IF(AND(M283-$K$1+1<=$B$34,M283>=$K$1),$B$29/ScenarioAll!$B$34,0) -> 0 | N292: =IF(AND(N283-$K$1+1<=$B$34,N283>=$K$1),$B$29/ScenarioAll!$B$34,0) -> 0 | O292: =IF(AND(O283-$K$1+1<=$B$34,O283>=$K$1),$B$29/ScenarioAll!$B$34,0) -> 0 | P292: =IF(AND(P283-$K$1+1<=$B$34,P283>=$K$1),$B$29/ScenarioAll!$B$34,0) -> 0 | Q292: =IF(AND(Q283-$K$1+1<=$B$34,Q283>=$K$1),$B$29/ScenarioAll!$B$34,0) -> 0 | R292: =IF(AND(R283-$K$1+1<=$B$34,R283>=$K$1),$B$29/ScenarioAll!$B$34,0) -> 0 | S292: =IF(AND(S283-$K$1+1<=$B$34,S283>=$K$1),$B$29/ScenarioAll!$B$34,0) -> 0 | T292: =IF(AND(T283-$K$1+1<=$B$34,T283>=$K$1),$B$29/ScenarioAll!$B$34,0) -> 0 | U292: =IF(AND(U283-$K$1+1<=$B$34,U283>=$K$1),$B$29/ScenarioAll!$B$34,0) -> 0 | V292: =IF(AND(V283-$K$1+1<=$B$34,V283>=$K$1),$B$29/ScenarioAll!$B$34,0) -> 0 | W292: =IF(AND(W283-$K$1+1<=$B$34,W283>=$K$1),$B$29/ScenarioAll!$B$34,0) -> 0
A293: Backlog Need (TA) | C293: =IF(AND(C283-$K$1+1<=$B$34,C283>=$K$1),HLOOKUP($A$1,Data!$C$1:$AK$202,ScenarioAll!$X$293,FALSE)/ScenarioAll!$B$34,0) -> 96 | D293: =IF(AND(D283-$K$1+1<=$B$34,D283>=$K$1),HLOOKUP($A$1,Data!$C$1:$AK$202,ScenarioAll!$X$293,FALSE)/ScenarioAll!$B$34,0) -> 96 | E293: =IF(AND(E283-$K$1+1<=$B$34,E283>=$K$1),HLOOKUP($A$1,Data!$C$1:$AK$202,ScenarioAll!$X$293,FALSE)/ScenarioAll!$B$34,0) -> 96 | F293: =IF(AND(F283-$K$1+1<=$B$34,F283>=$K$1),HLOOKUP($A$1,Data!$C$1:$AK$202,ScenarioAll!$X$293,FALSE)/ScenarioAll!$B$34,0) -> 96 | G293: =IF(AND(G283-$K$1+1<=$B$34,G283>=$K$1),HLOOKUP($A$1,Data!$C$1:$AK$202,ScenarioAll!$X$293,FALSE)/ScenarioAll!$B$34,0) -> 96 | H293: =IF(AND(H283-$K$1+1<=$B$34,H283>=$K$1),HLOOKUP($A$1,Data!$C$1:$AK$202,ScenarioAll!$X$293,FALSE)/ScenarioAll!$B$34,0) -> 0 | I293: =IF(AND(I283-$K$1+1<=$B$34,I283>=$K$1),HLOOKUP($A$1,Data!$C$1:$AK$202,ScenarioAll!$X$293,FALSE)/ScenarioAll!$B$34,0) -> 0 | J293: =IF(AND(J283-$K$1+1<=$B$34,J283>=$K$1),HLOOKUP($A$1,Data!$C$1:$AK$202,ScenarioAll!$X$293,FALSE)/ScenarioAll!$B$34,0) -> 0 | K293: =IF(AND(K283-$K$1+1<=$B$34,K283>=$K$1),HLOOKUP($A$1,Data!$C$1:$AK$202,ScenarioAll!$X$293,FALSE)/ScenarioAll!$B$34,0) -> 0 | L293: =IF(AND(L283-$K$1+1<=$B$34,L283>=$K$1),HLOOKUP($A$1,Data!$C$1:$AK$202,ScenarioAll!$X$293,FALSE)/ScenarioAll!$B$34,0) -> 0 | M293: =IF(AND(M283-$K$1+1<=$B$34,M283>=$K$1),HLOOKUP($A$1,Data!$C$1:$AK$202,ScenarioAll!$X$293,FALSE)/ScenarioAll!$B$34,0) -> 0 | N293: =IF(AND(N283-$K$1+1<=$B$34,N283>=$K$1),HLOOKUP($A$1,Data!$C$1:$AK$202,ScenarioAll!$X$293,FALSE)/ScenarioAll!$B$34,0) -> 0 | O293: =IF(AND(O283-$K$1+1<=$B$34,O283>=$K$1),HLOOKUP($A$1,Data!$C$1:$AK$202,ScenarioAll!$X$293,FALSE)/ScenarioAll!$B$34,0) -> 0 | P293: =IF(AND(P283-$K$1+1<=$B$34,P283>=$K$1),HLOOKUP($A$1,Data!$C$1:$AK$202,ScenarioAll!$X$293,FALSE)/ScenarioAll!$B$34,0) -> 0 | Q293: =IF(AND(Q283-$K$1+1<=$B$34,Q283>=$K$1),HLOOKUP($A$1,Data!$C$1:$AK$202,ScenarioAll!$X$293,FALSE)/ScenarioAll!$B$34,0) -> 0 | R293: =IF(AND(R283-$K$1+1<=$B$34,R283>=$K$1),HLOOKUP($A$1,Data!$C$1:$AK$202,ScenarioAll!$X$293,FALSE)/ScenarioAll!$B$34,0) -> 0 | S293: =IF(AND(S283-$K$1+1<=$B$34,S283>=$K$1),HLOOKUP($A$1,Data!$C$1:$AK$202,ScenarioAll!$X$293,FALSE)/ScenarioAll!$B$34,0) -> 0 | T293: =IF(AND(T283-$K$1+1<=$B$34,T283>=$K$1),HLOOKUP($A$1,Data!$C$1:$AK$202,ScenarioAll!$X$293,FALSE)/ScenarioAll!$B$34,0) -> 0 | U293: =IF(AND(U283-$K$1+1<=$B$34,U283>=$K$1),HLOOKUP($A$1,Data!$C$1:$AK$202,ScenarioAll!$X$293,FALSE)/ScenarioAll!$B$34,0) -> 0 | V293: =IF(AND(V283-$K$1+1<=$B$34,V283>=$K$1),HLOOKUP($A$1,Data!$C$1:$AK$202,ScenarioAll!$X$293,FALSE)/ScenarioAll!$B$34,0) -> 0 | W293: =IF(AND(W283-$K$1+1<=$B$34,W283>=$K$1),HLOOKUP($A$1,Data!$C$1:$AK$202,ScenarioAll!$X$293,FALSE)/ScenarioAll!$B$34,0) -> 0 | X293: 202
A294: Backlog Need (Traditional) | C294: =IF(AND(C283-$K$1+1<=$B$34,C283>=$K$1),HLOOKUP($A$1,Data!$C$1:$AK$201,ScenarioAll!$X294,FALSE)/ScenarioAll!$B$34,0) -> 0 | D294: =IF(AND(D283-$K$1+1<=$B$34,D283>=$K$1),HLOOKUP($A$1,Data!$C$1:$AK$201,ScenarioAll!$X294,FALSE)/ScenarioAll!$B$34,0) -> 0 | E294: =IF(AND(E283-$K$1+1<=$B$34,E283>=$K$1),HLOOKUP($A$1,Data!$C$1:$AK$201,ScenarioAll!$X294,FALSE)/ScenarioAll!$B$34,0) -> 0 | F294: =IF(AND(F283-$K$1+1<=$B$34,F283>=$K$1),HLOOKUP($A$1,Data!$C$1:$AK$201,ScenarioAll!$X294,FALSE)/ScenarioAll!$B$34,0) -> 0 | G294: =IF(AND(G283-$K$1+1<=$B$34,G283>=$K$1),HLOOKUP($A$1,Data!$C$1:$AK$201,ScenarioAll!$X294,FALSE)/ScenarioAll!$B$34,0) -> 0 | H294: =IF(AND(H283-$K$1+1<=$B$34,H283>=$K$1),HLOOKUP($A$1,Data!$C$1:$AK$201,ScenarioAll!$X294,FALSE)/ScenarioAll!$B$34,0) -> 0 | I294: =IF(AND(I283-$K$1+1<=$B$34,I283>=$K$1),HLOOKUP($A$1,Data!$C$1:$AK$201,ScenarioAll!$X294,FALSE)/ScenarioAll!$B$34,0) -> 0 | J294: =IF(AND(J283-$K$1+1<=$B$34,J283>=$K$1),HLOOKUP($A$1,Data!$C$1:$AK$201,ScenarioAll!$X294,FALSE)/ScenarioAll!$B$34,0) -> 0 | K294: =IF(AND(K283-$K$1+1<=$B$34,K283>=$K$1),HLOOKUP($A$1,Data!$C$1:$AK$201,ScenarioAll!$X294,FALSE)/ScenarioAll!$B$34,0) -> 0 | L294: =IF(AND(L283-$K$1+1<=$B$34,L283>=$K$1),HLOOKUP($A$1,Data!$C$1:$AK$201,ScenarioAll!$X294,FALSE)/ScenarioAll!$B$34,0) -> 0 | M294: =IF(AND(M283-$K$1+1<=$B$34,M283>=$K$1),HLOOKUP($A$1,Data!$C$1:$AK$201,ScenarioAll!$X294,FALSE)/ScenarioAll!$B$34,0) -> 0 | N294: =IF(AND(N283-$K$1+1<=$B$34,N283>=$K$1),HLOOKUP($A$1,Data!$C$1:$AK$201,ScenarioAll!$X294,FALSE)/ScenarioAll!$B$34,0) -> 0 | O294: =IF(AND(O283-$K$1+1<=$B$34,O283>=$K$1),HLOOKUP($A$1,Data!$C$1:$AK$201,ScenarioAll!$X294,FALSE)/ScenarioAll!$B$34,0) -> 0 | P294: =IF(AND(P283-$K$1+1<=$B$34,P283>=$K$1),HLOOKUP($A$1,Data!$C$1:$AK$201,ScenarioAll!$X294,FALSE)/ScenarioAll!$B$34,0) -> 0 | Q294: =IF(AND(Q283-$K$1+1<=$B$34,Q283>=$K$1),HLOOKUP($A$1,Data!$C$1:$AK$201,ScenarioAll!$X294,FALSE)/ScenarioAll!$B$34,0) -> 0 | R294: =IF(AND(R283-$K$1+1<=$B$34,R283>=$K$1),HLOOKUP($A$1,Data!$C$1:$AK$201,ScenarioAll!$X294,FALSE)/ScenarioAll!$B$34,0) -> 0 | S294: =IF(AND(S283-$K$1+1<=$B$34,S283>=$K$1),HLOOKUP($A$1,Data!$C$1:$AK$201,ScenarioAll!$X294,FALSE)/ScenarioAll!$B$34,0) -> 0 | T294: =IF(AND(T283-$K$1+1<=$B$34,T283>=$K$1),HLOOKUP($A$1,Data!$C$1:$AK$201,ScenarioAll!$X294,FALSE)/ScenarioAll!$B$34,0) -> 0 | U294: =IF(AND(U283-$K$1+1<=$B$34,U283>=$K$1),HLOOKUP($A$1,Data!$C$1:$AK$201,ScenarioAll!$X294,FALSE)/ScenarioAll!$B$34,0) -> 0 | V294: =IF(AND(V283-$K$1+1<=$B$34,V283>=$K$1),HLOOKUP($A$1,Data!$C$1:$AK$201,ScenarioAll!$X294,FALSE)/ScenarioAll!$B$34,0) -> 0 | W294: =IF(AND(W283-$K$1+1<=$B$34,W283>=$K$1),HLOOKUP($A$1,Data!$C$1:$AK$201,ScenarioAll!$X294,FALSE)/ScenarioAll!$B$34,0) -> 0 | X294: 199
A295: =CONCATENATE("Exisiting ",A285) -> Exisiting 2018 Principal | B295: TRUE | C295: =IF($B$295=TRUE,C293,IF($B$293=TRUE,C294,C292)) -> 96 | D295: 96 | E295: 96 | F295: 96 | G295: 96 | H295: 0 | I295: 0 | J295: 0 | K295: 0 | L295: 0 | M295: 0 | N295: 0 | O295: 0 | P295: 0 | Q295: 0 | R295: 0 | S295: 0 | T295: 0 | U295: 0 | V295: 0 | W295: 0
A298: (A+B) Total Need Principal | C298: =C283 -> 2020 | D298: =D283 -> 2021 | E298: 2022 | F298: 2023 | G298: 2024 | H298: 2025 | I298: 2026 | J298: 2027 | K298: 2028 | L298: 2029 | M298: 2030 | N298: 2031 | O298: 2032 | P298: 2033 | Q298: 2034 | R298: 2035 | S298: 2036 | T298: 2037 | U298: 2038 | V298: 2039 | W298: 2040
A299: =CONCATENATE("Exisiting ",A284) -> Exisiting 2018 Principal | C299: =IF(AND(C283-$K$1+1<=CoreAssumptions!$F$10,C283>=$K$1),HLOOKUP($A$1,Data!$C$1:$AK$202,ScenarioAll!$X$293,FALSE)/CoreAssumptions!$F$10,0) -> 96 | D299: =IF(AND(D283-$K$1+1<=CoreAssumptions!$F$10,D283>=$K$1),HLOOKUP($A$1,Data!$C$1:$AK$202,ScenarioAll!$X$293,FALSE)/CoreAssumptions!$F$10,0) -> 96 | E299: =IF(AND(E283-$K$1+1<=CoreAssumptions!$F$10,E283>=$K$1),HLOOKUP($A$1,Data!$C$1:$AK$202,ScenarioAll!$X$293,FALSE)/CoreAssumptions!$F$10,0) -> 96 | F299: =IF(AND(F283-$K$1+1<=CoreAssumptions!$F$10,F283>=$K$1),HLOOKUP($A$1,Data!$C$1:$AK$202,ScenarioAll!$X$293,FALSE)/CoreAssumptions!$F$10,0) -> 96 | G299: =IF(AND(G283-$K$1+1<=CoreAssumptions!$F$10,G283>=$K$1),HLOOKUP($A$1,Data!$C$1:$AK$202,ScenarioAll!$X$293,FALSE)/CoreAssumptions!$F$10,0) -> 96 | H299: =IF(AND(H283-$K$1+1<=CoreAssumptions!$F$10,H283>=$K$1),HLOOKUP($A$1,Data!$C$1:$AK$202,ScenarioAll!$X$293,FALSE)/CoreAssumptions!$F$10,0) -> 0 | I299: =IF(AND(I283-$K$1+1<=CoreAssumptions!$F$10,I283>=$K$1),HLOOKUP($A$1,Data!$C$1:$AK$202,ScenarioAll!$X$293,FALSE)/CoreAssumptions!$F$10,0) -> 0 | J299: =IF(AND(J283-$K$1+1<=CoreAssumptions!$F$10,J283>=$K$1),HLOOKUP($A$1,Data!$C$1:$AK$202,ScenarioAll!$X$293,FALSE)/CoreAssumptions!$F$10,0) -> 0 | K299: =IF(AND(K283-$K$1+1<=CoreAssumptions!$F$10,K283>=$K$1),HLOOKUP($A$1,Data!$C$1:$AK$202,ScenarioAll!$X$293,FALSE)/CoreAssumptions!$F$10,0) -> 0 | L299: =IF(AND(L283-$K$1+1<=CoreAssumptions!$F$10,L283>=$K$1),HLOOKUP($A$1,Data!$C$1:$AK$202,ScenarioAll!$X$293,FALSE)/CoreAssumptions!$F$10,0) -> 0 | M299: =IF(AND(M283-$K$1+1<=CoreAssumptions!$F$10,M283>=$K$1),HLOOKUP($A$1,Data!$C$1:$AK$202,ScenarioAll!$X$293,FALSE)/CoreAssumptions!$F$10,0) -> 0 | N299: =IF(AND(N283-$K$1+1<=CoreAssumptions!$F$10,N283>=$K$1),HLOOKUP($A$1,Data!$C$1:$AK$202,ScenarioAll!$X$293,FALSE)/CoreAssumptions!$F$10,0) -> 0 | O299: =IF(AND(O283-$K$1+1<=CoreAssumptions!$F$10,O283>=$K$1),HLOOKUP($A$1,Data!$C$1:$AK$202,ScenarioAll!$X$293,FALSE)/CoreAssumptions!$F$10,0) -> 0 | P299: =IF(AND(P283-$K$1+1<=CoreAssumptions!$F$10,P283>=$K$1),HLOOKUP($A$1,Data!$C$1:$AK$202,ScenarioAll!$X$293,FALSE)/CoreAssumptions!$F$10,0) -> 0 | Q299: =IF(AND(Q283-$K$1+1<=CoreAssumptions!$F$10,Q283>=$K$1),HLOOKUP($A$1,Data!$C$1:$AK$202,ScenarioAll!$X$293,FALSE)/CoreAssumptions!$F$10,0) -> 0 | R299: =IF(AND(R283-$K$1+1<=CoreAssumptions!$F$10,R283>=$K$1),HLOOKUP($A$1,Data!$C$1:$AK$202,ScenarioAll!$X$293,FALSE)/CoreAssumptions!$F$10,0) -> 0 | S299: =IF(AND(S283-$K$1+1<=CoreAssumptions!$F$10,S283>=$K$1),HLOOKUP($A$1,Data!$C$1:$AK$202,ScenarioAll!$X$293,FALSE)/CoreAssumptions!$F$10,0) -> 0 | T299: =IF(AND(T283-$K$1+1<=CoreAssumptions!$F$10,T283>=$K$1),HLOOKUP($A$1,Data!$C$1:$AK$202,ScenarioAll!$X$293,FALSE)/CoreAssumptions!$F$10,0) -> 0 | U299: =IF(AND(U283-$K$1+1<=CoreAssumptions!$F$10,U283>=$K$1),HLOOKUP($A$1,Data!$C$1:$AK$202,ScenarioAll!$X$293,FALSE)/CoreAssumptions!$F$10,0) -> 0 | V299: =IF(AND(V283-$K$1+1<=CoreAssumptions!$F$10,V283>=$K$1),HLOOKUP($A$1,Data!$C$1:$AK$202,ScenarioAll!$X$293,FALSE)/CoreAssumptions!$F$10,0) -> 0 | W299: =IF(AND(W283-$K$1+1<=CoreAssumptions!$F$10,W283>=$K$1),HLOOKUP($A$1,Data!$C$1:$AK$202,ScenarioAll!$X$293,FALSE)/CoreAssumptions!$F$10,0) -> 0
A300: =CONCATENATE("Newly Arising ",A284) -> Newly Arising 2018 Principal | C300: =C288 -> 353 | D300: =D288 -> 404 | E300: 268 | F300: 263 | G300: 244 | H300: 280 | I300: 274 | J300: 255 | K300: 317 | L300: 335 | M300: 410 | N300: 375 | O300: 408 | P300: 405 | Q300: 412 | R300: 392 | S300: 347 | T300: 363 | U300: 262 | V300: 313 | W300: 313
A301: =CONCATENATE("Newly Arising ",A285) -> Newly Arising 2018 Principal | C301: =C289 -> 353 | D301: 404 | E301: 268 | F301: 263 | G301: 244 | H301: 280 | I301: 274 | J301: 255 | K301: 317 | L301: 335 | M301: 410 | N301: 375 | O301: 408 | P301: 405 | Q301: 412 | R301: 392 | S301: 347 | T301: 363 | U301: 262 | V301: 313 | W301: 313
A302: =CONCATENATE("Total ",A284) -> Total 2018 Principal | C302: =C299+C300 -> 449 | D302: =D299+D300 -> 500 | E302: 364 | F302: 359 | G302: 340 | H302: 280 | I302: 274 | J302: 255 | K302: 317 | L302: 335 | M302: 410 | N302: 375 | O302: 408 | P302: 405 | Q302: 412 | R302: 392 | S302: 347 | T302: 363 | U302: 262 | V302: 313 | W302: 313
A303: =CONCATENATE("Total ",A285) -> Total 2018 Principal | C303: =C301+C295 -> 449 | D303: =D301+D295 -> 500 | E303: 364 | F303: 359 | G303: 340 | H303: 280 | I303: 274 | J303: 255 | K303: 317 | L303: 335 | M303: 410 | N303: 375 | O303: 408 | P303: 405 | Q303: 412 | R303: 392 | S303: 347 | T303: 363 | U303: 262 | V303: 313 | W303: 313
A305: In Current Proportions | C305: =C298 -> 2020 | D305: =D298 -> 2021 | E305: 2022 | F305: 2023 | G305: 2024 | H305: 2025 | I305: 2026 | J305: 2027 | K305: 2028 | L305: 2029 | M305: 2030 | N305: 2031 | O305: 2032 | P305: 2033 | Q305: 2034 | R305: 2035 | S305: 2036 | T305: 2037 | U305: 2038 | V305: 2039 | W305: 2040
A306: Principal Private | C306: =-HLOOKUP($A$1,Data!$C$1:$AJ$388,ScenarioAll!$X306,FALSE)*C302/100 -> -289.6499 | D306: =-HLOOKUP($A$1,Data!$C$1:$AJ$388,ScenarioAll!$X306,FALSE)*D302/100 -> -322.55 | E306: =-HLOOKUP($A$1,Data!$C$1:$AJ$388,ScenarioAll!$X306,FALSE)*E302/100 -> -234.8164 | F306: =-HLOOKUP($A$1,Data!$C$1:$AJ$388,ScenarioAll!$X306,FALSE)*F302/100 -> -231.5909 | G306: =-HLOOKUP($A$1,Data!$C$1:$AJ$388,ScenarioAll!$X306,FALSE)*G302/100 -> -219.334 | H306: =-HLOOKUP($A$1,Data!$C$1:$AJ$388,ScenarioAll!$X306,FALSE)*H302/100 -> -180.628 | I306: =-HLOOKUP($A$1,Data!$C$1:$AJ$388,ScenarioAll!$X306,FALSE)*I302/100 -> -176.7574 | J306: =-HLOOKUP($A$1,Data!$C$1:$AJ$388,ScenarioAll!$X306,FALSE)*J302/100 -> -164.5005 | K306: =-HLOOKUP($A$1,Data!$C$1:$AJ$388,ScenarioAll!$X306,FALSE)*K302/100 -> -204.4967 | L306: =-HLOOKUP($A$1,Data!$C$1:$AJ$388,ScenarioAll!$X306,FALSE)*L302/100 -> -216.1085 | M306: =-HLOOKUP($A$1,Data!$C$1:$AJ$388,ScenarioAll!$X306,FALSE)*M302/100 -> -264.491 | N306: =-HLOOKUP($A$1,Data!$C$1:$AJ$388,ScenarioAll!$X306,FALSE)*N302/100 -> -241.9125 | O306: =-HLOOKUP($A$1,Data!$C$1:$AJ$388,ScenarioAll!$X306,FALSE)*O302/100 -> -263.2008 | P306: =-HLOOKUP($A$1,Data!$C$1:$AJ$388,ScenarioAll!$X306,FALSE)*P302/100 -> -261.2655 | Q306: =-HLOOKUP($A$1,Data!$C$1:$AJ$388,ScenarioAll!$X306,FALSE)*Q302/100 -> -265.7812 | R306: =-HLOOKUP($A$1,Data!$C$1:$AJ$388,ScenarioAll!$X306,FALSE)*R302/100 -> -252.8792 | S306: =-HLOOKUP($A$1,Data!$C$1:$AJ$388,ScenarioAll!$X306,FALSE)*S302/100 -> -223.8497 | T306: =-HLOOKUP($A$1,Data!$C$1:$AJ$388,ScenarioAll!$X306,FALSE)*T302/100 -> -234.1713 | U306: =-HLOOKUP($A$1,Data!$C$1:$AJ$388,ScenarioAll!$X306,FALSE)*U302/100 -> -169.0162 | V306: =-HLOOKUP($A$1,Data!$C$1:$AJ$388,ScenarioAll!$X306,FALSE)*V302/100 -> -201.9163 | W306: =-HLOOKUP($A$1,Data!$C$1:$AJ$388,ScenarioAll!$X306,FALSE)*W302/100 -> -201.9163 | X306: 216
A307: Principal Social | C307: =-HLOOKUP($A$1,Data!$C$1:$AJ$388,ScenarioAll!$X307,FALSE)*C302/100 -> -116.5155 | D307: =-HLOOKUP($A$1,Data!$C$1:$AJ$388,ScenarioAll!$X307,FALSE)*D302/100 -> -129.75 | E307: =-HLOOKUP($A$1,Data!$C$1:$AJ$388,ScenarioAll!$X307,FALSE)*E302/100 -> -94.458 | F307: =-HLOOKUP($A$1,Data!$C$1:$AJ$388,ScenarioAll!$X307,FALSE)*F302/100 -> -93.1605 | G307: =-HLOOKUP($A$1,Data!$C$1:$AJ$388,ScenarioAll!$X307,FALSE)*G302/100 -> -88.23 | H307: =-HLOOKUP($A$1,Data!$C$1:$AJ$388,ScenarioAll!$X307,FALSE)*H302/100 -> -72.66 | I307: =-HLOOKUP($A$1,Data!$C$1:$AJ$388,ScenarioAll!$X307,FALSE)*I302/100 -> -71.103 | J307: =-HLOOKUP($A$1,Data!$C$1:$AJ$388,ScenarioAll!$X307,FALSE)*J302/100 -> -66.1725 | K307: =-HLOOKUP($A$1,Data!$C$1:$AJ$388,ScenarioAll!$X307,FALSE)*K302/100 -> -82.2615 | L307: =-HLOOKUP($A$1,Data!$C$1:$AJ$388,ScenarioAll!$X307,FALSE)*L302/100 -> -86.9325 | M307: =-HLOOKUP($A$1,Data!$C$1:$AJ$388,ScenarioAll!$X307,FALSE)*M302/100 -> -106.395 | N307: =-HLOOKUP($A$1,Data!$C$1:$AJ$388,ScenarioAll!$X307,FALSE)*N302/100 -> -97.3125 | O307: =-HLOOKUP($A$1,Data!$C$1:$AJ$388,ScenarioAll!$X307,FALSE)*O302/100 -> -105.876 | P307: =-HLOOKUP($A$1,Data!$C$1:$AJ$388,ScenarioAll!$X307,FALSE)*P302/100 -> -105.0975 | Q307: =-HLOOKUP($A$1,Data!$C$1:$AJ$388,ScenarioAll!$X307,FALSE)*Q302/100 -> -106.914 | R307: =-HLOOKUP($A$1,Data!$C$1:$AJ$388,ScenarioAll!$X307,FALSE)*R302/100 -> -101.724 | S307: =-HLOOKUP($A$1,Data!$C$1:$AJ$388,ScenarioAll!$X307,FALSE)*S302/100 -> -90.0465 | T307: =-HLOOKUP($A$1,Data!$C$1:$AJ$388,ScenarioAll!$X307,FALSE)*T302/100 -> -94.1985 | U307: =-HLOOKUP($A$1,Data!$C$1:$AJ$388,ScenarioAll!$X307,FALSE)*U302/100 -> -67.989 | V307: =-HLOOKUP($A$1,Data!$C$1:$AJ$388,ScenarioAll!$X307,FALSE)*V302/100 -> -81.2235 | W307: =-HLOOKUP($A$1,Data!$C$1:$AJ$388,ScenarioAll!$X307,FALSE)*W302/100 -> -81.2235 | X307: 217
A308: Principal PRS | C308: =-HLOOKUP($A$1,Data!$C$1:$AJ$388,ScenarioAll!$X308,FALSE)*C302/100 -> -42.8346 | D308: =-HLOOKUP($A$1,Data!$C$1:$AJ$388,ScenarioAll!$X308,FALSE)*D302/100 -> -47.7 | E308: =-HLOOKUP($A$1,Data!$C$1:$AJ$388,ScenarioAll!$X308,FALSE)*E302/100 -> -34.7256 | F308: =-HLOOKUP($A$1,Data!$C$1:$AJ$388,ScenarioAll!$X308,FALSE)*F302/100 -> -34.2486 | G308: =-HLOOKUP($A$1,Data!$C$1:$AJ$388,ScenarioAll!$X308,FALSE)*G302/100 -> -32.436 | H308: =-HLOOKUP($A$1,Data!$C$1:$AJ$388,ScenarioAll!$X308,FALSE)*H302/100 -> -26.712 | I308: =-HLOOKUP($A$1,Data!$C$1:$AJ$388,ScenarioAll!$X308,FALSE)*I302/100 -> -26.1396 | J308: =-HLOOKUP($A$1,Data!$C$1:$AJ$388,ScenarioAll!$X308,FALSE)*J302/100 -> -24.327 | K308: =-HLOOKUP($A$1,Data!$C$1:$AJ$388,ScenarioAll!$X308,FALSE)*K302/100 -> -30.2418 | L308: =-HLOOKUP($A$1,Data!$C$1:$AJ$388,ScenarioAll!$X308,FALSE)*L302/100 -> -31.959 | M308: =-HLOOKUP($A$1,Data!$C$1:$AJ$388,ScenarioAll!$X308,FALSE)*M302/100 -> -39.114 | N308: =-HLOOKUP($A$1,Data!$C$1:$AJ$388,ScenarioAll!$X308,FALSE)*N302/100 -> -35.775 | O308: =-HLOOKUP($A$1,Data!$C$1:$AJ$388,ScenarioAll!$X308,FALSE)*O302/100 -> -38.9232 | P308: =-HLOOKUP($A$1,Data!$C$1:$AJ$388,ScenarioAll!$X308,FALSE)*P302/100 -> -38.637 | Q308: =-HLOOKUP($A$1,Data!$C$1:$AJ$388,ScenarioAll!$X308,FALSE)*Q302/100 -> -39.3048 | R308: =-HLOOKUP($A$1,Data!$C$1:$AJ$388,ScenarioAll!$X308,FALSE)*R302/100 -> -37.3968 | S308: =-HLOOKUP($A$1,Data!$C$1:$AJ$388,ScenarioAll!$X308,FALSE)*S302/100 -> -33.1038 | T308: =-HLOOKUP($A$1,Data!$C$1:$AJ$388,ScenarioAll!$X308,FALSE)*T302/100 -> -34.6302 | U308: =-HLOOKUP($A$1,Data!$C$1:$AJ$388,ScenarioAll!$X308,FALSE)*U302/100 -> -24.9948 | V308: =-HLOOKUP($A$1,Data!$C$1:$AJ$388,ScenarioAll!$X308,FALSE)*V302/100 -> -29.8602 | W308: =-HLOOKUP($A$1,Data!$C$1:$AJ$388,ScenarioAll!$X308,FALSE)*W302/100 -> -29.8602 | X308: 218
A309: Scenario Private | C309: =HLOOKUP($A$1,Data!$C$1:$AJ$388,ScenarioAll!$X309,FALSE)*C303/100 -> 289.6499 | D309: =HLOOKUP($A$1,Data!$C$1:$AJ$388,ScenarioAll!$X309,FALSE)*D303/100 -> 322.55 | E309: =HLOOKUP($A$1,Data!$C$1:$AJ$388,ScenarioAll!$X309,FALSE)*E303/100 -> 234.8164 | F309: =HLOOKUP($A$1,Data!$C$1:$AJ$388,ScenarioAll!$X309,FALSE)*F303/100 -> 231.5909 | G309: =HLOOKUP($A$1,Data!$C$1:$AJ$388,ScenarioAll!$X309,FALSE)*G303/100 -> 219.334 | H309: =HLOOKUP($A$1,Data!$C$1:$AJ$388,ScenarioAll!$X309,FALSE)*H303/100 -> 180.628 | I309: =HLOOKUP($A$1,Data!$C$1:$AJ$388,ScenarioAll!$X309,FALSE)*I303/100 -> 176.7574 | J309: =HLOOKUP($A$1,Data!$C$1:$AJ$388,ScenarioAll!$X309,FALSE)*J303/100 -> 164.5005 | K309: =HLOOKUP($A$1,Data!$C$1:$AJ$388,ScenarioAll!$X309,FALSE)*K303/100 -> 204.4967 | L309: =HLOOKUP($A$1,Data!$C$1:$AJ$388,ScenarioAll!$X309,FALSE)*L303/100 -> 216.1085 | M309: =HLOOKUP($A$1,Data!$C$1:$AJ$388,ScenarioAll!$X309,FALSE)*M303/100 -> 264.491 | N309: =HLOOKUP($A$1,Data!$C$1:$AJ$388,ScenarioAll!$X309,FALSE)*N303/100 -> 241.9125 | O309: =HLOOKUP($A$1,Data!$C$1:$AJ$388,ScenarioAll!$X309,FALSE)*O303/100 -> 263.2008 | P309: =HLOOKUP($A$1,Data!$C$1:$AJ$388,ScenarioAll!$X309,FALSE)*P303/100 -> 261.2655 | Q309: =HLOOKUP($A$1,Data!$C$1:$AJ$388,ScenarioAll!$X309,FALSE)*Q303/100 -> 265.7812 | R309: =HLOOKUP($A$1,Data!$C$1:$AJ$388,ScenarioAll!$X309,FALSE)*R303/100 -> 252.8792 | S309: =HLOOKUP($A$1,Data!$C$1:$AJ$388,ScenarioAll!$X309,FALSE)*S303/100 -> 223.8497 | T309: =HLOOKUP($A$1,Data!$C$1:$AJ$388,ScenarioAll!$X309,FALSE)*T303/100 -> 234.1713 | U309: =HLOOKUP($A$1,Data!$C$1:$AJ$388,ScenarioAll!$X309,FALSE)*U303/100 -> 169.0162 | V309: =HLOOKUP($A$1,Data!$C$1:$AJ$388,ScenarioAll!$X309,FALSE)*V303/100 -> 201.9163 | W309: =HLOOKUP($A$1,Data!$C$1:$AJ$388,ScenarioAll!$X309,FALSE)*W303/100 -> 201.9163 | X309: 216
A310: Scenario Social | C310: =HLOOKUP($A$1,Data!$C$1:$AJ$388,ScenarioAll!$X310,FALSE)*C303/100 -> 116.5155 | D310: =HLOOKUP($A$1,Data!$C$1:$AJ$388,ScenarioAll!$X310,FALSE)*D303/100 -> 129.75 | E310: =HLOOKUP($A$1,Data!$C$1:$AJ$388,ScenarioAll!$X310,FALSE)*E303/100 -> 94.458 | F310: =HLOOKUP($A$1,Data!$C$1:$AJ$388,ScenarioAll!$X310,FALSE)*F303/100 -> 93.1605 | G310: =HLOOKUP($A$1,Data!$C$1:$AJ$388,ScenarioAll!$X310,FALSE)*G303/100 -> 88.23 | H310: =HLOOKUP($A$1,Data!$C$1:$AJ$388,ScenarioAll!$X310,FALSE)*H303/100 -> 72.66 | I310: =HLOOKUP($A$1,Data!$C$1:$AJ$388,ScenarioAll!$X310,FALSE)*I303/100 -> 71.103 | J310: =HLOOKUP($A$1,Data!$C$1:$AJ$388,ScenarioAll!$X310,FALSE)*J303/100 -> 66.1725 | K310: =HLOOKUP($A$1,Data!$C$1:$AJ$388,ScenarioAll!$X310,FALSE)*K303/100 -> 82.2615 | L310: =HLOOKUP($A$1,Data!$C$1:$AJ$388,ScenarioAll!$X310,FALSE)*L303/100 -> 86.9325 | M310: =HLOOKUP($A$1,Data!$C$1:$AJ$388,ScenarioAll!$X310,FALSE)*M303/100 -> 106.395 | N310: =HLOOKUP($A$1,Data!$C$1:$AJ$388,ScenarioAll!$X310,FALSE)*N303/100 -> 97.3125 | O310: =HLOOKUP($A$1,Data!$C$1:$AJ$388,ScenarioAll!$X310,FALSE)*O303/100 -> 105.876 | P310: =HLOOKUP($A$1,Data!$C$1:$AJ$388,ScenarioAll!$X310,FALSE)*P303/100 -> 105.0975 | Q310: =HLOOKUP($A$1,Data!$C$1:$AJ$388,ScenarioAll!$X310,FALSE)*Q303/100 -> 106.914 | R310: =HLOOKUP($A$1,Data!$C$1:$AJ$388,ScenarioAll!$X310,FALSE)*R303/100 -> 101.724 | S310: =HLOOKUP($A$1,Data!$C$1:$AJ$388,ScenarioAll!$X310,FALSE)*S303/100 -> 90.0465 | T310: =HLOOKUP($A$1,Data!$C$1:$AJ$388,ScenarioAll!$X310,FALSE)*T303/100 -> 94.1985 | U310: =HLOOKUP($A$1,Data!$C$1:$AJ$388,ScenarioAll!$X310,FALSE)*U303/100 -> 67.989 | V310: =HLOOKUP($A$1,Data!$C$1:$AJ$388,ScenarioAll!$X310,FALSE)*V303/100 -> 81.2235 | W310: =HLOOKUP($A$1,Data!$C$1:$AJ$388,ScenarioAll!$X310,FALSE)*W303/100 -> 81.2235 | X310: 217
A311: Scenario PRS | C311: =HLOOKUP($A$1,Data!$C$1:$AJ$388,ScenarioAll!$X311,FALSE)*C303/100 -> 42.8346 | D311: =HLOOKUP($A$1,Data!$C$1:$AJ$388,ScenarioAll!$X311,FALSE)*D303/100 -> 47.7 | E311: =HLOOKUP($A$1,Data!$C$1:$AJ$388,ScenarioAll!$X311,FALSE)*E303/100 -> 34.7256 | F311: =HLOOKUP($A$1,Data!$C$1:$AJ$388,ScenarioAll!$X311,FALSE)*F303/100 -> 34.2486 | G311: =HLOOKUP($A$1,Data!$C$1:$AJ$388,ScenarioAll!$X311,FALSE)*G303/100 -> 32.436 | H311: =HLOOKUP($A$1,Data!$C$1:$AJ$388,ScenarioAll!$X311,FALSE)*H303/100 -> 26.712 | I311: =HLOOKUP($A$1,Data!$C$1:$AJ$388,ScenarioAll!$X311,FALSE)*I303/100 -> 26.1396 | J311: =HLOOKUP($A$1,Data!$C$1:$AJ$388,ScenarioAll!$X311,FALSE)*J303/100 -> 24.327 | K311: =HLOOKUP($A$1,Data!$C$1:$AJ$388,ScenarioAll!$X311,FALSE)*K303/100 -> 30.2418 | L311: =HLOOKUP($A$1,Data!$C$1:$AJ$388,ScenarioAll!$X311,FALSE)*L303/100 -> 31.959 | M311: =HLOOKUP($A$1,Data!$C$1:$AJ$388,ScenarioAll!$X311,FALSE)*M303/100 -> 39.114 | N311: =HLOOKUP($A$1,Data!$C$1:$AJ$388,ScenarioAll!$X311,FALSE)*N303/100 -> 35.775 | O311: =HLOOKUP($A$1,Data!$C$1:$AJ$388,ScenarioAll!$X311,FALSE)*O303/100 -> 38.9232 | P311: =HLOOKUP($A$1,Data!$C$1:$AJ$388,ScenarioAll!$X311,FALSE)*P303/100 -> 38.637 | Q311: =HLOOKUP($A$1,Data!$C$1:$AJ$388,ScenarioAll!$X311,FALSE)*Q303/100 -> 39.3048 | R311: =HLOOKUP($A$1,Data!$C$1:$AJ$388,ScenarioAll!$X311,FALSE)*R303/100 -> 37.3968 | S311: =HLOOKUP($A$1,Data!$C$1:$AJ$388,ScenarioAll!$X311,FALSE)*S303/100 -> 33.1038 | T311: =HLOOKUP($A$1,Data!$C$1:$AJ$388,ScenarioAll!$X311,FALSE)*T303/100 -> 34.6302 | U311: =HLOOKUP($A$1,Data!$C$1:$AJ$388,ScenarioAll!$X311,FALSE)*U303/100 -> 24.9948 | V311: =HLOOKUP($A$1,Data!$C$1:$AJ$388,ScenarioAll!$X311,FALSE)*V303/100 -> 29.8602 | W311: =HLOOKUP($A$1,Data!$C$1:$AJ$388,ScenarioAll!$X311,FALSE)*W303/100 -> 29.8602 | X311: 218
A313: House Prices Core | B313: =B283 -> 2019 | C313: =B313+1 -> 2020 | D313: 2021 | E313: 2022 | F313: 2023 | G313: 2024 | H313: 2025 | I313: 2026 | J313: 2027 | K313: 2028 | L313: 2029 | M313: 2030 | N313: 2031 | O313: 2032 | P313: 2033 | Q313: 2034 | R313: 2035 | S313: 2036 | T313: 2037 | U313: 2038 | V313: 2039 | W313: 2040
A314: Principal Scenario | B314: =HLOOKUP(B313,PriceScenarios!$C$2:$AG$15,4) -> 0.016 | C314: =HLOOKUP(C313,PriceScenarios!$C$2:$AG$15,4) -> 0.016 | D314: =HLOOKUP(D313,PriceScenarios!$C$2:$AG$15,4) -> 0.016 | E314: =HLOOKUP(E313,PriceScenarios!$C$2:$AG$15,4) -> 0.016 | F314: =HLOOKUP(F313,PriceScenarios!$C$2:$AG$15,4) -> 0.016 | G314: =HLOOKUP(G313,PriceScenarios!$C$2:$AG$15,4) -> 0.016 | H314: =HLOOKUP(H313,PriceScenarios!$C$2:$AG$15,4) -> 0.016 | I314: =HLOOKUP(I313,PriceScenarios!$C$2:$AG$15,4) -> 0.016 | J314: =HLOOKUP(J313,PriceScenarios!$C$2:$AG$15,4) -> 0.016 | K314: =HLOOKUP(K313,PriceScenarios!$C$2:$AG$15,4) -> 0.016 | L314: =HLOOKUP(L313,PriceScenarios!$C$2:$AG$15,4) -> 0.016 | M314: =HLOOKUP(M313,PriceScenarios!$C$2:$AG$15,4) -> 0.016 | N314: =HLOOKUP(N313,PriceScenarios!$C$2:$AG$15,4) -> 0.016 | O314: =HLOOKUP(O313,PriceScenarios!$C$2:$AG$15,4) -> 0.016 | P314: =HLOOKUP(P313,PriceScenarios!$C$2:$AG$15,4) -> 0.016 | Q314: =HLOOKUP(Q313,PriceScenarios!$C$2:$AG$15,4) -> 0.016 | R314: =HLOOKUP(R313,PriceScenarios!$C$2:$AG$15,4) -> 0.016 | S314: =HLOOKUP(S313,PriceScenarios!$C$2:$AG$15,4) -> 0.016 | T314: =HLOOKUP(T313,PriceScenarios!$C$2:$AG$15,4) -> 0.016 | U314: =HLOOKUP(U313,PriceScenarios!$C$2:$AG$15,4) -> 0.016 | V314: =HLOOKUP(V313,PriceScenarios!$C$2:$AG$15,4) -> 0.016 | W314: =HLOOKUP(W313,PriceScenarios!$C$2:$AG$15,4) -> 0.016
A315: Principal Mean | B315: =HLOOKUP($A$1,Data!$C$1:$AJ$207,ScenarioAll!$X315,FALSE) -> 197263 | C315: =B315*(1+B314) -> 200419.208 | D315: =C315*(1+C314) -> 203625.9153 | E315: 206883.93 | F315: 210194.0729 | G315: 213557.178 | H315: 216974.0929 | I315: 220445.6784 | J315: 223972.8092 | K315: 227556.3742 | L315: 231197.2761 | M315: 234896.4326 | N315: 238654.7755 | O315: 242473.2519 | P315: 246352.8239 | Q315: 250294.4691 | R315: 254299.1806 | S315: 258367.9675 | T315: 262501.855 | U315: 266701.8847 | V315: 270969.1148 | W315: 275304.6206 | X315: 206
A316: Principal Median | B316: =HLOOKUP($A$1,Data!$C$1:$AJ$207,ScenarioAll!$X316,FALSE) -> 165000 | C316: =B316*(1+B314) -> 167640 | D316: =C316*(1+C314) -> 170322.24 | E316: 173047.3958 | F316: 175816.1542 | G316: 178629.2126 | H316: 181487.28 | I316: 184391.0765 | J316: 187341.3337 | K316: 190338.7951 | L316: 193384.2158 | M316: 196478.3633 | N316: 199622.0171 | O316: 202815.9693 | P316: 206061.0249 | Q316: 209358.0013 | R316: 212707.7293 | S316: 216111.0529 | T316: 219568.8298 | U316: 223081.9311 | V316: 226651.242 | W316: 230277.6618 | X316: 207
A317: U | B317: =IF(B316<>0,LN(B316),0) -> 12.01370075 | C317: 12.0295741 | D317: 12.04544745 | E317: 12.0613208 | F317: 12.07719415 | G317: 12.0930675 | H317: 12.10894085 | I317: 12.1248142 | J317: 12.14068755 | K317: 12.1565609 | L317: 12.17243424 | M317: 12.18830759 | N317: 12.20418094 | O317: 12.22005429 | P317: 12.23592764 | Q317: 12.25180099 | R317: 12.26767434 | S317: 12.28354769 | T317: 12.29942104 | U317: 12.31529439 | V317: 12.33116774 | W317: 12.34704109
A318: Sigma2 | B318: =IF(B315<>0,2*LN(B315)-2*B317,0) -> 0.3571847797 | C318: 0.3571847797 | D318: 0.3571847797 | E318: 0.3571847797 | F318: 0.3571847797 | G318: 0.3571847797 | H318: 0.3571847797 | I318: 0.3571847797 | J318: 0.3571847797 | K318: 0.3571847797 | L318: 0.3571847797 | M318: 0.3571847797 | N318: 0.3571847797 | O318: 0.3571847797 | P318: 0.3571847797 | Q318: 0.3571847797 | R318: 0.3571847797 | S318: 0.3571847797 | T318: 0.3571847797 | U318: 0.3571847797 | V318: 0.3571847797 | W318: 0.3571847797
A321: =CONCATENATE("Principal ",$C$61*100,"%ile") -> Principal 25%ile | B321: =EXP(SQRT(B318)*NORMSINV(CoreAssumptions!$F$2)+B317) -> 110259.5458 | C321: =EXP(SQRT(C318)*NORMSINV(CoreAssumptions!$F$2)+C317) -> 112023.6985 | D321: =EXP(SQRT(D318)*NORMSINV(CoreAssumptions!$F$2)+D317) -> 113816.0777 | E321: =EXP(SQRT(E318)*NORMSINV(CoreAssumptions!$F$2)+E317) -> 115637.135 | F321: =EXP(SQRT(F318)*NORMSINV(CoreAssumptions!$F$2)+F317) -> 117487.3291 | G321: =EXP(SQRT(G318)*NORMSINV(CoreAssumptions!$F$2)+G317) -> 119367.1264 | H321: =EXP(SQRT(H318)*NORMSINV(CoreAssumptions!$F$2)+H317) -> 121277.0004 | I321: =EXP(SQRT(I318)*NORMSINV(CoreAssumptions!$F$2)+I317) -> 123217.4324 | J321: =EXP(SQRT(J318)*NORMSINV(CoreAssumptions!$F$2)+J317) -> 125188.9113 | K321: =EXP(SQRT(K318)*NORMSINV(CoreAssumptions!$F$2)+K317) -> 127191.9339 | L321: =EXP(SQRT(L318)*NORMSINV(CoreAssumptions!$F$2)+L317) -> 129227.0049 | M321: =EXP(SQRT(M318)*NORMSINV(CoreAssumptions!$F$2)+M317) -> 131294.6369 | N321: =EXP(SQRT(N318)*NORMSINV(CoreAssumptions!$F$2)+N317) -> 133395.3511 | O321: =EXP(SQRT(O318)*NORMSINV(CoreAssumptions!$F$2)+O317) -> 135529.6767 | P321: =EXP(SQRT(P318)*NORMSINV(CoreAssumptions!$F$2)+P317) -> 137698.1516 | Q321: =EXP(SQRT(Q318)*NORMSINV(CoreAssumptions!$F$2)+Q317) -> 139901.322 | R321: =EXP(SQRT(R318)*NORMSINV(CoreAssumptions!$F$2)+R317) -> 142139.7431 | S321: =EXP(SQRT(S318)*NORMSINV(CoreAssumptions!$F$2)+S317) -> 144413.979 | T321: =EXP(SQRT(T318)*NORMSINV(CoreAssumptions!$F$2)+T317) -> 146724.6027 | U321: =EXP(SQRT(U318)*NORMSINV(CoreAssumptions!$F$2)+U317) -> 149072.1963 | V321: =EXP(SQRT(V318)*NORMSINV(CoreAssumptions!$F$2)+V317) -> 151457.3515 | W321: =EXP(SQRT(W318)*NORMSINV(CoreAssumptions!$F$2)+W317) -> 153880.6691
A322: Income from Afford | B322: =IF(B321/CoreAssumptions!$F$3<=B402,B402,B321/CoreAssumptions!$F$3) -> 28271.67841 | C322: =IF(C321/CoreAssumptions!$F$3<=C402,C402,C321/CoreAssumptions!$F$3) -> 28724.02527 | D322: =IF(D321/CoreAssumptions!$F$3<=D402,D402,D321/CoreAssumptions!$F$3) -> 29183.60967 | E322: =IF(E321/CoreAssumptions!$F$3<=E402,E402,E321/CoreAssumptions!$F$3) -> 29650.54742 | F322: =IF(F321/CoreAssumptions!$F$3<=F402,F402,F321/CoreAssumptions!$F$3) -> 30124.95618 | G322: =IF(G321/CoreAssumptions!$F$3<=G402,G402,G321/CoreAssumptions!$F$3) -> 30606.95548 | H322: =IF(H321/CoreAssumptions!$F$3<=H402,H402,H321/CoreAssumptions!$F$3) -> 31096.66677 | I322: =IF(I321/CoreAssumptions!$F$3<=I402,I402,I321/CoreAssumptions!$F$3) -> 31594.21344 | J322: =IF(J321/CoreAssumptions!$F$3<=J402,J402,J321/CoreAssumptions!$F$3) -> 32099.72085 | K322: =IF(K321/CoreAssumptions!$F$3<=K402,K402,K321/CoreAssumptions!$F$3) -> 32613.31639 | L322: =IF(L321/CoreAssumptions!$F$3<=L402,L402,L321/CoreAssumptions!$F$3) -> 33135.12945 | M322: =IF(M321/CoreAssumptions!$F$3<=M402,M402,M321/CoreAssumptions!$F$3) -> 33665.29152 | N322: =IF(N321/CoreAssumptions!$F$3<=N402,N402,N321/CoreAssumptions!$F$3) -> 34203.93618 | O322: =IF(O321/CoreAssumptions!$F$3<=O402,O402,O321/CoreAssumptions!$F$3) -> 34751.19916 | P322: =IF(P321/CoreAssumptions!$F$3<=P402,P402,P321/CoreAssumptions!$F$3) -> 35307.21835 | Q322: =IF(Q321/CoreAssumptions!$F$3<=Q402,Q402,Q321/CoreAssumptions!$F$3) -> 35872.13384 | R322: =IF(R321/CoreAssumptions!$F$3<=R402,R402,R321/CoreAssumptions!$F$3) -> 36446.08799 | S322: =IF(S321/CoreAssumptions!$F$3<=S402,S402,S321/CoreAssumptions!$F$3) -> 37029.22539 | T322: =IF(T321/CoreAssumptions!$F$3<=T402,T402,T321/CoreAssumptions!$F$3) -> 37621.693 | U322: =IF(U321/CoreAssumptions!$F$3<=U402,U402,U321/CoreAssumptions!$F$3) -> 38223.64009 | V322: =IF(V321/CoreAssumptions!$F$3<=V402,V402,V321/CoreAssumptions!$F$3) -> 38835.21833 | W322: =IF(W321/CoreAssumptions!$F$3<=W402,W402,W321/CoreAssumptions!$F$3) -> 39456.58182
B323: =IF(B322>B402,VLOOKUP(B322,B$402:$AA$482,B$401+3),10) -> 48 | C323: =IF(C322>C402,VLOOKUP(C322,C$402:$AA$482,C$401+3),10) -> 47 | D323: =IF(D322>D402,VLOOKUP(D322,D$402:$AA$482,D$401+3),10) -> 47 | E323: =IF(E322>E402,VLOOKUP(E322,E$402:$AA$482,E$401+3),10) -> 47 | F323: =IF(F322>F402,VLOOKUP(F322,F$402:$AA$482,F$401+3),10) -> 47 | G323: =IF(G322>G402,VLOOKUP(G322,G$402:$AA$482,G$401+3),10) -> 47 | H323: =IF(H322>H402,VLOOKUP(H322,H$402:$AA$482,H$401+3),10) -> 46 | I323: =IF(I322>I402,VLOOKUP(I322,I$402:$AA$482,I$401+3),10) -> 46 | J323: =IF(J322>J402,VLOOKUP(J322,J$402:$AA$482,J$401+3),10) -> 45 | K323: =IF(K322>K402,VLOOKUP(K322,K$402:$AA$482,K$401+3),10) -> 45 | L323: =IF(L322>L402,VLOOKUP(L322,L$402:$AA$482,L$401+3),10) -> 44 | M323: =IF(M322>M402,VLOOKUP(M322,M$402:$AA$482,M$401+3),10) -> 44 | N323: =IF(N322>N402,VLOOKUP(N322,N$402:$AA$482,N$401+3),10) -> 43 | O323: =IF(O322>O402,VLOOKUP(O322,O$402:$AA$482,O$401+3),10) -> 43 | P323: =IF(P322>P402,VLOOKUP(P322,P$402:$AA$482,P$401+3),10) -> 43 | Q323: =IF(Q322>Q402,VLOOKUP(Q322,Q$402:$AA$482,Q$401+3),10) -> 42 | R323: =IF(R322>R402,VLOOKUP(R322,R$402:$AA$482,R$401+3),10) -> 42 | S323: =IF(S322>S402,VLOOKUP(S322,S$402:$AA$482,S$401+3),10) -> 40 | T323: =IF(T322>T402,VLOOKUP(T322,T$402:$AA$482,T$401+3),10) -> 40 | U323: =IF(U322>U402,VLOOKUP(U322,U$402:$AA$482,U$401+3),10) -> 39 | V323: =IF(V322>V402,VLOOKUP(V322,V$402:$AA$482,V$401+3),10) -> 39 | W323: =IF(W322>W402,VLOOKUP(W322,W$402:$AA$482,W$401+3),10) -> 39
A324: Principal Market | C324: =C300*(100-C323)/100 -> 187.09 | D324: =D300*(100-D323)/100 -> 214.12 | E324: 142.04 | F324: 139.39 | G324: 129.32 | H324: 151.2 | I324: 147.96 | J324: 140.25 | K324: 174.35 | L324: 187.6 | M324: 229.6 | N324: 213.75 | O324: 232.56 | P324: 230.85 | Q324: 238.96 | R324: 227.36 | S324: 208.2 | T324: 217.8 | U324: 159.82 | V324: 190.93 | W324: 190.93
A325: Princpal Subsidy | C325: =C299+(C300*(C323)/100) -> 261.91 | D325: =D299+(D300*(D323)/100) -> 285.88 | E325: 221.96 | F325: 219.61 | G325: 210.68 | H325: 128.8 | I325: 126.04 | J325: 114.75 | K325: 142.65 | L325: 147.4 | M325: 180.4 | N325: 161.25 | O325: 175.44 | P325: 174.15 | Q325: 173.04 | R325: 164.64 | S325: 138.8 | T325: 145.2 | U325: 102.18 | V325: 122.07 | W325: 122.07
A329: House Prices Scenario
A330: Scenario | B330: =VLOOKUP($X330,PriceScenarios!$B$3:$AF$21,B313-2015,FALSE) -> 0.016 | C330: =VLOOKUP($X330,PriceScenarios!$B$3:$AF$21,C313-2015,FALSE) -> 0.016 | D330: =VLOOKUP($X330,PriceScenarios!$B$3:$AF$21,D313-2015,FALSE) -> 0.016 | E330: =VLOOKUP($X330,PriceScenarios!$B$3:$AF$21,E313-2015,FALSE) -> 0.016 | F330: =VLOOKUP($X330,PriceScenarios!$B$3:$AF$21,F313-2015,FALSE) -> 0.016 | G330: =VLOOKUP($X330,PriceScenarios!$B$3:$AF$21,G313-2015,FALSE) -> 0.016 | H330: =VLOOKUP($X330,PriceScenarios!$B$3:$AF$21,H313-2015,FALSE) -> 0.016 | I330: =VLOOKUP($X330,PriceScenarios!$B$3:$AF$21,I313-2015,FALSE) -> 0.016 | J330: =VLOOKUP($X330,PriceScenarios!$B$3:$AF$21,J313-2015,FALSE) -> 0.016 | K330: =VLOOKUP($X330,PriceScenarios!$B$3:$AF$21,K313-2015,FALSE) -> 0.016 | L330: =VLOOKUP($X330,PriceScenarios!$B$3:$AF$21,L313-2015,FALSE) -> 0.016 | M330: =VLOOKUP($X330,PriceScenarios!$B$3:$AF$21,M313-2015,FALSE) -> 0.016 | N330: =VLOOKUP($X330,PriceScenarios!$B$3:$AF$21,N313-2015,FALSE) -> 0.016 | O330: =VLOOKUP($X330,PriceScenarios!$B$3:$AF$21,O313-2015,FALSE) -> 0.016 | P330: =VLOOKUP($X330,PriceScenarios!$B$3:$AF$21,P313-2015,FALSE) -> 0.016 | Q330: =VLOOKUP($X330,PriceScenarios!$B$3:$AF$21,Q313-2015,FALSE) -> 0.016 | R330: =VLOOKUP($X330,PriceScenarios!$B$3:$AF$21,R313-2015,FALSE) -> 0.016 | S330: =VLOOKUP($X330,PriceScenarios!$B$3:$AF$21,S313-2015,FALSE) -> 0.016 | T330: =VLOOKUP($X330,PriceScenarios!$B$3:$AF$21,T313-2015,FALSE) -> 0.016 | U330: =VLOOKUP($X330,PriceScenarios!$B$3:$AF$21,U313-2015,FALSE) -> 0.016 | V330: =VLOOKUP($X330,PriceScenarios!$B$3:$AF$21,V313-2015,FALSE) -> 0.016 | W330: =VLOOKUP($X330,PriceScenarios!$B$3:$AF$21,W313-2015,FALSE) -> 0.016 | X330: =CHOOSE(X58,PriceScenarios!$B$3,PriceScenarios!$B$4,PriceScenarios!$B$5,PriceScenarios!$B$6,PriceScenarios!$B$7,PriceScenarios!$B$8,PriceScenarios!$B$9,PriceScenarios!$B$10,PriceScenarios!$B$11,PriceScenarios!$B$12,PriceScenarios!$B$13,PriceScenarios!$B$14,PriceScenarios!$B$15,PriceScenarios!$B$16,PriceScenarios!$B$17,PriceScenarios!$B$18,PriceScenarios!$B$19,PriceScenarios!$B$20,PriceScenarios!$B$21) -> Trend Growth (CoreDefault)
A331: Scenario Mean | B331: =HLOOKUP($A$1,Data!$C$1:$AJ$207,ScenarioAll!$X331,FALSE) -> 197263 | C331: =B331*(1+B330) -> 200419.208 | D331: =C331*(1+C330) -> 203625.9153 | E331: 206883.93 | F331: 210194.0729 | G331: 213557.178 | H331: 216974.0929 | I331: 220445.6784 | J331: 223972.8092 | K331: 227556.3742 | L331: 231197.2761 | M331: 234896.4326 | N331: 238654.7755 | O331: 242473.2519 | P331: 246352.8239 | Q331: 250294.4691 | R331: 254299.1806 | S331: 258367.9675 | T331: 262501.855 | U331: 266701.8847 | V331: =U331*(1+U330) -> 270969.1148 | W331: =V331*(1+V330) -> 275304.6206 | X331: 206
A332: Scenario Median | B332: =HLOOKUP($A$1,Data!$C$1:$AJ$207,ScenarioAll!$X332,FALSE) -> 165000 | C332: =B332*(1+B330) -> 167640 | D332: =C332*(1+C330) -> 170322.24 | E332: 173047.3958 | F332: 175816.1542 | G332: 178629.2126 | H332: 181487.28 | I332: 184391.0765 | J332: 187341.3337 | K332: 190338.7951 | L332: 193384.2158 | M332: 196478.3633 | N332: 199622.0171 | O332: 202815.9693 | P332: 206061.0249 | Q332: 209358.0013 | R332: 212707.7293 | S332: 216111.0529 | T332: 219568.8298 | U332: 223081.9311 | V332: =U332*(1+U330) -> 226651.242 | W332: =V332*(1+V330) -> 230277.6618 | X332: 207
A333: U | B333: =IF(B332<>0,LN(B332),0) -> 12.01370075 | C333: 12.0295741 | D333: 12.04544745 | E333: 12.0613208 | F333: 12.07719415 | G333: 12.0930675 | H333: 12.10894085 | I333: 12.1248142 | J333: 12.14068755 | K333: 12.1565609 | L333: 12.17243424 | M333: 12.18830759 | N333: 12.20418094 | O333: 12.22005429 | P333: 12.23592764 | Q333: 12.25180099 | R333: 12.26767434 | S333: 12.28354769 | T333: 12.29942104 | U333: 12.31529439 | V333: =IF(V332<>0,LN(V332),0) -> 12.33116774 | W333: =IF(W332<>0,LN(W332),0) -> 12.34704109
A334: Sigma2 | B334: =IF(B331<>0,2*LN(B331)-2*B333,0) -> 0.3571847797 | C334: 0.3571847797 | D334: 0.3571847797 | E334: 0.3571847797 | F334: 0.3571847797 | G334: 0.3571847797 | H334: 0.3571847797 | I334: 0.3571847797 | J334: 0.3571847797 | K334: 0.3571847797 | L334: 0.3571847797 | M334: 0.3571847797 | N334: 0.3571847797 | O334: 0.3571847797 | P334: 0.3571847797 | Q334: 0.3571847797 | R334: 0.3571847797 | S334: 0.3571847797 | T334: 0.3571847797 | U334: 0.3571847797 | V334: =IF(V331<>0,2*LN(V331)-2*V333,0) -> 0.3571847797 | W334: =IF(W331<>0,2*LN(W331)-2*W333,0) -> 0.3571847797
A336: =CONCATENATE("Scenario ",$C$61*100,"%ile") -> Scenario 25%ile | B336: =EXP(SQRT(B334)*NORMSINV($C$61)+B333) -> 110259.5458 | C336: 112023.6985 | D336: 113816.0777 | E336: 115637.135 | F336: 117487.3291 | G336: 119367.1264 | H336: 121277.0004 | I336: 123217.4324 | J336: 125188.9113 | K336: 127191.9339 | L336: 129227.0049 | M336: 131294.6369 | N336: 133395.3511 | O336: 135529.6767 | P336: 137698.1516 | Q336: 139901.322 | R336: 142139.7431 | S336: 144413.979 | T336: 146724.6027 | U336: 149072.1963 | V336: =EXP(SQRT(V334)*NORMSINV($C$61)+V333) -> 151457.3515 | W336: =EXP(SQRT(W334)*NORMSINV($C$61)+W333) -> 153880.6691
A337: Income from Afford | B337: =IF(B336/$C$64<=B493,B493,B336/$C$64) -> 28271.67841 | C337: =IF(C336/$C$64<=C493,C493,C336/$C$64) -> 28724.02527 | D337: 29183.60967 | E337: 29650.54742 | F337: 30124.95618 | G337: 30606.95548 | H337: 31096.66677 | I337: 31594.21344 | J337: 32099.72085 | K337: 32613.31639 | L337: 33135.12945 | M337: 33665.29152 | N337: 34203.93618 | O337: 34751.19916 | P337: 35307.21835 | Q337: 35872.13384 | R337: 36446.08799 | S337: 37029.22539 | T337: 37621.693 | U337: 38223.64009 | V337: 38835.21833 | W337: 39456.58182
B338: =IF(B337>B493,VLOOKUP(B337,B493:$AA$573,B492+3),10) -> 48 | C338: =IF(C337>C493,VLOOKUP(C337,C493:$AA$573,C492+3),10) -> 47 | D338: =IF(D337>D493,VLOOKUP(D337,D493:$AA$573,D492+3),10) -> 47 | E338: =IF(E337>E493,VLOOKUP(E337,E493:$AA$573,E492+3),10) -> 47 | F338: =IF(F337>F493,VLOOKUP(F337,F493:$AA$573,F492+3),10) -> 47 | G338: =IF(G337>G493,VLOOKUP(G337,G493:$AA$573,G492+3),10) -> 47 | H338: =IF(H337>H493,VLOOKUP(H337,H493:$AA$573,H492+3),10) -> 46 | I338: =IF(I337>I493,VLOOKUP(I337,I493:$AA$573,I492+3),10) -> 46 | J338: =IF(J337>J493,VLOOKUP(J337,J493:$AA$573,J492+3),10) -> 45 | K338: =IF(K337>K493,VLOOKUP(K337,K493:$AA$573,K492+3),10) -> 45 | L338: =IF(L337>L493,VLOOKUP(L337,L493:$AA$573,L492+3),10) -> 44 | M338: =IF(M337>M493,VLOOKUP(M337,M493:$AA$573,M492+3),10) -> 44 | N338: =IF(N337>N493,VLOOKUP(N337,N493:$AA$573,N492+3),10) -> 43 | O338: =IF(O337>O493,VLOOKUP(O337,O493:$AA$573,O492+3),10) -> 43 | P338: =IF(P337>P493,VLOOKUP(P337,P493:$AA$573,P492+3),10) -> 43 | Q338: =IF(Q337>Q493,VLOOKUP(Q337,Q493:$AA$573,Q492+3),10) -> 42 | R338: =IF(R337>R493,VLOOKUP(R337,R493:$AA$573,R492+3),10) -> 42 | S338: =IF(S337>S493,VLOOKUP(S337,S493:$AA$573,S492+3),10) -> 40 | T338: =IF(T337>T493,VLOOKUP(T337,T493:$AA$573,T492+3),10) -> 40 | U338: =IF(U337>U493,VLOOKUP(U337,U493:$AA$573,U492+3),10) -> 39 | V338: =IF(V337>V493,VLOOKUP(V337,V493:$AA$573,V492+3),10) -> 39 | W338: =IF(W337>W493,VLOOKUP(W337,W493:$AA$573,W492+3),10) -> 39
A339: Scenario Market | C339: =IF(OR($B$295=TRUE,$B$292=FALSE),C301*(100-C338)/100,C303*(100-C338)/100) -> 187.09 | D339: =IF(OR($B$295=TRUE,$B$292=FALSE),D301*(100-D338)/100,D303*(100-D338)/100) -> 214.12 | E339: 142.04 | F339: 139.39 | G339: 129.32 | H339: 151.2 | I339: 147.96 | J339: 140.25 | K339: 174.35 | L339: 187.6 | M339: 229.6 | N339: 213.75 | O339: 232.56 | P339: 230.85 | Q339: 238.96 | R339: 227.36 | S339: 208.2 | T339: 217.8 | U339: 159.82 | V339: 190.93 | W339: 190.93
A340: Scenario Subsidy | C340: =IF(OR($B$292=FALSE,$B$295=TRUE),C295+(C301*(C338)/100),C303*(C338)/100) -> 261.91 | D340: =IF(OR($B$292=FALSE,$B$295=TRUE),D295+(D301*(D338)/100),D303*(D338)/100) -> 285.88 | E340: 221.96 | F340: 219.61 | G340: 210.68 | H340: 128.8 | I340: 126.04 | J340: 114.75 | K340: 142.65 | L340: 147.4 | M340: 180.4 | N340: 161.25 | O340: 175.44 | P340: 174.15 | Q340: 173.04 | R340: 164.64 | S340: 138.8 | T340: 145.2 | U340: 102.18 | V340: 122.07 | W340: 122.07
A343: Intermediate
A345: Rents Core
A346: Rises Principal | B346: =B314 -> 0.016 | C346: =C314 -> 0.016 | D346: 0.016 | E346: 0.016 | F346: 0.016 | G346: 0.016 | H346: 0.016 | I346: 0.016 | J346: 0.016 | K346: 0.016 | L346: 0.016 | M346: 0.016 | N346: 0.016 | O346: 0.016 | P346: 0.016 | Q346: 0.016 | R346: 0.016 | S346: 0.016 | T346: 0.016 | U346: 0.016 | V346: 0.016 | W346: 0.016
A348: Rent Median (Principal) | B348: =HLOOKUP($A$1,Data!$C$1:$AJ$211,ScenarioAll!$X348,FALSE) -> 138.4615385 | C348: =B348*(1+B346) -> 140.6769231 | D348: =C348*(1+C346) -> 142.9277538 | E348: 145.2145979 | F348: 147.5380315 | G348: 149.89864 | H348: 152.2970182 | I348: 154.7337705 | J348: 157.2095108 | K348: 159.724863 | L348: 162.2804608 | M348: 164.8769482 | N348: 167.5149794 | O348: 170.195219 | P348: 172.9183425 | Q348: 175.685036 | R348: 178.4959966 | S348: 181.3519325 | T348: 184.2535635 | U348: 187.2016205 | V348: 190.1968464 | W348: 193.2399959 | X348: 210
A349: Rent 30th%ile (Principal) | B349: =HLOOKUP($A$1,Data!$C$1:$AJ$211,ScenarioAll!$X349,FALSE) -> 122.3076923 | C349: =B349*(1+B346) -> 124.2646154 | D349: =C349*(1+C346) -> 126.2528492 | E349: 128.2728948 | F349: 130.3252611 | G349: 132.4104653 | H349: 134.5290328 | I349: 136.6814973 | J349: 138.8684012 | K349: 141.0902957 | L349: 143.3477404 | M349: 145.6413042 | N349: 147.9715651 | O349: 150.3391101 | P349: 152.7445359 | Q349: 155.1884485 | R349: 157.6714637 | S349: 160.1942071 | T349: 162.7573144 | U349: 165.3614314 | V349: 168.0072143 | W349: 170.6953298 | X349: 211
A350: Annual Rent Medain | B350: =B348*52 -> 7200 | C350: =C348*52 -> 7315.2 | D350: 7432.2432 | E350: 7551.159091 | F350: 7671.977637 | G350: 7794.729279 | H350: 7919.444947 | I350: 8046.156066 | J350: 8174.894564 | K350: 8305.692877 | L350: 8438.583963 | M350: 8573.601306 | N350: 8710.778927 | O350: 8850.15139 | P350: 8991.753812 | Q350: 9135.621873 | R350: 9281.791823 | S350: 9430.300492 | T350: 9581.1853 | U350: 9734.484265 | V350: 9890.236013 | W350: 10048.47979
A351: Annual Rent 30th | B351: =B349*52 -> 6360 | C351: 6461.76 | D351: 6565.14816 | E351: 6670.190531 | F351: 6776.913579 | G351: 6885.344196 | H351: 6995.509703 | I351: 7107.437859 | J351: 7221.156864 | K351: 7336.695374 | L351: 7454.0825 | M351: 7573.34782 | N351: 7694.521385 | O351: 7817.633728 | P351: 7942.715867 | Q351: 8069.799321 | R351: 8198.91611 | S351: 8330.098768 | T351: 8463.380348 | U351: 8598.794434 | V351: 8736.375145 | W351: 8876.157147
A353: Income above | B353: =B350/CoreAssumptions!$F$6 -> 28800 | C353: =C350/CoreAssumptions!$F$6 -> 29260.8 | D353: =D350/CoreAssumptions!$F$6 -> 29728.9728 | E353: =E350/CoreAssumptions!$F$6 -> 30204.63636 | F353: =F350/CoreAssumptions!$F$6 -> 30687.91055 | G353: =G350/CoreAssumptions!$F$6 -> 31178.91712 | H353: =H350/CoreAssumptions!$F$6 -> 31677.77979 | I353: =I350/CoreAssumptions!$F$6 -> 32184.62427 | J353: =J350/CoreAssumptions!$F$6 -> 32699.57825 | K353: =K350/CoreAssumptions!$F$6 -> 33222.77151 | L353: =L350/CoreAssumptions!$F$6 -> 33754.33585 | M353: =M350/CoreAssumptions!$F$6 -> 34294.40522 | N353: =N350/CoreAssumptions!$F$6 -> 34843.11571 | O353: =O350/CoreAssumptions!$F$6 -> 35400.60556 | P353: =P350/CoreAssumptions!$F$6 -> 35967.01525 | Q353: =Q350/CoreAssumptions!$F$6 -> 36542.48749 | R353: =R350/CoreAssumptions!$F$6 -> 37127.16729 | S353: =S350/CoreAssumptions!$F$6 -> 37721.20197 | T353: =T350/CoreAssumptions!$F$6 -> 38324.7412 | U353: =U350/CoreAssumptions!$F$6 -> 38937.93706 | V353: =V350/CoreAssumptions!$F$6 -> 39560.94405 | W353: =W350/CoreAssumptions!$F$6 -> 40193.91916
A354: Income below | B354: =B351/CoreAssumptions!$F$5 -> 18171.42857 | C354: =C351/CoreAssumptions!$F$5 -> 18462.17143 | D354: =D351/CoreAssumptions!$F$5 -> 18757.56617 | E354: =E351/CoreAssumptions!$F$5 -> 19057.68723 | F354: =F351/CoreAssumptions!$F$5 -> 19362.61023 | G354: =G351/CoreAssumptions!$F$5 -> 19672.41199 | H354: =H351/CoreAssumptions!$F$5 -> 19987.17058 | I354: =I351/CoreAssumptions!$F$5 -> 20306.96531 | J354: =J351/CoreAssumptions!$F$5 -> 20631.87676 | K354: =K351/CoreAssumptions!$F$5 -> 20961.98678 | L354: =L351/CoreAssumptions!$F$5 -> 21297.37857 | M354: =M351/CoreAssumptions!$F$5 -> 21638.13663 | N354: =N351/CoreAssumptions!$F$5 -> 21984.34682 | O354: =O351/CoreAssumptions!$F$5 -> 22336.09636 | P354: =P351/CoreAssumptions!$F$5 -> 22693.47391 | Q354: =Q351/CoreAssumptions!$F$5 -> 23056.56949 | R354: =R351/CoreAssumptions!$F$5 -> 23425.4746 | S354: =S351/CoreAssumptions!$F$5 -> 23800.28219 | T354: =T351/CoreAssumptions!$F$5 -> 24181.08671 | U354: =U351/CoreAssumptions!$F$5 -> 24567.9841 | V354: =V351/CoreAssumptions!$F$5 -> 24961.07184 | W354: =W351/CoreAssumptions!$F$5 -> 25360.44899
A355: Above percentile | B355: =IF(ISERROR(VLOOKUP(B353,B$493:$AA$573,B$492+3)),10,VLOOKUP(B353,B$493:$AA$573,B$492+3)) -> 49 | C355: =IF(ISERROR(VLOOKUP(C353,C$493:$AA$573,C$492+3)),10,VLOOKUP(C353,C$493:$AA$573,C$492+3)) -> 48 | D355: =IF(ISERROR(VLOOKUP(D353,D$493:$AA$573,D$492+3)),10,VLOOKUP(D353,D$493:$AA$573,D$492+3)) -> 48 | E355: =IF(ISERROR(VLOOKUP(E353,E$493:$AA$573,E$492+3)),10,VLOOKUP(E353,E$493:$AA$573,E$492+3)) -> 47 | F355: =IF(ISERROR(VLOOKUP(F353,F$493:$AA$573,F$492+3)),10,VLOOKUP(F353,F$493:$AA$573,F$492+3)) -> 47 | G355: =IF(ISERROR(VLOOKUP(G353,G$493:$AA$573,G$492+3)),10,VLOOKUP(G353,G$493:$AA$573,G$492+3)) -> 47 | H355: =IF(ISERROR(VLOOKUP(H353,H$493:$AA$573,H$492+3)),10,VLOOKUP(H353,H$493:$AA$573,H$492+3)) -> 47 | I355: =IF(ISERROR(VLOOKUP(I353,I$493:$AA$573,I$492+3)),10,VLOOKUP(I353,I$493:$AA$573,I$492+3)) -> 47 | J355: =IF(ISERROR(VLOOKUP(J353,J$493:$AA$573,J$492+3)),10,VLOOKUP(J353,J$493:$AA$573,J$492+3)) -> 46 | K355: =IF(ISERROR(VLOOKUP(K353,K$493:$AA$573,K$492+3)),10,VLOOKUP(K353,K$493:$AA$573,K$492+3)) -> 46 | L355: =IF(ISERROR(VLOOKUP(L353,L$493:$AA$573,L$492+3)),10,VLOOKUP(L353,L$493:$AA$573,L$492+3)) -> 45 | M355: =IF(ISERROR(VLOOKUP(M353,M$493:$AA$573,M$492+3)),10,VLOOKUP(M353,M$493:$AA$573,M$492+3)) -> 45 | N355: =IF(ISERROR(VLOOKUP(N353,N$493:$AA$573,N$492+3)),10,VLOOKUP(N353,N$493:$AA$573,N$492+3)) -> 44 | O355: =IF(ISERROR(VLOOKUP(O353,O$493:$AA$573,O$492+3)),10,VLOOKUP(O353,O$493:$AA$573,O$492+3)) -> 44 | P355: =IF(ISERROR(VLOOKUP(P353,P$493:$AA$573,P$492+3)),10,VLOOKUP(P353,P$493:$AA$573,P$492+3)) -> 43 | Q355: =IF(ISERROR(VLOOKUP(Q353,Q$493:$AA$573,Q$492+3)),10,VLOOKUP(Q353,Q$493:$AA$573,Q$492+3)) -> 43 | R355: =IF(ISERROR(VLOOKUP(R353,R$493:$AA$573,R$492+3)),10,VLOOKUP(R353,R$493:$AA$573,R$492+3)) -> 43 | S355: =IF(ISERROR(VLOOKUP(S353,S$493:$AA$573,S$492+3)),10,VLOOKUP(S353,S$493:$AA$573,S$492+3)) -> 42 | T355: =IF(ISERROR(VLOOKUP(T353,T$493:$AA$573,T$492+3)),10,VLOOKUP(T353,T$493:$AA$573,T$492+3)) -> 42 | U355: =IF(ISERROR(VLOOKUP(U353,U$493:$AA$573,U$492+3)),10,VLOOKUP(U353,U$493:$AA$573,U$492+3)) -> 40 | V355: =IF(ISERROR(VLOOKUP(V353,V$493:$AA$573,V$492+3)),10,VLOOKUP(V353,V$493:$AA$573,V$492+3)) -> 40 | W355: =IF(ISERROR(VLOOKUP(W353,W$493:$AA$573,W$492+3)),10,VLOOKUP(W353,W$493:$AA$573,W$492+3)) -> 40
A356: Below percentile | B356: =IF(ISERROR(VLOOKUP(B354,B$493:$AA$573,B$492+3)),10,VLOOKUP(B354,B$493:$AA$573,B$492+3)) -> 26 | C356: =IF(ISERROR(VLOOKUP(C354,C$493:$AA$573,C$492+3)),10,VLOOKUP(C354,C$493:$AA$573,C$492+3)) -> 26 | D356: =IF(ISERROR(VLOOKUP(D354,D$493:$AA$573,D$492+3)),10,VLOOKUP(D354,D$493:$AA$573,D$492+3)) -> 26 | E356: =IF(ISERROR(VLOOKUP(E354,E$493:$AA$573,E$492+3)),10,VLOOKUP(E354,E$493:$AA$573,E$492+3)) -> 26 | F356: =IF(ISERROR(VLOOKUP(F354,F$493:$AA$573,F$492+3)),10,VLOOKUP(F354,F$493:$AA$573,F$492+3)) -> 25 | G356: =IF(ISERROR(VLOOKUP(G354,G$493:$AA$573,G$492+3)),10,VLOOKUP(G354,G$493:$AA$573,G$492+3)) -> 25 | H356: =IF(ISERROR(VLOOKUP(H354,H$493:$AA$573,H$492+3)),10,VLOOKUP(H354,H$493:$AA$573,H$492+3)) -> 25 | I356: =IF(ISERROR(VLOOKUP(I354,I$493:$AA$573,I$492+3)),10,VLOOKUP(I354,I$493:$AA$573,I$492+3)) -> 23 | J356: =IF(ISERROR(VLOOKUP(J354,J$493:$AA$573,J$492+3)),10,VLOOKUP(J354,J$493:$AA$573,J$492+3)) -> 23 | K356: =IF(ISERROR(VLOOKUP(K354,K$493:$AA$573,K$492+3)),10,VLOOKUP(K354,K$493:$AA$573,K$492+3)) -> 23 | L356: =IF(ISERROR(VLOOKUP(L354,L$493:$AA$573,L$492+3)),10,VLOOKUP(L354,L$493:$AA$573,L$492+3)) -> 22 | M356: =IF(ISERROR(VLOOKUP(M354,M$493:$AA$573,M$492+3)),10,VLOOKUP(M354,M$493:$AA$573,M$492+3)) -> 22 | N356: =IF(ISERROR(VLOOKUP(N354,N$493:$AA$573,N$492+3)),10,VLOOKUP(N354,N$493:$AA$573,N$492+3)) -> 22 | O356: =IF(ISERROR(VLOOKUP(O354,O$493:$AA$573,O$492+3)),10,VLOOKUP(O354,O$493:$AA$573,O$492+3)) -> 22 | P356: =IF(ISERROR(VLOOKUP(P354,P$493:$AA$573,P$492+3)),10,VLOOKUP(P354,P$493:$AA$573,P$492+3)) -> 21 | Q356: =IF(ISERROR(VLOOKUP(Q354,Q$493:$AA$573,Q$492+3)),10,VLOOKUP(Q354,Q$493:$AA$573,Q$492+3)) -> 21 | R356: =IF(ISERROR(VLOOKUP(R354,R$493:$AA$573,R$492+3)),10,VLOOKUP(R354,R$493:$AA$573,R$492+3)) -> 21 | S356: =IF(ISERROR(VLOOKUP(S354,S$493:$AA$573,S$492+3)),10,VLOOKUP(S354,S$493:$AA$573,S$492+3)) -> 21 | T356: =IF(ISERROR(VLOOKUP(T354,T$493:$AA$573,T$492+3)),10,VLOOKUP(T354,T$493:$AA$573,T$492+3)) -> 20 | U356: =IF(ISERROR(VLOOKUP(U354,U$493:$AA$573,U$492+3)),10,VLOOKUP(U354,U$493:$AA$573,U$492+3)) -> 20 | V356: =IF(ISERROR(VLOOKUP(V354,V$493:$AA$573,V$492+3)),10,VLOOKUP(V354,V$493:$AA$573,V$492+3)) -> 20 | W356: =IF(ISERROR(VLOOKUP(W354,W$493:$AA$573,W$492+3)),10,VLOOKUP(W354,W$493:$AA$573,W$492+3)) -> 20
A359: Total need by tenure core
A360: Social Rent | C360: =C302-C361-C362-C363 -> 187.78 | D360: =D302-D361-D362-D363 -> 201.04 | E360: 165.68 | F360: 161.75 | G360: 157 | H360: 70 | I360: 63.02 | J360: 58.65 | K360: 72.91 | L360: 73.7 | M360: 90.2 | N360: 82.5 | O360: 89.76 | P360: 85.05 | Q360: 86.52 | R360: 82.32 | S360: 72.87 | T360: 72.6 | U360: 52.4 | V360: 62.6 | W360: 62.6
A361: BM Rent | C361: =(C355-C356)/100*C300 -> 77.66 | D361: =(D355-D356)/100*D300 -> 88.88 | E361: 56.28 | F361: 57.86 | G361: 53.68 | H361: 61.6 | I361: 65.76 | J361: 58.65 | K361: 72.91 | L361: 77.05 | M361: 94.3 | N361: 82.5 | O361: 89.76 | P361: 89.1 | Q361: 90.64 | R361: 86.24 | S361: 72.87 | T361: 79.86 | U361: 52.4 | V361: 62.6 | W361: 62.6
A362: PRS | C362: =(100-C355)/100*C300-C363 -> 71.306 | D362: =(100-D355)/100*D300-D363 -> 81.608 | E362: 56.816 | F362: 55.756 | G362: 51.728 | H362: 57.68 | I362: 56.444 | J362: 53.55 | K362: 66.57 | L362: 71.69 | M362: 87.74 | N362: 81.75 | O362: 88.944 | P362: 92.34 | Q362: 91.464 | R362: 87.024 | S362: 76.34 | T362: 79.86 | U362: 61.308 | V362: 73.242 | W362: 73.242
A363: Buyers | C363: =C324*CoreAssumptions!$F$8 -> 112.254 | D363: =D324*CoreAssumptions!$F$8 -> 128.472 | E363: =E324*CoreAssumptions!$F$8 -> 85.224 | F363: =F324*CoreAssumptions!$F$8 -> 83.634 | G363: =G324*CoreAssumptions!$F$8 -> 77.592 | H363: =H324*CoreAssumptions!$F$8 -> 90.72 | I363: =I324*CoreAssumptions!$F$8 -> 88.776 | J363: =J324*CoreAssumptions!$F$8 -> 84.15 | K363: =K324*CoreAssumptions!$F$8 -> 104.61 | L363: =L324*CoreAssumptions!$F$8 -> 112.56 | M363: =M324*CoreAssumptions!$F$8 -> 137.76 | N363: =N324*CoreAssumptions!$F$8 -> 128.25 | O363: =O324*CoreAssumptions!$F$8 -> 139.536 | P363: =P324*CoreAssumptions!$F$8 -> 138.51 | Q363: =Q324*CoreAssumptions!$F$8 -> 143.376 | R363: =R324*CoreAssumptions!$F$8 -> 136.416 | S363: =S324*CoreAssumptions!$F$8 -> 124.92 | T363: =T324*CoreAssumptions!$F$8 -> 130.68 | U363: =U324*CoreAssumptions!$F$8 -> 95.892 | V363: =V324*CoreAssumptions!$F$8 -> 114.558 | W363: =W324*CoreAssumptions!$F$8 -> 114.558
A365: Rents Scenario | B365: =B313 -> 2019 | C365: =B365+1 -> 2020 | D365: 2021 | E365: 2022 | F365: 2023 | G365: 2024 | H365: 2025 | I365: 2026 | J365: 2027 | K365: 2028 | L365: 2029 | M365: 2030 | N365: 2031 | O365: 2032 | P365: 2033 | Q365: 2034 | R365: 2035 | S365: 2036 | T365: 2037 | U365: 2038 | V365: 2039 | W365: 2040
A366: Rises Scenario | B366: =VLOOKUP($X366,PriceScenarios!$B$3:$AF$21,B365-2015,FALSE) -> 0.016 | C366: =VLOOKUP($X366,PriceScenarios!$B$3:$AF$21,C365-2015,FALSE) -> 0.016 | D366: =VLOOKUP($X366,PriceScenarios!$B$3:$AF$21,D365-2015,FALSE) -> 0.016 | E366: =VLOOKUP($X366,PriceScenarios!$B$3:$AF$21,E365-2015,FALSE) -> 0.016 | F366: =VLOOKUP($X366,PriceScenarios!$B$3:$AF$21,F365-2015,FALSE) -> 0.016 | G366: =VLOOKUP($X366,PriceScenarios!$B$3:$AF$21,G365-2015,FALSE) -> 0.016 | H366: =VLOOKUP($X366,PriceScenarios!$B$3:$AF$21,H365-2015,FALSE) -> 0.016 | I366: =VLOOKUP($X366,PriceScenarios!$B$3:$AF$21,I365-2015,FALSE) -> 0.016 | J366: =VLOOKUP($X366,PriceScenarios!$B$3:$AF$21,J365-2015,FALSE) -> 0.016 | K366: =VLOOKUP($X366,PriceScenarios!$B$3:$AF$21,K365-2015,FALSE) -> 0.016 | L366: =VLOOKUP($X366,PriceScenarios!$B$3:$AF$21,L365-2015,FALSE) -> 0.016 | M366: =VLOOKUP($X366,PriceScenarios!$B$3:$AF$21,M365-2015,FALSE) -> 0.016 | N366: =VLOOKUP($X366,PriceScenarios!$B$3:$AF$21,N365-2015,FALSE) -> 0.016 | O366: =VLOOKUP($X366,PriceScenarios!$B$3:$AF$21,O365-2015,FALSE) -> 0.016 | P366: =VLOOKUP($X366,PriceScenarios!$B$3:$AF$21,P365-2015,FALSE) -> 0.016 | Q366: =VLOOKUP($X366,PriceScenarios!$B$3:$AF$21,Q365-2015,FALSE) -> 0.016 | R366: =VLOOKUP($X366,PriceScenarios!$B$3:$AF$21,R365-2015,FALSE) -> 0.016 | S366: =VLOOKUP($X366,PriceScenarios!$B$3:$AF$21,S365-2015,FALSE) -> 0.016 | T366: =VLOOKUP($X366,PriceScenarios!$B$3:$AF$21,T365-2015,FALSE) -> 0.016 | U366: =VLOOKUP($X366,PriceScenarios!$B$3:$AF$21,U365-2015,FALSE) -> 0.016 | V366: =VLOOKUP($X366,PriceScenarios!$B$3:$AF$21,V365-2015,FALSE) -> 0.016 | W366: =VLOOKUP($X366,PriceScenarios!$B$3:$AF$21,W365-2015,FALSE) -> 0.016 | X366: =CHOOSE(X123,PriceScenarios!$B$3,PriceScenarios!$B$4,PriceScenarios!$B$5,PriceScenarios!$B$6,PriceScenarios!$B$7,PriceScenarios!$B$8,PriceScenarios!$B$9,PriceScenarios!$B$10,PriceScenarios!$B$11,PriceScenarios!$B$12,PriceScenarios!$B$13,PriceScenarios!$B$14,PriceScenarios!$B$15,PriceScenarios!$B$16,PriceScenarios!$B$17,PriceScenarios!$B$18,PriceScenarios!$B$19,PriceScenarios!$B$20,PriceScenarios!$B$21) -> Trend Growth (CoreDefault)
A368: Rent Median (Scenario) | B368: =HLOOKUP($A$1,Data!$C$1:$AJ$211,ScenarioAll!$X368,FALSE) -> 138.4615385 | C368: =B368*(1+B366) -> 140.6769231 | D368: =C368*(1+C366) -> 142.9277538 | E368: 145.2145979 | F368: 147.5380315 | G368: 149.89864 | H368: 152.2970182 | I368: 154.7337705 | J368: 157.2095108 | K368: 159.724863 | L368: 162.2804608 | M368: 164.8769482 | N368: 167.5149794 | O368: 170.195219 | P368: 172.9183425 | Q368: 175.685036 | R368: 178.4959966 | S368: 181.3519325 | T368: 184.2535635 | U368: 187.2016205 | V368: =U368*(1+U366) -> 190.1968464 | W368: =V368*(1+V366) -> 193.2399959 | X368: 210
A369: Rent 30th (Scenario) | B369: =HLOOKUP($A$1,Data!$C$1:$AJ$211,ScenarioAll!$X369,FALSE) -> 122.3076923 | C369: =B369*(1+B366) -> 124.2646154 | D369: =C369*(1+C366) -> 126.2528492 | E369: 128.2728948 | F369: 130.3252611 | G369: 132.4104653 | H369: 134.5290328 | I369: 136.6814973 | J369: 138.8684012 | K369: 141.0902957 | L369: 143.3477404 | M369: 145.6413042 | N369: 147.9715651 | O369: 150.3391101 | P369: 152.7445359 | Q369: 155.1884485 | R369: 157.6714637 | S369: 160.1942071 | T369: 162.7573144 | U369: 165.3614314 | V369: =U369*(1+U366) -> 168.0072143 | W369: =V369*(1+V366) -> 170.6953298 | X369: 211
A370: Annual Rent Medain | B370: =B368*52 -> 7200 | C370: =C368*52 -> 7315.2 | D370: 7432.2432 | E370: 7551.159091 | F370: 7671.977637 | G370: 7794.729279 | H370: 7919.444947 | I370: 8046.156066 | J370: 8174.894564 | K370: 8305.692877 | L370: 8438.583963 | M370: 8573.601306 | N370: 8710.778927 | O370: 8850.15139 | P370: 8991.753812 | Q370: 9135.621873 | R370: 9281.791823 | S370: 9430.300492 | T370: 9581.1853 | U370: 9734.484265 | V370: =V368*52 -> 9890.236013 | W370: =W368*52 -> 10048.47979
A371: Annual Rent 30th | B371: =B369*52 -> 6360 | C371: 6461.76 | D371: 6565.14816 | E371: 6670.190531 | F371: 6776.913579 | G371: 6885.344196 | H371: 6995.509703 | I371: 7107.437859 | J371: 7221.156864 | K371: 7336.695374 | L371: 7454.0825 | M371: 7573.34782 | N371: 7694.521385 | O371: 7817.633728 | P371: 7942.715867 | Q371: 8069.799321 | R371: 8198.91611 | S371: 8330.098768 | T371: 8463.380348 | U371: 8598.794434 | V371: =V369*52 -> 8736.375145 | W371: =W369*52 -> 8876.157147
A373: Income above | B373: =B370/$C$116 -> 28800 | C373: 29260.8 | D373: 29728.9728 | E373: 30204.63636 | F373: 30687.91055 | G373: 31178.91712 | H373: 31677.77979 | I373: 32184.62427 | J373: 32699.57825 | K373: 33222.77151 | L373: 33754.33585 | M373: 34294.40522 | N373: 34843.11571 | O373: 35400.60556 | P373: 35967.01525 | Q373: 36542.48749 | R373: 37127.16729 | S373: 37721.20197 | T373: 38324.7412 | U373: 38937.93706 | V373: =V370/$C$116 -> 39560.94405 | W373: =W370/$C$116 -> 40193.91916
A374: Income below | B374: =B371/$C$117 -> 18171.42857 | C374: 18462.17143 | D374: 18757.56617 | E374: 19057.68723 | F374: 19362.61023 | G374: 19672.41199 | H374: 19987.17058 | I374: 20306.96531 | J374: 20631.87676 | K374: 20961.98678 | L374: 21297.37857 | M374: 21638.13663 | N374: 21984.34682 | O374: 22336.09636 | P374: 22693.47391 | Q374: 23056.56949 | R374: 23425.4746 | S374: 23800.28219 | T374: 24181.08671 | U374: 24567.9841 | V374: =V371/$C$117 -> 24961.07184 | W374: =W371/$C$117 -> 25360.44899
A375: Above percentile | B375: =IF(ISERROR(VLOOKUP(B373,B$493:$AA$573,B$492+3)),10,VLOOKUP(B373,B$493:$AA$573,B$492+3)) -> 49 | C375: =IF(ISERROR(VLOOKUP(C373,C$493:$AA$573,C$492+3)),10,VLOOKUP(C373,C$493:$AA$573,C$492+3)) -> 48 | D375: =IF(ISERROR(VLOOKUP(D373,D$493:$AA$573,D$492+3)),10,VLOOKUP(D373,D$493:$AA$573,D$492+3)) -> 48 | E375: =IF(ISERROR(VLOOKUP(E373,E$493:$AA$573,E$492+3)),10,VLOOKUP(E373,E$493:$AA$573,E$492+3)) -> 47 | F375: =IF(ISERROR(VLOOKUP(F373,F$493:$AA$573,F$492+3)),10,VLOOKUP(F373,F$493:$AA$573,F$492+3)) -> 47 | G375: =IF(ISERROR(VLOOKUP(G373,G$493:$AA$573,G$492+3)),10,VLOOKUP(G373,G$493:$AA$573,G$492+3)) -> 47 | H375: =IF(ISERROR(VLOOKUP(H373,H$493:$AA$573,H$492+3)),10,VLOOKUP(H373,H$493:$AA$573,H$492+3)) -> 47 | I375: =IF(ISERROR(VLOOKUP(I373,I$493:$AA$573,I$492+3)),10,VLOOKUP(I373,I$493:$AA$573,I$492+3)) -> 47 | J375: =IF(ISERROR(VLOOKUP(J373,J$493:$AA$573,J$492+3)),10,VLOOKUP(J373,J$493:$AA$573,J$492+3)) -> 46 | K375: =IF(ISERROR(VLOOKUP(K373,K$493:$AA$573,K$492+3)),10,VLOOKUP(K373,K$493:$AA$573,K$492+3)) -> 46 | L375: =IF(ISERROR(VLOOKUP(L373,L$493:$AA$573,L$492+3)),10,VLOOKUP(L373,L$493:$AA$573,L$492+3)) -> 45 | M375: =IF(ISERROR(VLOOKUP(M373,M$493:$AA$573,M$492+3)),10,VLOOKUP(M373,M$493:$AA$573,M$492+3)) -> 45 | N375: =IF(ISERROR(VLOOKUP(N373,N$493:$AA$573,N$492+3)),10,VLOOKUP(N373,N$493:$AA$573,N$492+3)) -> 44 | O375: =IF(ISERROR(VLOOKUP(O373,O$493:$AA$573,O$492+3)),10,VLOOKUP(O373,O$493:$AA$573,O$492+3)) -> 44 | P375: =IF(ISERROR(VLOOKUP(P373,P$493:$AA$573,P$492+3)),10,VLOOKUP(P373,P$493:$AA$573,P$492+3)) -> 43 | Q375: =IF(ISERROR(VLOOKUP(Q373,Q$493:$AA$573,Q$492+3)),10,VLOOKUP(Q373,Q$493:$AA$573,Q$492+3)) -> 43 | R375: =IF(ISERROR(VLOOKUP(R373,R$493:$AA$573,R$492+3)),10,VLOOKUP(R373,R$493:$AA$573,R$492+3)) -> 43 | S375: =IF(ISERROR(VLOOKUP(S373,S$493:$AA$573,S$492+3)),10,VLOOKUP(S373,S$493:$AA$573,S$492+3)) -> 42 | T375: =IF(ISERROR(VLOOKUP(T373,T$493:$AA$573,T$492+3)),10,VLOOKUP(T373,T$493:$AA$573,T$492+3)) -> 42 | U375: =IF(ISERROR(VLOOKUP(U373,U$493:$AA$573,U$492+3)),10,VLOOKUP(U373,U$493:$AA$573,U$492+3)) -> 40 | V375: =IF(ISERROR(VLOOKUP(V373,V$493:$AA$573,V$492+3)),10,VLOOKUP(V373,V$493:$AA$573,V$492+3)) -> 40 | W375: =IF(ISERROR(VLOOKUP(W373,W$493:$AA$573,W$492+3)),10,VLOOKUP(W373,W$493:$AA$573,W$492+3)) -> 40
A376: Below percentile | B376: =IF(ISERROR(VLOOKUP(B374,B$493:$AA$573,B$492+3)),10,(VLOOKUP(B374,B$493:$AA$573,B$492+3))) -> 26 | C376: =IF(ISERROR(VLOOKUP(C374,C$493:$AA$573,C$492+3)),10,(VLOOKUP(C374,C$493:$AA$573,C$492+3))) -> 26 | D376: =IF(ISERROR(VLOOKUP(D374,D$493:$AA$573,D$492+3)),10,(VLOOKUP(D374,D$493:$AA$573,D$492+3))) -> 26 | E376: =IF(ISERROR(VLOOKUP(E374,E$493:$AA$573,E$492+3)),10,(VLOOKUP(E374,E$493:$AA$573,E$492+3))) -> 26 | F376: =IF(ISERROR(VLOOKUP(F374,F$493:$AA$573,F$492+3)),10,(VLOOKUP(F374,F$493:$AA$573,F$492+3))) -> 25 | G376: =IF(ISERROR(VLOOKUP(G374,G$493:$AA$573,G$492+3)),10,(VLOOKUP(G374,G$493:$AA$573,G$492+3))) -> 25 | H376: =IF(ISERROR(VLOOKUP(H374,H$493:$AA$573,H$492+3)),10,(VLOOKUP(H374,H$493:$AA$573,H$492+3))) -> 25 | I376: =IF(ISERROR(VLOOKUP(I374,I$493:$AA$573,I$492+3)),10,(VLOOKUP(I374,I$493:$AA$573,I$492+3))) -> 23 | J376: =IF(ISERROR(VLOOKUP(J374,J$493:$AA$573,J$492+3)),10,(VLOOKUP(J374,J$493:$AA$573,J$492+3))) -> 23 | K376: =IF(ISERROR(VLOOKUP(K374,K$493:$AA$573,K$492+3)),10,(VLOOKUP(K374,K$493:$AA$573,K$492+3))) -> 23 | L376: =IF(ISERROR(VLOOKUP(L374,L$493:$AA$573,L$492+3)),10,(VLOOKUP(L374,L$493:$AA$573,L$492+3))) -> 22 | M376: =IF(ISERROR(VLOOKUP(M374,M$493:$AA$573,M$492+3)),10,(VLOOKUP(M374,M$493:$AA$573,M$492+3))) -> 22 | N376: =IF(ISERROR(VLOOKUP(N374,N$493:$AA$573,N$492+3)),10,(VLOOKUP(N374,N$493:$AA$573,N$492+3))) -> 22 | O376: =IF(ISERROR(VLOOKUP(O374,O$493:$AA$573,O$492+3)),10,(VLOOKUP(O374,O$493:$AA$573,O$492+3))) -> 22 | P376: =IF(ISERROR(VLOOKUP(P374,P$493:$AA$573,P$492+3)),10,(VLOOKUP(P374,P$493:$AA$573,P$492+3))) -> 21 | Q376: =IF(ISERROR(VLOOKUP(Q374,Q$493:$AA$573,Q$492+3)),10,(VLOOKUP(Q374,Q$493:$AA$573,Q$492+3))) -> 21 | R376: =IF(ISERROR(VLOOKUP(R374,R$493:$AA$573,R$492+3)),10,(VLOOKUP(R374,R$493:$AA$573,R$492+3))) -> 21 | S376: =IF(ISERROR(VLOOKUP(S374,S$493:$AA$573,S$492+3)),10,(VLOOKUP(S374,S$493:$AA$573,S$492+3))) -> 21 | T376: =IF(ISERROR(VLOOKUP(T374,T$493:$AA$573,T$492+3)),10,(VLOOKUP(T374,T$493:$AA$573,T$492+3))) -> 20 | U376: =IF(ISERROR(VLOOKUP(U374,U$493:$AA$573,U$492+3)),10,(VLOOKUP(U374,U$493:$AA$573,U$492+3))) -> 20 | V376: =IF(ISERROR(VLOOKUP(V374,V$493:$AA$573,V$492+3)),10,(VLOOKUP(V374,V$493:$AA$573,V$492+3))) -> 20 | W376: =IF(ISERROR(VLOOKUP(W374,W$493:$AA$573,W$492+3)),10,(VLOOKUP(W374,W$493:$AA$573,W$492+3))) -> 20
A379: Total need by tenure scenario
A380: Social Rent | C380: =C303-C381-C382-C383 -> 187.78 | D380: 201.04 | E380: 165.68 | F380: 161.75 | G380: 157 | H380: 70 | I380: 63.02 | J380: 58.65 | K380: 72.91 | L380: 73.7 | M380: 90.2 | N380: 82.5 | O380: 89.76 | P380: 85.05 | Q380: 86.52 | R380: 82.32 | S380: 72.87 | T380: 72.6 | U380: 52.4 | V380: 62.6 | W380: 62.6
A381: BM Rent | C381: =IF($B$295=TRUE,(C375-C376)/100*C301,IF($B$292=TRUE,(C375-C376)/100*C303,(C375-C376)/100*C301)) -> 77.66 | D381: =IF($B$295=TRUE,(D375-D376)/100*D301,IF($B$292=TRUE,(D375-D376)/100*D303,(D375-D376)/100*D301)) -> 88.88 | E381: 56.28 | F381: 57.86 | G381: 53.68 | H381: 61.6 | I381: 65.76 | J381: 58.65 | K381: 72.91 | L381: 77.05 | M381: 94.3 | N381: 82.5 | O381: 89.76 | P381: 89.1 | Q381: 90.64 | R381: 86.24 | S381: 72.87 | T381: 79.86 | U381: 52.4 | V381: 62.6 | W381: 62.6
A382: PRS | C382: =IF($B$295=TRUE,(100-C375)/100*C301-C383,IF($B$292=TRUE,(100-C375)/100*C303-C383,(100-C375)/100*C301-C383)) -> 71.306 | D382: =IF($B$295=TRUE,(100-D375)/100*D301-D383,IF($B$292=TRUE,(100-D375)/100*D303-D383,(100-D375)/100*D301-D383)) -> 81.608 | E382: 56.816 | F382: 55.756 | G382: 51.728 | H382: 57.68 | I382: 56.444 | J382: 53.55 | K382: 66.57 | L382: 71.69 | M382: 87.74 | N382: 81.75 | O382: 88.944 | P382: 92.34 | Q382: 91.464 | R382: 87.024 | S382: 76.34 | T382: 79.86 | U382: 61.308 | V382: 73.242 | W382: 73.242
A383: Buyers | C383: =C339*$C$115 -> 112.254 | D383: =D339*$C$115 -> 128.472 | E383: 85.224 | F383: 83.634 | G383: 77.592 | H383: 90.72 | I383: 88.776 | J383: 84.15 | K383: 104.61 | L383: 112.56 | M383: 137.76 | N383: 128.25 | O383: 139.536 | P383: 138.51 | Q383: 143.376 | R383: 136.416 | S383: 124.92 | T383: 130.68 | U383: 95.892 | V383: 114.558 | W383: 114.558
A389: Income Change Scenario
A390: Principal | C390: =OFFSET(IncomeScenarios!F5,0,Map!$S$13-2012) -> 0.025 | D390: =OFFSET(IncomeScenarios!G5,0,Map!$S$13-2012) -> 0.025 | E390: =OFFSET(IncomeScenarios!H5,0,Map!$S$13-2012) -> 0.025 | F390: =OFFSET(IncomeScenarios!I5,0,Map!$S$13-2012) -> 0.025 | G390: =OFFSET(IncomeScenarios!J5,0,Map!$S$13-2012) -> 0.025 | H390: =OFFSET(IncomeScenarios!K5,0,Map!$S$13-2012) -> 0.025 | I390: =OFFSET(IncomeScenarios!L5,0,Map!$S$13-2012) -> 0.025 | J390: =OFFSET(IncomeScenarios!M5,0,Map!$S$13-2012) -> 0.025 | K390: =OFFSET(IncomeScenarios!N5,0,Map!$S$13-2012) -> 0.025 | L390: =OFFSET(IncomeScenarios!O5,0,Map!$S$13-2012) -> 0.025 | M390: =OFFSET(IncomeScenarios!P5,0,Map!$S$13-2012) -> 0.025 | N390: =OFFSET(IncomeScenarios!Q5,0,Map!$S$13-2012) -> 0.025 | O390: =OFFSET(IncomeScenarios!R5,0,Map!$S$13-2012) -> 0.025 | P390: =OFFSET(IncomeScenarios!S5,0,Map!$S$13-2012) -> 0.025 | Q390: =OFFSET(IncomeScenarios!T5,0,Map!$S$13-2012) -> 0.025 | R390: =OFFSET(IncomeScenarios!U5,0,Map!$S$13-2012) -> 0.025 | S390: =OFFSET(IncomeScenarios!V5,0,Map!$S$13-2012) -> 0.025 | T390: =OFFSET(IncomeScenarios!W5,0,Map!$S$13-2012) -> 0.025 | U390: =OFFSET(IncomeScenarios!X5,0,Map!$S$13-2012) -> 0.025 | V390: =OFFSET(IncomeScenarios!Y5,0,Map!$S$13-2012) -> 0.025 | W390: =OFFSET(IncomeScenarios!Z5,0,Map!$S$13-2012) -> 0.025
A391: Principle Distribution | C391: =OFFSET(IncomeScenarios!F28,0,Map!$S$13-2012) -> 0 | D391: =OFFSET(IncomeScenarios!G28,0,Map!$S$13-2012) -> 0 | E391: =OFFSET(IncomeScenarios!H28,0,Map!$S$13-2012) -> 0 | F391: =OFFSET(IncomeScenarios!I28,0,Map!$S$13-2012) -> 0 | G391: =OFFSET(IncomeScenarios!J28,0,Map!$S$13-2012) -> 0 | H391: =OFFSET(IncomeScenarios!K28,0,Map!$S$13-2012) -> 0 | I391: =OFFSET(IncomeScenarios!L28,0,Map!$S$13-2012) -> 0 | J391: =OFFSET(IncomeScenarios!M28,0,Map!$S$13-2012) -> 0 | K391: =OFFSET(IncomeScenarios!N28,0,Map!$S$13-2012) -> 0 | L391: =OFFSET(IncomeScenarios!O28,0,Map!$S$13-2012) -> 0 | M391: =OFFSET(IncomeScenarios!P28,0,Map!$S$13-2012) -> 0 | N391: =OFFSET(IncomeScenarios!Q28,0,Map!$S$13-2012) -> 0 | O391: =OFFSET(IncomeScenarios!R28,0,Map!$S$13-2012) -> 0 | P391: =OFFSET(IncomeScenarios!S28,0,Map!$S$13-2012) -> 0 | Q391: =OFFSET(IncomeScenarios!T28,0,Map!$S$13-2012) -> 0 | R391: =OFFSET(IncomeScenarios!U28,0,Map!$S$13-2012) -> 0 | S391: =OFFSET(IncomeScenarios!V28,0,Map!$S$13-2012) -> 0 | T391: =OFFSET(IncomeScenarios!W28,0,Map!$S$13-2012) -> 0 | U391: =OFFSET(IncomeScenarios!X28,0,Map!$S$13-2012) -> 0 | V391: =OFFSET(IncomeScenarios!Y28,0,Map!$S$13-2012) -> 0 | W391: =OFFSET(IncomeScenarios!Z28,0,Map!$S$13-2012) -> 0
A392: Scenario | C392: =OFFSET(IncomeScenarios!F2,$X$44,Map!$S$13-2012) -> 0.025 | D392: =OFFSET(IncomeScenarios!G2,$X$44,Map!$S$13-2012) -> 0.025 | E392: =OFFSET(IncomeScenarios!H2,$X$44,Map!$S$13-2012) -> 0.025 | F392: =OFFSET(IncomeScenarios!I2,$X$44,Map!$S$13-2012) -> 0.025 | G392: =OFFSET(IncomeScenarios!J2,$X$44,Map!$S$13-2012) -> 0.025 | H392: =OFFSET(IncomeScenarios!K2,$X$44,Map!$S$13-2012) -> 0.025 | I392: =OFFSET(IncomeScenarios!L2,$X$44,Map!$S$13-2012) -> 0.025 | J392: =OFFSET(IncomeScenarios!M2,$X$44,Map!$S$13-2012) -> 0.025 | K392: =OFFSET(IncomeScenarios!N2,$X$44,Map!$S$13-2012) -> 0.025 | L392: =OFFSET(IncomeScenarios!O2,$X$44,Map!$S$13-2012) -> 0.025 | M392: =OFFSET(IncomeScenarios!P2,$X$44,Map!$S$13-2012) -> 0.025 | N392: =OFFSET(IncomeScenarios!Q2,$X$44,Map!$S$13-2012) -> 0.025 | O392: =OFFSET(IncomeScenarios!R2,$X$44,Map!$S$13-2012) -> 0.025 | P392: =OFFSET(IncomeScenarios!S2,$X$44,Map!$S$13-2012) -> 0.025 | Q392: =OFFSET(IncomeScenarios!T2,$X$44,Map!$S$13-2012) -> 0.025 | R392: =OFFSET(IncomeScenarios!U2,$X$44,Map!$S$13-2012) -> 0.025 | S392: =OFFSET(IncomeScenarios!V2,$X$44,Map!$S$13-2012) -> 0.025 | T392: =OFFSET(IncomeScenarios!W2,$X$44,Map!$S$13-2012) -> 0.025 | U392: =OFFSET(IncomeScenarios!X2,$X$44,Map!$S$13-2012) -> 0.025 | V392: =OFFSET(IncomeScenarios!Y2,$X$44,Map!$S$13-2012) -> 0.025 | W392: =OFFSET(IncomeScenarios!Z2,$X$44,Map!$S$13-2012) -> 0.025
A393: Scenario Distribution | C393: =OFFSET(IncomeScenarios!F26,$X$54,Map!$S$13-2012) -> 0 | D393: =OFFSET(IncomeScenarios!G26,$X$54,Map!$S$13-2012) -> 0 | E393: =OFFSET(IncomeScenarios!H26,$X$54,Map!$S$13-2012) -> 0 | F393: =OFFSET(IncomeScenarios!I26,$X$54,Map!$S$13-2012) -> 0 | G393: =OFFSET(IncomeScenarios!J26,$X$54,Map!$S$13-2012) -> 0 | H393: =OFFSET(IncomeScenarios!K26,$X$54,Map!$S$13-2012) -> 0 | I393: =OFFSET(IncomeScenarios!L26,$X$54,Map!$S$13-2012) -> 0 | J393: =OFFSET(IncomeScenarios!M26,$X$54,Map!$S$13-2012) -> 0 | K393: =OFFSET(IncomeScenarios!N26,$X$54,Map!$S$13-2012) -> 0 | L393: =OFFSET(IncomeScenarios!O26,$X$54,Map!$S$13-2012) -> 0 | M393: =OFFSET(IncomeScenarios!P26,$X$54,Map!$S$13-2012) -> 0 | N393: =OFFSET(IncomeScenarios!Q26,$X$54,Map!$S$13-2012) -> 0 | O393: =OFFSET(IncomeScenarios!R26,$X$54,Map!$S$13-2012) -> 0 | P393: =OFFSET(IncomeScenarios!S26,$X$54,Map!$S$13-2012) -> 0 | Q393: =OFFSET(IncomeScenarios!T26,$X$54,Map!$S$13-2012) -> 0 | R393: =OFFSET(IncomeScenarios!U26,$X$54,Map!$S$13-2012) -> 0 | S393: =OFFSET(IncomeScenarios!V26,$X$54,Map!$S$13-2012) -> 0 | T393: =OFFSET(IncomeScenarios!W26,$X$54,Map!$S$13-2012) -> 0 | U393: =OFFSET(IncomeScenarios!X26,$X$54,Map!$S$13-2012) -> 0 | V393: =OFFSET(IncomeScenarios!Y26,$X$54,Map!$S$13-2012) -> 0 | W393: =OFFSET(IncomeScenarios!Z26,$X$54,Map!$S$13-2012) -> 0
A397: SG Income Estimates | B397: =B365 -> 2019 | C397: =B397+1 -> 2020 | D397: 2021 | E397: 2022 | F397: 2023 | G397: 2024 | H397: 2025 | I397: 2026 | J397: 2027 | K397: 2028 | L397: 2029 | M397: 2030 | N397: 2031 | O397: 2032 | P397: 2033 | Q397: 2034 | R397: 2035 | S397: 2036 | T397: 2037 | U397: 2038 | V397: 2039 | W397: 2040
A398: Principal Median | B398: =B442 -> 29120 | C398: =C442 -> 29848 | D398: 30594.2 | E398: 31359.055 | F398: 32143.03137 | G398: 32946.60716 | H398: 33770.27234 | I398: 34614.52915 | J398: 35479.89238 | K398: 36366.88968 | L398: 37276.06193 | M398: 38207.96348 | N398: 39163.16256 | O398: 40142.24163 | P398: 41145.79767 | Q398: 42174.44261 | R398: 43228.80367 | S398: 44309.52377 | T398: 45417.26186 | U398: 46552.69341 | V398: 47716.51074 | W398: 48909.42351
A399: =CONCATENATE("Principal ",C49,"%ile") -> Principal 75%ile | B399: =VLOOKUP($C$49,$A$402:$W$482,25-B401,FALSE) -> 47840 | C399: 49036 | D399: 50261.9 | E399: 51518.4475 | F399: 52806.40869 | G399: 54126.5689 | H399: 55479.73313 | I399: 56866.72646 | J399: 58288.39462 | K399: 59745.60448 | L399: 61239.24459 | M399: 62770.22571 | N399: 64339.48135 | O399: 65947.96839 | P399: 67596.6676 | Q399: 69286.58429 | R399: 71018.74889 | S399: 72794.21761 | T399: 74614.07306 | U399: 76479.42488 | V399: 78391.4105 | W399: 80351.19577
A400: =CONCATENATE("Principal",C50,"%ile") -> Principal25%ile | B400: =VLOOKUP($C$50,$A$402:$W$482,25-B401,FALSE) -> 17160 | C400: 17589 | D400: 18028.725 | E400: 18479.44312 | F400: 18941.4292 | G400: 19414.96493 | H400: 19900.33906 | I400: 20397.84753 | J400: 20907.79372 | K400: 21430.48856 | L400: 21966.25078 | M400: 22515.40705 | N400: 23078.29222 | O400: 23655.24953 | P400: 24246.63077 | Q400: 24852.79654 | R400: 25474.11645 | S400: 26110.96936 | T400: 26763.7436 | U400: 27432.83719 | V400: 28118.65812 | W400: 28821.62457
A401: 1 | B401: 23 | C401: =B401-1 -> 22 | D401: 21 | E401: 20 | F401: 19 | G401: 18 | H401: 17 | I401: 16 | J401: 15 | K401: 14 | L401: 13 | M401: 12 | N401: 11 | O401: 10 | P401: 9 | Q401: 8 | R401: 7 | S401: 6 | T401: 5 | U401: 4 | V401: 3 | W401: 2 | Y401: =2018 -> 2018 | Z401: =CONCATENATE("Principal ",C51) -> Principal 2038
A402: =Data!B308 -> 10 | B402: =HLOOKUP($A$1,Data!$C$1:$AJ$388,$X402,FALSE) -> 10920 | C402: =B402*(1+C$390+(-(50-$A402)*(C$391/40))) -> 11193 | D402: =C402*(1+D$390+(-(50-$A402)*(D$391/40))) -> 11472.825 | E402: 11759.64562 | F402: 12053.63677 | G402: 12354.97768 | H402: 12663.85213 | I402: 12980.44843 | J402: 13304.95964 | K402: 13637.58363 | L402: 13978.52322 | M402: 14327.9863 | N402: 14686.18596 | O402: 15053.34061 | P402: 15429.67413 | Q402: 15815.41598 | R402: 16210.80138 | S402: 16616.07141 | T402: =S402*(1+T$390+(-(50-$A402)*(T$391/40))) -> 17031.4732 | U402: 17457.26003 | V402: 17893.69153 | W402: 18341.03382 | X402: 226 | Y402: =C402 -> 11193 | Z402: =OFFSET(B402,0,$C$51-Map!$S$13+1) -> 17457.26003 | AA402: =A402 -> 10
A403: =Data!B309 -> 11 | B403: =HLOOKUP($A$1,Data!$C$1:$AJ$388,$X403,FALSE) -> 11440 | C403: =B403*(1+C$390+(-(50-$A403)*(C$391/40))) -> 11726 | D403: 12019.15 | E403: 12319.62875 | F403: 12627.61947 | G403: 12943.30996 | H403: 13266.8927 | I403: 13598.56502 | J403: 13938.52915 | K403: 14286.99238 | L403: 14644.16719 | M403: 15010.27137 | N403: 15385.52815 | O403: 15770.16635 | P403: 16164.42051 | Q403: 16568.53102 | R403: 16982.7443 | S403: 17407.31291 | T403: 17842.49573 | U403: 18288.55812 | V403: 18745.77208 | W403: 19214.41638 | X403: 227 | Y403: 11726 | Z403: =OFFSET(B403,0,$C$51-Map!$S$13+1) -> 18288.55812 | AA403: 11
A404: =Data!B310 -> 12 | B404: =HLOOKUP($A$1,Data!$C$1:$AJ$388,$X404,FALSE) -> 11960 | C404: 12259 | D404: 12565.475 | E404: 12879.61187 | F404: 13201.60217 | G404: 13531.64223 | H404: 13869.93328 | I404: 14216.68161 | J404: 14572.09865 | K404: 14936.40112 | L404: 15309.81115 | M404: 15692.55643 | N404: 16084.87034 | O404: 16486.9921 | P404: 16899.1669 | Q404: 17321.64607 | R404: 17754.68722 | S404: 18198.5544 | T404: 18653.51826 | U404: 19119.85622 | V404: 19597.85263 | W404: 20087.79894 | X404: 228 | Y404: 12259 | Z404: =OFFSET(B404,0,$C$51-Map!$S$13+1) -> 19119.85622 | AA404: 12
A405: =Data!B311 -> 13 | B405: =HLOOKUP($A$1,Data!$C$1:$AJ$388,$X405,FALSE) -> 12480 | C405: 12792 | D405: 13111.8 | E405: 13439.595 | F405: 13775.58487 | G405: 14119.9745 | H405: 14472.97386 | I405: 14834.79821 | J405: 15205.66816 | K405: 15585.80986 | L405: 15975.45511 | M405: 16374.84149 | N405: 16784.21253 | O405: 17203.81784 | P405: 17633.91329 | Q405: 18074.76112 | R405: 18526.63015 | S405: 18989.7959 | T405: 19464.5408 | U405: 19951.15432 | V405: 20449.93317 | W405: 20961.1815 | X405: 229 | Y405: 12792 | Z405: =OFFSET(B405,0,$C$51-Map!$S$13+1) -> 19951.15432 | AA405: 13
A406: =Data!B312 -> 14 | B406: =HLOOKUP($A$1,Data!$C$1:$AJ$388,$X406,FALSE) -> 13000 | C406: 13325 | D406: 13658.125 | E406: 13999.57812 | F406: 14349.56758 | G406: 14708.30677 | H406: 15076.01444 | I406: 15452.9148 | J406: 15839.23767 | K406: 16235.21861 | L406: 16641.09907 | M406: 17057.12655 | N406: 17483.55472 | O406: 17920.64358 | P406: 18368.65967 | Q406: 18827.87616 | R406: 19298.57307 | S406: 19781.0374 | T406: 20275.56333 | U406: 20782.45241 | V406: 21302.01372 | W406: 21834.56407 | X406: 230 | Y406: 13325 | Z406: =OFFSET(B406,0,$C$51-Map!$S$13+1) -> 20782.45241 | AA406: 14
A407: =Data!B313 -> 15 | B407: =HLOOKUP($A$1,Data!$C$1:$AJ$388,$X407,FALSE) -> 13000 | C407: 13325 | D407: 13658.125 | E407: 13999.57812 | F407: 14349.56758 | G407: 14708.30677 | H407: 15076.01444 | I407: 15452.9148 | J407: 15839.23767 | K407: 16235.21861 | L407: 16641.09907 | M407: 17057.12655 | N407: 17483.55472 | O407: 17920.64358 | P407: 18368.65967 | Q407: 18827.87616 | R407: 19298.57307 | S407: 19781.0374 | T407: 20275.56333 | U407: 20782.45241 | V407: 21302.01372 | W407: 21834.56407 | X407: 231 | Y407: 13325 | Z407: =OFFSET(B407,0,$C$51-Map!$S$13+1) -> 20782.45241 | AA407: 15
A408: =Data!B314 -> 16 | B408: =HLOOKUP($A$1,Data!$C$1:$AJ$388,$X408,FALSE) -> 13520 | C408: 13858 | D408: 14204.45 | E408: 14559.56125 | F408: 14923.55028 | G408: 15296.63904 | H408: 15679.05501 | I408: 16071.03139 | J408: 16472.80717 | K408: 16884.62735 | L408: 17306.74304 | M408: 17739.41161 | N408: 18182.8969 | O408: 18637.46933 | P408: 19103.40606 | Q408: 19580.99121 | R408: 20070.51599 | S408: 20572.27889 | T408: 21086.58586 | U408: 21613.75051 | V408: 22154.09427 | W408: 22707.94663 | X408: 232 | Y408: 13858 | Z408: =OFFSET(B408,0,$C$51-Map!$S$13+1) -> 21613.75051 | AA408: 16
A409: =Data!B315 -> 17 | B409: =HLOOKUP($A$1,Data!$C$1:$AJ$388,$X409,FALSE) -> 14040 | C409: 14391 | D409: 14750.775 | E409: 15119.54437 | F409: 15497.53298 | G409: 15884.97131 | H409: 16282.09559 | I409: 16689.14798 | J409: 17106.37668 | K409: 17534.0361 | L409: 17972.387 | M409: 18421.69668 | N409: 18882.23909 | O409: 19354.29507 | P409: 19838.15245 | Q409: 20334.10626 | R409: 20842.45891 | S409: 21363.52039 | T409: 21897.6084 | U409: 22445.04861 | V409: 23006.17482 | W409: 23581.32919 | X409: 233 | Y409: 14391 | Z409: =OFFSET(B409,0,$C$51-Map!$S$13+1) -> 22445.04861 | AA409: 17
A410: =Data!B316 -> 18 | B410: =HLOOKUP($A$1,Data!$C$1:$AJ$388,$X410,FALSE) -> 14560 | C410: 14924 | D410: 15297.1 | E410: 15679.5275 | F410: 16071.51569 | G410: 16473.30358 | H410: 16885.13617 | I410: 17307.26457 | J410: 17739.94619 | K410: 18183.44484 | L410: 18638.03096 | M410: 19103.98174 | N410: 19581.58128 | O410: 20071.12081 | P410: 20572.89883 | Q410: 21087.2213 | R410: 21614.40184 | S410: 22154.76188 | T410: 22708.63093 | U410: 23276.3467 | V410: 23858.25537 | W410: 24454.71175 | X410: 234 | Y410: 14924 | Z410: =OFFSET(B410,0,$C$51-Map!$S$13+1) -> 23276.3467 | AA410: 18
A411: =Data!B317 -> 19 | B411: =HLOOKUP($A$1,Data!$C$1:$AJ$388,$X411,FALSE) -> 15080 | C411: 15457 | D411: 15843.425 | E411: 16239.51062 | F411: 16645.49839 | G411: 17061.63585 | H411: 17488.17675 | I411: 17925.38117 | J411: 18373.51569 | K411: 18832.85359 | L411: 19303.67493 | M411: 19786.2668 | N411: 20280.92347 | O411: 20787.94656 | P411: 21307.64522 | Q411: 21840.33635 | R411: 22386.34476 | S411: 22946.00338 | T411: 23519.65346 | U411: 24107.6448 | V411: 24710.33592 | W411: 25328.09432 | X411: 235 | Y411: 15457 | Z411: =OFFSET(B411,0,$C$51-Map!$S$13+1) -> 24107.6448 | AA411: 19
A412: =Data!B318 -> 20 | B412: =HLOOKUP($A$1,Data!$C$1:$AJ$388,$X412,FALSE) -> 15080 | C412: 15457 | D412: 15843.425 | E412: 16239.51062 | F412: 16645.49839 | G412: 17061.63585 | H412: 17488.17675 | I412: 17925.38117 | J412: 18373.51569 | K412: 18832.85359 | L412: 19303.67493 | M412: 19786.2668 | N412: 20280.92347 | O412: 20787.94656 | P412: 21307.64522 | Q412: 21840.33635 | R412: 22386.34476 | S412: 22946.00338 | T412: 23519.65346 | U412: 24107.6448 | V412: 24710.33592 | W412: 25328.09432 | X412: 236 | Y412: 15457 | Z412: =OFFSET(B412,0,$C$51-Map!$S$13+1) -> 24107.6448 | AA412: 20
A413: =Data!B319 -> 21 | B413: =HLOOKUP($A$1,Data!$C$1:$AJ$388,$X413,FALSE) -> 15600 | C413: 15990 | D413: 16389.75 | E413: 16799.49375 | F413: 17219.48109 | G413: 17649.96812 | H413: 18091.21732 | I413: 18543.49776 | J413: 19007.0852 | K413: 19482.26233 | L413: 19969.31889 | M413: 20468.55186 | N413: 20980.26566 | O413: 21504.7723 | P413: 22042.39161 | Q413: 22593.4514 | R413: 23158.28768 | S413: 23737.24487 | T413: 24330.676 | U413: 24938.9429 | V413: 25562.41647 | W413: 26201.47688 | X413: 237 | Y413: 15990 | Z413: =OFFSET(B413,0,$C$51-Map!$S$13+1) -> 24938.9429 | AA413: 21
A414: =Data!B320 -> 22 | B414: =HLOOKUP($A$1,Data!$C$1:$AJ$388,$X414,FALSE) -> 16120 | C414: 16523 | D414: 16936.075 | E414: 17359.47687 | F414: 17793.4638 | G414: 18238.30039 | H414: 18694.2579 | I414: 19161.61435 | J414: 19640.65471 | K414: 20131.67108 | L414: 20634.96285 | M414: 21150.83692 | N414: 21679.60785 | O414: 22221.59804 | P414: 22777.13799 | Q414: 23346.56644 | R414: 23930.23061 | S414: 24528.48637 | T414: 25141.69853 | U414: 25770.24099 | V414: 26414.49702 | W414: 27074.85944 | X414: 238 | Y414: 16523 | Z414: =OFFSET(B414,0,$C$51-Map!$S$13+1) -> 25770.24099 | AA414: 22
A415: =Data!B321 -> 23 | B415: =HLOOKUP($A$1,Data!$C$1:$AJ$388,$X415,FALSE) -> 16640 | C415: 17056 | D415: 17482.4 | E415: 17919.46 | F415: 18367.4465 | G415: 18826.63266 | H415: 19297.29848 | I415: 19779.73094 | J415: 20274.22421 | K415: 20781.07982 | L415: 21300.60682 | M415: 21833.12199 | N415: 22378.95004 | O415: 22938.42379 | P415: 23511.88438 | Q415: 24099.68149 | R415: 24702.17353 | S415: 25319.72787 | T415: 25952.72106 | U415: 26601.53909 | V415: 27266.57757 | W415: 27948.24201 | X415: 239 | Y415: 17056 | Z415: =OFFSET(B415,0,$C$51-Map!$S$13+1) -> 26601.53909 | AA415: 23
A416: =Data!B322 -> 24 | B416: =HLOOKUP($A$1,Data!$C$1:$AJ$388,$X416,FALSE) -> 17160 | C416: 17589 | D416: 18028.725 | E416: 18479.44312 | F416: 18941.4292 | G416: 19414.96493 | H416: 19900.33906 | I416: 20397.84753 | J416: 20907.79372 | K416: 21430.48856 | L416: 21966.25078 | M416: 22515.40705 | N416: 23078.29222 | O416: 23655.24953 | P416: 24246.63077 | Q416: 24852.79654 | R416: 25474.11645 | S416: 26110.96936 | T416: 26763.7436 | U416: 27432.83719 | V416: 28118.65812 | W416: 28821.62457 | X416: 240 | Y416: 17589 | Z416: =OFFSET(B416,0,$C$51-Map!$S$13+1) -> 27432.83719 | AA416: 24
A417: =Data!B323 -> 25 | B417: =HLOOKUP($A$1,Data!$C$1:$AJ$388,$X417,FALSE) -> 17160 | C417: 17589 | D417: 18028.725 | E417: 18479.44312 | F417: 18941.4292 | G417: 19414.96493 | H417: 19900.33906 | I417: 20397.84753 | J417: 20907.79372 | K417: 21430.48856 | L417: 21966.25078 | M417: 22515.40705 | N417: 23078.29222 | O417: 23655.24953 | P417: 24246.63077 | Q417: 24852.79654 | R417: 25474.11645 | S417: 26110.96936 | T417: 26763.7436 | U417: 27432.83719 | V417: 28118.65812 | W417: 28821.62457 | X417: 241 | Y417: 17589 | Z417: =OFFSET(B417,0,$C$51-Map!$S$13+1) -> 27432.83719 | AA417: 25
A418: =Data!B324 -> 26 | B418: =HLOOKUP($A$1,Data!$C$1:$AJ$388,$X418,FALSE) -> 17680 | C418: 18122 | D418: 18575.05 | E418: 19039.42625 | F418: 19515.41191 | G418: 20003.2972 | H418: 20503.37963 | I418: 21015.96412 | J418: 21541.36323 | K418: 22079.89731 | L418: 22631.89474 | M418: 23197.69211 | N418: 23777.63441 | O418: 24372.07527 | P418: 24981.37715 | Q418: 25605.91158 | R418: =Q418*(1+R$390+(-(50-$A418)*(R$391/40))) -> 26246.05937 | S418: 26902.21086 | T418: 27574.76613 | U418: 28264.13528 | V418: 28970.73866 | W418: 29695.00713 | X418: 242 | Y418: 18122 | Z418: =OFFSET(B418,0,$C$51-Map!$S$13+1) -> 28264.13528 | AA418: 26
A419: =Data!B325 -> 27 | B419: =HLOOKUP($A$1,Data!$C$1:$AJ$388,$X419,FALSE) -> 18200 | C419: =B419*(1+C$390+(-(50-$A419)*(C$391/40))) -> 18655 | D419: 19121.375 | E419: 19599.40937 | F419: 20089.39461 | G419: 20591.62947 | H419: 21106.42021 | I419: 21634.08072 | J419: 22174.93273 | K419: 22729.30605 | L419: 23297.5387 | M419: 23879.97717 | N419: 24476.9766 | O419: 25088.90102 | P419: 25716.12354 | Q419: 26359.02663 | R419: 27018.0023 | S419: 27693.45235 | T419: 28385.78866 | U419: 29095.43338 | V419: 29822.81921 | W419: 30568.38969 | X419: 243 | Y419: 18655 | Z419: =OFFSET(B419,0,$C$51-Map!$S$13+1) -> 29095.43338 | AA419: 27
A420: =Data!B326 -> 28 | B420: =HLOOKUP($A$1,Data!$C$1:$AJ$388,$X420,FALSE) -> 18720 | C420: 19188 | D420: 19667.7 | E420: 20159.3925 | F420: 20663.37731 | G420: 21179.96175 | H420: 21709.46079 | I420: 22252.19731 | J420: 22808.50224 | K420: 23378.7148 | L420: 23963.18267 | M420: 24562.26223 | N420: 25176.31879 | O420: 25805.72676 | P420: 26450.86993 | Q420: 27112.14168 | R420: 27789.94522 | S420: 28484.69385 | T420: 29196.8112 | U420: 29926.73148 | V420: 30674.89976 | W420: 31441.77226 | X420: 244 | Y420: 19188 | Z420: =OFFSET(B420,0,$C$51-Map!$S$13+1) -> 29926.73148 | AA420: 28
A421: =Data!B327 -> 29 | B421: =HLOOKUP($A$1,Data!$C$1:$AJ$388,$X421,FALSE) -> 19240 | C421: 19721 | D421: 20214.025 | E421: 20719.37562 | F421: 21237.36002 | G421: 21768.29402 | H421: 22312.50137 | I421: 22870.3139 | J421: 23442.07175 | K421: 24028.12354 | L421: 24628.82663 | M421: 25244.5473 | N421: 25875.66098 | O421: 26522.5525 | P421: 27185.61632 | Q421: 27865.25672 | R421: 28561.88814 | S421: 29275.93535 | T421: 30007.83373 | U421: 30758.02957 | V421: 31526.98031 | W421: 32315.15482 | X421: 245 | Y421: 19721 | Z421: =OFFSET(B421,0,$C$51-Map!$S$13+1) -> 30758.02957 | AA421: 29
A422: =Data!B328 -> 30 | B422: =HLOOKUP($A$1,Data!$C$1:$AJ$388,$X422,FALSE) -> 19760 | C422: 20254 | D422: 20760.35 | E422: 21279.35875 | F422: 21811.34272 | G422: 22356.62629 | H422: 22915.54194 | I422: 23488.43049 | J422: 24075.64125 | K422: 24677.53229 | L422: 25294.47059 | M422: 25926.83236 | N422: 26575.00317 | O422: 27239.37825 | P422: 27920.3627 | Q422: 28618.37177 | R422: 29333.83106 | S422: 30067.17684 | T422: 30818.85626 | U422: 31589.32767 | V422: 32379.06086 | W422: 33188.53738 | X422: 246 | Y422: 20254 | Z422: =OFFSET(B422,0,$C$51-Map!$S$13+1) -> 31589.32767 | AA422: 30
A423: =Data!B329 -> 31 | B423: =HLOOKUP($A$1,Data!$C$1:$AJ$388,$X423,FALSE) -> 19760 | C423: 20254 | D423: 20760.35 | E423: 21279.35875 | F423: 21811.34272 | G423: 22356.62629 | H423: 22915.54194 | I423: 23488.43049 | J423: 24075.64125 | K423: 24677.53229 | L423: 25294.47059 | M423: 25926.83236 | N423: 26575.00317 | O423: 27239.37825 | P423: 27920.3627 | Q423: 28618.37177 | R423: 29333.83106 | S423: 30067.17684 | T423: 30818.85626 | U423: 31589.32767 | V423: 32379.06086 | W423: 33188.53738 | X423: 247 | Y423: 20254 | Z423: =OFFSET(B423,0,$C$51-Map!$S$13+1) -> 31589.32767 | AA423: 31
A424: =Data!B330 -> 32 | B424: =HLOOKUP($A$1,Data!$C$1:$AJ$388,$X424,FALSE) -> 20280 | C424: 20787 | D424: 21306.675 | E424: 21839.34187 | F424: 22385.32542 | G424: 22944.95856 | H424: 23518.58252 | I424: 24106.54708 | J424: 24709.21076 | K424: 25326.94103 | L424: 25960.11456 | M424: 26609.11742 | N424: 27274.34536 | O424: 27956.20399 | P424: 28655.10909 | Q424: 29371.48682 | R424: 30105.77399 | S424: 30858.41834 | T424: 31629.8788 | U424: 32420.62576 | V424: 33231.14141 | W424: 34061.91994 | X424: 248 | Y424: 20787 | Z424: =OFFSET(B424,0,$C$51-Map!$S$13+1) -> 32420.62576 | AA424: 32
A425: =Data!B331 -> 33 | B425: =HLOOKUP($A$1,Data!$C$1:$AJ$388,$X425,FALSE) -> 20800 | C425: 21320 | D425: 21853 | E425: 22399.325 | F425: 22959.30812 | G425: 23533.29083 | H425: 24121.6231 | I425: 24724.66368 | J425: 25342.78027 | K425: 25976.34977 | L425: 26625.75852 | M425: 27291.40248 | N425: 27973.68754 | O425: 28673.02973 | P425: 29389.85548 | Q425: 30124.60186 | R425: 30877.71691 | S425: 31649.65983 | T425: 32440.90133 | U425: 33251.92386 | V425: 34083.22196 | W425: 34935.30251 | X425: 249 | Y425: 21320 | Z425: =OFFSET(B425,0,$C$51-Map!$S$13+1) -> 33251.92386 | AA425: 33
A426: =Data!B332 -> 34 | B426: =HLOOKUP($A$1,Data!$C$1:$AJ$388,$X426,FALSE) -> 21320 | C426: 21853 | D426: 22399.325 | E426: 22959.30812 | F426: 23533.29083 | G426: 24121.6231 | H426: 24724.66368 | I426: 25342.78027 | J426: 25976.34977 | K426: 26625.75852 | L426: 27291.40248 | M426: 27973.68754 | N426: 28673.02973 | O426: 29389.85548 | P426: 30124.60186 | Q426: 30877.71691 | R426: 31649.65983 | S426: 32440.90133 | T426: 33251.92386 | U426: 34083.22196 | V426: 34935.30251 | W426: 35808.68507 | X426: 250 | Y426: 21853 | Z426: =OFFSET(B426,0,$C$51-Map!$S$13+1) -> 34083.22196 | AA426: 34
A427: =Data!B333 -> 35 | B427: =HLOOKUP($A$1,Data!$C$1:$AJ$388,$X427,FALSE) -> 21840 | C427: 22386 | D427: 22945.65 | E427: 23519.29125 | F427: 24107.27353 | G427: 24709.95537 | H427: 25327.70425 | I427: 25960.89686 | J427: 26609.91928 | K427: 27275.16726 | L427: 27957.04645 | M427: 28655.97261 | N427: 29372.37192 | O427: 30106.68122 | P427: 30859.34825 | Q427: 31630.83196 | R427: 32421.60276 | S427: 33232.14282 | T427: 34062.94639 | U427: 34914.52005 | V427: 35787.38306 | W427: 36682.06763 | X427: 251 | Y427: 22386 | Z427: =OFFSET(B427,0,$C$51-Map!$S$13+1) -> 34914.52005 | AA427: 35
A428: =Data!B334 -> 36 | B428: =HLOOKUP($A$1,Data!$C$1:$AJ$388,$X428,FALSE) -> 21840 | C428: 22386 | D428: 22945.65 | E428: 23519.29125 | F428: 24107.27353 | G428: 24709.95537 | H428: 25327.70425 | I428: 25960.89686 | J428: 26609.91928 | K428: 27275.16726 | L428: 27957.04645 | M428: 28655.97261 | N428: 29372.37192 | O428: 30106.68122 | P428: 30859.34825 | Q428: 31630.83196 | R428: 32421.60276 | S428: 33232.14282 | T428: 34062.94639 | U428: 34914.52005 | V428: 35787.38306 | W428: 36682.06763 | X428: 252 | Y428: 22386 | Z428: =OFFSET(B428,0,$C$51-Map!$S$13+1) -> 34914.52005 | AA428: 36
A429: =Data!B335 -> 37 | B429: =HLOOKUP($A$1,Data!$C$1:$AJ$388,$X429,FALSE) -> 22360 | C429: 22919 | D429: 23491.975 | E429: 24079.27437 | F429: 24681.25623 | G429: 25298.28764 | H429: 25930.74483 | I429: 26579.01345 | J429: 27243.48879 | K429: 27924.57601 | L429: 28622.69041 | M429: 29338.25767 | N429: 30071.71411 | O429: 30823.50696 | P429: 31594.09464 | Q429: 32383.947 | R429: 33193.54568 | S429: 34023.38432 | T429: 34873.96893 | U429: 35745.81815 | V429: 36639.4636 | W429: 37555.4502 | X429: 253 | Y429: 22919 | Z429: =OFFSET(B429,0,$C$51-Map!$S$13+1) -> 35745.81815 | AA429: 37
A430: =Data!B336 -> 38 | B430: =HLOOKUP($A$1,Data!$C$1:$AJ$388,$X430,FALSE) -> 22880 | C430: 23452 | D430: 24038.3 | E430: 24639.2575 | F430: 25255.23894 | G430: 25886.61991 | H430: 26533.78541 | I430: 27197.13004 | J430: 27877.0583 | K430: 28573.98475 | L430: 29288.33437 | M430: 30020.54273 | N430: 30771.0563 | O430: 31540.33271 | P430: 32328.84102 | Q430: 33137.06205 | R430: 33965.4886 | S430: 34814.62582 | T430: 35684.99146 | U430: 36577.11625 | V430: 37491.54415 | W430: 38428.83276 | X430: 254 | Y430: 23452 | Z430: =OFFSET(B430,0,$C$51-Map!$S$13+1) -> 36577.11625 | AA430: 38
A431: =Data!B337 -> 39 | B431: =HLOOKUP($A$1,Data!$C$1:$AJ$388,$X431,FALSE) -> 23400 | C431: 23985 | D431: 24584.625 | E431: 25199.24062 | F431: 25829.22164 | G431: 26474.95218 | H431: 27136.82599 | I431: 27815.24664 | J431: 28510.6278 | K431: 29223.3935 | L431: 29953.97833 | M431: 30702.82779 | N431: 31470.39849 | O431: 32257.15845 | P431: 33063.58741 | Q431: 33890.1771 | R431: 34737.43152 | S431: 35605.86731 | T431: 36496.01399 | U431: 37408.41434 | V431: 38343.6247 | W431: 39302.21532 | X431: 255 | Y431: 23985 | Z431: =OFFSET(B431,0,$C$51-Map!$S$13+1) -> 37408.41434 | AA431: 39
A432: =Data!B338 -> 40 | B432: =HLOOKUP($A$1,Data!$C$1:$AJ$388,$X432,FALSE) -> 23920 | C432: 24518 | D432: 25130.95 | E432: 25759.22375 | F432: 26403.20434 | G432: 27063.28445 | H432: 27739.86656 | I432: 28433.36323 | J432: 29144.19731 | K432: 29872.80224 | L432: 30619.6223 | M432: 31385.11285 | N432: 32169.74068 | O432: 32973.98419 | P432: 33798.3338 | Q432: 34643.29214 | R432: 35509.37445 | S432: 36397.10881 | T432: 37307.03653 | U432: 38239.71244 | V432: 39195.70525 | W432: 40175.59788 | X432: 256 | Y432: 24518 | Z432: =OFFSET(B432,0,$C$51-Map!$S$13+1) -> 38239.71244 | AA432: 40
A433: =Data!B339 -> 41 | B433: =HLOOKUP($A$1,Data!$C$1:$AJ$388,$X433,FALSE) -> 24440 | C433: 25051 | D433: 25677.275 | E433: 26319.20687 | F433: 26977.18705 | G433: 27651.61672 | H433: 28342.90714 | I433: 29051.47982 | J433: 29777.76682 | K433: 30522.21099 | L433: 31285.26626 | M433: 32067.39792 | N433: 32869.08286 | O433: 33690.80994 | P433: 34533.08018 | Q433: 35396.40719 | R433: 36281.31737 | S433: 37188.3503 | T433: 38118.05906 | U433: 39071.01054 | V433: 40047.7858 | W433: 41048.98045 | X433: 257 | Y433: 25051 | Z433: =OFFSET(B433,0,$C$51-Map!$S$13+1) -> 39071.01054 | AA433: 41
A434: =Data!B340 -> 42 | B434: =HLOOKUP($A$1,Data!$C$1:$AJ$388,$X434,FALSE) -> 24440 | C434: 25051 | D434: 25677.275 | E434: 26319.20687 | F434: 26977.18705 | G434: 27651.61672 | H434: 28342.90714 | I434: 29051.47982 | J434: 29777.76682 | K434: 30522.21099 | L434: 31285.26626 | M434: 32067.39792 | N434: 32869.08286 | O434: 33690.80994 | P434: 34533.08018 | Q434: 35396.40719 | R434: =Q434*(1+R$390+(-(50-$A434)*(R$391/40))) -> 36281.31737 | S434: 37188.3503 | T434: 38118.05906 | U434: 39071.01054 | V434: 40047.7858 | W434: 41048.98045 | X434: 258 | Y434: 25051 | Z434: =OFFSET(B434,0,$C$51-Map!$S$13+1) -> 39071.01054 | AA434: 42
A435: =Data!B341 -> 43 | B435: =HLOOKUP($A$1,Data!$C$1:$AJ$388,$X435,FALSE) -> 24960 | C435: =B435*(1+C$390+(-(50-$A435)*(C$391/40))) -> 25584 | D435: 26223.6 | E435: 26879.19 | F435: 27551.16975 | G435: 28239.94899 | H435: 28945.94772 | I435: 29669.59641 | J435: 30411.33632 | K435: 31171.61973 | L435: 31950.91022 | M435: 32749.68298 | N435: 33568.42505 | O435: 34407.63568 | P435: 35267.82657 | Q435: 36149.52224 | R435: 37053.26029 | S435: 37979.5918 | T435: 38929.08159 | U435: 39902.30863 | V435: 40899.86635 | W435: 41922.36301 | X435: 259 | Y435: 25584 | Z435: =OFFSET(B435,0,$C$51-Map!$S$13+1) -> 39902.30863 | AA435: 43
A436: =Data!B342 -> 44 | B436: =HLOOKUP($A$1,Data!$C$1:$AJ$388,$X436,FALSE) -> 25480 | C436: 26117 | D436: 26769.925 | E436: 27439.17312 | F436: 28125.15245 | G436: 28828.28126 | H436: 29548.9883 | I436: 30287.713 | J436: 31044.90583 | K436: 31821.02847 | L436: 32616.55419 | M436: 33431.96804 | N436: 34267.76724 | O436: 35124.46142 | P436: 36002.57296 | Q436: 36902.63728 | R436: 37825.20321 | S436: 38770.83329 | T436: 39740.10413 | U436: 40733.60673 | V436: 41751.9469 | W436: 42795.74557 | X436: 260 | Y436: 26117 | Z436: =OFFSET(B436,0,$C$51-Map!$S$13+1) -> 40733.60673 | AA436: 44
A437: =Data!B343 -> 45 | B437: =HLOOKUP($A$1,Data!$C$1:$AJ$388,$X437,FALSE) -> 26000 | C437: 26650 | D437: 27316.25 | E437: 27999.15625 | F437: 28699.13516 | G437: 29416.61354 | H437: 30152.02887 | I437: 30905.8296 | J437: 31678.47534 | K437: 32470.43722 | L437: 33282.19815 | M437: 34114.2531 | N437: 34967.10943 | O437: 35841.28717 | P437: 36737.31935 | Q437: 37655.75233 | R437: 38597.14614 | S437: 39562.07479 | T437: 40551.12666 | U437: 41564.90483 | V437: 42604.02745 | W437: 43669.12813 | X437: 261 | Y437: 26650 | Z437: =OFFSET(B437,0,$C$51-Map!$S$13+1) -> 41564.90483 | AA437: 45
A438: =Data!B344 -> 46 | B438: =HLOOKUP($A$1,Data!$C$1:$AJ$388,$X438,FALSE) -> 26520 | C438: 27183 | D438: 27862.575 | E438: 28559.13937 | F438: 29273.11786 | G438: 30004.94581 | H438: 30755.06945 | I438: 31523.94619 | J438: 32312.04484 | K438: 33119.84596 | L438: 33947.84211 | M438: 34796.53816 | N438: 35666.45162 | O438: 36558.11291 | P438: 37472.06573 | Q438: 38408.86738 | R438: 39369.08906 | S438: 40353.31629 | T438: 41362.14919 | U438: 42396.20292 | V438: 43456.108 | W438: 44542.5107 | X438: 262 | Y438: 27183 | Z438: =OFFSET(B438,0,$C$51-Map!$S$13+1) -> 42396.20292 | AA438: 46
A439: =Data!B345 -> 47 | B439: =HLOOKUP($A$1,Data!$C$1:$AJ$388,$X439,FALSE) -> 27040 | C439: 27716 | D439: 28408.9 | E439: 29119.1225 | F439: 29847.10056 | G439: 30593.27808 | H439: 31358.11003 | I439: 32142.06278 | J439: 32945.61435 | K439: 33769.25471 | L439: 34613.48608 | M439: 35478.82323 | N439: 36365.79381 | O439: 37274.93865 | P439: 38206.81212 | Q439: 39161.98242 | R439: 40141.03198 | S439: 41144.55778 | T439: 42173.17173 | U439: 43227.50102 | V439: 44308.18855 | W439: 45415.89326 | X439: 263 | Y439: 27716 | Z439: =OFFSET(B439,0,$C$51-Map!$S$13+1) -> 43227.50102 | AA439: 47
A440: =Data!B346 -> 48 | B440: =HLOOKUP($A$1,Data!$C$1:$AJ$388,$X440,FALSE) -> 28080 | C440: 28782 | D440: 29501.55 | E440: 30239.08875 | F440: 30995.06597 | G440: 31769.94262 | H440: 32564.19118 | I440: 33378.29596 | J440: 34212.75336 | K440: 35068.0722 | L440: 35944.774 | M440: 36843.39335 | N440: 37764.47818 | O440: 38708.59014 | P440: 39676.30489 | Q440: 40668.21252 | R440: 41684.91783 | S440: 42727.04077 | T440: 43795.21679 | U440: 44890.09721 | V440: 46012.34964 | W440: 47162.65838 | X440: 264 | Y440: 28782 | Z440: =OFFSET(B440,0,$C$51-Map!$S$13+1) -> 44890.09721 | AA440: 48
A441: =Data!B347 -> 49 | B441: =HLOOKUP($A$1,Data!$C$1:$AJ$388,$X441,FALSE) -> 28600 | C441: 29315 | D441: 30047.875 | E441: 30799.07187 | F441: 31569.04867 | G441: 32358.27489 | H441: 33167.23176 | I441: 33996.41255 | J441: 34846.32287 | K441: 35717.48094 | L441: 36610.41796 | M441: 37525.67841 | N441: 38463.82037 | O441: 39425.41588 | P441: 40411.05128 | Q441: 41421.32756 | R441: 42456.86075 | S441: 43518.28227 | T441: 44606.23933 | U441: 45721.39531 | V441: 46864.43019 | W441: 48036.04095 | X441: 265 | Y441: 29315 | Z441: =OFFSET(B441,0,$C$51-Map!$S$13+1) -> 45721.39531 | AA441: 49
A442: =Data!B348 -> 50 | B442: =HLOOKUP($A$1,Data!$C$1:$AJ$388,$X442,FALSE) -> 29120 | C442: 29848 | D442: 30594.2 | E442: 31359.055 | F442: 32143.03137 | G442: 32946.60716 | H442: 33770.27234 | I442: 34614.52915 | J442: 35479.89238 | K442: 36366.88968 | L442: 37276.06193 | M442: 38207.96348 | N442: 39163.16256 | O442: 40142.24163 | P442: 41145.79767 | Q442: 42174.44261 | R442: 43228.80367 | S442: 44309.52377 | T442: 45417.26186 | U442: 46552.69341 | V442: 47716.51074 | W442: 48909.42351 | X442: 266 | Y442: 29848 | Z442: =OFFSET(B442,0,$C$51-Map!$S$13+1) -> 46552.69341 | AA442: 50
A443: =Data!B349 -> 51 | B443: =HLOOKUP($A$1,Data!$C$1:$AJ$388,$X443,FALSE) -> 29640 | C443: 30381 | D443: 31140.525 | E443: 31919.03812 | F443: 32717.01408 | G443: 33534.93943 | H443: 34373.31292 | I443: 35232.64574 | J443: 36113.46188 | K443: 37016.29843 | L443: 37941.70589 | M443: 38890.24854 | N443: 39862.50475 | O443: 40859.06737 | P443: 41880.54405 | Q443: 42927.55766 | R443: 44000.7466 | S443: 45100.76526 | T443: 46228.28439 | U443: 47383.9915 | V443: 48568.59129 | W443: 49782.80607 | X443: 267 | Y443: 30381 | Z443: =OFFSET(B443,0,$C$51-Map!$S$13+1) -> 47383.9915 | AA443: 51
A444: =Data!B350 -> 52 | B444: =HLOOKUP($A$1,Data!$C$1:$AJ$388,$X444,FALSE) -> 30160 | C444: 30914 | D444: 31686.85 | E444: 32479.02125 | F444: 33290.99678 | G444: 34123.2717 | H444: 34976.35349 | I444: 35850.76233 | J444: 36747.03139 | K444: 37665.70717 | L444: 38607.34985 | M444: 39572.5336 | N444: 40561.84694 | O444: 41575.89311 | P444: 42615.29044 | Q444: 43680.6727 | R444: 44772.68952 | S444: 45892.00676 | T444: 47039.30693 | U444: 48215.2896 | V444: 49420.67184 | W444: 50656.18864 | X444: 268 | Y444: 30914 | Z444: =OFFSET(B444,0,$C$51-Map!$S$13+1) -> 48215.2896 | AA444: 52
A445: =Data!B351 -> 53 | B445: =HLOOKUP($A$1,Data!$C$1:$AJ$388,$X445,FALSE) -> 31200 | C445: 31980 | D445: 32779.5 | E445: 33598.9875 | F445: 34438.96219 | G445: 35299.93624 | H445: 36182.43465 | I445: 37086.99551 | J445: 38014.1704 | K445: 38964.52466 | L445: 39938.63778 | M445: 40937.10372 | N445: 41960.53132 | O445: 43009.5446 | P445: 44084.78321 | Q445: 45186.90279 | R445: 46316.57536 | S445: 47474.48975 | T445: 48661.35199 | U445: 49877.88579 | V445: 51124.83294 | W445: 52402.95376 | X445: 269 | Y445: 31980 | Z445: =OFFSET(B445,0,$C$51-Map!$S$13+1) -> 49877.88579 | AA445: 53
A446: =Data!B352 -> 54 | B446: =HLOOKUP($A$1,Data!$C$1:$AJ$388,$X446,FALSE) -> 31720 | C446: 32513 | D446: 33325.825 | E446: 34158.97062 | F446: 35012.94489 | G446: 35888.26851 | H446: 36785.47523 | I446: 37705.11211 | J446: 38647.73991 | K446: 39613.93341 | L446: 40604.28174 | M446: 41619.38879 | N446: 42659.87351 | O446: 43726.37034 | P446: 44819.5296 | Q446: 45940.01784 | R446: 47088.51829 | S446: 48265.73124 | T446: 49472.37453 | U446: 50709.18389 | V446: 51976.91349 | W446: 53276.33632 | X446: 270 | Y446: 32513 | Z446: =OFFSET(B446,0,$C$51-Map!$S$13+1) -> 50709.18389 | AA446: 54
A447: =Data!B353 -> 55 | B447: =HLOOKUP($A$1,Data!$C$1:$AJ$388,$X447,FALSE) -> 32240 | C447: 33046 | D447: 33872.15 | E447: 34718.95375 | F447: 35586.92759 | G447: 36476.60078 | H447: 37388.5158 | I447: 38323.2287 | J447: 39281.30942 | K447: 40263.34215 | L447: 41269.9257 | M447: 42301.67385 | N447: 43359.21569 | O447: 44443.19609 | P447: 45554.27599 | Q447: 46693.13289 | R447: 47860.46121 | S447: 49056.97274 | T447: 50283.39706 | U447: 51540.48199 | V447: 52828.99403 | W447: 54149.71889 | X447: 271 | Y447: 33046 | Z447: =OFFSET(B447,0,$C$51-Map!$S$13+1) -> 51540.48199 | AA447: 55
A448: =Data!B354 -> 56 | B448: =HLOOKUP($A$1,Data!$C$1:$AJ$388,$X448,FALSE) -> 32760 | C448: 33579 | D448: 34418.475 | E448: 35278.93687 | F448: 36160.9103 | G448: 37064.93305 | H448: 37991.55638 | I448: 38941.34529 | J448: 39914.87892 | K448: 40912.7509 | L448: 41935.56967 | M448: 42983.95891 | N448: 44058.55788 | O448: 45160.02183 | P448: 46289.02238 | Q448: 47446.24793 | R448: 48632.40413 | S448: 49848.21424 | T448: 51094.41959 | U448: 52371.78008 | V448: 53681.07458 | W448: 55023.10145 | X448: 272 | Y448: 33579 | Z448: =OFFSET(B448,0,$C$51-Map!$S$13+1) -> 52371.78008 | AA448: 56
A449: =Data!B355 -> 57 | B449: =HLOOKUP($A$1,Data!$C$1:$AJ$388,$X449,FALSE) -> 33280 | C449: 34112 | D449: 34964.8 | E449: 35838.92 | F449: 36734.893 | G449: 37653.26532 | H449: 38594.59696 | I449: 39559.46188 | J449: 40548.44843 | K449: 41562.15964 | L449: 42601.21363 | M449: 43666.24397 | N449: 44757.90007 | O449: 45876.84757 | P449: 47023.76876 | Q449: 48199.36298 | R449: 49404.34706 | S449: 50639.45573 | T449: 51905.44213 | U449: 53203.07818 | V449: 54533.15513 | W449: 55896.48401 | X449: 273 | Y449: 34112 | Z449: =OFFSET(B449,0,$C$51-Map!$S$13+1) -> 53203.07818 | AA449: 57
A450: =Data!B356 -> 58 | B450: =HLOOKUP($A$1,Data!$C$1:$AJ$388,$X450,FALSE) -> 34320 | C450: 35178 | D450: 36057.45 | E450: 36958.88625 | F450: 37882.85841 | G450: 38829.92987 | H450: 39800.67811 | I450: 40795.69507 | J450: 41815.58744 | K450: 42860.97713 | L450: 43932.50156 | M450: 45030.8141 | N450: 46156.58445 | O450: 47310.49906 | P450: 48493.26154 | Q450: 49705.59307 | R450: 50948.2329 | S450: =R450*(1+S$390+(-(50-$A450)*(S$391/40))) -> 52221.93872 | T450: 53527.48719 | U450: 54865.67437 | V450: 56237.31623 | W450: 57643.24914 | X450: 274 | Y450: 35178 | Z450: =OFFSET(B450,0,$C$51-Map!$S$13+1) -> 54865.67437 | AA450: 58
A451: =Data!B357 -> 59 | B451: =HLOOKUP($A$1,Data!$C$1:$AJ$388,$X451,FALSE) -> 34840 | C451: =B451*(1+C$390+(-(50-$A451)*(C$391/40))) -> 35711 | D451: 36603.775 | E451: 37518.86937 | F451: 38456.84111 | G451: 39418.26214 | H451: 40403.71869 | I451: 41413.81166 | J451: 42449.15695 | K451: 43510.38587 | L451: 44598.14552 | M451: 45713.09916 | N451: 46855.92664 | O451: 48027.3248 | P451: 49228.00792 | Q451: 50458.70812 | R451: 51720.17582 | S451: 53013.18022 | T451: 54338.50972 | U451: 55696.97247 | V451: 57089.39678 | W451: 58516.6317 | X451: 275 | Y451: 35711 | Z451: =OFFSET(B451,0,$C$51-Map!$S$13+1) -> 55696.97247 | AA451: 59
A452: =Data!B358 -> 60 | B452: =HLOOKUP($A$1,Data!$C$1:$AJ$388,$X452,FALSE) -> 35360 | C452: 36244 | D452: 37150.1 | E452: 38078.8525 | F452: 39030.82381 | G452: 40006.59441 | H452: 41006.75927 | I452: 42031.92825 | J452: 43082.72646 | K452: 44159.79462 | L452: 45263.78948 | M452: 46395.38422 | N452: 47555.26883 | O452: 48744.15055 | P452: 49962.75431 | Q452: 51211.82317 | R452: 52492.11875 | S452: 53804.42172 | T452: 55149.53226 | U452: 56528.27056 | V452: 57941.47733 | W452: 59390.01426 | X452: 276 | Y452: 36244 | Z452: =OFFSET(B452,0,$C$51-Map!$S$13+1) -> 56528.27056 | AA452: 60
A453: =Data!B359 -> 61 | B453: =HLOOKUP($A$1,Data!$C$1:$AJ$388,$X453,FALSE) -> 35880 | C453: 36777 | D453: 37696.425 | E453: 38638.83562 | F453: 39604.80652 | G453: 40594.92668 | H453: 41609.79985 | I453: 42650.04484 | J453: 43716.29596 | K453: 44809.20336 | L453: 45929.43345 | M453: 47077.66928 | N453: 48254.61101 | O453: 49460.97629 | P453: 50697.5007 | Q453: 51964.93821 | R453: 53264.06167 | S453: 54595.66321 | T453: 55960.55479 | U453: 57359.56866 | V453: 58793.55788 | W453: 60263.39682 | X453: 277 | Y453: 36777 | Z453: =OFFSET(B453,0,$C$51-Map!$S$13+1) -> 57359.56866 | AA453: 61
A454: =Data!B360 -> 62 | B454: =HLOOKUP($A$1,Data!$C$1:$AJ$388,$X454,FALSE) -> 36920 | C454: 37843 | D454: 38789.075 | E454: 39758.80187 | F454: 40752.77192 | G454: 41771.59122 | H454: 42815.881 | I454: 43886.27803 | J454: 44983.43498 | K454: 46108.02085 | L454: 47260.72137 | M454: 48442.23941 | N454: 49653.29539 | O454: 50894.62778 | P454: 52166.99347 | Q454: 53471.16831 | R454: 54807.94751 | S454: 56178.1462 | T454: 57582.59986 | U454: 59022.16485 | V454: 60497.71898 | W454: 62010.16195 | X454: 278 | Y454: 37843 | Z454: =OFFSET(B454,0,$C$51-Map!$S$13+1) -> 59022.16485 | AA454: 62
A455: =Data!B361 -> 63 | B455: =HLOOKUP($A$1,Data!$C$1:$AJ$388,$X455,FALSE) -> 37440 | C455: 38376 | D455: 39335.4 | E455: 40318.785 | F455: 41326.75462 | G455: 42359.92349 | H455: 43418.92158 | I455: 44504.39462 | J455: 45617.00448 | K455: 46757.42959 | L455: 47926.36533 | M455: 49124.52447 | N455: 50352.63758 | O455: 51611.45352 | P455: 52901.73986 | Q455: 54224.28335 | R455: 55579.89044 | S455: 56969.3877 | T455: 58393.62239 | U455: 59853.46295 | V455: 61349.79952 | W455: 62883.54451 | X455: 279 | Y455: 38376 | Z455: =OFFSET(B455,0,$C$51-Map!$S$13+1) -> 59853.46295 | AA455: 63
... 113 more rows

Sheet Tool Schematic

Sheet Map
A2: 1 | O2: Area Selection Screen
O6: 1. SELECT AREA | S6: 3. PRESS SET AREA
A7: 1 | K7: AberdeenCity | L7: Aberdeen City | M7: =IF($A$2=A7,TRUE,FALSE) -> TRUE
A8: =A7+1 -> 2 | K8: Aberdeenshire | L8: Aberdeenshire | M8: =IF($A$2=A8,TRUE,FALSE) -> FALSE
A9: =A8+1 -> 3 | K9: Angus | L9: Angus | M9: FALSE
A10: 4 | K10: ArgyllBute | L10: Argyll & Bute | M10: FALSE
A11: 5 | K11: Clackmannanshire | L11: Clackmannanshire | M11: FALSE | AB11: Instructions | AC11: =O12 -> 2-Aberdeen City Council-Aberdeen City Council HMA
A12: 6 | K12: DumfriesGalloway | L12: Dumfries & Galloway | M12: FALSE | O12: 2-Aberdeen City Council-Aberdeen City Council HMA | S12: 2. ENTER START YEAR | Z12: 1 | AA12: =IF(O12<>"",CONCATENATE("S",Z12),"Blank") -> S1 | AB12: All | AC12: =O13 -> 0
A13: 7 | K13: DundeeCity | L13: Dundee City | M13: FALSE | S13: 2020 | Z13: =Z12+1 -> 2 | AA13: =IF(O13<>"",CONCATENATE("S",Z13),"Blank") -> Blank | AB13: =O12 -> 2-Aberdeen City Council-Aberdeen City Council HMA | AC13: 0
A14: 8 | K14: EastAyrshire | L14: East Ayrshire | M14: FALSE | Z14: =Z13+1 -> 3 | AA14: Blank | AB14: =O13 -> 0 | AC14: 0
A15: 9 | K15: EastDunbartonshire | L15: East Dunbartonshire | M15: FALSE | Z15: 4 | AA15: Blank | AB15: 0 | AC15: 0
A16: 10 | K16: EastLothian | L16: East Lothian | M16: FALSE | Z16: 5 | AA16: Blank | AB16: 0 | AC16: 0
A17: 11 | K17: EastRenfrewshire | L17: East Renfrewshire | M17: FALSE | Z17: 6 | AA17: Blank | AB17: 0 | AC17: 0
A18: 12 | K18: Edinburgh | L18: Edinburgh City | M18: FALSE | Z18: 7 | AA18: Blank | AB18: 0 | AC18: 0
A19: 13 | K19: EileanSiar | L19: Eilean Siar | M19: FALSE | Z19: 8 | AA19: Blank | AB19: 0 | AC19: 0
A20: 14 | K20: Falkirk | L20: Falkirk | M20: FALSE | Z20: 9 | AA20: Blank | AB20: 0 | AC20: 0
A21: 15 | K21: Fife | L21: Fife | M21: FALSE | Z21: 10 | AA21: Blank | AB21: 0 | AC21: 0
A22: 16 | K22: GlasgowCity | L22: Glasgow City | M22: FALSE | Z22: 11 | AA22: Blank | AB22: 0 | AC22: 0
A23: 17 | K23: Highland | L23: Highland | M23: FALSE | Z23: 12 | AA23: Blank | AB23: 0 | AC23: 0
A24: 18 | K24: Inverclyde | L24: Inverclyde | M24: FALSE | Z24: 13 | AA24: Blank | AB24: 0 | AC24: 0
A25: 19 | K25: Midlothian | L25: Midlothian | M25: FALSE | Z25: 14 | AA25: Blank | AB25: 0 | AC25: 0
A26: 20 | K26: Moray | L26: Moray | M26: FALSE | Z26: 15 | AA26: Blank | AB26: 0 | AC26: 0
A27: 21 | K27: NorthAyrshire | L27: North Ayrshire | M27: FALSE | Z27: 16 | AA27: Blank | AB27: 0 | AC27: 0
A28: 22 | K28: NorthLanarkshire | L28: North Lanarkshire | M28: FALSE | Z28: 17 | AA28: Blank | AB28: 0 | AC28: 0
A29: 23 | K29: OrkneyIslands | L29: Orkney Islands | M29: FALSE | Z29: 18 | AA29: Blank | AB29: 0 | AC29: 0
A30: 24 | K30: PerthKinross | L30: Perth & Kinross | M30: FALSE | Z30: 19 | AA30: Blank | AB30: 0 | AC30: 0
A31: 25 | K31: Renfrewshire | L31: Renfrewshire | M31: FALSE | Z31: 20 | AA31: Blank | AB31: 0 | AC31: 0
A32: 26 | K32: ScottishBorders | L32: Scottish Borders | M32: FALSE | Z32: 21 | AA32: Blank | AB32: 0 | AC32: 0
A33: 27 | K33: ShetlandIslands | L33: Shetland Islands | M33: FALSE | Z33: 22 | AA33: Blank | AB33: 0 | AC33: 0
A34: 28 | K34: SouthAyrshire | L34: South Ayrshire | M34: FALSE | Z34: 23 | AA34: Blank | AB34: 0 | AC34: 0
A35: 29 | K35: SouthLanarkshire | L35: South Lanarkshire | M35: FALSE | Z35: 24 | AA35: Blank | AB35: 0 | AC35: 0
A36: 30 | K36: Stirling | L36: Stirling | M36: FALSE | Z36: 25 | AA36: Blank | AB36: 0 | AC36: 0
A37: 31 | K37: WestDunbartonshire | L37: West Dunbartonshire | M37: FALSE | Z37: 26 | AA37: Blank | AB37: 0 | AC37: 0
A38: 32 | K38: WestLothian | L38: West Lothian | M38: FALSE | Z38: 27 | AA38: Blank | AB38: 0 | AC38: 0
A39: 33 | M39: FALSE | Z39: 28 | AA39: Blank | AB39: 0 | AC39: 0
A40: 34 | K40: Aberdeen/Shire City Region | L40: Aberdeen/Shire City Region | M40: FALSE | Z40: 29 | AA40: Blank | AB40: 0 | AC40: 0
A41: 35 | K41: Glasgow City Region | L41: Glasgow City Region | M41: FALSE | Z41: 30 | AA41: Blank | AB41: 0 | AC41: 0
A42: 36 | K42: Edinburgh City Region | L42: Edinburgh City Region | M42: FALSE | Z42: 31 | AA42: Blank | AB42: 0 | AC42: 0
A43: 37 | K43: SESPlan HMA | M43: FALSE | Z43: 32 | AA43: Blank | AB43: 0 | AC43: 0
A44: =A43+1 -> 38 | K44: Dundee City Region | L44: Dundee City Region | M44: =IF($A$2=A44,TRUE,FALSE) -> FALSE
A45: 39
A46: =A45+1 -> 40 | K46: Cairngorms NP | L46: Cairngorms NP | M46: =IF($A$2=A46,TRUE,FALSE) -> FALSE
A47: 41 | K47: Loch Lomond & Trossachs NP | L47: Loch Lomond & Trossachs NP | M47: =IF($A$2=A47,TRUE,FALSE) -> FALSE
K59: GreaterDundee | L59: Greater Dundee | M59: =IF($A$2=A46,TRUE,FALSE) -> FALSE
L60: SESPlan HMA | M60: =IF($A$2=A44,TRUE,FALSE) -> FALSE
A88: FALSE
A89: FALSE

Sheet MapCheck (hidden)
A1: Geographic Tiers | C1: Link To Map Sheet | F1: HMA Area Which Gets Returned to Map Sheet
F2: 1 | G2: 2 | H2: 3 | I2: 4 | J2: 5 | K2: 6 | L2: 7 | M2: 8 | N2: 9 | O2: 10 | P2: =O2+1 -> 11 | Q2: 12 | R2: 13 | S2: 14 | T2: 15 | U2: 16 | V2: =U2+1 -> 17 | W2: 18 | X2: 19 | Y2: 20 | Z2: 21 | AA2: 22 | AB2: 23 | AC2: 24 | AD2: 25 | AE2: 26 | AF2: 27 | AG2: 28 | AH2: 29 | AI2: 30 | AJ2: 31 | AK2: =AJ2+1 -> 32
A3: Local Authorities and HMAs | C3: =Map!L7 -> Aberdeen City | D3: =Map!K7 -> AberdeenCity | E3: =Map!M7 -> TRUE | F3: 2-Aberdeen City Council-Aberdeen City Council HMA | G3: FALSE | H3: FALSE | I3: FALSE | J3: FALSE | K3: FALSE | L3: FALSE | M3: FALSE | N3: FALSE | O3: FALSE | P3: FALSE | Q3: FALSE | R3: FALSE | S3: FALSE | T3: FALSE | U3: FALSE | V3: FALSE | W3: FALSE | X3: FALSE | Y3: FALSE | Z3: FALSE | AA3: FALSE | AB3: FALSE | AC3: FALSE | AD3: FALSE | AE3: FALSE | AF3: FALSE | AG3: FALSE | AH3: FALSE | AI3: FALSE | AJ3: FALSE | AK3: FALSE
C4: =Map!L8 -> Aberdeenshire | D4: =Map!K8 -> Aberdeenshire | E4: =Map!M8 -> FALSE | F4: 2-Aberdeenshire Council-Aberdeenshire Council HMA | G4: FALSE | H4: FALSE | I4: FALSE | J4: FALSE | K4: FALSE | L4: FALSE | M4: FALSE | N4: FALSE | O4: FALSE | P4: FALSE | Q4: FALSE | R4: FALSE | S4: FALSE | T4: FALSE | U4: FALSE | V4: FALSE | W4: FALSE | X4: FALSE | Y4: FALSE | Z4: FALSE | AA4: FALSE | AB4: FALSE | AC4: FALSE | AD4: FALSE | AE4: FALSE | AF4: FALSE | AG4: FALSE | AH4: FALSE | AI4: FALSE | AJ4: FALSE | AK4: FALSE
C5: =Map!L9 -> Angus | D5: =Map!K9 -> Angus | E5: =Map!M9 -> FALSE | F5: 2-Angus Council-East Angus HMA | G5: 2-Angus Council-Greater Dundee HMA | H5: 2-Angus Council-North Angus HMA | I5: 2-Angus Council-West Angus HMA | J5: FALSE | K5: FALSE | L5: FALSE | M5: FALSE | N5: FALSE | O5: FALSE | P5: FALSE | Q5: FALSE | R5: FALSE | S5: FALSE | T5: FALSE | U5: FALSE | V5: FALSE | W5: FALSE | X5: FALSE | Y5: FALSE | Z5: FALSE | AA5: FALSE | AB5: FALSE | AC5: FALSE | AD5: FALSE | AE5: FALSE | AF5: FALSE | AG5: FALSE | AH5: FALSE | AI5: FALSE | AJ5: FALSE | AK5: FALSE
C6: =Map!L10 -> Argyll & Bute | D6: =Map!K10 -> ArgyllBute | E6: =Map!M10 -> FALSE | F6: 2-Arygll & Bute Council-Bute HMA | G6: 2-Arygll & Bute Council-Coll & Tiree HMA | H6: 2-Arygll & Bute Council-Cowal HMA | I6: 2-Arygll & Bute Council-Helensburgh & Lomond HMA | J6: 2-Arygll & Bute Council-Islay, Jura & Colonsay HMA | K6: 2-Arygll & Bute Council-Kintyre HMA | L6: 2-Arygll & Bute Council-Lorn & Inner Isles HMA | M6: 2-Arygll & Bute Council-Mid Argyll HMA | N6: 2-Arygll & Bute Council-Mull & Iona HMA | O6: FALSE | P6: FALSE | Q6: FALSE | R6: FALSE | S6: FALSE | T6: FALSE | U6: FALSE | V6: FALSE | W6: FALSE | X6: FALSE | Y6: FALSE | Z6: FALSE | AA6: FALSE | AB6: FALSE | AC6: FALSE | AD6: FALSE | AE6: FALSE | AF6: FALSE | AG6: FALSE | AH6: FALSE | AI6: FALSE | AJ6: FALSE | AK6: FALSE
C7: =Map!L11 -> Clackmannanshire | D7: =Map!K11 -> Clackmannanshire | E7: =Map!M11 -> FALSE | F7: 2-Clackmannanshire Council-Alloa HMA | G7: 2-Clackmannanshire Council-Dollar HMA | H7: 2-Clackmannanshire Council-Hillsfoot HMA | I7: FALSE | J7: FALSE | K7: FALSE | L7: FALSE | M7: FALSE | N7: FALSE | O7: FALSE | P7: FALSE | Q7: FALSE | R7: FALSE | S7: FALSE | T7: FALSE | U7: FALSE | V7: FALSE | W7: FALSE | X7: FALSE | Y7: FALSE | Z7: FALSE | AA7: FALSE | AB7: FALSE | AC7: FALSE | AD7: FALSE | AE7: FALSE | AF7: FALSE | AG7: FALSE | AH7: FALSE | AI7: FALSE | AJ7: FALSE | AK7: FALSE
C8: =Map!L12 -> Dumfries & Galloway | D8: =Map!K12 -> DumfriesGalloway | E8: =Map!M12 -> FALSE | F8: 2-Dumfries & Galloway Council-Annan HMA | G8: 2-Dumfries & Galloway Council-Dumfries HMA | H8: 2-Dumfries & Galloway Council-Eskdale HMA | I8: 2-Dumfries & Galloway Council-Mid Galloway HMA | J8: 2-Dumfries & Galloway Council-Stewarty HMA | K8: 2-Dumfries & Galloway Council-Stranraer HMA | L8: FALSE | M8: FALSE | N8: FALSE | O8: FALSE | P8: FALSE | Q8: FALSE | R8: FALSE | S8: FALSE | T8: FALSE | U8: FALSE | V8: FALSE | W8: FALSE | X8: FALSE | Y8: FALSE | Z8: FALSE | AA8: FALSE | AB8: FALSE | AC8: FALSE | AD8: FALSE | AE8: FALSE | AF8: FALSE | AG8: FALSE | AH8: FALSE | AI8: FALSE | AJ8: FALSE | AK8: FALSE
C9: =Map!L13 -> Dundee City | D9: =Map!K13 -> DundeeCity | E9: =Map!M13 -> FALSE | F9: 2-Dundee City HMA | G9: FALSE | H9: FALSE | I9: FALSE | J9: FALSE | K9: FALSE | L9: FALSE | M9: FALSE | N9: FALSE | O9: FALSE | P9: FALSE | Q9: FALSE | R9: FALSE | S9: FALSE | T9: FALSE | U9: FALSE | V9: FALSE | W9: FALSE | X9: FALSE | Y9: FALSE | Z9: FALSE | AA9: FALSE | AB9: FALSE | AC9: FALSE | AD9: FALSE | AE9: FALSE | AF9: FALSE | AG9: FALSE | AH9: FALSE | AI9: FALSE | AJ9: FALSE | AK9: FALSE
C10: =Map!L14 -> East Ayrshire | D10: =Map!K14 -> EastAyrshire | E10: =Map!M14 -> FALSE | F10: 2-East Ayrshire Council -Cummnock HMA | G10: 2-East Ayrshire Council -Doon Valley HMA | H10: 2-East Ayrshire Council -Kilmarnock & Loudoun HMA | I10: FALSE | J10: FALSE | K10: FALSE | L10: FALSE | M10: FALSE | N10: FALSE | O10: FALSE | P10: FALSE | Q10: FALSE | R10: FALSE | S10: FALSE | T10: FALSE | U10: FALSE | V10: FALSE | W10: FALSE | X10: FALSE | Y10: FALSE | Z10: FALSE | AA10: FALSE | AB10: FALSE | AC10: FALSE | AD10: FALSE | AE10: FALSE | AF10: FALSE | AG10: FALSE | AH10: FALSE | AI10: FALSE | AJ10: FALSE | AK10: FALSE
C11: =Map!L15 -> East Dunbartonshire | D11: =Map!K15 -> EastDunbartonshire | E11: =Map!M15 -> FALSE | F11: 2-East Dunbartonshire Council-East Dunbartonshire Council HMA | G11: FALSE | H11: FALSE | I11: FALSE | J11: FALSE | K11: FALSE | L11: FALSE | M11: FALSE | N11: FALSE | O11: FALSE | P11: FALSE | Q11: FALSE | R11: FALSE | S11: FALSE | T11: FALSE | U11: FALSE | V11: FALSE | W11: FALSE | X11: FALSE | Y11: FALSE | Z11: FALSE | AA11: FALSE | AB11: FALSE | AC11: FALSE | AD11: FALSE | AE11: FALSE | AF11: FALSE | AG11: FALSE | AH11: FALSE | AI11: FALSE | AJ11: FALSE | AK11: FALSE
C12: =Map!L16 -> East Lothian | D12: =Map!K16 -> EastLothian | E12: =Map!M16 -> FALSE | F12: ELC01 | G12: ELC02 | H12: ELC03 | I12: FALSE | J12: FALSE | K12: FALSE | L12: FALSE | M12: FALSE | N12: FALSE | O12: FALSE | P12: FALSE | Q12: FALSE | R12: FALSE | S12: FALSE | T12: FALSE | U12: FALSE | V12: FALSE | W12: FALSE | X12: FALSE | Y12: FALSE | Z12: FALSE | AA12: FALSE | AB12: FALSE | AC12: FALSE | AD12: FALSE | AE12: FALSE | AF12: FALSE | AG12: FALSE | AH12: FALSE | AI12: FALSE | AJ12: FALSE | AK12: FALSE
C13: =Map!L17 -> East Renfrewshire | D13: =Map!K17 -> EastRenfrewshire | E13: =Map!M17 -> FALSE | F13: 2-East Renfrewshire Council-East Renfrewshire Council HMA | G13: FALSE | H13: FALSE | I13: FALSE | J13: FALSE | K13: FALSE | L13: FALSE | M13: FALSE | N13: FALSE | O13: FALSE | P13: FALSE | Q13: FALSE | R13: FALSE | S13: FALSE | T13: FALSE | U13: FALSE | V13: FALSE | W13: FALSE | X13: FALSE | Y13: FALSE | Z13: FALSE | AA13: FALSE | AB13: FALSE | AC13: FALSE | AD13: FALSE | AE13: FALSE | AF13: FALSE | AG13: FALSE | AH13: FALSE | AI13: FALSE | AJ13: FALSE | AK13: FALSE
C14: =Map!L18 -> Edinburgh City | D14: =Map!K18 -> Edinburgh | E14: =Map!M18 -> FALSE | F14: CEC | G14: FALSE | H14: FALSE | I14: FALSE | J14: FALSE | K14: FALSE | L14: FALSE | M14: FALSE | N14: FALSE | O14: FALSE | P14: FALSE | Q14: FALSE | R14: FALSE | S14: FALSE | T14: FALSE | U14: FALSE | V14: FALSE | W14: FALSE | X14: FALSE | Y14: FALSE | Z14: FALSE | AA14: FALSE | AB14: FALSE | AC14: FALSE | AD14: FALSE | AE14: FALSE | AF14: FALSE | AG14: FALSE | AH14: FALSE | AI14: FALSE | AJ14: FALSE | AK14: FALSE
C15: =Map!L19 -> Eilean Siar | D15: =Map!K19 -> EileanSiar | E15: =Map!M19 -> FALSE | F15: 2-Eilean Siar Council-Rural HMA | G15: 2-Eilean Siar Council-Stornoway HMA | H15: FALSE | I15: FALSE | J15: FALSE | K15: FALSE | L15: FALSE | M15: FALSE | N15: FALSE | O15: FALSE | P15: FALSE | Q15: FALSE | R15: FALSE | S15: FALSE | T15: FALSE | U15: FALSE | V15: FALSE | W15: FALSE | X15: FALSE | Y15: FALSE | Z15: FALSE | AA15: FALSE | AB15: FALSE | AC15: FALSE | AD15: FALSE | AE15: FALSE | AF15: FALSE | AG15: FALSE | AH15: FALSE | AI15: FALSE | AJ15: FALSE | AK15: FALSE
C16: =Map!L20 -> Falkirk | D16: =Map!K20 -> Falkirk | E16: =Map!M20 -> FALSE | F16: Polmont & Rural South | G16: Falkirk HMA | H16: Denny & Bonnybridge | I16: Bo'ness | J16: Grangemouth | K16: Stenhousemuir Larbert & Rural North | L16: FALSE | M16: FALSE | N16: FALSE | O16: FALSE | P16: FALSE | Q16: FALSE | R16: FALSE | S16: FALSE | T16: FALSE | U16: FALSE | V16: FALSE | W16: FALSE | X16: FALSE | Y16: FALSE | Z16: FALSE | AA16: FALSE | AB16: FALSE | AC16: FALSE | AD16: FALSE | AE16: FALSE | AF16: FALSE | AG16: FALSE | AH16: FALSE | AI16: FALSE | AJ16: FALSE | AK16: FALSE
C17: =Map!L21 -> Fife | D17: =Map!K21 -> Fife | E17: =Map!M21 -> FALSE | F17: FC01 | G17: FC02 | H17: 2-Fife Council North-Cupar & North West Fife HMA | I17: 2-Fife Council North-St Andrews and North East Fife HMA | J17: FALSE | K17: FALSE | L17: FALSE | M17: FALSE | N17: FALSE | O17: FALSE | P17: FALSE | Q17: FALSE | R17: FALSE | S17: FALSE | T17: FALSE | U17: FALSE | V17: FALSE | W17: FALSE | X17: FALSE | Y17: FALSE | Z17: FALSE | AA17: FALSE | AB17: FALSE | AC17: FALSE | AD17: FALSE | AE17: FALSE | AF17: FALSE | AG17: FALSE | AH17: FALSE | AI17: FALSE | AJ17: FALSE | AK17: FALSE
C18: =Map!L22 -> Glasgow City | D18: =Map!K22 -> GlasgowCity | E18: =Map!M22 -> FALSE | F18: 2-Glasgow City Council-Glasgow City Council HMA | G18: FALSE | H18: FALSE | I18: FALSE | J18: FALSE | K18: FALSE | L18: FALSE | M18: FALSE | N18: FALSE | O18: FALSE | P18: FALSE | Q18: FALSE | R18: FALSE | S18: FALSE | T18: FALSE | U18: FALSE | V18: FALSE | W18: FALSE | X18: FALSE | Y18: FALSE | Z18: FALSE | AA18: FALSE | AB18: FALSE | AC18: FALSE | AD18: FALSE | AE18: FALSE | AF18: FALSE | AG18: FALSE | AH18: FALSE | AI18: FALSE | AJ18: FALSE | AK18: FALSE
C19: =Map!L23 -> Highland | D19: =Map!K23 -> Highland | E19: =Map!M23 -> FALSE | F19: 2-Highland Council-Badenoch & Strathspey HMA | G19: 2-Highland Council-Caithness HMA | H19: 2-Highland Council-East Ross HMA | I19: 2-Highland Council-Inverness HMA | J19: 2-Highland Council-Lochaber HMA | K19: 2-Highland Council-Mid Ross HMA | L19: 2-Highland Council-Nairn HMA | M19: 2-Highland Council-Skye & Lochalsh HMA | N19: 2-Highland Council-Sutherland HMA | O19: 2-Highland Council-West Ross HMA | P19: FALSE | Q19: FALSE | R19: FALSE | S19: FALSE | T19: FALSE | U19: FALSE | V19: FALSE | W19: FALSE | X19: FALSE | Y19: FALSE | Z19: FALSE | AA19: FALSE | AB19: FALSE | AC19: FALSE | AD19: FALSE | AE19: FALSE | AF19: FALSE | AG19: FALSE | AH19: FALSE | AI19: FALSE | AJ19: FALSE | AK19: FALSE
C20: =Map!L24 -> Inverclyde | D20: =Map!K24 -> Inverclyde | E20: =Map!M24 -> FALSE | F20: 2-Inverclyde Council-Inverclyde Council HMA | G20: FALSE | H20: FALSE | I20: FALSE | J20: FALSE | K20: FALSE | L20: FALSE | M20: FALSE | N20: FALSE | O20: FALSE | P20: FALSE | Q20: FALSE | R20: FALSE | S20: FALSE | T20: FALSE | U20: FALSE | V20: FALSE | W20: FALSE | X20: FALSE | Y20: FALSE | Z20: FALSE | AA20: FALSE | AB20: FALSE | AC20: FALSE | AD20: FALSE | AE20: FALSE | AF20: FALSE | AG20: FALSE | AH20: FALSE | AI20: FALSE | AJ20: FALSE | AK20: FALSE
C21: =Map!L25 -> Midlothian | D21: =Map!K25 -> Midlothian | E21: =Map!M25 -> FALSE | F21: MC01 | G21: MC02 | H21: MC03 | I21: FALSE | J21: FALSE | K21: FALSE | L21: FALSE | M21: FALSE | N21: FALSE | O21: FALSE | P21: FALSE | Q21: FALSE | R21: FALSE | S21: FALSE | T21: FALSE | U21: FALSE | V21: FALSE | W21: FALSE | X21: FALSE | Y21: FALSE | Z21: FALSE | AA21: FALSE | AB21: FALSE | AC21: FALSE | AD21: FALSE | AE21: FALSE | AF21: FALSE | AG21: FALSE | AH21: FALSE | AI21: FALSE | AJ21: FALSE | AK21: FALSE
C22: =Map!L26 -> Moray | D22: =Map!K26 -> Moray | E22: =Map!M26 -> FALSE | F22: 2-Moray Council-Buckie HMA | G22: 2-Moray Council-Cairngorms National Park HMA | H22: 2-Moray Council-Elgin HMA | I22: 2-Moray Council-Forres HMA | J22: 2-Moray Council-Keith HMA | K22: 2-Moray Council-Speyside HMA | L22: FALSE | M22: FALSE | N22: FALSE | O22: FALSE | P22: FALSE | Q22: FALSE | R22: FALSE | S22: FALSE | T22: FALSE | U22: FALSE | V22: FALSE | W22: FALSE | X22: FALSE | Y22: FALSE | Z22: FALSE | AA22: FALSE | AB22: FALSE | AC22: FALSE | AD22: FALSE | AE22: FALSE | AF22: FALSE | AG22: FALSE | AH22: FALSE | AI22: FALSE | AJ22: FALSE | AK22: FALSE
C23: =Map!L27 -> North Ayrshire | D23: =Map!K27 -> NorthAyrshire | E23: =Map!M27 -> FALSE | F23: 2-North Ayrshire Council-Arran HMA | G23: 2-North Ayrshire Council-Garnock Valley HMA | H23: 2-North Ayrshire Council-Irvine/ Kilwinning HMA | I23: 2-North Ayrshire Council-North Coast HMA | J23: 2-North Ayrshire Council-Three Towns HMA | K23: FALSE | L23: FALSE | M23: FALSE | N23: FALSE | O23: FALSE | P23: FALSE | Q23: FALSE | R23: FALSE | S23: FALSE | T23: FALSE | U23: FALSE | V23: FALSE | W23: FALSE | X23: FALSE | Y23: FALSE | Z23: FALSE | AA23: FALSE | AB23: FALSE | AC23: FALSE | AD23: FALSE | AE23: FALSE | AF23: FALSE | AG23: FALSE | AH23: FALSE | AI23: FALSE | AJ23: FALSE | AK23: FALSE
C24: =Map!L28 -> North Lanarkshire | D24: =Map!K28 -> NorthLanarkshire | E24: =Map!M28 -> FALSE | F24: 2-North Lanarkshire Council -North Lanarkshire Council HMA | G24: FALSE | H24: FALSE | I24: FALSE | J24: FALSE | K24: FALSE | L24: FALSE | M24: FALSE | N24: FALSE | O24: FALSE | P24: FALSE | Q24: FALSE | R24: FALSE | S24: FALSE | T24: FALSE | U24: FALSE | V24: FALSE | W24: FALSE | X24: FALSE | Y24: FALSE | Z24: FALSE | AA24: FALSE | AB24: FALSE | AC24: FALSE | AD24: FALSE | AE24: FALSE | AF24: FALSE | AG24: FALSE | AH24: FALSE | AI24: FALSE | AJ24: FALSE | AK24: FALSE
C25: =Map!L29 -> Orkney Islands | D25: =Map!K29 -> OrkneyIslands | E25: =Map!M29 -> FALSE | F25: Kirkwall | G25: Stromness Parish | H25: West Mainland | I25: East Mainland | J25: Isles | K25: FALSE | L25: FALSE | M25: FALSE | N25: FALSE | O25: FALSE | P25: FALSE | Q25: FALSE | R25: FALSE | S25: FALSE | T25: FALSE | U25: FALSE | V25: FALSE | W25: FALSE | X25: FALSE | Y25: FALSE | Z25: FALSE | AA25: FALSE | AB25: FALSE | AC25: FALSE | AD25: FALSE | AE25: FALSE | AF25: FALSE | AG25: FALSE | AH25: FALSE | AI25: FALSE | AJ25: FALSE | AK25: FALSE
C26: =Map!L30 -> Perth & Kinross | D26: =Map!K30 -> PerthKinross | E26: =Map!M30 -> FALSE | F26: 2-Perth & Kinross Council -Strathearn HMA | G26: 2-Perth & Kinross Council -Strathmore & Glens HMA | H26: 2-Perth & Kinross Council-Greater Dundee HMA | I26: 2-Perth & Kinross Council-Greater Perth HMA | J26: 2-Perth & Kinross Council-Highland Perthshire HMA | K26: 2-Perth & Kinross Council-Kinross HMA | L26: FALSE | M26: FALSE | N26: FALSE | O26: FALSE | P26: FALSE | Q26: FALSE | R26: FALSE | S26: FALSE | T26: FALSE | U26: FALSE | V26: FALSE | W26: FALSE | X26: FALSE | Y26: FALSE | Z26: FALSE | AA26: FALSE | AB26: FALSE | AC26: FALSE | AD26: FALSE | AE26: FALSE | AF26: FALSE | AG26: FALSE | AH26: FALSE | AI26: FALSE | AJ26: FALSE | AK26: FALSE
C27: =Map!L31 -> Renfrewshire | D27: =Map!K31 -> Renfrewshire | E27: =Map!M31 -> FALSE | F27: 2-Renfrewshire Council-Renfrewshire Council HMA | G27: FALSE | H27: FALSE | I27: FALSE | J27: FALSE | K27: FALSE | L27: FALSE | M27: FALSE | N27: FALSE | O27: FALSE | P27: FALSE | Q27: FALSE | R27: FALSE | S27: FALSE | T27: FALSE | U27: FALSE | V27: FALSE | W27: FALSE | X27: FALSE | Y27: FALSE | Z27: FALSE | AA27: FALSE | AB27: FALSE | AC27: FALSE | AD27: FALSE | AE27: FALSE | AF27: FALSE | AG27: FALSE | AH27: FALSE | AI27: FALSE | AJ27: FALSE | AK27: FALSE
C28: =Map!L32 -> Scottish Borders | D28: =Map!K32 -> ScottishBorders | E28: =Map!M32 -> FALSE | F28: SBC01 | G28: SBC02 | H28: SBC03 | I28: SBC04 | J28: FALSE | K28: FALSE | L28: FALSE | M28: FALSE | N28: FALSE | O28: FALSE | P28: FALSE | Q28: FALSE | R28: FALSE | S28: FALSE | T28: FALSE | U28: FALSE | V28: FALSE | W28: FALSE | X28: FALSE | Y28: FALSE | Z28: FALSE | AA28: FALSE | AB28: FALSE | AC28: FALSE | AD28: FALSE | AE28: FALSE | AF28: FALSE | AG28: FALSE | AH28: FALSE | AI28: FALSE | AJ28: FALSE | AK28: FALSE
C29: =Map!L33 -> Shetland Islands | D29: =Map!K33 -> ShetlandIslands | E29: =Map!M33 -> FALSE | F29: 2-Shetland Council-Central Mainland HMA | G29: 2-Shetland Council-Lerwick & Bressay HMA | H29: 2-Shetland Council-North Isles, Whalsay & Skerries HMA | I29: 2-Shetland Council-North Mainland HMA | J29: 2-Shetland Council-South Mainland HMA | K29: 2-Shetland Council-West Mainland HMA | L29: FALSE | M29: FALSE | N29: FALSE | O29: FALSE | P29: FALSE | Q29: FALSE | R29: FALSE | S29: FALSE | T29: FALSE | U29: FALSE | V29: FALSE | W29: FALSE | X29: FALSE | Y29: FALSE | Z29: FALSE | AA29: FALSE | AB29: FALSE | AC29: FALSE | AD29: FALSE | AE29: FALSE | AF29: FALSE | AG29: FALSE | AH29: FALSE | AI29: FALSE | AJ29: FALSE | AK29: FALSE
C30: =Map!L34 -> South Ayrshire | D30: =Map!K34 -> SouthAyrshire | E30: =Map!M34 -> FALSE | F30: 2-South Ayrshire Council-Ayr HMA | G30: 2-South Ayrshire Council-Girvan & South Carrick HMA | H30: FALSE | I30: FALSE | J30: FALSE | K30: FALSE | L30: FALSE | M30: FALSE | N30: FALSE | O30: FALSE | P30: FALSE | Q30: FALSE | R30: FALSE | S30: FALSE | T30: FALSE | U30: FALSE | V30: FALSE | W30: FALSE | X30: FALSE | Y30: FALSE | Z30: FALSE | AA30: FALSE | AB30: FALSE | AC30: FALSE | AD30: FALSE | AE30: FALSE | AF30: FALSE | AG30: FALSE | AH30: FALSE | AI30: FALSE | AJ30: FALSE | AK30: FALSE
C31: =Map!L35 -> South Lanarkshire | D31: =Map!K35 -> SouthLanarkshire | E31: =Map!M35 -> FALSE | F31: 2-South Lanarkshire Council-South Lanarkshire Council HMA | G31: FALSE | H31: FALSE | I31: FALSE | J31: FALSE | K31: FALSE | L31: FALSE | M31: FALSE | N31: FALSE | O31: FALSE | P31: FALSE | Q31: FALSE | R31: FALSE | S31: FALSE | T31: FALSE | U31: FALSE | V31: FALSE | W31: FALSE | X31: FALSE | Y31: FALSE | Z31: FALSE | AA31: FALSE | AB31: FALSE | AC31: FALSE | AD31: FALSE | AE31: FALSE | AF31: FALSE | AG31: FALSE | AH31: FALSE | AI31: FALSE | AJ31: FALSE | AK31: FALSE
C32: =Map!L36 -> Stirling | D32: =Map!K36 -> Stirling | E32: =Map!M36 -> FALSE | F32: 2-Stirling Council-National Park HMA | G32: 2-Stirling Council-Stirling Core HMA | H32: 2-Stirling Council-Stirling Rural HMA | I32: FALSE | J32: FALSE | K32: FALSE | L32: FALSE | M32: FALSE | N32: FALSE | O32: FALSE | P32: FALSE | Q32: FALSE | R32: FALSE | S32: FALSE | T32: FALSE | U32: FALSE | V32: FALSE | W32: FALSE | X32: FALSE | Y32: FALSE | Z32: FALSE | AA32: FALSE | AB32: FALSE | AC32: FALSE | AD32: FALSE | AE32: FALSE | AF32: FALSE | AG32: FALSE | AH32: FALSE | AI32: FALSE | AJ32: FALSE | AK32: FALSE
C33: =Map!L37 -> West Dunbartonshire | D33: =Map!K37 -> WestDunbartonshire | E33: =Map!M37 -> FALSE | F33: 2-West Dunbartonshire Council-West Dunbartonshire Council HMA | G33: FALSE | H33: FALSE | I33: FALSE | J33: FALSE | K33: FALSE | L33: FALSE | M33: FALSE | N33: FALSE | O33: FALSE | P33: FALSE | Q33: FALSE | R33: FALSE | S33: FALSE | T33: FALSE | U33: FALSE | V33: FALSE | W33: FALSE | X33: FALSE | Y33: FALSE | Z33: FALSE | AA33: FALSE | AB33: FALSE | AC33: FALSE | AD33: FALSE | AE33: FALSE | AF33: FALSE | AG33: FALSE | AH33: FALSE | AI33: FALSE | AJ33: FALSE | AK33: FALSE
C34: =Map!L38 -> West Lothian | D34: =Map!K38 -> WestLothian | E34: =Map!M38 -> FALSE | F34: WLC01 | G34: WLC02 | H34: WLC03 | I34: FALSE | J34: FALSE | K34: FALSE | L34: FALSE | M34: FALSE | N34: FALSE | O34: FALSE | P34: FALSE | Q34: FALSE | R34: FALSE | S34: FALSE | T34: FALSE | U34: FALSE | V34: FALSE | W34: FALSE | X34: FALSE | Y34: FALSE | Z34: FALSE | AA34: FALSE | AB34: FALSE | AC34: FALSE | AD34: FALSE | AE34: FALSE | AF34: FALSE | AG34: FALSE | AH34: FALSE | AI34: FALSE | AJ34: FALSE | AK34: FALSE
A35: Scotland | C35: =Map!L39 -> 0 | D35: =Map!K39 -> 0 | E35: =Map!M39 -> FALSE | F35: AberdeenCity | G35: Aberdeenshire | H35: Angus | I35: ArgyllBute | J35: Clackmannanshire | K35: DumfriesGalloway | L35: DundeeCity | M35: EastAyrshire | N35: EastDunbartonshire | O35: EastLothian | P35: EastRenfrewshire | Q35: Edinburgh | R35: EileanSiar | S35: Falkirk | T35: Fife | U35: GlasgowCity | V35: Highland | W35: Inverclyde | X35: Midlothian | Y35: Moray | Z35: NorthAyrshire | AA35: NorthLanarkshire | AB35: OrkneyIslands | AC35: PerthKinross | AD35: Renfrewshire | AE35: ScottishBorders | AF35: ShetlandIslands | AG35: SouthAyrshire | AH35: SouthLanarkshire | AI35: Stirling | AJ35: WestDunbartonshire | AK35: WestLothian
A36: SDPAs | C36: =Map!L40 -> Aberdeen/Shire City Region | D36: =Map!K40 -> Aberdeen/Shire City Region | E36: =Map!M40 -> FALSE | F36: 1-AberdeenCity&ShireCityRegion-Aberdeen HMA | G36: 1-AberdeenCity&ShireCityRegion-Rural HMA | H36: FALSE | I36: FALSE | J36: FALSE | K36: FALSE | L36: FALSE | M36: FALSE | N36: FALSE | O36: FALSE | P36: FALSE | Q36: FALSE | R36: FALSE | S36: FALSE | T36: FALSE | U36: FALSE | V36: FALSE | W36: FALSE | X36: FALSE | Y36: FALSE | Z36: FALSE | AA36: FALSE | AB36: FALSE | AC36: FALSE | AD36: FALSE | AE36: FALSE | AF36: FALSE | AG36: FALSE | AH36: FALSE | AI36: FALSE | AJ36: FALSE | AK36: FALSE
C37: =Map!L41 -> Glasgow City Region | D37: =Map!K41 -> Glasgow City Region | E37: =Map!M41 -> FALSE | F37: 1-GlasgowCityRegion-East Dunbartonshire Council HMA | G37: 1-GlasgowCityRegion-East Renfrewshire Council HMA | H37: 1-GlasgowCityRegion-Glasgow City Council HMA | I37: 1-GlasgowCityRegion-Inverclyde Council HMA | J37: 1-GlasgowCityRegion-North Lanarkshire Council HMA | K37: 1-GlasgowCityRegion-Renfrewshire Council HMA | L37: 1-GlasgowCityRegion-South Lanarkshire Council HMA | M37: 1-GlasgowCityRegion-West Dunbartonshire Council HMA | N37: FALSE | O37: FALSE | P37: FALSE | Q37: FALSE | R37: FALSE | S37: FALSE | T37: FALSE | U37: FALSE | V37: FALSE | W37: FALSE | X37: FALSE | Y37: FALSE | Z37: FALSE | AA37: FALSE | AB37: FALSE | AC37: FALSE | AD37: FALSE | AE37: FALSE | AF37: FALSE | AG37: FALSE | AH37: FALSE | AI37: FALSE | AJ37: FALSE | AK37: FALSE
C38: =Map!L42 -> Edinburgh City Region | D38: =Map!K42 -> Edinburgh City Region | E38: =Map!M42 -> FALSE | F38: 1-EdinburghCityRegion-East Lothian Council HMA | G38: 1-EdinburghCityRegion-Edinburgh City Council HMA | H38: 1-EdinburghCityRegion-FC01 | I38: 1-EdinburghCityRegion-FC02 | J38: 1-EdinburghCityRegion-Midlothian Council HMA | K38: 1-EdinburghCityRegion-Scottish Borders Council | L38: 1-EdinburghCityRegion-West Lothian Council HMA | M38: FALSE | N38: FALSE | O38: FALSE | P38: FALSE | Q38: FALSE | R38: FALSE | S38: FALSE | T38: FALSE | U38: FALSE | V38: FALSE | W38: FALSE | X38: FALSE | Y38: FALSE | Z38: FALSE | AA38: FALSE | AB38: FALSE | AC38: FALSE | AD38: FALSE | AE38: FALSE | AF38: FALSE | AG38: FALSE | AH38: FALSE | AI38: FALSE | AJ38: FALSE | AK38: FALSE
C39: =Map!L43 -> 0 | D39: =Map!K43 -> SESPlan HMA | E39: =Map!M43 -> FALSE | F39: ELC01 | G39: ELC02 | H39: ELC03 | I39: CEC | J39: FC01 | K39: FC02 | L39: MC01 | M39: MC02 | N39: FALSE | O39: FALSE | P39: FALSE | Q39: SBC03 | R39: SBC04 | S39: WLC01 | T39: WLC03 | W39: FALSE | X39: FALSE | Y39: FALSE | Z39: FALSE | AA39: FALSE | AB39: FALSE | AC39: FALSE | AD39: FALSE | AE39: FALSE | AF39: FALSE | AG39: FALSE | AH39: FALSE | AI39: FALSE | AJ39: FALSE | AK39: FALSE
C40: =Map!L44 -> Dundee City Region | D40: =Map!K44 -> Dundee City Region | E40: =Map!M44 -> FALSE | F40: 1-DundeeCityRegion-Angus Council HMA | G40: 1-DundeeCityRegion-Dundee City Council HMA | H40: 1-DundeeCityRegion-St Andrews & North East Fife | I40: 1-DundeeCityRegion-Cupar & North West Fife | J40: 1-DundeeCityRegion-Perth & Kinross Council HMA | K40: FALSE | L40: FALSE | M40: FALSE | N40: FALSE | O40: FALSE | P40: FALSE | Q40: FALSE | R40: FALSE | S40: FALSE | T40: FALSE | U40: FALSE | V40: FALSE | W40: FALSE | X40: FALSE | Y40: FALSE | Z40: FALSE | AA40: FALSE | AB40: FALSE | AC40: FALSE | AD40: FALSE | AE40: FALSE | AF40: FALSE | AG40: FALSE | AH40: FALSE | AI40: FALSE | AJ40: FALSE | AK40: FALSE
A41: Greater Dundee HMA | C41: =Map!L45 -> 0 | D41: =Map!K45 -> 0 | E41: =Map!M45 -> 0 | F41: 4-Dundee City Centre MAA Sub Area | G41: 4-Dundee City East MAA Sub Area | H41: 4-Dundee City North MAA Sub Area | I41: 4-Dundee City West MAA Sub Area | J41: 4-Greater Perth Sub Area | K41: 4-South Angus HMA Sub Area | L41: 4-St Andrews & North East Fife Sub Area | M41: FALSE | N41: FALSE | O41: FALSE | P41: FALSE | Q41: FALSE | R41: FALSE | S41: FALSE | T41: FALSE | U41: FALSE | V41: FALSE | W41: FALSE | X41: FALSE | Y41: FALSE | Z41: FALSE | AA41: FALSE | AB41: FALSE | AC41: FALSE | AD41: FALSE | AE41: FALSE | AF41: FALSE | AG41: FALSE | AH41: FALSE | AI41: FALSE | AJ41: FALSE | AK41: FALSE
A42: National Parks | C42: =Map!L46 -> Cairngorms NP | D42: =Map!K46 -> Cairngorms NP | E42: =Map!M46 -> FALSE | F42: 5-CNP Aberdeenshire | G42: 5-CNP Highland | H42: 5-CNP Moray | I42: FALSE | J42: FALSE | K42: FALSE | L42: FALSE | M42: FALSE | N42: FALSE | O42: FALSE | P42: FALSE | Q42: FALSE | R42: FALSE | S42: FALSE | T42: FALSE | U42: FALSE | V42: FALSE | W42: FALSE | X42: FALSE | Y42: FALSE | Z42: FALSE | AA42: FALSE | AB42: FALSE | AC42: FALSE | AD42: FALSE | AE42: FALSE | AF42: FALSE | AG42: FALSE | AH42: FALSE | AI42: FALSE | AJ42: FALSE | AK42: FALSE
C43: =Map!L47 -> Loch Lomond & Trossachs NP | D43: =Map!K47 -> Loch Lomond & Trossachs NP | E43: =Map!M47 -> FALSE | F43: 5-LLTNP Argyll & Bute | G43: 5-LLTNP Stirling | H43: 5-LLTNP West Dunbartonshire | J43: FALSE | K43: FALSE | L43: FALSE | M43: FALSE | N43: FALSE | O43: FALSE | P43: FALSE | Q43: FALSE | R43: FALSE | S43: FALSE | T43: FALSE | U43: FALSE | V43: FALSE | W43: FALSE | X43: FALSE | Y43: FALSE | Z43: FALSE | AA43: FALSE | AB43: FALSE | AC43: FALSE | AD43: FALSE | AE43: FALSE | AF43: FALSE | AG43: FALSE | AH43: FALSE | AI43: FALSE | AJ43: FALSE | AK43: FALSE
H63: Scotland

Sheet Households (hidden)
A1: Map Commands
A4: =Map!L8 -> Aberdeenshire | B4: =Map!M8 -> FALSE
A5: =Map!L9 -> Angus | B5: =Map!M9 -> FALSE
A6: =Map!L10 -> Argyll & Bute | B6: =Map!M10 -> FALSE
A7: =Map!L11 -> Clackmannanshire | B7: =Map!M11 -> FALSE
A8: =Map!L12 -> Dumfries & Galloway | B8: =Map!M12 -> FALSE
A9: =Map!L13 -> Dundee City | B9: =Map!M13 -> FALSE
A10: =Map!L14 -> East Ayrshire | B10: =Map!M14 -> FALSE
A11: =Map!L15 -> East Dunbartonshire | B11: =Map!M15 -> FALSE
A12: =Map!L16 -> East Lothian | B12: =Map!M16 -> FALSE
A13: =Map!L17 -> East Renfrewshire | B13: =Map!M17 -> FALSE
A14: =Map!L18 -> Edinburgh City | B14: =Map!M18 -> FALSE
A15: =Map!L19 -> Eilean Siar | B15: =Map!M19 -> FALSE
A16: =Map!L20 -> Falkirk | B16: =Map!M20 -> FALSE
A17: =Map!L21 -> Fife | B17: =Map!M21 -> FALSE
A18: =Map!L22 -> Glasgow City | B18: =Map!M22 -> FALSE
A19: =Map!L23 -> Highland | B19: =Map!M23 -> FALSE
A20: =Map!L24 -> Inverclyde | B20: =Map!M24 -> FALSE
A21: =Map!L25 -> Midlothian | B21: =Map!M25 -> FALSE
A22: =Map!L26 -> Moray | B22: =Map!M26 -> FALSE
A23: =Map!L27 -> North Ayrshire | B23: =Map!M27 -> FALSE
A24: =Map!L28 -> North Lanarkshire | B24: =Map!M28 -> FALSE
A25: =Map!L29 -> Orkney Islands | B25: =Map!M29 -> FALSE
A26: =Map!L30 -> Perth & Kinross | B26: =Map!M30 -> FALSE
A27: =Map!L31 -> Renfrewshire | B27: =Map!M31 -> FALSE
A28: =Map!L32 -> Scottish Borders | B28: =Map!M32 -> FALSE
A29: =Map!L33 -> Shetland Islands | B29: =Map!M33 -> FALSE
A30: =Map!L34 -> South Ayrshire | B30: =Map!M34 -> FALSE
A31: =Map!L35 -> South Lanarkshire | B31: =Map!M35 -> FALSE
A32: =Map!L36 -> Stirling | B32: =Map!M36 -> FALSE
A33: =Map!L37 -> West Dunbartonshire | B33: =Map!M37 -> FALSE
A34: =Map!L38 -> West Lothian | B34: =Map!M38 -> FALSE
A35: =Map!L39 -> 0 | B35: =Map!M39 -> FALSE
A36: =Map!L40 -> Aberdeen/Shire City Region | B36: =Map!M40 -> FALSE
A37: =Map!L41 -> Glasgow City Region | B37: =Map!M41 -> FALSE
A38: =Map!L42 -> Edinburgh City Region | B38: =Map!M42 -> FALSE
A39: =Map!L60 -> SESPlan HMA | B39: =Map!M43 -> FALSE
A40: TayPlan | B40: =Map!M60 -> FALSE
A42: =Map!L59 -> Greater Dundee | B42: =Map!M59 -> FALSE
A43: Cairngorms NP | B43: =Map!M46 -> FALSE
A44: Loch Lomond & Trossachs NP | B44: =Map!M47 -> FALSE

Sheet Results
B1: RESULTS - Average new build needed, per year, by tenure | R1: 3 Years | S1: 3 | T1: =S1+2 -> 5 | U1: =C2 -> 2020 | V1: =W1-1 -> 2024 | W1: =U1+T1 -> 2025 | X1: =Y1-1 -> 2029 | Y1: =W1+T1 -> 2030 | Z1: =Y1+T1-1 -> 2034 | AA1: =IF(S1<4,Y1+T1,0) -> 2035 | AB1: =IF(S1<4,AA1+T1-1,0) -> 2039 | AC1: =IF(S1<3,AA1+T1,0) -> 0 | AD1: =IF(S1<3,AC1+T1-1,0) -> 0 | AG1: =START_YEAR -> 2020 | AH1: =AG1+1 -> 2021 | AI1: =AH1+1 -> 2022 | AJ1: 2023 | AK1: 2024 | AL1: 2025 | AM1: 2026 | AN1: 2027 | AO1: 2028 | AP1: 2029 | AQ1: 2030 | AR1: 2031 | AS1: 2032 | AT1: 2033 | AU1: 2034 | AV1: 2035 | AW1: 2036 | AX1: 2037 | AY1: 2038 | AZ1: 2039 | BA1: 2040
B2: START YEAR | C2: =START_YEAR -> 2020 | R2: 4 Years | AG2: d | AH2: e | AI2: f | AJ2: g | AK2: h | AL2: i | AM2: j | AN2: k | AO2: l | AP2: m | AQ2: n | AR2: o | AS2: p | AT2: q | AU2: r | AV2: s | AW2: t | AX2: u | AY2: v | AZ2: w | BA2: x
B3: CHOOSE TIME PERIOD | R3: 5 Years
R4: 6 Years
D5: Core Tool Default Settings | H5: User Scenario | R5: 7 Years
D6: =IF($U$1>0,CONCATENATE($U$1," - ",$V$1),"") -> 2020 - 2024 | E6: =IF($W$1>0,CONCATENATE($W$1," - ",$X$1),"") -> 2025 - 2029 | F6: =IF($Y$1>0,CONCATENATE($Y$1," - ",$Z$1),"") -> 2030 - 2034 | G6: =IF($AA$1>0,CONCATENATE($AA$1," - ",$AB$1),"") -> 2035 - 2039 | H6: =IF($U$1>0,CONCATENATE($U$1," - ",$V$1),"") -> 2020 - 2024 | I6: =IF($W$1>0,CONCATENATE($W$1," - ",$X$1),"") -> 2025 - 2029 | J6: =IF($Y$1>0,CONCATENATE($Y$1," - ",$Z$1),"") -> 2030 - 2034 | K6: =IF($AA$1>0,CONCATENATE($AA$1," - ",$AB$1),"") -> 2035 - 2039
C7: Total (Top Level) | D7: =AVERAGE(INDIRECT(CONCATENATE($R$7,"!",$U$7,$Q7,":",$V$7,$Q7))) -> 402.4 | E7: =AVERAGE(INDIRECT(CONCATENATE($R$7,"!",$W$7,$Q7,":",$X$7,$Q7))) -> 292.2 | F7: =AVERAGE(INDIRECT(CONCATENATE($R$7,"!",$Y$7,$Q7,":",$Z$7,$Q7))) -> 402 | G7: =IF($G$6<>"",AVERAGE(INDIRECT(CONCATENATE($R$7,"!",$AA$7,$Q7,":",$AB$7,$Q7))),"") -> 335.4 | H7: =AVERAGE(INDIRECT(CONCATENATE($T$7,"!",$U$7,$S7,":",$V$7,$S7))) -> 402.4 | I7: =AVERAGE(INDIRECT(CONCATENATE($T$7,"!",$W$7,$S7,":",$X$7,$S7))) -> 292.2 | J7: =AVERAGE(INDIRECT(CONCATENATE($T$7,"!",$Y$7,$S7,":",$Z$7,$S7))) -> 402 | K7: =IF($K$6<>"",AVERAGE(INDIRECT(CONCATENATE($T$7,"!",$AA$7,$S7,":",$AB$7,$S7))),"") -> 335.4 | Q7: 11 | R7: RawResultsCore | S7: 11 | T7: RawResultsScenario | U7: =HLOOKUP(U$1,$AG$1:$BA$2,2) -> d | V7: =HLOOKUP(V$1,$AG$1:$BA$2,2) -> h | W7: =HLOOKUP(W$1,$AG$1:$BA$2,2) -> i | X7: m | Y7: n | Z7: r | AA7: s | AB7: w
C8: Total (Sum of Sub Areas) | D8: 402.4 | E8: 292.2 | F8: 402 | G8: 335.4 | H8: 402.4 | I8: 292.2 | J8: =AVERAGE(INDIRECT(CONCATENATE($T$7,"!",$Y$7,$S8,":",$Z$7,$S8))) -> 402 | K8: 335.4 | Q8: 38 | S8: 38
B9: Top Level | C9: Social rent | D9: 174.65 | E9: 67.656 | F9: 86.806 | G9: 68.558 | H9: 174.65 | I9: 67.656 | J9: 86.806 | K9: 68.558 | Q9: 26 | S9: 26
C10: Below Market | D10: 66.872 | E10: 67.194 | F10: 89.26 | G10: 70.794 | H10: 66.872 | I10: 67.194 | J10: 89.26 | K10: 70.794 | Q10: 27 | S10: 27
C11: PRS | D11: 63.4428 | E11: 61.1868 | F11: 88.4476 | G11: 75.5548 | H11: 63.4428 | I11: 61.1868 | J11: 88.4476 | K11: 75.5548 | Q11: 28 | S11: 28
C12: Buyers | D12: 97.4352 | E12: 96.1632 | F12: 137.4864 | G12: 120.4932 | H12: 97.4352 | I12: 96.1632 | J12: 137.4864 | K12: 120.4932 | Q12: 29 | S12: 29
B13: Summed | C13: Social rent | D13: 174.65 | E13: 67.656 | F13: 86.806 | G13: 68.558 | H13: 174.65 | I13: 67.656 | J13: 86.806 | K13: 68.558 | Q13: 53 | S13: 53
C14: Below Market | D14: 66.872 | E14: 67.194 | F14: 89.26 | G14: 70.794 | H14: 66.872 | I14: 67.194 | J14: 89.26 | K14: 70.794 | Q14: 54 | S14: 54
C15: PRS | D15: 63.4428 | E15: 61.1868 | F15: 88.4476 | G15: 75.5548 | H15: 63.4428 | I15: 61.1868 | J15: 88.4476 | K15: 75.5548 | Q15: 55 | S15: 55
C16: Buyers | D16: =AVERAGE(INDIRECT(CONCATENATE($R$7,"!",$U$7,$Q16,":",$V$7,$Q16))) -> 97.4352 | E16: 96.1632 | F16: 137.4864 | G16: 120.4932 | H16: 97.4352 | I16: 96.1632 | J16: 137.4864 | K16: 120.4932 | Q16: 56 | S16: 56
B17: Constrained | C17: Social rent | D17: =D13/D$8*D$7 -> 174.65 | E17: =E13/E$8*E$7 -> 67.656 | F17: =F13/F$8*F$7 -> 86.806 | G17: =IF(G$6<>"",G13/G$8*G$7,"") -> 68.558 | H17: =H13/H$8*H$7 -> 174.65 | I17: 67.656 | J17: 86.806 | K17: =IF(K$6<>"",K13/K$8*K$7,"") -> 68.558
C18: Below Market | D18: =D14/D$8*D$7 -> 66.872 | E18: 67.194 | F18: 89.26 | G18: =IF(G$6<>"",G14/G$8*G$7,"") -> 70.794 | H18: 66.872 | I18: 67.194 | J18: =J14/J$8*J$7 -> 89.26 | K18: =IF(K$6<>"",K14/K$8*K$7,"") -> 70.794
C19: PRS | D19: 63.4428 | E19: 61.1868 | F19: 88.4476 | G19: =IF(G$6<>"",G15/G$8*G$7,"") -> 75.5548 | H19: 63.4428 | I19: 61.1868 | J19: =J15/J$8*J$7 -> 88.4476 | K19: =IF(K$6<>"",K15/K$8*K$7,"") -> 75.5548
C20: Buyers | D20: =D16/D$8*D$7 -> 97.4352 | E20: 96.1632 | F20: 137.4864 | G20: =IF(G$6<>"",G16/G$8*G$7,"") -> 120.4932 | H20: 97.4352 | I20: 96.1632 | J20: 137.4864 | K20: =IF(K$6<>"",K16/K$8*K$7,"") -> 120.4932
B22: =RawResultsCore!B58 -> 2-Aberdeen City Council-Aberdeen City Council HMA | D22: Core Tool Default Settings | H22: User Scenario
C23: Total (Top Level) | D23: =AVERAGE(INDIRECT(CONCATENATE($R$7,"!",$U$7,$Q23,":",$V$7,$Q23))) -> 402.4 | E23: =AVERAGE(INDIRECT(CONCATENATE($R$7,"!",$W$7,$Q23,":",$X$7,$Q23))) -> 292.2 | F23: =AVERAGE(INDIRECT(CONCATENATE($R$7,"!",$Y$7,$Q23,":",$Z$7,$Q23))) -> 402 | G23: =IF($G$6<>"",AVERAGE(INDIRECT(CONCATENATE($R$7,"!",$AA$7,$Q23,":",$AB$7,$Q23))),"") -> 335.4 | H23: =AVERAGE(INDIRECT(CONCATENATE($T$7,"!",$U$7,$S23,":",$V$7,$S23))) -> 402.4 | I23: =AVERAGE(INDIRECT(CONCATENATE($T$7,"!",$W$7,$S23,":",$X$7,$S23))) -> 292.2 | J23: =AVERAGE(INDIRECT(CONCATENATE($T$7,"!",$Y$7,$S23,":",$Z$7,$S23))) -> 402 | K23: =IF($K$6<>"",AVERAGE(INDIRECT(CONCATENATE($T$7,"!",$AA$7,$S23,":",$AB$7,$S23))),"") -> 335.4 | Q23: 65 | S23: 65
C24: Total (Constrained) | D24: =IF(D23<>"",D23*D$8/D$7,"") -> 402.4 | E24: =IF(E23<>"",E23*E$8/E$7,"") -> 292.2 | F24: =IF(F23<>"",F23*F$8/F$7,"") -> 402 | G24: =IF(G23<>"",G23*G$8/G$7,"") -> 335.4 | H24: =IF(H23<>"",H23*H$7/H$8,"") -> 402.4 | I24: =IF(I23<>"",I23*I$7/I$8,"") -> 292.2 | J24: =IF(J23<>"",J23*J$7/J$8,"") -> 402 | K24: =IF(K23<>"",K23*K$7/K$8,"") -> 335.4
B25: Top Level | C25: Social rent | D25: =AVERAGE(INDIRECT(CONCATENATE($R$7,"!",$U$7,$Q25,":",$V$7,$Q25))) -> 174.65 | E25: 67.656 | F25: 86.806 | G25: =IF($G$6<>"",AVERAGE(INDIRECT(CONCATENATE($R$7,"!",$AA$7,$Q25,":",$AB$7,$Q25))),"") -> 68.558 | H25: =AVERAGE(INDIRECT(CONCATENATE($T$7,"!",$U$7,$S25,":",$V$7,$S25))) -> 174.65 | I25: =AVERAGE(INDIRECT(CONCATENATE($T$7,"!",$W$7,$S25,":",$X$7,$S25))) -> 67.656 | J25: =AVERAGE(INDIRECT(CONCATENATE($T$7,"!",$Y$7,$S25,":",$Z$7,$S25))) -> 86.806 | K25: =IF($K$6<>"",AVERAGE(INDIRECT(CONCATENATE($T$7,"!",$AA$7,$S25,":",$AB$7,$S25))),"") -> 68.558 | Q25: 80 | S25: 80
C26: Below Market | D26: =AVERAGE(INDIRECT(CONCATENATE($R$7,"!",$U$7,$Q26,":",$V$7,$Q26))) -> 66.872 | E26: 67.194 | F26: 89.26 | G26: =IF($G$6<>"",AVERAGE(INDIRECT(CONCATENATE($R$7,"!",$AA$7,$Q26,":",$AB$7,$Q26))),"") -> 70.794 | H26: =AVERAGE(INDIRECT(CONCATENATE($T$7,"!",$U$7,$S26,":",$V$7,$S26))) -> 66.872 | I26: =AVERAGE(INDIRECT(CONCATENATE($T$7,"!",$W$7,$S26,":",$X$7,$S26))) -> 67.194 | J26: =AVERAGE(INDIRECT(CONCATENATE($T$7,"!",$Y$7,$S26,":",$Z$7,$S26))) -> 89.26 | K26: =IF($K$6<>"",AVERAGE(INDIRECT(CONCATENATE($T$7,"!",$AA$7,$S26,":",$AB$7,$S26))),"") -> 70.794 | Q26: 81 | S26: 81
A27: 1 | C27: PRS | D27: =AVERAGE(INDIRECT(CONCATENATE($R$7,"!",$U$7,$Q27,":",$V$7,$Q27))) -> 63.4428 | E27: 61.1868 | F27: 88.4476 | G27: =IF($G$6<>"",AVERAGE(INDIRECT(CONCATENATE($R$7,"!",$AA$7,$Q27,":",$AB$7,$Q27))),"") -> 75.5548 | H27: =AVERAGE(INDIRECT(CONCATENATE($T$7,"!",$U$7,$S27,":",$V$7,$S27))) -> 63.4428 | I27: =AVERAGE(INDIRECT(CONCATENATE($T$7,"!",$W$7,$S27,":",$X$7,$S27))) -> 61.1868 | J27: =AVERAGE(INDIRECT(CONCATENATE($T$7,"!",$Y$7,$S27,":",$Z$7,$S27))) -> 88.4476 | K27: =IF($K$6<>"",AVERAGE(INDIRECT(CONCATENATE($T$7,"!",$AA$7,$S27,":",$AB$7,$S27))),"") -> 75.5548 | Q27: 82 | S27: 82
C28: Buyers | D28: =AVERAGE(INDIRECT(CONCATENATE($R$7,"!",$U$7,$Q28,":",$V$7,$Q28))) -> 97.4352 | E28: 96.1632 | F28: 137.4864 | G28: =IF($G$6<>"",AVERAGE(INDIRECT(CONCATENATE($R$7,"!",$AA$7,$Q28,":",$AB$7,$Q28))),"") -> 120.4932 | H28: =AVERAGE(INDIRECT(CONCATENATE($T$7,"!",$U$7,$S28,":",$V$7,$S28))) -> 97.4352 | I28: =AVERAGE(INDIRECT(CONCATENATE($T$7,"!",$W$7,$S28,":",$X$7,$S28))) -> 96.1632 | J28: =AVERAGE(INDIRECT(CONCATENATE($T$7,"!",$Y$7,$S28,":",$Z$7,$S28))) -> 137.4864 | K28: =IF($K$6<>"",AVERAGE(INDIRECT(CONCATENATE($T$7,"!",$AA$7,$S28,":",$AB$7,$S28))),"") -> 120.4932 | Q28: 83 | S28: 83
B29: Constrained | C29: Social rent | D29: =IF(D25<>"",D25*D$7/D$8,"") -> 174.65 | E29: 67.656 | F29: 86.806 | G29: 68.558 | H29: 174.65 | I29: 67.656 | J29: 86.806 | K29: 68.558
C30: Below Market | D30: =IF(D26<>"",D26*D$7/D$8,"") -> 66.872 | E30: 67.194 | F30: 89.26 | G30: 70.794 | H30: =IF(H26<>"",H26*H$7/H$8,"") -> 66.872 | I30: 67.194 | J30: 89.26 | K30: 70.794
C31: PRS | D31: 63.4428 | E31: 61.1868 | F31: 88.4476 | G31: 75.5548 | H31: 63.4428 | I31: 61.1868 | J31: 88.4476 | K31: 75.5548
C32: Buyers | D32: 97.4352 | E32: 96.1632 | F32: 137.4864 | G32: 120.4932 | H32: 97.4352 | I32: 96.1632 | J32: 137.4864 | K32: 120.4932
B34: =RawResultsCore!B85 -> Blank | D34: Core Tool Default Settings | H34: User Scenario
C35: Total (Top Level) | D35: =AVERAGE(INDIRECT(CONCATENATE($R$7,"!",$U$7,$Q35,":",$V$7,$Q35))) -> 0 | E35: =AVERAGE(INDIRECT(CONCATENATE($R$7,"!",$W$7,$Q35,":",$X$7,$Q35))) -> 0 | F35: =AVERAGE(INDIRECT(CONCATENATE($R$7,"!",$Y$7,$Q35,":",$Z$7,$Q35))) -> 0 | G35: =IF($G$6<>"",AVERAGE(INDIRECT(CONCATENATE($R$7,"!",$AA$7,$Q35,":",$AB$7,$Q35))),"") -> 0 | H35: =AVERAGE(INDIRECT(CONCATENATE($T$7,"!",$U$7,$S35,":",$V$7,$S35))) -> 0 | I35: =AVERAGE(INDIRECT(CONCATENATE($T$7,"!",$W$7,$S35,":",$X$7,$S35))) -> 0 | J35: =AVERAGE(INDIRECT(CONCATENATE($T$7,"!",$Y$7,$S35,":",$Z$7,$S35))) -> 0 | K35: =IF($K$6<>"",AVERAGE(INDIRECT(CONCATENATE($T$7,"!",$AA$7,$S35,":",$AB$7,$S35))),"") -> 0 | Q35: =Q23+27 -> 92 | S35: =S23+27 -> 92
C36: Total (Constrained) | D36: =IF(D35<>"",D35*D$8/D$7,"") -> 0 | E36: =IF(E35<>"",E35*E$8/E$7,"") -> 0 | F36: =IF(F35<>"",F35*F$8/F$7,"") -> 0 | G36: =IF(G35<>"",G35*G$8/G$7,"") -> 0 | H36: =IF(H35<>"",H35*H$7/H$8,"") -> 0 | I36: =IF(I35<>"",I35*I$7/I$8,"") -> 0 | J36: =IF(J35<>"",J35*J$7/J$8,"") -> 0 | K36: =IF(K35<>"",K35*K$7/K$8,"") -> 0
B37: Top Level | C37: Social rent | D37: =AVERAGE(INDIRECT(CONCATENATE($R$7,"!",$U$7,$Q37,":",$V$7,$Q37))) -> 0 | E37: 0 | F37: 0 | G37: =IF($G$6<>"",AVERAGE(INDIRECT(CONCATENATE($R$7,"!",$AA$7,$Q37,":",$AB$7,$Q37))),"") -> 0 | H37: =AVERAGE(INDIRECT(CONCATENATE($T$7,"!",$U$7,$S37,":",$V$7,$S37))) -> 0 | I37: =AVERAGE(INDIRECT(CONCATENATE($T$7,"!",$W$7,$S37,":",$X$7,$S37))) -> 0 | J37: =AVERAGE(INDIRECT(CONCATENATE($T$7,"!",$Y$7,$S37,":",$Z$7,$S37))) -> 0 | K37: =IF($K$6<>"",AVERAGE(INDIRECT(CONCATENATE($T$7,"!",$AA$7,$S37,":",$AB$7,$S37))),"") -> 0 | Q37: =Q25+27 -> 107 | S37: =S25+27 -> 107
A38: 2 | C38: Below Market | D38: 0 | E38: 0 | F38: 0 | G38: =IF($G$6<>"",AVERAGE(INDIRECT(CONCATENATE($R$7,"!",$AA$7,$Q38,":",$AB$7,$Q38))),"") -> 0 | H38: =AVERAGE(INDIRECT(CONCATENATE($T$7,"!",$U$7,$S38,":",$V$7,$S38))) -> 0 | I38: =AVERAGE(INDIRECT(CONCATENATE($T$7,"!",$W$7,$S38,":",$X$7,$S38))) -> 0 | J38: =AVERAGE(INDIRECT(CONCATENATE($T$7,"!",$Y$7,$S38,":",$Z$7,$S38))) -> 0 | K38: =IF($K$6<>"",AVERAGE(INDIRECT(CONCATENATE($T$7,"!",$AA$7,$S38,":",$AB$7,$S38))),"") -> 0 | Q38: =Q26+27 -> 108 | S38: =S26+27 -> 108
C39: PRS | D39: 0 | E39: 0 | F39: 0 | G39: =IF($G$6<>"",AVERAGE(INDIRECT(CONCATENATE($R$7,"!",$AA$7,$Q39,":",$AB$7,$Q39))),"") -> 0 | H39: =AVERAGE(INDIRECT(CONCATENATE($T$7,"!",$U$7,$S39,":",$V$7,$S39))) -> 0 | I39: =AVERAGE(INDIRECT(CONCATENATE($T$7,"!",$W$7,$S39,":",$X$7,$S39))) -> 0 | J39: =AVERAGE(INDIRECT(CONCATENATE($T$7,"!",$Y$7,$S39,":",$Z$7,$S39))) -> 0 | K39: =IF($K$6<>"",AVERAGE(INDIRECT(CONCATENATE($T$7,"!",$AA$7,$S39,":",$AB$7,$S39))),"") -> 0 | Q39: =Q27+27 -> 109 | S39: =S27+27 -> 109
C40: Buyers | D40: 0 | E40: 0 | F40: 0 | G40: =IF($G$6<>"",AVERAGE(INDIRECT(CONCATENATE($R$7,"!",$AA$7,$Q40,":",$AB$7,$Q40))),"") -> 0 | H40: =AVERAGE(INDIRECT(CONCATENATE($T$7,"!",$U$7,$S40,":",$V$7,$S40))) -> 0 | I40: =AVERAGE(INDIRECT(CONCATENATE($T$7,"!",$W$7,$S40,":",$X$7,$S40))) -> 0 | J40: =AVERAGE(INDIRECT(CONCATENATE($T$7,"!",$Y$7,$S40,":",$Z$7,$S40))) -> 0 | K40: =IF($K$6<>"",AVERAGE(INDIRECT(CONCATENATE($T$7,"!",$AA$7,$S40,":",$AB$7,$S40))),"") -> 0 | Q40: =Q28+27 -> 110 | S40: =S28+27 -> 110
B41: Constrained | C41: Social rent | D41: =IF(D37<>"",D37*D$7/D$8,"") -> 0 | E41: 0 | F41: 0 | G41: 0 | H41: 0 | I41: 0 | J41: 0 | K41: 0
C42: Below Market | D42: 0 | E42: 0 | F42: 0 | G42: 0 | H42: 0 | I42: 0 | J42: 0 | K42: 0
C43: PRS | D43: 0 | E43: 0 | F43: 0 | G43: 0 | H43: 0 | I43: 0 | J43: 0 | K43: 0
C44: Buyers | D44: 0 | E44: 0 | F44: 0 | G44: 0 | H44: 0 | I44: 0 | J44: 0 | K44: 0
B46: =RawResultsCore!B112 -> Blank | D46: Core Tool Default Settings | H46: User Scenario
C47: Total (Top Level) | D47: =AVERAGE(INDIRECT(CONCATENATE($R$7,"!",$U$7,$Q47,":",$V$7,$Q47))) -> 0 | E47: =AVERAGE(INDIRECT(CONCATENATE($R$7,"!",$W$7,$Q47,":",$X$7,$Q47))) -> 0 | F47: =AVERAGE(INDIRECT(CONCATENATE($R$7,"!",$Y$7,$Q47,":",$Z$7,$Q47))) -> 0 | G47: =IF($G$6<>"",AVERAGE(INDIRECT(CONCATENATE($R$7,"!",$AA$7,$Q47,":",$AB$7,$Q47))),"") -> 0 | H47: =AVERAGE(INDIRECT(CONCATENATE($T$7,"!",$U$7,$S47,":",$V$7,$S47))) -> 0 | I47: =AVERAGE(INDIRECT(CONCATENATE($T$7,"!",$W$7,$S47,":",$X$7,$S47))) -> 0 | J47: =AVERAGE(INDIRECT(CONCATENATE($T$7,"!",$Y$7,$S47,":",$Z$7,$S47))) -> 0 | K47: =IF($K$6<>"",AVERAGE(INDIRECT(CONCATENATE($T$7,"!",$AA$7,$S47,":",$AB$7,$S47))),"") -> 0 | Q47: =Q35+27 -> 119 | S47: =S35+27 -> 119
C48: Total (Constrained) | D48: =IF(D47<>"",D47*D$8/D$7,"") -> 0 | E48: =IF(E47<>"",E47*E$8/E$7,"") -> 0 | F48: =IF(F47<>"",F47*F$8/F$7,"") -> 0 | G48: =IF(G47<>"",G47*G$8/G$7,"") -> 0 | H48: =IF(H47<>"",H47*H$7/H$8,"") -> 0 | I48: =IF(I47<>"",I47*I$7/I$8,"") -> 0 | J48: =IF(J47<>"",J47*J$7/J$8,"") -> 0 | K48: =IF(K47<>"",K47*K$7/K$8,"") -> 0
B49: Top Level | C49: Social rent | D49: 0 | E49: 0 | F49: 0 | G49: =IF($G$6<>"",AVERAGE(INDIRECT(CONCATENATE($R$7,"!",$AA$7,$Q49,":",$AB$7,$Q49))),"") -> 0 | H49: =AVERAGE(INDIRECT(CONCATENATE($T$7,"!",$U$7,$S49,":",$V$7,$S49))) -> 0 | I49: =AVERAGE(INDIRECT(CONCATENATE($T$7,"!",$W$7,$S49,":",$X$7,$S49))) -> 0 | J49: =AVERAGE(INDIRECT(CONCATENATE($T$7,"!",$Y$7,$S49,":",$Z$7,$S49))) -> 0 | K49: =IF($K$6<>"",AVERAGE(INDIRECT(CONCATENATE($T$7,"!",$AA$7,$S49,":",$AB$7,$S49))),"") -> 0 | Q49: =Q37+27 -> 134 | S49: =S37+27 -> 134
C50: Below Market | D50: 0 | E50: 0 | F50: 0 | G50: =IF($G$6<>"",AVERAGE(INDIRECT(CONCATENATE($R$7,"!",$AA$7,$Q50,":",$AB$7,$Q50))),"") -> 0 | H50: =AVERAGE(INDIRECT(CONCATENATE($T$7,"!",$U$7,$S50,":",$V$7,$S50))) -> 0 | I50: =AVERAGE(INDIRECT(CONCATENATE($T$7,"!",$W$7,$S50,":",$X$7,$S50))) -> 0 | J50: =AVERAGE(INDIRECT(CONCATENATE($T$7,"!",$Y$7,$S50,":",$Z$7,$S50))) -> 0 | K50: =IF($K$6<>"",AVERAGE(INDIRECT(CONCATENATE($T$7,"!",$AA$7,$S50,":",$AB$7,$S50))),"") -> 0 | Q50: =Q38+27 -> 135 | S50: =S38+27 -> 135
A51: 3 | C51: PRS | D51: 0 | E51: 0 | F51: 0 | G51: =IF($G$6<>"",AVERAGE(INDIRECT(CONCATENATE($R$7,"!",$AA$7,$Q51,":",$AB$7,$Q51))),"") -> 0 | H51: =AVERAGE(INDIRECT(CONCATENATE($T$7,"!",$U$7,$S51,":",$V$7,$S51))) -> 0 | I51: =AVERAGE(INDIRECT(CONCATENATE($T$7,"!",$W$7,$S51,":",$X$7,$S51))) -> 0 | J51: =AVERAGE(INDIRECT(CONCATENATE($T$7,"!",$Y$7,$S51,":",$Z$7,$S51))) -> 0 | K51: =IF($K$6<>"",AVERAGE(INDIRECT(CONCATENATE($T$7,"!",$AA$7,$S51,":",$AB$7,$S51))),"") -> 0 | Q51: =Q39+27 -> 136 | S51: =S39+27 -> 136
C52: Buyers | D52: 0 | E52: 0 | F52: 0 | G52: =IF($G$6<>"",AVERAGE(INDIRECT(CONCATENATE($R$7,"!",$AA$7,$Q52,":",$AB$7,$Q52))),"") -> 0 | H52: =AVERAGE(INDIRECT(CONCATENATE($T$7,"!",$U$7,$S52,":",$V$7,$S52))) -> 0 | I52: =AVERAGE(INDIRECT(CONCATENATE($T$7,"!",$W$7,$S52,":",$X$7,$S52))) -> 0 | J52: =AVERAGE(INDIRECT(CONCATENATE($T$7,"!",$Y$7,$S52,":",$Z$7,$S52))) -> 0 | K52: =IF($K$6<>"",AVERAGE(INDIRECT(CONCATENATE($T$7,"!",$AA$7,$S52,":",$AB$7,$S52))),"") -> 0 | Q52: =Q40+27 -> 137 | S52: =S40+27 -> 137
B53: Constrained | C53: Social rent | D53: =IF(D49<>"",D49*D$7/D$8,"") -> 0 | E53: 0 | F53: 0 | G53: 0 | H53: 0 | I53: 0 | J53: 0 | K53: 0
C54: Below Market | D54: 0 | E54: 0 | F54: 0 | G54: 0 | H54: 0 | I54: 0 | J54: 0 | K54: 0
C55: PRS | D55: 0 | E55: 0 | F55: 0 | G55: 0 | H55: 0 | I55: 0 | J55: 0 | K55: 0
C56: Buyers | D56: 0 | E56: 0 | F56: 0 | G56: 0 | H56: 0 | I56: 0 | J56: 0 | K56: 0
B58: =RawResultsCore!B139 -> Blank | D58: Core Tool Default Settings | H58: User Scenario
C59: Total (Top Level) | D59: =AVERAGE(INDIRECT(CONCATENATE($R$7,"!",$U$7,$Q59,":",$V$7,$Q59))) -> 0 | E59: =AVERAGE(INDIRECT(CONCATENATE($R$7,"!",$W$7,$Q59,":",$X$7,$Q59))) -> 0 | F59: =AVERAGE(INDIRECT(CONCATENATE($R$7,"!",$Y$7,$Q59,":",$Z$7,$Q59))) -> 0 | G59: =IF($G$6<>"",AVERAGE(INDIRECT(CONCATENATE($R$7,"!",$AA$7,$Q59,":",$AB$7,$Q59))),"") -> 0 | H59: =AVERAGE(INDIRECT(CONCATENATE($T$7,"!",$U$7,$S59,":",$V$7,$S59))) -> 0 | I59: =AVERAGE(INDIRECT(CONCATENATE($T$7,"!",$W$7,$S59,":",$X$7,$S59))) -> 0 | J59: =AVERAGE(INDIRECT(CONCATENATE($T$7,"!",$Y$7,$S59,":",$Z$7,$S59))) -> 0 | K59: =IF($K$6<>"",AVERAGE(INDIRECT(CONCATENATE($T$7,"!",$AA$7,$S59,":",$AB$7,$S59))),"") -> 0 | Q59: =Q47+27 -> 146 | S59: =S47+27 -> 146
C60: Total (Constrained) | D60: =IF(D59<>"",D59*D$8/D$7,"") -> 0 | E60: =IF(E59<>"",E59*E$8/E$7,"") -> 0 | F60: =IF(F59<>"",F59*F$8/F$7,"") -> 0 | G60: =IF(G59<>"",G59*G$8/G$7,"") -> 0 | H60: =IF(H59<>"",H59*H$7/H$8,"") -> 0 | I60: =IF(I59<>"",I59*I$7/I$8,"") -> 0 | J60: =IF(J59<>"",J59*J$7/J$8,"") -> 0 | K60: =IF(K59<>"",K59*K$7/K$8,"") -> 0
B61: Top Level | C61: Social rent | D61: 0 | E61: 0 | F61: 0 | G61: =IF($G$6<>"",AVERAGE(INDIRECT(CONCATENATE($R$7,"!",$AA$7,$Q61,":",$AB$7,$Q61))),"") -> 0 | H61: =AVERAGE(INDIRECT(CONCATENATE($T$7,"!",$U$7,$S61,":",$V$7,$S61))) -> 0 | I61: =AVERAGE(INDIRECT(CONCATENATE($T$7,"!",$W$7,$S61,":",$X$7,$S61))) -> 0 | J61: =AVERAGE(INDIRECT(CONCATENATE($T$7,"!",$Y$7,$S61,":",$Z$7,$S61))) -> 0 | K61: =IF($K$6<>"",AVERAGE(INDIRECT(CONCATENATE($T$7,"!",$AA$7,$S61,":",$AB$7,$S61))),"") -> 0 | Q61: =Q49+27 -> 161 | S61: =S49+27 -> 161
C62: Below Market | D62: 0 | E62: 0 | F62: 0 | G62: =IF($G$6<>"",AVERAGE(INDIRECT(CONCATENATE($R$7,"!",$AA$7,$Q62,":",$AB$7,$Q62))),"") -> 0 | H62: =AVERAGE(INDIRECT(CONCATENATE($T$7,"!",$U$7,$S62,":",$V$7,$S62))) -> 0 | I62: =AVERAGE(INDIRECT(CONCATENATE($T$7,"!",$W$7,$S62,":",$X$7,$S62))) -> 0 | J62: =AVERAGE(INDIRECT(CONCATENATE($T$7,"!",$Y$7,$S62,":",$Z$7,$S62))) -> 0 | K62: =IF($K$6<>"",AVERAGE(INDIRECT(CONCATENATE($T$7,"!",$AA$7,$S62,":",$AB$7,$S62))),"") -> 0 | Q62: =Q50+27 -> 162 | S62: =S50+27 -> 162
A63: 4 | C63: PRS | D63: 0 | E63: 0 | F63: 0 | G63: =IF($G$6<>"",AVERAGE(INDIRECT(CONCATENATE($R$7,"!",$AA$7,$Q63,":",$AB$7,$Q63))),"") -> 0 | H63: =AVERAGE(INDIRECT(CONCATENATE($T$7,"!",$U$7,$S63,":",$V$7,$S63))) -> 0 | I63: =AVERAGE(INDIRECT(CONCATENATE($T$7,"!",$W$7,$S63,":",$X$7,$S63))) -> 0 | J63: =AVERAGE(INDIRECT(CONCATENATE($T$7,"!",$Y$7,$S63,":",$Z$7,$S63))) -> 0 | K63: =IF($K$6<>"",AVERAGE(INDIRECT(CONCATENATE($T$7,"!",$AA$7,$S63,":",$AB$7,$S63))),"") -> 0 | Q63: =Q51+27 -> 163 | S63: =S51+27 -> 163
C64: Buyers | D64: 0 | E64: 0 | F64: 0 | G64: =IF($G$6<>"",AVERAGE(INDIRECT(CONCATENATE($R$7,"!",$AA$7,$Q64,":",$AB$7,$Q64))),"") -> 0 | H64: =AVERAGE(INDIRECT(CONCATENATE($T$7,"!",$U$7,$S64,":",$V$7,$S64))) -> 0 | I64: =AVERAGE(INDIRECT(CONCATENATE($T$7,"!",$W$7,$S64,":",$X$7,$S64))) -> 0 | J64: =AVERAGE(INDIRECT(CONCATENATE($T$7,"!",$Y$7,$S64,":",$Z$7,$S64))) -> 0 | K64: =IF($K$6<>"",AVERAGE(INDIRECT(CONCATENATE($T$7,"!",$AA$7,$S64,":",$AB$7,$S64))),"") -> 0 | Q64: =Q52+27 -> 164 | S64: =S52+27 -> 164
B65: Constrained | C65: Social rent | D65: =IF(D61<>"",D61*D$7/D$8,"") -> 0 | E65: 0 | F65: 0 | G65: 0 | H65: 0 | I65: 0 | J65: 0 | K65: 0
C66: Below Market | D66: 0 | E66: 0 | F66: 0 | G66: 0 | H66: 0 | I66: 0 | J66: 0 | K66: 0
C67: PRS | D67: 0 | E67: 0 | F67: 0 | G67: 0 | H67: 0 | I67: 0 | J67: 0 | K67: 0
C68: Buyers | D68: 0 | E68: 0 | F68: 0 | G68: 0 | H68: 0 | I68: 0 | J68: 0 | K68: 0
B70: =RawResultsCore!B166 -> Blank | D70: Core Tool Default Settings | H70: User Scenario
C71: Total (Top Level) | D71: =AVERAGE(INDIRECT(CONCATENATE($R$7,"!",$U$7,$Q71,":",$V$7,$Q71))) -> 0 | E71: =AVERAGE(INDIRECT(CONCATENATE($R$7,"!",$W$7,$Q71,":",$X$7,$Q71))) -> 0 | F71: =AVERAGE(INDIRECT(CONCATENATE($R$7,"!",$Y$7,$Q71,":",$Z$7,$Q71))) -> 0 | G71: =IF($G$6<>"",AVERAGE(INDIRECT(CONCATENATE($R$7,"!",$AA$7,$Q71,":",$AB$7,$Q71))),"") -> 0 | H71: =AVERAGE(INDIRECT(CONCATENATE($T$7,"!",$U$7,$S71,":",$V$7,$S71))) -> 0 | I71: =AVERAGE(INDIRECT(CONCATENATE($T$7,"!",$W$7,$S71,":",$X$7,$S71))) -> 0 | J71: =AVERAGE(INDIRECT(CONCATENATE($T$7,"!",$Y$7,$S71,":",$Z$7,$S71))) -> 0 | K71: =IF($K$6<>"",AVERAGE(INDIRECT(CONCATENATE($T$7,"!",$AA$7,$S71,":",$AB$7,$S71))),"") -> 0 | Q71: =Q59+27 -> 173 | S71: =S59+27 -> 173
C72: Total (Constrained) | D72: =IF(D71<>"",D71*D$8/D$7,"") -> 0 | E72: =IF(E71<>"",E71*E$8/E$7,"") -> 0 | F72: =IF(F71<>"",F71*F$8/F$7,"") -> 0 | G72: =IF(G71<>"",G71*G$8/G$7,"") -> 0 | H72: =IF(H71<>"",H71*H$7/H$8,"") -> 0 | I72: =IF(I71<>"",I71*I$7/I$8,"") -> 0 | J72: =IF(J71<>"",J71*J$7/J$8,"") -> 0 | K72: =IF(K71<>"",K71*K$7/K$8,"") -> 0
B73: Top Level | C73: Social rent | D73: 0 | E73: 0 | F73: 0 | G73: =IF($G$6<>"",AVERAGE(INDIRECT(CONCATENATE($R$7,"!",$AA$7,$Q73,":",$AB$7,$Q73))),"") -> 0 | H73: =AVERAGE(INDIRECT(CONCATENATE($T$7,"!",$U$7,$S73,":",$V$7,$S73))) -> 0 | I73: =AVERAGE(INDIRECT(CONCATENATE($T$7,"!",$W$7,$S73,":",$X$7,$S73))) -> 0 | J73: =AVERAGE(INDIRECT(CONCATENATE($T$7,"!",$Y$7,$S73,":",$Z$7,$S73))) -> 0 | K73: =IF($K$6<>"",AVERAGE(INDIRECT(CONCATENATE($T$7,"!",$AA$7,$S73,":",$AB$7,$S73))),"") -> 0 | Q73: =Q61+27 -> 188 | S73: =S61+27 -> 188
C74: Below Market | D74: 0 | E74: 0 | F74: 0 | G74: =IF($G$6<>"",AVERAGE(INDIRECT(CONCATENATE($R$7,"!",$AA$7,$Q74,":",$AB$7,$Q74))),"") -> 0 | H74: =AVERAGE(INDIRECT(CONCATENATE($T$7,"!",$U$7,$S74,":",$V$7,$S74))) -> 0 | I74: =AVERAGE(INDIRECT(CONCATENATE($T$7,"!",$W$7,$S74,":",$X$7,$S74))) -> 0 | J74: =AVERAGE(INDIRECT(CONCATENATE($T$7,"!",$Y$7,$S74,":",$Z$7,$S74))) -> 0 | K74: =IF($K$6<>"",AVERAGE(INDIRECT(CONCATENATE($T$7,"!",$AA$7,$S74,":",$AB$7,$S74))),"") -> 0 | Q74: =Q62+27 -> 189 | S74: =S62+27 -> 189
C75: PRS | D75: 0 | E75: 0 | F75: 0 | G75: =IF($G$6<>"",AVERAGE(INDIRECT(CONCATENATE($R$7,"!",$AA$7,$Q75,":",$AB$7,$Q75))),"") -> 0 | H75: =AVERAGE(INDIRECT(CONCATENATE($T$7,"!",$U$7,$S75,":",$V$7,$S75))) -> 0 | I75: =AVERAGE(INDIRECT(CONCATENATE($T$7,"!",$W$7,$S75,":",$X$7,$S75))) -> 0 | J75: =AVERAGE(INDIRECT(CONCATENATE($T$7,"!",$Y$7,$S75,":",$Z$7,$S75))) -> 0 | K75: =IF($K$6<>"",AVERAGE(INDIRECT(CONCATENATE($T$7,"!",$AA$7,$S75,":",$AB$7,$S75))),"") -> 0 | Q75: =Q63+27 -> 190 | S75: =S63+27 -> 190
A76: 5 | C76: Buyers | D76: 0 | E76: 0 | F76: 0 | G76: =IF($G$6<>"",AVERAGE(INDIRECT(CONCATENATE($R$7,"!",$AA$7,$Q76,":",$AB$7,$Q76))),"") -> 0 | H76: =AVERAGE(INDIRECT(CONCATENATE($T$7,"!",$U$7,$S76,":",$V$7,$S76))) -> 0 | I76: =AVERAGE(INDIRECT(CONCATENATE($T$7,"!",$W$7,$S76,":",$X$7,$S76))) -> 0 | J76: =AVERAGE(INDIRECT(CONCATENATE($T$7,"!",$Y$7,$S76,":",$Z$7,$S76))) -> 0 | K76: =IF($K$6<>"",AVERAGE(INDIRECT(CONCATENATE($T$7,"!",$AA$7,$S76,":",$AB$7,$S76))),"") -> 0 | Q76: =Q64+27 -> 191 | S76: =S64+27 -> 191
B77: Constrained | C77: Social rent | D77: =IF(D73<>"",D73*D$7/D$8,"") -> 0 | E77: 0 | F77: 0 | G77: 0 | H77: 0 | I77: 0 | J77: 0 | K77: 0
C78: Below Market | D78: 0 | E78: 0 | F78: 0 | G78: 0 | H78: 0 | I78: 0 | J78: 0 | K78: 0
C79: PRS | D79: 0 | E79: 0 | F79: 0 | G79: 0 | H79: 0 | I79: 0 | J79: 0 | K79: 0
C80: Buyers | D80: 0 | E80: 0 | F80: 0 | G80: 0 | H80: 0 | I80: 0 | J80: 0 | K80: 0
B82: =RawResultsCore!B193 -> Blank | D82: Core Tool Default Settings | H82: User Scenario
C83: Total (Top Level) | D83: =AVERAGE(INDIRECT(CONCATENATE($R$7,"!",$U$7,$Q83,":",$V$7,$Q83))) -> 0 | E83: =AVERAGE(INDIRECT(CONCATENATE($R$7,"!",$W$7,$Q83,":",$X$7,$Q83))) -> 0 | F83: =AVERAGE(INDIRECT(CONCATENATE($R$7,"!",$Y$7,$Q83,":",$Z$7,$Q83))) -> 0 | G83: =IF($G$6<>"",AVERAGE(INDIRECT(CONCATENATE($R$7,"!",$AA$7,$Q83,":",$AB$7,$Q83))),"") -> 0 | H83: =AVERAGE(INDIRECT(CONCATENATE($T$7,"!",$U$7,$S83,":",$V$7,$S83))) -> 0 | I83: =AVERAGE(INDIRECT(CONCATENATE($T$7,"!",$W$7,$S83,":",$X$7,$S83))) -> 0 | J83: =AVERAGE(INDIRECT(CONCATENATE($T$7,"!",$Y$7,$S83,":",$Z$7,$S83))) -> 0 | K83: =IF($K$6<>"",AVERAGE(INDIRECT(CONCATENATE($T$7,"!",$AA$7,$S83,":",$AB$7,$S83))),"") -> 0 | Q83: =Q71+27 -> 200 | S83: =S71+27 -> 200
C84: Total (Constrained) | D84: =IF(D83<>"",D83*D$8/D$7,"") -> 0 | E84: =IF(E83<>"",E83*E$8/E$7,"") -> 0 | F84: =IF(F83<>"",F83*F$8/F$7,"") -> 0 | G84: =IF(G83<>"",G83*G$8/G$7,"") -> 0 | H84: =IF(H83<>"",H83*H$7/H$8,"") -> 0 | I84: =IF(I83<>"",I83*I$7/I$8,"") -> 0 | J84: =IF(J83<>"",J83*J$7/J$8,"") -> 0 | K84: =IF(K83<>"",K83*K$7/K$8,"") -> 0
B85: Top Level | C85: Social rent | D85: 0 | E85: 0 | F85: 0 | G85: =IF($G$6<>"",AVERAGE(INDIRECT(CONCATENATE($R$7,"!",$AA$7,$Q85,":",$AB$7,$Q85))),"") -> 0 | H85: =AVERAGE(INDIRECT(CONCATENATE($T$7,"!",$U$7,$S85,":",$V$7,$S85))) -> 0 | I85: =AVERAGE(INDIRECT(CONCATENATE($T$7,"!",$W$7,$S85,":",$X$7,$S85))) -> 0 | J85: =AVERAGE(INDIRECT(CONCATENATE($T$7,"!",$Y$7,$S85,":",$Z$7,$S85))) -> 0 | K85: =IF($K$6<>"",AVERAGE(INDIRECT(CONCATENATE($T$7,"!",$AA$7,$S85,":",$AB$7,$S85))),"") -> 0 | Q85: =Q73+27 -> 215 | S85: =S73+27 -> 215
C86: Below Market | D86: 0 | E86: 0 | F86: 0 | G86: =IF($G$6<>"",AVERAGE(INDIRECT(CONCATENATE($R$7,"!",$AA$7,$Q86,":",$AB$7,$Q86))),"") -> 0 | H86: =AVERAGE(INDIRECT(CONCATENATE($T$7,"!",$U$7,$S86,":",$V$7,$S86))) -> 0 | I86: =AVERAGE(INDIRECT(CONCATENATE($T$7,"!",$W$7,$S86,":",$X$7,$S86))) -> 0 | J86: =AVERAGE(INDIRECT(CONCATENATE($T$7,"!",$Y$7,$S86,":",$Z$7,$S86))) -> 0 | K86: =IF($K$6<>"",AVERAGE(INDIRECT(CONCATENATE($T$7,"!",$AA$7,$S86,":",$AB$7,$S86))),"") -> 0 | Q86: =Q74+27 -> 216 | S86: =S74+27 -> 216
A87: 6 | C87: PRS | D87: 0 | E87: 0 | F87: 0 | G87: =IF($G$6<>"",AVERAGE(INDIRECT(CONCATENATE($R$7,"!",$AA$7,$Q87,":",$AB$7,$Q87))),"") -> 0 | H87: =AVERAGE(INDIRECT(CONCATENATE($T$7,"!",$U$7,$S87,":",$V$7,$S87))) -> 0 | I87: =AVERAGE(INDIRECT(CONCATENATE($T$7,"!",$W$7,$S87,":",$X$7,$S87))) -> 0 | J87: =AVERAGE(INDIRECT(CONCATENATE($T$7,"!",$Y$7,$S87,":",$Z$7,$S87))) -> 0 | K87: =IF($K$6<>"",AVERAGE(INDIRECT(CONCATENATE($T$7,"!",$AA$7,$S87,":",$AB$7,$S87))),"") -> 0 | Q87: =Q75+27 -> 217 | S87: =S75+27 -> 217
C88: Buyers | D88: 0 | E88: 0 | F88: 0 | G88: =IF($G$6<>"",AVERAGE(INDIRECT(CONCATENATE($R$7,"!",$AA$7,$Q88,":",$AB$7,$Q88))),"") -> 0 | H88: =AVERAGE(INDIRECT(CONCATENATE($T$7,"!",$U$7,$S88,":",$V$7,$S88))) -> 0 | I88: =AVERAGE(INDIRECT(CONCATENATE($T$7,"!",$W$7,$S88,":",$X$7,$S88))) -> 0 | J88: =AVERAGE(INDIRECT(CONCATENATE($T$7,"!",$Y$7,$S88,":",$Z$7,$S88))) -> 0 | K88: =IF($K$6<>"",AVERAGE(INDIRECT(CONCATENATE($T$7,"!",$AA$7,$S88,":",$AB$7,$S88))),"") -> 0 | Q88: =Q76+27 -> 218 | S88: =S76+27 -> 218
B89: Constrained | C89: Social rent | D89: =IF(D85<>"",D85*D$7/D$8,"") -> 0 | E89: 0 | F89: 0 | G89: 0 | H89: 0 | I89: 0 | J89: 0 | K89: 0
C90: Below Market | D90: 0 | E90: 0 | F90: 0 | G90: 0 | H90: 0 | I90: 0 | J90: 0 | K90: 0
C91: PRS | D91: 0 | E91: 0 | F91: 0 | G91: 0 | H91: 0 | I91: 0 | J91: 0 | K91: 0
C92: Buyers | D92: 0 | E92: 0 | F92: 0 | G92: 0 | H92: 0 | I92: 0 | J92: 0 | K92: 0
B94: =RawResultsCore!B220 -> Blank | D94: Core Tool Default Settings | H94: User Scenario
C95: Total (Top Level) | D95: =AVERAGE(INDIRECT(CONCATENATE($R$7,"!",$U$7,$Q95,":",$V$7,$Q95))) -> 0 | E95: =AVERAGE(INDIRECT(CONCATENATE($R$7,"!",$W$7,$Q95,":",$X$7,$Q95))) -> 0 | F95: =AVERAGE(INDIRECT(CONCATENATE($R$7,"!",$Y$7,$Q95,":",$Z$7,$Q95))) -> 0 | G95: =IF($G$6<>"",AVERAGE(INDIRECT(CONCATENATE($R$7,"!",$AA$7,$Q95,":",$AB$7,$Q95))),"") -> 0 | H95: =AVERAGE(INDIRECT(CONCATENATE($T$7,"!",$U$7,$S95,":",$V$7,$S95))) -> 0 | I95: =AVERAGE(INDIRECT(CONCATENATE($T$7,"!",$W$7,$S95,":",$X$7,$S95))) -> 0 | J95: =AVERAGE(INDIRECT(CONCATENATE($T$7,"!",$Y$7,$S95,":",$Z$7,$S95))) -> 0 | K95: =IF($K$6<>"",AVERAGE(INDIRECT(CONCATENATE($T$7,"!",$AA$7,$S95,":",$AB$7,$S95))),"") -> 0 | Q95: =Q83+27 -> 227 | S95: =S83+27 -> 227
C96: Total (Constrained) | D96: =IF(D95<>"",D95*D$8/D$7,"") -> 0 | E96: =IF(E95<>"",E95*E$8/E$7,"") -> 0 | F96: =IF(F95<>"",F95*F$8/F$7,"") -> 0 | G96: =IF(G95<>"",G95*G$8/G$7,"") -> 0 | H96: =IF(H95<>"",H95*H$7/H$8,"") -> 0 | I96: =IF(I95<>"",I95*I$7/I$8,"") -> 0 | J96: =IF(J95<>"",J95*J$7/J$8,"") -> 0 | K96: =IF(K95<>"",K95*K$7/K$8,"") -> 0
B97: Top Level | C97: Social rent | D97: 0 | E97: 0 | F97: 0 | G97: =IF($G$6<>"",AVERAGE(INDIRECT(CONCATENATE($R$7,"!",$AA$7,$Q97,":",$AB$7,$Q97))),"") -> 0 | H97: =AVERAGE(INDIRECT(CONCATENATE($T$7,"!",$U$7,$S97,":",$V$7,$S97))) -> 0 | I97: =AVERAGE(INDIRECT(CONCATENATE($T$7,"!",$W$7,$S97,":",$X$7,$S97))) -> 0 | J97: =AVERAGE(INDIRECT(CONCATENATE($T$7,"!",$Y$7,$S97,":",$Z$7,$S97))) -> 0 | K97: =IF($K$6<>"",AVERAGE(INDIRECT(CONCATENATE($T$7,"!",$AA$7,$S97,":",$AB$7,$S97))),"") -> 0 | Q97: =Q85+27 -> 242 | S97: =S85+27 -> 242
C98: Below Market | D98: 0 | E98: 0 | F98: 0 | G98: =IF($G$6<>"",AVERAGE(INDIRECT(CONCATENATE($R$7,"!",$AA$7,$Q98,":",$AB$7,$Q98))),"") -> 0 | H98: =AVERAGE(INDIRECT(CONCATENATE($T$7,"!",$U$7,$S98,":",$V$7,$S98))) -> 0 | I98: =AVERAGE(INDIRECT(CONCATENATE($T$7,"!",$W$7,$S98,":",$X$7,$S98))) -> 0 | J98: =AVERAGE(INDIRECT(CONCATENATE($T$7,"!",$Y$7,$S98,":",$Z$7,$S98))) -> 0 | K98: =IF($K$6<>"",AVERAGE(INDIRECT(CONCATENATE($T$7,"!",$AA$7,$S98,":",$AB$7,$S98))),"") -> 0 | Q98: =Q86+27 -> 243 | S98: =S86+27 -> 243
A99: 7 | C99: PRS | D99: 0 | E99: 0 | F99: 0 | G99: =IF($G$6<>"",AVERAGE(INDIRECT(CONCATENATE($R$7,"!",$AA$7,$Q99,":",$AB$7,$Q99))),"") -> 0 | H99: =AVERAGE(INDIRECT(CONCATENATE($T$7,"!",$U$7,$S99,":",$V$7,$S99))) -> 0 | I99: =AVERAGE(INDIRECT(CONCATENATE($T$7,"!",$W$7,$S99,":",$X$7,$S99))) -> 0 | J99: =AVERAGE(INDIRECT(CONCATENATE($T$7,"!",$Y$7,$S99,":",$Z$7,$S99))) -> 0 | K99: =IF($K$6<>"",AVERAGE(INDIRECT(CONCATENATE($T$7,"!",$AA$7,$S99,":",$AB$7,$S99))),"") -> 0 | Q99: =Q87+27 -> 244 | S99: =S87+27 -> 244
C100: Buyers | D100: 0 | E100: 0 | F100: 0 | G100: =IF($G$6<>"",AVERAGE(INDIRECT(CONCATENATE($R$7,"!",$AA$7,$Q100,":",$AB$7,$Q100))),"") -> 0 | H100: =AVERAGE(INDIRECT(CONCATENATE($T$7,"!",$U$7,$S100,":",$V$7,$S100))) -> 0 | I100: =AVERAGE(INDIRECT(CONCATENATE($T$7,"!",$W$7,$S100,":",$X$7,$S100))) -> 0 | J100: =AVERAGE(INDIRECT(CONCATENATE($T$7,"!",$Y$7,$S100,":",$Z$7,$S100))) -> 0 | K100: =IF($K$6<>"",AVERAGE(INDIRECT(CONCATENATE($T$7,"!",$AA$7,$S100,":",$AB$7,$S100))),"") -> 0 | Q100: =Q88+27 -> 245 | S100: =S88+27 -> 245
B101: Constrained | C101: Social rent | D101: =IF(D97<>"",D97*D$7/D$8,"") -> 0 | E101: 0 | F101: 0 | G101: 0 | H101: 0 | I101: 0 | J101: 0 | K101: 0
C102: Below Market | D102: 0 | E102: 0 | F102: 0 | G102: 0 | H102: 0 | I102: 0 | J102: 0 | K102: 0
C103: PRS | D103: 0 | E103: 0 | F103: 0 | G103: 0 | H103: 0 | I103: 0 | J103: 0 | K103: 0
C104: Buyers | D104: 0 | E104: 0 | F104: 0 | G104: 0 | H104: 0 | I104: 0 | J104: 0 | K104: 0
B106: =RawResultsCore!B247 -> Blank | D106: Core Tool Default Settings | H106: User Scenario
C107: Total (Top Level) | D107: =AVERAGE(INDIRECT(CONCATENATE($R$7,"!",$U$7,$Q107,":",$V$7,$Q107))) -> 0 | E107: =AVERAGE(INDIRECT(CONCATENATE($R$7,"!",$W$7,$Q107,":",$X$7,$Q107))) -> 0 | F107: =AVERAGE(INDIRECT(CONCATENATE($R$7,"!",$Y$7,$Q107,":",$Z$7,$Q107))) -> 0 | G107: =IF($G$6<>"",AVERAGE(INDIRECT(CONCATENATE($R$7,"!",$AA$7,$Q107,":",$AB$7,$Q107))),"") -> 0 | H107: =AVERAGE(INDIRECT(CONCATENATE($T$7,"!",$U$7,$S107,":",$V$7,$S107))) -> 0 | I107: =AVERAGE(INDIRECT(CONCATENATE($T$7,"!",$W$7,$S107,":",$X$7,$S107))) -> 0 | J107: =AVERAGE(INDIRECT(CONCATENATE($T$7,"!",$Y$7,$S107,":",$Z$7,$S107))) -> 0 | K107: =IF($K$6<>"",AVERAGE(INDIRECT(CONCATENATE($T$7,"!",$AA$7,$S107,":",$AB$7,$S107))),"") -> 0 | Q107: =Q95+27 -> 254 | S107: =S95+27 -> 254
C108: Total (Constrained) | D108: =IF(D107<>"",D107*D$8/D$7,"") -> 0 | E108: =IF(E107<>"",E107*E$8/E$7,"") -> 0 | F108: =IF(F107<>"",F107*F$8/F$7,"") -> 0 | G108: =IF(G107<>"",G107*G$8/G$7,"") -> 0 | H108: =IF(H107<>"",H107*H$7/H$8,"") -> 0 | I108: =IF(I107<>"",I107*I$7/I$8,"") -> 0 | J108: =IF(J107<>"",J107*J$7/J$8,"") -> 0 | K108: =IF(K107<>"",K107*K$7/K$8,"") -> 0
B109: Top Level | C109: Social rent | D109: 0 | E109: 0 | F109: 0 | G109: =IF($G$6<>"",AVERAGE(INDIRECT(CONCATENATE($R$7,"!",$AA$7,$Q109,":",$AB$7,$Q109))),"") -> 0 | H109: =AVERAGE(INDIRECT(CONCATENATE($T$7,"!",$U$7,$S109,":",$V$7,$S109))) -> 0 | I109: =AVERAGE(INDIRECT(CONCATENATE($T$7,"!",$W$7,$S109,":",$X$7,$S109))) -> 0 | J109: =AVERAGE(INDIRECT(CONCATENATE($T$7,"!",$Y$7,$S109,":",$Z$7,$S109))) -> 0 | K109: =IF($K$6<>"",AVERAGE(INDIRECT(CONCATENATE($T$7,"!",$AA$7,$S109,":",$AB$7,$S109))),"") -> 0 | Q109: =Q97+27 -> 269 | S109: =S97+27 -> 269
C110: Below Market | D110: 0 | E110: 0 | F110: 0 | G110: =IF($G$6<>"",AVERAGE(INDIRECT(CONCATENATE($R$7,"!",$AA$7,$Q110,":",$AB$7,$Q110))),"") -> 0 | H110: =AVERAGE(INDIRECT(CONCATENATE($T$7,"!",$U$7,$S110,":",$V$7,$S110))) -> 0 | I110: =AVERAGE(INDIRECT(CONCATENATE($T$7,"!",$W$7,$S110,":",$X$7,$S110))) -> 0 | J110: =AVERAGE(INDIRECT(CONCATENATE($T$7,"!",$Y$7,$S110,":",$Z$7,$S110))) -> 0 | K110: =IF($K$6<>"",AVERAGE(INDIRECT(CONCATENATE($T$7,"!",$AA$7,$S110,":",$AB$7,$S110))),"") -> 0 | Q110: =Q98+27 -> 270 | S110: =S98+27 -> 270
A111: 8 | C111: PRS | D111: 0 | E111: 0 | F111: 0 | G111: =IF($G$6<>"",AVERAGE(INDIRECT(CONCATENATE($R$7,"!",$AA$7,$Q111,":",$AB$7,$Q111))),"") -> 0 | H111: =AVERAGE(INDIRECT(CONCATENATE($T$7,"!",$U$7,$S111,":",$V$7,$S111))) -> 0 | I111: =AVERAGE(INDIRECT(CONCATENATE($T$7,"!",$W$7,$S111,":",$X$7,$S111))) -> 0 | J111: =AVERAGE(INDIRECT(CONCATENATE($T$7,"!",$Y$7,$S111,":",$Z$7,$S111))) -> 0 | K111: =IF($K$6<>"",AVERAGE(INDIRECT(CONCATENATE($T$7,"!",$AA$7,$S111,":",$AB$7,$S111))),"") -> 0 | Q111: =Q99+27 -> 271 | S111: =S99+27 -> 271
C112: Buyers | D112: 0 | E112: 0 | F112: 0 | G112: =IF($G$6<>"",AVERAGE(INDIRECT(CONCATENATE($R$7,"!",$AA$7,$Q112,":",$AB$7,$Q112))),"") -> 0 | H112: =AVERAGE(INDIRECT(CONCATENATE($T$7,"!",$U$7,$S112,":",$V$7,$S112))) -> 0 | I112: =AVERAGE(INDIRECT(CONCATENATE($T$7,"!",$W$7,$S112,":",$X$7,$S112))) -> 0 | J112: =AVERAGE(INDIRECT(CONCATENATE($T$7,"!",$Y$7,$S112,":",$Z$7,$S112))) -> 0 | K112: =IF($K$6<>"",AVERAGE(INDIRECT(CONCATENATE($T$7,"!",$AA$7,$S112,":",$AB$7,$S112))),"") -> 0 | Q112: =Q100+27 -> 272 | S112: =S100+27 -> 272
B113: Constrained | C113: Social rent | D113: =IF(D109<>"",D109*D$7/D$8,"") -> 0 | E113: 0 | F113: 0 | G113: 0 | H113: 0 | I113: 0 | J113: 0 | K113: 0
C114: Below Market | D114: 0 | E114: 0 | F114: 0 | G114: 0 | H114: 0 | I114: 0 | J114: 0 | K114: 0
C115: PRS | D115: 0 | E115: 0 | F115: 0 | G115: 0 | H115: 0 | I115: 0 | J115: 0 | K115: 0
C116: Buyers | D116: 0 | E116: 0 | F116: 0 | G116: 0 | H116: 0 | I116: 0 | J116: 0 | K116: 0
B118: =RawResultsCore!B274 -> Blank | D118: Core Tool Default Settings | H118: User Scenario
C119: Total (Top Level) | D119: =AVERAGE(INDIRECT(CONCATENATE($R$7,"!",$U$7,$Q119,":",$V$7,$Q119))) -> 0 | E119: =AVERAGE(INDIRECT(CONCATENATE($R$7,"!",$W$7,$Q119,":",$X$7,$Q119))) -> 0 | F119: =AVERAGE(INDIRECT(CONCATENATE($R$7,"!",$Y$7,$Q119,":",$Z$7,$Q119))) -> 0 | G119: =IF($G$6<>"",AVERAGE(INDIRECT(CONCATENATE($R$7,"!",$AA$7,$Q119,":",$AB$7,$Q119))),"") -> 0 | H119: =AVERAGE(INDIRECT(CONCATENATE($T$7,"!",$U$7,$S119,":",$V$7,$S119))) -> 0 | I119: =AVERAGE(INDIRECT(CONCATENATE($T$7,"!",$W$7,$S119,":",$X$7,$S119))) -> 0 | J119: =AVERAGE(INDIRECT(CONCATENATE($T$7,"!",$Y$7,$S119,":",$Z$7,$S119))) -> 0 | K119: =IF($K$6<>"",AVERAGE(INDIRECT(CONCATENATE($T$7,"!",$AA$7,$S119,":",$AB$7,$S119))),"") -> 0 | Q119: =Q107+27 -> 281 | S119: =S107+27 -> 281
C120: Total (Constrained) | D120: =IF(D119<>"",D119*D$8/D$7,"") -> 0 | E120: =IF(E119<>"",E119*E$8/E$7,"") -> 0 | F120: =IF(F119<>"",F119*F$8/F$7,"") -> 0 | G120: =IF(G119<>"",G119*G$8/G$7,"") -> 0 | H120: =IF(H119<>"",H119*H$7/H$8,"") -> 0 | I120: =IF(I119<>"",I119*I$7/I$8,"") -> 0 | J120: =IF(J119<>"",J119*J$7/J$8,"") -> 0 | K120: =IF(K119<>"",K119*K$7/K$8,"") -> 0
B121: Top Level | C121: Social rent | D121: 0 | E121: 0 | F121: 0 | G121: =IF($G$6<>"",AVERAGE(INDIRECT(CONCATENATE($R$7,"!",$AA$7,$Q121,":",$AB$7,$Q121))),"") -> 0 | H121: =AVERAGE(INDIRECT(CONCATENATE($T$7,"!",$U$7,$S121,":",$V$7,$S121))) -> 0 | I121: =AVERAGE(INDIRECT(CONCATENATE($T$7,"!",$W$7,$S121,":",$X$7,$S121))) -> 0 | J121: =AVERAGE(INDIRECT(CONCATENATE($T$7,"!",$Y$7,$S121,":",$Z$7,$S121))) -> 0 | K121: =IF($K$6<>"",AVERAGE(INDIRECT(CONCATENATE($T$7,"!",$AA$7,$S121,":",$AB$7,$S121))),"") -> 0 | Q121: =Q109+27 -> 296 | S121: =S109+27 -> 296
C122: Below Market | D122: 0 | E122: 0 | F122: 0 | G122: =IF($G$6<>"",AVERAGE(INDIRECT(CONCATENATE($R$7,"!",$AA$7,$Q122,":",$AB$7,$Q122))),"") -> 0 | H122: =AVERAGE(INDIRECT(CONCATENATE($T$7,"!",$U$7,$S122,":",$V$7,$S122))) -> 0 | I122: =AVERAGE(INDIRECT(CONCATENATE($T$7,"!",$W$7,$S122,":",$X$7,$S122))) -> 0 | J122: =AVERAGE(INDIRECT(CONCATENATE($T$7,"!",$Y$7,$S122,":",$Z$7,$S122))) -> 0 | K122: =IF($K$6<>"",AVERAGE(INDIRECT(CONCATENATE($T$7,"!",$AA$7,$S122,":",$AB$7,$S122))),"") -> 0 | Q122: =Q110+27 -> 297 | S122: =S110+27 -> 297
